Workbook

Sheet Topics
A1: Highline Excel 2016 Class 10: Data Validation
A3: Topics:
A4: 1
A5: 2
A6: 3

Sheet Errors
A1: Highline Excel 2013 Class Video 27:
A2: 4 Steps To Track Down Excel Formula Errors (16 Examples)
A4: Error Message | B4: Description of Error
A5: Formula errors:
A6: wrong answer | B6: 1) F2 (Edit Mode) and look at formula, look at Range Finder 2) Run Evaluate Formula or use F9 key on a formula element while in Edit Mode to see what part of the formula is causing error, then examine that part of the formula 3) Look at formula input cells 4) Look at raw data
A7: Cell Reference is black | B7: When building formulas, if cell references is black, the formula is not working (Sheet and Workbook references are always black) | C7: E(1) to E(4)
A8: Error messages:
B9: Divide by zero | C9: E(5)
B10: Formula is using cell reference that has been deleted, or other invalid cell reference
B11: Excel built-in function misspelled, Defined Name misspelled, or "text" (word data) in formula is not in double quotes.
B12: Not Available/ No Answer
B13: Invalid operand or argument type (argument in a function), or Array Formula was entered without Ctrl + Shift + Enter
B14: No Intersection
B15: Invalid numeric values in a formula or function, or an iterative function like IRR cannot find an answer, or the number is too big or small (number must be between -1*10^307 and 1*10^307)
A16: Other errors
A17: ####### | B17: Column width not wide enough to display data (values), or negative date or time | C17: E(5)
A18: Circular Cell Reference | B18: Cell reference in formula refers to the formulas result (itself). You see a dialog message about this error

Sheet E(1)
A3: Region/Product | B3: Bellen | C3: Carlota | D3: Sunshine | E3: Sunset | F3: Yanaki | G3: Flattop | H3: Quad | I3: Eagle Boom | J3: Majestic B
A4: West | B4: 10153 | C4: 15952 | D4: 13740 | E4: 9119 | F4: 12162 | G4: 11767 | H4: 13483 | I4: 7043 | J4: 5107
A5: East | B5: 17765 | C5: 8996 | D5: 17998 | E5: 17300 | F5: 12791 | G5: 12034 | H5: 8897 | I5: 12608 | J5: 11512
A6: South | B6: 19227 | C6: 14636 | D6: 13571 | E6: 9918 | F6: 5297 | G6: 9478 | H6: 11352 | I6: 11753 | J6: 9956
A7: Midwest | B7: 15107 | C7: 8110 | D7: 11065 | E7: 12905 | F7: 12393 | G7: 12607 | H7: 7517 | I7: 7820 | J7: 11081
A8: Northwest | B8: 13694 | C8: 12942 | D8: 12896 | E8: 5898 | F8: 10353 | G8: 19741 | H8: 18423 | I8: 19701 | J8: 11726
A9: Southwest | B9: 10382 | C9: 11342 | D9: 5898 | E9: 7992 | F9: 12060 | G9: 12499 | H9: 18686 | I9: 15468 | J9: 9052
A11: Lookup whole column | D11: Two Way Lookup | H11: Lookup whole column
B12: Total | D12: Region | E12: Product | F12: 2 way lookup | I12: Total
A13: Bellen | B13: =SUM(INDEX($B$5:$J$10,0,MATCH(A13,$B$4:$J$4))) ->  | D13: West | E13: Majestic B | F13: =INDEX(E4:M9MATCH(D13,D4:D9,0),MATCH(E13,E3:L3,0)) ->  | H13: Bellen | I13: =SUM(INDEX($B$4:$J$9,0,MATCH(H$13,$B$3:$J$3,0))) -> 86328
A14: Carlota | B14: =SUM(INDEX($B$5:$J$10,0,MATCH(A14,$B$4:$J$4))) ->  | H14: Carlota
A15: Quad | H15: Quad
A16: Eagle Boom | H16: Eagle Boom
A17: Majestic Beaut | H17: Majestic B

Sheet E(1an)
A1: Region/Product | B1: Bellen | C1: Carlota | D1: Sunshine | E1: Sunset | F1: Yanaki | G1: Flattop | H1: Quad | I1: Eagle Boom | J1: Majestic B | P1: 1) F2: Look at Formula, Look at Range Finder
A2: West | B2: 10153 | C2: 15952 | D2: 13740 | E2: 9119 | F2: 12162 | G2: 11767 | H2: 13483 | I2: 7043 | J2: 5107 | P2: 2) Evaluate Formula: Alt, M, V or F9 Formula Element in Edit Mode
A3: East | B3: 17765 | C3: 8996 | D3: 17998 | E3: 17300 | F3: 12791 | G3: 12034 | H3: 8897 | I3: 12608 | J3: 11512 | P3: 3) Formula Inputs Correct?
A4: South | B4: 19227 | C4: 14636 | D4: 13571 | E4: 9918 | F4: 5297 | G4: 9478 | H4: 11352 | I4: 11753 | J4: 9956 | P4: 4) Raw Data clean?
A5: Midwest | B5: 15107 | C5: 8110 | D5: 11065 | E5: 12905 | F5: 12393 | G5: 12607 | H5: 7517 | I5: 7820 | J5: 11081
A6: Northwest | B6: 13694 | C6: 12942 | D6: 12896 | E6: 5898 | F6: 10353 | G6: 19741 | H6: 18423 | I6: 19701 | J6: 11726
A7: Southwest | B7: 10382 | C7: 11342 | D7: 5898 | E7: 7992 | F7: 12060 | G7: 12499 | H7: 18686 | I7: 15468 | J7: 9052
A9: Lookup whole column | D9: Two Way Lookup | H9: Lookup whole column
B10: Total | D10: Region | E10: Product | F10: 2 way lookup | I10: Total
A11: Bellen | B11: =SUM(INDEX($B$2:$J$7,0,MATCH(A11,$B$1:$J$1,0))) -> 86328 | D11: West | E11: Majestic B | F11: =INDEX(B2:J7,MATCH(D11,A2:A7,0),MATCH(E11,B1:J1,0)) -> 5107 | H11: Bellen | I11: =SUM(INDEX($B$2:$J$7,0,MATCH(H11,$B$1:$J$1,0))) -> 86328
A12: Carlota | B12: =SUM(INDEX($B$2:$J$7,0,MATCH(A12,$B$1:$J$1,0))) -> 71978 | H12: Carlota | I12: =SUM(INDEX($B$2:$J$7,0,MATCH(H12,$B$1:$J$1,0))) -> 71978
A13: Quad | B13: 78358 | H13: Quad | I13: 78358
A14: Eagle Boom | B14: 74393 | H14: Eagle Boom | I14: 74393
A15: Majestic B | B15: 58434 | H15: Majestic B | I15: 58434

Sheet E(2)
A1: Dates | B1: Sales Reps | C1: Sales | F1: Sales Reps | G1: Total
A2: 2013-08-31 | B2: Battalion Pretty | C2: 33 | F2: Sioux Rad | G2: =SUMIFS($C$2:$C$802,$B$2:$B$802,F2) -> 0 | Q2: Sioux Rad | R2: Sioux | S2: Rad
A3: 2014-01-06 | B3: Gigi Rad | C3: 51 | F3: Phil Cool | G3: =SUMIFS($C$2:$C$802,$B$2:$B$802,F3) -> 0 | Q3: Phil Cool | R3: Phil | S3: Cool
A4: 2013-09-14 | B4: Gigi Pretty | C4: 49 | F4: Gigi Sup | G4: 0 | Q4: Gigi Sup | R4: Gigi | S4: Sup
A5: 2014-01-04 | B5: Gigi Pretty | C5: 39 | F5: Battalion Calm | G5: 0 | Q5: Battalion Calm | R5: Battalion | S5: Calm
A6: 2013-10-28 | B6: Phil Sup | C6: 53 | F6: Gardenia Pretty | G6: 0 | Q6: Gardenia Pretty | R6: Gardenia | S6: Pretty
A7: 2013-09-18 | B7: Battalion Pretty | C7: 31
A8: 2013-11-12 | B8: Gigi Calm | C8: 26
A9: 2013-10-26 | B9: Gigi Sup | C9: 25
A10: 2013-11-02 | B10: Sioux Rad | C10: 57
A11: 2013-11-24 | B11: Gardenia Pretty | C11: 28
A12: 2013-09-28 | B12: Gigi Pretty | C12: 44
A13: 2013-10-18 | B13: Gigi Pretty | C13: 10
A14: 2013-12-19 | B14: Gardenia Pretty | C14: 24
A15: 2013-09-11 | B15: Phil Rad | C15: 34
A16: 2014-01-05 | B16: Gigi Rad | C16: 28
A17: 2013-09-22 | B17: Battalion Calm | C17: 15
A18: 2013-09-22 | B18: Battalion Pretty | C18: 19
A19: 2013-08-27 | B19: Sioux Cool | C19: 57
A20: 2013-12-18 | B20: Phil Sup | C20: 11
A21: 2013-09-03 | B21: Sioux Calm | C21: 22
A22: 2013-10-08 | B22: Battalion Rad | C22: 56
A23: 2013-12-15 | B23: Sioux Cool | C23: 39
A24: 2013-10-25 | B24: Gardenia Sup | C24: 53
A25: 2013-10-18 | B25: Battalion Sup | C25: 46
A26: 2013-12-01 | B26: Gigi Rad | C26: 44
A27: 2013-10-12 | B27: Sioux Cool | C27: 54
A28: 2013-10-29 | B28: Gardenia Cool | C28: 30
A29: 2013-09-30 | B29: Gigi Pretty | C29: 33
A30: 2013-10-24 | B30: Battalion Cool | C30: 13
A31: 2014-01-08 | B31: Sioux Calm | C31: 16
A32: 2013-12-19 | B32: Gardenia Cool | C32: 46
A33: 2014-01-02 | B33: Phil Calm | C33: 10
A34: 2013-11-13 | B34: Phil Pretty | C34: 56
A35: 2013-12-02 | B35: Gardenia Rad | C35: 11
A36: 2013-08-20 | B36: Battalion Pretty | C36: 25
A37: 2013-12-02 | B37: Gigi Calm | C37: 22
A38: 2013-10-23 | B38: Gigi Cool | C38: 14
A39: 2013-12-03 | B39: Phil Calm | C39: 19
A40: 2013-11-09 | B40: Gigi Cool | C40: 53
A41: 2013-12-05 | B41: Gigi Calm | C41: 37
A42: 2013-12-14 | B42: Phil Pretty | C42: 50
A43: 2013-09-27 | B43: Sioux Sup | C43: 36
A44: 2013-10-22 | B44: Phil Sup | C44: 36
A45: 2013-10-25 | B45: Gardenia Cool | C45: 17
A46: 2013-12-02 | B46: Gigi Rad | C46: 42
A47: 2013-09-16 | B47: Gigi Calm | C47: 25
A48: 2013-09-21 | B48: Gardenia Pretty | C48: 58
A49: 2013-11-21 | B49: Gardenia Pretty | C49: 57
A50: 2013-09-23 | B50: Battalion Calm | C50: 42
A51: 2014-01-03 | B51: Battalion Sup | C51: 50
A52: 2013-10-01 | B52: Phil Rad | C52: 25
A53: 2013-11-16 | B53: Gigi Calm | C53: 28
A54: 2013-09-28 | B54: Gardenia Sup | C54: 33
A55: 2013-11-06 | B55: Phil Cool | C55: 11
A56: 2013-10-01 | B56: Gardenia Cool | C56: 49
A57: 2013-08-17 | B57: Sioux Sup | C57: 58
A58: 2013-09-20 | B58: Phil Cool | C58: 52
A59: 2013-09-25 | B59: Gardenia Sup | C59: 30
A60: 2013-12-13 | B60: Sioux Pretty | C60: 16
A61: 2013-12-25 | B61: Gardenia Calm | C61: 54
A62: 2013-10-30 | B62: Phil Calm | C62: 34
A63: 2013-12-03 | B63: Battalion Sup | C63: 56
A64: 2013-09-18 | B64: Sioux Rad | C64: 33
A65: 2013-09-03 | B65: Gigi Cool | C65: 59
A66: 2013-12-30 | B66: Gardenia Calm | C66: 37
A67: 2013-10-03 | B67: Gardenia Rad | C67: 46
A68: 2013-11-06 | B68: Gigi Rad | C68: 21
A69: 2013-09-07 | B69: Sioux Sup | C69: 38
A70: 2013-10-01 | B70: Sioux Rad | C70: 16
A71: 2013-09-18 | B71: Sioux Rad | C71: 54
A72: 2013-12-30 | B72: Battalion Calm | C72: 37
A73: 2013-11-18 | B73: Gardenia Calm | C73: 16
A74: 2013-10-12 | B74: Battalion Calm | C74: 42
A75: 2013-12-03 | B75: Sioux Calm | C75: 44
A76: 2013-08-24 | B76: Gardenia Calm | C76: 13
A77: 2013-10-01 | B77: Gardenia Cool | C77: 24
A78: 2013-11-03 | B78: Gardenia Cool | C78: 14
A79: 2013-09-10 | B79: Phil Rad | C79: 41
A80: 2013-09-15 | B80: Gardenia Rad | C80: 45
A81: 2013-11-27 | B81: Phil Rad | C81: 45
A82: 2013-11-27 | B82: Battalion Pretty | C82: 30
A83: 2013-10-20 | B83: Gigi Rad | C83: 31
A84: 2013-10-16 | B84: Phil Cool | C84: 13
A85: 2013-12-06 | B85: Gardenia Pretty | C85: 21
A86: 2013-11-06 | B86: Gardenia Sup | C86: 53
A87: 2013-08-25 | B87: Gigi Sup | C87: 30
A88: 2013-09-24 | B88: Gigi Calm | C88: 24
A89: 2013-11-07 | B89: Sioux Pretty | C89: 15
A90: 2014-01-08 | B90: Gigi Sup | C90: 56
A91: 2013-09-12 | B91: Sioux Cool | C91: 25
A92: 2013-12-13 | B92: Phil Rad | C92: 19
A93: 2013-12-14 | B93: Gigi Rad | C93: 22
A94: 2013-10-07 | B94: Gardenia Rad | C94: 19
A95: 2013-10-11 | B95: Phil Calm | C95: 57
A96: 2013-08-30 | B96: Gardenia Rad | C96: 23
A97: 2013-09-04 | B97: Sioux Pretty | C97: 14
A98: 2013-08-28 | B98: Gigi Pretty | C98: 52
A99: 2013-11-14 | B99: Battalion Sup | C99: 49
A100: 2013-12-18 | B100: Gigi Pretty | C100: 27
A101: 2013-12-17 | B101: Sioux Cool | C101: 21
A102: 2013-10-27 | B102: Gardenia Cool | C102: 35
A103: 2013-11-10 | B103: Sioux Calm | C103: 33
A104: 2013-11-07 | B104: Gigi Rad | C104: 23
A105: 2013-08-23 | B105: Gardenia Cool | C105: 35
A106: 2013-12-07 | B106: Gigi Pretty | C106: 12
A107: 2013-08-24 | B107: Gigi Rad | C107: 31
A108: 2013-09-17 | B108: Gigi Sup | C108: 23
A109: 2013-12-26 | B109: Battalion Calm | C109: 57
A110: 2013-12-10 | B110: Battalion Sup | C110: 50
A111: 2014-01-10 | B111: Gigi Calm | C111: 58
A112: 2013-12-08 | B112: Battalion Calm | C112: 30
A113: 2013-10-31 | B113: Gigi Pretty | C113: 15
A114: 2013-12-24 | B114: Gardenia Calm | C114: 12
A115: 2013-12-24 | B115: Battalion Calm | C115: 22
A116: 2013-09-20 | B116: Gigi Sup | C116: 26
A117: 2013-10-11 | B117: Phil Calm | C117: 27
A118: 2013-08-18 | B118: Gardenia Cool | C118: 50
A119: 2014-01-04 | B119: Phil Calm | C119: 37
A120: 2013-11-23 | B120: Gardenia Cool | C120: 44
A121: 2013-10-19 | B121: Gardenia Calm | C121: 57
A122: 2013-12-22 | B122: Gigi Calm | C122: 19
A123: 2013-10-17 | B123: Gardenia Sup | C123: 44
A124: 2013-10-19 | B124: Battalion Pretty | C124: 21
A125: 2013-10-25 | B125: Battalion Cool | C125: 51
A126: 2013-11-10 | B126: Gigi Calm | C126: 20
A127: 2013-11-14 | B127: Phil Cool | C127: 31
A128: 2013-11-16 | B128: Battalion Calm | C128: 29
A129: 2013-12-21 | B129: Gardenia Pretty | C129: 54
A130: 2013-09-22 | B130: Phil Sup | C130: 54
A131: 2013-10-05 | B131: Phil Cool | C131: 26
A132: 2013-08-22 | B132: Gardenia Cool | C132: 42
A133: 2013-08-26 | B133: Gardenia Pretty | C133: 32
A134: 2013-12-26 | B134: Phil Sup | C134: 26
A135: 2013-08-25 | B135: Battalion Pretty | C135: 43
A136: 2013-12-30 | B136: Gardenia Calm | C136: 40
A137: 2013-10-11 | B137: Gardenia Sup | C137: 14
A138: 2013-12-22 | B138: Phil Cool | C138: 46
A139: 2013-08-20 | B139: Sioux Rad | C139: 10
A140: 2014-01-11 | B140: Gardenia Calm | C140: 18
A141: 2014-01-10 | B141: Sioux Sup | C141: 28
A142: 2013-10-13 | B142: Gigi Sup | C142: 13
A143: 2013-12-04 | B143: Gardenia Pretty | C143: 18
A144: 2013-11-27 | B144: Battalion Sup | C144: 37
A145: 2013-11-23 | B145: Phil Calm | C145: 14
A146: 2013-10-21 | B146: Gigi Sup | C146: 45
A147: 2013-11-12 | B147: Gardenia Cool | C147: 38
A148: 2013-11-20 | B148: Sioux Sup | C148: 14
A149: 2013-12-24 | B149: Battalion Rad | C149: 30
A150: 2013-11-04 | B150: Battalion Pretty | C150: 41
A151: 2013-11-19 | B151: Gardenia Cool | C151: 38
A152: 2013-09-01 | B152: Gigi Sup | C152: 41
A153: 2013-12-13 | B153: Battalion Pretty | C153: 46
A154: 2013-09-01 | B154: Gigi Sup | C154: 48
A155: 2013-09-15 | B155: Phil Calm | C155: 39
A156: 2013-09-27 | B156: Gardenia Pretty | C156: 30
A157: 2013-09-15 | B157: Sioux Cool | C157: 30
A158: 2013-08-19 | B158: Sioux Sup | C158: 57
A159: 2013-12-05 | B159: Gardenia Pretty | C159: 43
A160: 2013-09-01 | B160: Gardenia Cool | C160: 14
A161: 2013-11-20 | B161: Sioux Cool | C161: 20
A162: 2013-10-11 | B162: Gigi Pretty | C162: 26
A163: 2013-10-03 | B163: Gigi Cool | C163: 32
A164: 2013-08-17 | B164: Battalion Pretty | C164: 48
A165: 2014-01-01 | B165: Gardenia Calm | C165: 55
A166: 2013-12-10 | B166: Phil Pretty | C166: 52
A167: 2013-09-16 | B167: Phil Sup | C167: 16
A168: 2013-11-22 | B168: Gigi Calm | C168: 32
A169: 2013-12-08 | B169: Gigi Cool | C169: 50
A170: 2013-12-06 | B170: Phil Pretty | C170: 22
A171: 2013-11-17 | B171: Phil Calm | C171: 21
A172: 2013-11-02 | B172: Gigi Pretty | C172: 57
A173: 2013-12-21 | B173: Phil Rad | C173: 51
A174: 2013-11-18 | B174: Gigi Pretty | C174: 57
A175: 2013-12-28 | B175: Gardenia Cool | C175: 56
A176: 2013-12-17 | B176: Gardenia Pretty | C176: 33
A177: 2014-01-08 | B177: Sioux Pretty | C177: 58
A178: 2013-11-01 | B178: Gardenia Rad | C178: 53
A179: 2013-11-07 | B179: Gardenia Cool | C179: 14
A180: 2013-10-15 | B180: Gigi Pretty | C180: 57
A181: 2013-10-03 | B181: Gardenia Cool | C181: 57
A182: 2013-12-11 | B182: Gardenia Pretty | C182: 55
A183: 2013-08-25 | B183: Phil Sup | C183: 30
A184: 2013-09-07 | B184: Gardenia Rad | C184: 10
A185: 2013-08-28 | B185: Sioux Rad | C185: 59
A186: 2013-12-22 | B186: Sioux Pretty | C186: 13
A187: 2013-10-03 | B187: Gigi Sup | C187: 24
A188: 2013-09-21 | B188: Sioux Calm | C188: 37
A189: 2013-10-21 | B189: Gardenia Sup | C189: 13
A190: 2013-09-30 | B190: Battalion Calm | C190: 57
A191: 2013-10-27 | B191: Battalion Pretty | C191: 51
A192: 2013-09-02 | B192: Gigi Calm | C192: 23
A193: 2013-11-25 | B193: Phil Rad | C193: 54
A194: 2014-01-01 | B194: Sioux Sup | C194: 21
A195: 2013-10-15 | B195: Gigi Rad | C195: 49
A196: 2013-10-06 | B196: Gardenia Sup | C196: 30
A197: 2013-08-15 | B197: Battalion Rad | C197: 32
A198: 2013-08-15 | B198: Sioux Calm | C198: 57
A199: 2013-09-11 | B199: Gardenia Rad | C199: 40
A200: 2013-10-09 | B200: Gardenia Pretty | C200: 21
... 602 more rows

Sheet E(2an)
A1: Dates | B1: Sales Reps | C1: Sales | F1: Sales Reps | G1: Total
A2: 2013-08-31 | B2: Battalion Pretty | C2: 33 | D2: =TRIM(B2) -> Battalion Pretty | F2: Sioux Rad | G2: =SUMIFS($C$2:$C$802,$B$2:$B$802,F2) -> 990 | Q2: Sioux Rad | R2: Sioux | S2: Rad
A3: 2014-01-06 | B3: Gigi Rad | C3: 51 | D3: =TRIM(B3) -> Gigi Rad | F3: Phil Cool | G3: =SUMIFS($C$2:$C$802,$B$2:$B$802,F3) -> 1255 | Q3: Phil Cool | R3: Phil | S3: Cool
A4: 2013-09-14 | B4: Gigi Pretty | C4: 49 | D4: Gigi Pretty | F4: Gigi Sup | G4: 733 | Q4: Gigi Sup | R4: Gigi | S4: Sup
A5: 2014-01-04 | B5: Gigi Pretty | C5: 39 | D5: Gigi Pretty | F5: Battalion Calm | G5: 1094 | Q5: Battalion Calm | R5: Battalion | S5: Calm
A6: 2013-10-28 | B6: Phil Sup | C6: 53 | D6: Phil Sup | F6: Gardenia Pretty | G6: 1098 | Q6: Gardenia Pretty | R6: Gardenia | S6: Pretty
A7: 2013-09-18 | B7: Battalion Pretty | C7: 31 | D7: Battalion Pretty
A8: 2013-11-12 | B8: Gigi Calm | C8: 26 | D8: Gigi Calm
A9: 2013-10-26 | B9: Gigi Sup | C9: 25 | D9: Gigi Sup
A10: 2013-11-02 | B10: Sioux Rad | C10: 57 | D10: Sioux Rad
A11: 2013-11-24 | B11: Gardenia Pretty | C11: 28 | D11: Gardenia Pretty
A12: 2013-09-28 | B12: Gigi Pretty | C12: 44 | D12: Gigi Pretty
A13: 2013-10-18 | B13: Gigi Pretty | C13: 10 | D13: Gigi Pretty
A14: 2013-12-19 | B14: Gardenia Pretty | C14: 24 | D14: Gardenia Pretty
A15: 2013-09-11 | B15: Phil Rad | C15: 34 | D15: Phil Rad
A16: 2014-01-05 | B16: Gigi Rad | C16: 28 | D16: Gigi Rad
A17: 2013-09-22 | B17: Battalion Calm | C17: 15 | D17: Battalion Calm
A18: 2013-09-22 | B18: Battalion Pretty | C18: 19 | D18: Battalion Pretty
A19: 2013-08-27 | B19: Sioux Cool | C19: 57 | D19: Sioux Cool
A20: 2013-12-18 | B20: Phil Sup | C20: 11 | D20: Phil Sup
A21: 2013-09-03 | B21: Sioux Calm | C21: 22 | D21: Sioux Calm
A22: 2013-10-08 | B22: Battalion Rad | C22: 56 | D22: Battalion Rad
A23: 2013-12-15 | B23: Sioux Cool | C23: 39 | D23: Sioux Cool
A24: 2013-10-25 | B24: Gardenia Sup | C24: 53 | D24: Gardenia Sup
A25: 2013-10-18 | B25: Battalion Sup | C25: 46 | D25: Battalion Sup
A26: 2013-12-01 | B26: Gigi Rad | C26: 44 | D26: Gigi Rad
A27: 2013-10-12 | B27: Sioux Cool | C27: 54 | D27: Sioux Cool
A28: 2013-10-29 | B28: Gardenia Cool | C28: 30 | D28: Gardenia Cool
A29: 2013-09-30 | B29: Gigi Pretty | C29: 33 | D29: Gigi Pretty
A30: 2013-10-24 | B30: Battalion Cool | C30: 13 | D30: Battalion Cool
A31: 2014-01-08 | B31: Sioux Calm | C31: 16 | D31: Sioux Calm
A32: 2013-12-19 | B32: Gardenia Cool | C32: 46 | D32: Gardenia Cool
A33: 2014-01-02 | B33: Phil Calm | C33: 10 | D33: Phil Calm
A34: 2013-11-13 | B34: Phil Pretty | C34: 56 | D34: Phil Pretty
A35: 2013-12-02 | B35: Gardenia Rad | C35: 11 | D35: Gardenia Rad
A36: 2013-08-20 | B36: Battalion Pretty | C36: 25 | D36: Battalion Pretty
A37: 2013-12-02 | B37: Gigi Calm | C37: 22 | D37: Gigi Calm
A38: 2013-10-23 | B38: Gigi Cool | C38: 14 | D38: Gigi Cool
A39: 2013-12-03 | B39: Phil Calm | C39: 19 | D39: Phil Calm
A40: 2013-11-09 | B40: Gigi Cool | C40: 53 | D40: Gigi Cool
A41: 2013-12-05 | B41: Gigi Calm | C41: 37 | D41: Gigi Calm
A42: 2013-12-14 | B42: Phil Pretty | C42: 50 | D42: Phil Pretty
A43: 2013-09-27 | B43: Sioux Sup | C43: 36 | D43: Sioux Sup
A44: 2013-10-22 | B44: Phil Sup | C44: 36 | D44: Phil Sup
A45: 2013-10-25 | B45: Gardenia Cool | C45: 17 | D45: Gardenia Cool
A46: 2013-12-02 | B46: Gigi Rad | C46: 42 | D46: Gigi Rad
A47: 2013-09-16 | B47: Gigi Calm | C47: 25 | D47: Gigi Calm
A48: 2013-09-21 | B48: Gardenia Pretty | C48: 58 | D48: Gardenia Pretty
A49: 2013-11-21 | B49: Gardenia Pretty | C49: 57 | D49: Gardenia Pretty
A50: 2013-09-23 | B50: Battalion Calm | C50: 42 | D50: Battalion Calm
A51: 2014-01-03 | B51: Battalion Sup | C51: 50 | D51: Battalion Sup
A52: 2013-10-01 | B52: Phil Rad | C52: 25 | D52: Phil Rad
A53: 2013-11-16 | B53: Gigi Calm | C53: 28 | D53: Gigi Calm
A54: 2013-09-28 | B54: Gardenia Sup | C54: 33 | D54: Gardenia Sup
A55: 2013-11-06 | B55: Phil Cool | C55: 11 | D55: Phil Cool
A56: 2013-10-01 | B56: Gardenia Cool | C56: 49 | D56: Gardenia Cool
A57: 2013-08-17 | B57: Sioux Sup | C57: 58 | D57: Sioux Sup
A58: 2013-09-20 | B58: Phil Cool | C58: 52 | D58: Phil Cool
A59: 2013-09-25 | B59: Gardenia Sup | C59: 30 | D59: Gardenia Sup
A60: 2013-12-13 | B60: Sioux Pretty | C60: 16 | D60: Sioux Pretty
A61: 2013-12-25 | B61: Gardenia Calm | C61: 54 | D61: Gardenia Calm
A62: 2013-10-30 | B62: Phil Calm | C62: 34 | D62: Phil Calm
A63: 2013-12-03 | B63: Battalion Sup | C63: 56 | D63: Battalion Sup
A64: 2013-09-18 | B64: Sioux Rad | C64: 33 | D64: Sioux Rad
A65: 2013-09-03 | B65: Gigi Cool | C65: 59 | D65: Gigi Cool
A66: 2013-12-30 | B66: Gardenia Calm | C66: 37 | D66: Gardenia Calm
A67: 2013-10-03 | B67: Gardenia Rad | C67: 46 | D67: =TRIM(B67) -> Gardenia Rad
A68: 2013-11-06 | B68: Gigi Rad | C68: 21 | D68: Gigi Rad
A69: 2013-09-07 | B69: Sioux Sup | C69: 38 | D69: Sioux Sup
A70: 2013-10-01 | B70: Sioux Rad | C70: 16 | D70: Sioux Rad
A71: 2013-09-18 | B71: Sioux Rad | C71: 54 | D71: Sioux Rad
A72: 2013-12-30 | B72: Battalion Calm | C72: 37 | D72: Battalion Calm
A73: 2013-11-18 | B73: Gardenia Calm | C73: 16 | D73: Gardenia Calm
A74: 2013-10-12 | B74: Battalion Calm | C74: 42 | D74: Battalion Calm
A75: 2013-12-03 | B75: Sioux Calm | C75: 44 | D75: Sioux Calm
A76: 2013-08-24 | B76: Gardenia Calm | C76: 13 | D76: Gardenia Calm
A77: 2013-10-01 | B77: Gardenia Cool | C77: 24 | D77: Gardenia Cool
A78: 2013-11-03 | B78: Gardenia Cool | C78: 14 | D78: Gardenia Cool
A79: 2013-09-10 | B79: Phil Rad | C79: 41 | D79: Phil Rad
A80: 2013-09-15 | B80: Gardenia Rad | C80: 45 | D80: Gardenia Rad
A81: 2013-11-27 | B81: Phil Rad | C81: 45 | D81: Phil Rad
A82: 2013-11-27 | B82: Battalion Pretty | C82: 30 | D82: Battalion Pretty
A83: 2013-10-20 | B83: Gigi Rad | C83: 31 | D83: Gigi Rad
A84: 2013-10-16 | B84: Phil Cool | C84: 13 | D84: Phil Cool
A85: 2013-12-06 | B85: Gardenia Pretty | C85: 21 | D85: Gardenia Pretty
A86: 2013-11-06 | B86: Gardenia Sup | C86: 53 | D86: Gardenia Sup
A87: 2013-08-25 | B87: Gigi Sup | C87: 30 | D87: Gigi Sup
A88: 2013-09-24 | B88: Gigi Calm | C88: 24 | D88: Gigi Calm
A89: 2013-11-07 | B89: Sioux Pretty | C89: 15 | D89: Sioux Pretty
A90: 2014-01-08 | B90: Gigi Sup | C90: 56 | D90: Gigi Sup
A91: 2013-09-12 | B91: Sioux Cool | C91: 25 | D91: Sioux Cool
A92: 2013-12-13 | B92: Phil Rad | C92: 19 | D92: Phil Rad
A93: 2013-12-14 | B93: Gigi Rad | C93: 22 | D93: Gigi Rad
A94: 2013-10-07 | B94: Gardenia Rad | C94: 19 | D94: Gardenia Rad
A95: 2013-10-11 | B95: Phil Calm | C95: 57 | D95: Phil Calm
A96: 2013-08-30 | B96: Gardenia Rad | C96: 23 | D96: Gardenia Rad
A97: 2013-09-04 | B97: Sioux Pretty | C97: 14 | D97: Sioux Pretty
A98: 2013-08-28 | B98: Gigi Pretty | C98: 52 | D98: Gigi Pretty
A99: 2013-11-14 | B99: Battalion Sup | C99: 49 | D99: Battalion Sup
A100: 2013-12-18 | B100: Gigi Pretty | C100: 27 | D100: Gigi Pretty
A101: 2013-12-17 | B101: Sioux Cool | C101: 21 | D101: Sioux Cool
A102: 2013-10-27 | B102: Gardenia Cool | C102: 35 | D102: Gardenia Cool
A103: 2013-11-10 | B103: Sioux Calm | C103: 33 | D103: Sioux Calm
A104: 2013-11-07 | B104: Gigi Rad | C104: 23 | D104: Gigi Rad
A105: 2013-08-23 | B105: Gardenia Cool | C105: 35 | D105: Gardenia Cool
A106: 2013-12-07 | B106: Gigi Pretty | C106: 12 | D106: Gigi Pretty
A107: 2013-08-24 | B107: Gigi Rad | C107: 31 | D107: Gigi Rad
A108: 2013-09-17 | B108: Gigi Sup | C108: 23 | D108: Gigi Sup
A109: 2013-12-26 | B109: Battalion Calm | C109: 57 | D109: Battalion Calm
A110: 2013-12-10 | B110: Battalion Sup | C110: 50 | D110: Battalion Sup
A111: 2014-01-10 | B111: Gigi Calm | C111: 58 | D111: Gigi Calm
A112: 2013-12-08 | B112: Battalion Calm | C112: 30 | D112: Battalion Calm
A113: 2013-10-31 | B113: Gigi Pretty | C113: 15 | D113: Gigi Pretty
A114: 2013-12-24 | B114: Gardenia Calm | C114: 12 | D114: Gardenia Calm
A115: 2013-12-24 | B115: Battalion Calm | C115: 22 | D115: Battalion Calm
A116: 2013-09-20 | B116: Gigi Sup | C116: 26 | D116: Gigi Sup
A117: 2013-10-11 | B117: Phil Calm | C117: 27 | D117: Phil Calm
A118: 2013-08-18 | B118: Gardenia Cool | C118: 50 | D118: Gardenia Cool
A119: 2014-01-04 | B119: Phil Calm | C119: 37 | D119: Phil Calm
A120: 2013-11-23 | B120: Gardenia Cool | C120: 44 | D120: Gardenia Cool
A121: 2013-10-19 | B121: Gardenia Calm | C121: 57 | D121: Gardenia Calm
A122: 2013-12-22 | B122: Gigi Calm | C122: 19 | D122: Gigi Calm
A123: 2013-10-17 | B123: Gardenia Sup | C123: 44 | D123: Gardenia Sup
A124: 2013-10-19 | B124: Battalion Pretty | C124: 21 | D124: Battalion Pretty
A125: 2013-10-25 | B125: Battalion Cool | C125: 51 | D125: Battalion Cool
A126: 2013-11-10 | B126: Gigi Calm | C126: 20 | D126: Gigi Calm
A127: 2013-11-14 | B127: Phil Cool | C127: 31 | D127: Phil Cool
A128: 2013-11-16 | B128: Battalion Calm | C128: 29 | D128: Battalion Calm
A129: 2013-12-21 | B129: Gardenia Pretty | C129: 54 | D129: Gardenia Pretty
A130: 2013-09-22 | B130: Phil Sup | C130: 54 | D130: Phil Sup
A131: 2013-10-05 | B131: Phil Cool | C131: 26 | D131: =TRIM(B131) -> Phil Cool
A132: 2013-08-22 | B132: Gardenia Cool | C132: 42 | D132: Gardenia Cool
A133: 2013-08-26 | B133: Gardenia Pretty | C133: 32 | D133: Gardenia Pretty
A134: 2013-12-26 | B134: Phil Sup | C134: 26 | D134: Phil Sup
A135: 2013-08-25 | B135: Battalion Pretty | C135: 43 | D135: Battalion Pretty
A136: 2013-12-30 | B136: Gardenia Calm | C136: 40 | D136: Gardenia Calm
A137: 2013-10-11 | B137: Gardenia Sup | C137: 14 | D137: Gardenia Sup
A138: 2013-12-22 | B138: Phil Cool | C138: 46 | D138: Phil Cool
A139: 2013-08-20 | B139: Sioux Rad | C139: 10 | D139: Sioux Rad
A140: 2014-01-11 | B140: Gardenia Calm | C140: 18 | D140: Gardenia Calm
A141: 2014-01-10 | B141: Sioux Sup | C141: 28 | D141: Sioux Sup
A142: 2013-10-13 | B142: Gigi Sup | C142: 13 | D142: Gigi Sup
A143: 2013-12-04 | B143: Gardenia Pretty | C143: 18 | D143: Gardenia Pretty
A144: 2013-11-27 | B144: Battalion Sup | C144: 37 | D144: Battalion Sup
A145: 2013-11-23 | B145: Phil Calm | C145: 14 | D145: Phil Calm
A146: 2013-10-21 | B146: Gigi Sup | C146: 45 | D146: Gigi Sup
A147: 2013-11-12 | B147: Gardenia Cool | C147: 38 | D147: Gardenia Cool
A148: 2013-11-20 | B148: Sioux Sup | C148: 14 | D148: Sioux Sup
A149: 2013-12-24 | B149: Battalion Rad | C149: 30 | D149: Battalion Rad
A150: 2013-11-04 | B150: Battalion Pretty | C150: 41 | D150: Battalion Pretty
A151: 2013-11-19 | B151: Gardenia Cool | C151: 38 | D151: Gardenia Cool
A152: 2013-09-01 | B152: Gigi Sup | C152: 41 | D152: Gigi Sup
A153: 2013-12-13 | B153: Battalion Pretty | C153: 46 | D153: Battalion Pretty
A154: 2013-09-01 | B154: Gigi Sup | C154: 48 | D154: Gigi Sup
A155: 2013-09-15 | B155: Phil Calm | C155: 39 | D155: Phil Calm
A156: 2013-09-27 | B156: Gardenia Pretty | C156: 30 | D156: Gardenia Pretty
A157: 2013-09-15 | B157: Sioux Cool | C157: 30 | D157: Sioux Cool
A158: 2013-08-19 | B158: Sioux Sup | C158: 57 | D158: Sioux Sup
A159: 2013-12-05 | B159: Gardenia Pretty | C159: 43 | D159: Gardenia Pretty
A160: 2013-09-01 | B160: Gardenia Cool | C160: 14 | D160: Gardenia Cool
A161: 2013-11-20 | B161: Sioux Cool | C161: 20 | D161: Sioux Cool
A162: 2013-10-11 | B162: Gigi Pretty | C162: 26 | D162: Gigi Pretty
A163: 2013-10-03 | B163: Gigi Cool | C163: 32 | D163: Gigi Cool
A164: 2013-08-17 | B164: Battalion Pretty | C164: 48 | D164: Battalion Pretty
A165: 2014-01-01 | B165: Gardenia Calm | C165: 55 | D165: Gardenia Calm
A166: 2013-12-10 | B166: Phil Pretty | C166: 52 | D166: Phil Pretty
A167: 2013-09-16 | B167: Phil Sup | C167: 16 | D167: Phil Sup
A168: 2013-11-22 | B168: Gigi Calm | C168: 32 | D168: Gigi Calm
A169: 2013-12-08 | B169: Gigi Cool | C169: 50 | D169: Gigi Cool
A170: 2013-12-06 | B170: Phil Pretty | C170: 22 | D170: Phil Pretty
A171: 2013-11-17 | B171: Phil Calm | C171: 21 | D171: Phil Calm
A172: 2013-11-02 | B172: Gigi Pretty | C172: 57 | D172: Gigi Pretty
A173: 2013-12-21 | B173: Phil Rad | C173: 51 | D173: Phil Rad
A174: 2013-11-18 | B174: Gigi Pretty | C174: 57 | D174: Gigi Pretty
A175: 2013-12-28 | B175: Gardenia Cool | C175: 56 | D175: Gardenia Cool
A176: 2013-12-17 | B176: Gardenia Pretty | C176: 33 | D176: Gardenia Pretty
A177: 2014-01-08 | B177: Sioux Pretty | C177: 58 | D177: Sioux Pretty
A178: 2013-11-01 | B178: Gardenia Rad | C178: 53 | D178: Gardenia Rad
A179: 2013-11-07 | B179: Gardenia Cool | C179: 14 | D179: Gardenia Cool
A180: 2013-10-15 | B180: Gigi Pretty | C180: 57 | D180: Gigi Pretty
A181: 2013-10-03 | B181: Gardenia Cool | C181: 57 | D181: Gardenia Cool
A182: 2013-12-11 | B182: Gardenia Pretty | C182: 55 | D182: Gardenia Pretty
A183: 2013-08-25 | B183: Phil Sup | C183: 30 | D183: Phil Sup
A184: 2013-09-07 | B184: Gardenia Rad | C184: 10 | D184: Gardenia Rad
A185: 2013-08-28 | B185: Sioux Rad | C185: 59 | D185: Sioux Rad
A186: 2013-12-22 | B186: Sioux Pretty | C186: 13 | D186: Sioux Pretty
A187: 2013-10-03 | B187: Gigi Sup | C187: 24 | D187: Gigi Sup
A188: 2013-09-21 | B188: Sioux Calm | C188: 37 | D188: Sioux Calm
A189: 2013-10-21 | B189: Gardenia Sup | C189: 13 | D189: Gardenia Sup
A190: 2013-09-30 | B190: Battalion Calm | C190: 57 | D190: Battalion Calm
A191: 2013-10-27 | B191: Battalion Pretty | C191: 51 | D191: Battalion Pretty
A192: 2013-09-02 | B192: Gigi Calm | C192: 23 | D192: Gigi Calm
A193: 2013-11-25 | B193: Phil Rad | C193: 54 | D193: Phil Rad
A194: 2014-01-01 | B194: Sioux Sup | C194: 21 | D194: Sioux Sup
A195: 2013-10-15 | B195: Gigi Rad | C195: 49 | D195: =TRIM(B195) -> Gigi Rad
A196: 2013-10-06 | B196: Gardenia Sup | C196: 30 | D196: Gardenia Sup
A197: 2013-08-15 | B197: Battalion Rad | C197: 32 | D197: Battalion Rad
A198: 2013-08-15 | B198: Sioux Calm | C198: 57 | D198: Sioux Calm
A199: 2013-09-11 | B199: Gardenia Rad | C199: 40 | D199: Gardenia Rad
A200: 2013-10-09 | B200: Gardenia Pretty | C200: 21 | D200: Gardenia Pretty
... 602 more rows

Sheet E(3)
A1: Dates | B1: Sales Reps | C1: Sales | E1: Min | F1: =MIN($A$2:$A$802+0) -> 2013-08-14 | K1: =_xlfn.AGGREGATE(15,4,$A$2:$A$802+0,1) -> 2013-08-14 | M1: Dates
A2: 11/18/2013 | B2: Gigi Pretty | C2: 51 | E2: Max | F2: =MAX($A$2:$A$802+0) -> 2014-01-11 | K2: =_xlfn.AGGREGATE(14,4,$A$2:$A$802+0,1) -> 2014-01-11 | M2: 11/18/2013
A3: 09/09/2013 | B3: Sioux Calm | C3: 12 | M3: 09/09/2013
A4: 09/11/2013 | B4: Phil Sup | C4: 38 | M4: 09/11/2013
A5: 12/27/2013 | B5: Gardenia Pretty | C5: 36 | E5: Start Date | F5: End Date | G5: Total | K5: Total | M5: 12/27/2013
A6: 12/25/2013 | B6: Gardenia Pretty | C6: 12 | E6: =F1 -> 2013-08-14 | F6: =EOMONTH(E6,0) -> 2013-08-31 | K6: =SUMPRODUCT(--(M2:M802+0>=E6),--(M2:M802+0<=F6),C2:C802) -> 3174 | M6: 12/25/2013
A7: 10/06/2013 | B7: Gigi Sup | C7: 26 | E7: =F6+1 -> 2013-09-01 | F7: =EOMONTH(E7,0) -> 2013-09-30 | K7: =SUMPRODUCT(--(M3:M803+0>=E7),--(M3:M803+0<=F7),C3:C803) -> 5255 | M7: 10/06/2013
A8: 01/09/2014 | B8: Sioux Calm | C8: 13 | E8: =F7+1 -> 2013-10-01 | F8: =EOMONTH(E8,0) -> 2013-10-31 | K8: 6145 | M8: 01/09/2014
A9: 12/03/2013 | B9: Gardenia Cool | C9: 29 | E9: 2013-11-01 | F9: 2013-11-30 | K9: 5556 | M9: 12/03/2013
A10: 11/26/2013 | B10: Gigi Rad | C10: 33 | E10: 2013-12-01 | F10: 2013-12-31 | K10: 5273 | M10: 11/26/2013
A11: 08/28/2013 | B11: Gardenia Rad | C11: 48 | E11: 2014-01-01 | F11: 2014-01-31 | K11: 2248 | M11: 08/28/2013
A12: 12/12/2013 | B12: Battalion Pretty | C12: 45 | M12: 12/12/2013
A13: 08/22/2013 | B13: Gigi Sup | C13: 36 | M13: 08/22/2013
A14: 11/24/2013 | B14: Battalion Rad | C14: 54 | M14: 11/24/2013
A15: 08/30/2013 | B15: Gigi Sup | C15: 45 | M15: 08/30/2013
A16: 10/07/2013 | B16: Sioux Cool | C16: 37 | M16: 10/07/2013
A17: 10/26/2013 | B17: Sioux Pretty | C17: 41 | M17: 10/26/2013
A18: 11/11/2013 | B18: Battalion Rad | C18: 46 | M18: 11/11/2013
A19: 09/14/2013 | B19: Gardenia Calm | C19: 23 | M19: 09/14/2013
A20: 12/15/2013 | B20: Gardenia Rad | C20: 27 | M20: 12/15/2013
A21: 12/09/2013 | B21: Phil Sup | C21: 55 | M21: 12/09/2013
A22: 10/22/2013 | B22: Gigi Sup | C22: 36 | M22: 10/22/2013
A23: 12/29/2013 | B23: Gardenia Cool | C23: 15 | M23: 12/29/2013
A24: 11/25/2013 | B24: Battalion Cool | C24: 19 | M24: 11/25/2013
A25: 11/03/2013 | B25: Battalion Cool | C25: 32 | M25: 11/03/2013
A26: 11/20/2013 | B26: Gardenia Calm | C26: 30 | M26: 11/20/2013
A27: 11/28/2013 | B27: Battalion Cool | C27: 36 | M27: 11/28/2013
A28: 11/24/2013 | B28: Battalion Sup | C28: 43 | M28: 11/24/2013
A29: 11/17/2013 | B29: Gardenia Rad | C29: 55 | M29: 11/17/2013
A30: 09/11/2013 | B30: Phil Cool | C30: 31 | M30: 09/11/2013
A31: 11/20/2013 | B31: Gigi Sup | C31: 14 | M31: 11/20/2013
A32: 11/22/2013 | B32: Sioux Calm | C32: 29 | M32: 11/22/2013
A33: 11/02/2013 | B33: Gigi Calm | C33: 58 | M33: 11/02/2013
A34: 10/22/2013 | B34: Gigi Pretty | C34: 37 | M34: 10/22/2013
A35: 12/14/2013 | B35: Gigi Calm | C35: 57 | M35: 12/14/2013
A36: 12/20/2013 | B36: Sioux Cool | C36: 43 | M36: 12/20/2013
A37: 08/21/2013 | B37: Battalion Calm | C37: 43 | M37: 08/21/2013
A38: 10/21/2013 | B38: Gardenia Calm | C38: 49 | M38: 10/21/2013
A39: 10/05/2013 | B39: Gigi Rad | C39: 56 | M39: 10/05/2013
A40: 12/03/2013 | B40: Gardenia Calm | C40: 58 | M40: 12/03/2013
A41: 09/08/2013 | B41: Battalion Calm | C41: 17 | M41: 09/08/2013
A42: 12/20/2013 | B42: Gigi Pretty | C42: 27 | M42: 12/20/2013
A43: 12/30/2013 | B43: Battalion Calm | C43: 26 | M43: 12/30/2013
A44: 08/24/2013 | B44: Gigi Calm | C44: 25 | M44: 08/24/2013
A45: 01/09/2014 | B45: Sioux Calm | C45: 55 | M45: 01/09/2014
A46: 09/14/2013 | B46: Battalion Sup | C46: 31 | M46: 09/14/2013
A47: 12/13/2013 | B47: Sioux Rad | C47: 50 | M47: 12/13/2013
A48: 12/25/2013 | B48: Phil Sup | C48: 42 | M48: 12/25/2013
A49: 01/02/2014 | B49: Battalion Calm | C49: 40 | M49: 01/02/2014
A50: 11/04/2013 | B50: Sioux Rad | C50: 35 | M50: 11/04/2013
A51: 10/04/2013 | B51: Gigi Rad | C51: 17 | M51: 10/04/2013
A52: 12/01/2013 | B52: Phil Pretty | C52: 17 | M52: 12/01/2013
A53: 12/26/2013 | B53: Battalion Calm | C53: 10 | M53: 12/26/2013
A54: 10/25/2013 | B54: Sioux Pretty | C54: 17 | M54: 10/25/2013
A55: 11/04/2013 | B55: Sioux Rad | C55: 27 | M55: 11/04/2013
A56: 08/15/2013 | B56: Phil Rad | C56: 53 | M56: 08/15/2013
A57: 09/24/2013 | B57: Sioux Pretty | C57: 59 | M57: 09/24/2013
A58: 08/17/2013 | B58: Battalion Cool | C58: 29 | M58: 08/17/2013
A59: 11/15/2013 | B59: Sioux Calm | C59: 49 | M59: 11/15/2013
A60: 10/07/2013 | B60: Phil Cool | C60: 33 | M60: 10/07/2013
A61: 11/14/2013 | B61: Gardenia Rad | C61: 38 | M61: 11/14/2013
A62: 10/02/2013 | B62: Sioux Pretty | C62: 53 | M62: 10/02/2013
A63: 09/15/2013 | B63: Phil Pretty | C63: 41 | M63: 09/15/2013
A64: 01/08/2014 | B64: Battalion Sup | C64: 56 | M64: 01/08/2014
A65: 12/22/2013 | B65: Gardenia Cool | C65: 29 | M65: 12/22/2013
A66: 10/24/2013 | B66: Gardenia Rad | C66: 55 | M66: 10/24/2013
A67: 10/24/2013 | B67: Gardenia Rad | C67: 16 | M67: 10/24/2013
A68: 08/27/2013 | B68: Sioux Sup | C68: 46 | M68: 08/27/2013
A69: 09/13/2013 | B69: Phil Pretty | C69: 56 | M69: 09/13/2013
A70: 10/02/2013 | B70: Phil Calm | C70: 21 | M70: 10/02/2013
A71: 10/23/2013 | B71: Phil Calm | C71: 41 | M71: 10/23/2013
A72: 10/01/2013 | B72: Battalion Calm | C72: 25 | M72: 10/01/2013
A73: 11/08/2013 | B73: Phil Rad | C73: 17 | M73: 11/08/2013
A74: 09/23/2013 | B74: Gardenia Cool | C74: 17 | M74: 09/23/2013
A75: 08/17/2013 | B75: Gigi Pretty | C75: 45 | M75: 08/17/2013
A76: 01/06/2014 | B76: Phil Calm | C76: 46 | M76: 01/06/2014
A77: 09/30/2013 | B77: Battalion Sup | C77: 17 | M77: 09/30/2013
A78: 09/21/2013 | B78: Sioux Pretty | C78: 26 | M78: 09/21/2013
A79: 09/19/2013 | B79: Gigi Rad | C79: 37 | M79: 09/19/2013
A80: 11/19/2013 | B80: Gigi Rad | C80: 54 | M80: 11/19/2013
A81: 09/17/2013 | B81: Phil Sup | C81: 55 | M81: 09/17/2013
A82: 12/20/2013 | B82: Gigi Cool | C82: 53 | M82: 12/20/2013
A83: 09/25/2013 | B83: Gigi Calm | C83: 35 | M83: 09/25/2013
A84: 08/28/2013 | B84: Gardenia Rad | C84: 36 | M84: 08/28/2013
A85: 12/16/2013 | B85: Battalion Sup | C85: 33 | M85: 12/16/2013
A86: 11/19/2013 | B86: Phil Sup | C86: 33 | M86: 11/19/2013
A87: 09/14/2013 | B87: Gardenia Rad | C87: 18 | M87: 09/14/2013
A88: 10/22/2013 | B88: Gigi Rad | C88: 36 | M88: 10/22/2013
A89: 01/07/2014 | B89: Sioux Pretty | C89: 22 | M89: 01/07/2014
A90: 12/07/2013 | B90: Sioux Sup | C90: 17 | M90: 12/07/2013
A91: 11/05/2013 | B91: Phil Cool | C91: 45 | M91: 11/05/2013
A92: 10/26/2013 | B92: Battalion Pretty | C92: 35 | M92: 10/26/2013
A93: 10/21/2013 | B93: Gardenia Rad | C93: 29 | M93: 10/21/2013
A94: 09/30/2013 | B94: Phil Calm | C94: 21 | M94: 09/30/2013
A95: 11/02/2013 | B95: Sioux Rad | C95: 32 | M95: 11/02/2013
A96: 01/06/2014 | B96: Phil Rad | C96: 12 | M96: 01/06/2014
A97: 11/24/2013 | B97: Battalion Cool | C97: 43 | M97: 11/24/2013
A98: 12/17/2013 | B98: Gardenia Pretty | C98: 54 | M98: 12/17/2013
A99: 11/02/2013 | B99: Sioux Calm | C99: 23 | M99: 11/02/2013
A100: 10/13/2013 | B100: Sioux Rad | C100: 37 | M100: 10/13/2013
A101: 01/01/2014 | B101: Sioux Rad | C101: 31 | M101: 01/01/2014
A102: 11/17/2013 | B102: Gardenia Rad | C102: 12 | M102: 11/17/2013
A103: 01/09/2014 | B103: Gigi Rad | C103: 14 | M103: 01/09/2014
A104: 11/11/2013 | B104: Gigi Calm | C104: 35 | M104: 11/11/2013
A105: 11/11/2013 | B105: Sioux Sup | C105: 41 | M105: 11/11/2013
A106: 01/03/2014 | B106: Gardenia Sup | C106: 45 | M106: 01/03/2014
A107: 01/08/2014 | B107: Gigi Sup | C107: 31 | M107: 01/08/2014
A108: 12/30/2013 | B108: Phil Pretty | C108: 29 | M108: 12/30/2013
A109: 09/05/2013 | B109: Battalion Pretty | C109: 55 | M109: 09/05/2013
A110: 12/12/2013 | B110: Gigi Calm | C110: 16 | M110: 12/12/2013
A111: 10/08/2013 | B111: Gigi Sup | C111: 58 | M111: 10/08/2013
A112: 09/21/2013 | B112: Battalion Pretty | C112: 42 | M112: 09/21/2013
A113: 09/21/2013 | B113: Gigi Pretty | C113: 16 | M113: 09/21/2013
A114: 11/19/2013 | B114: Gigi Pretty | C114: 29 | M114: 11/19/2013
A115: 12/22/2013 | B115: Gardenia Rad | C115: 39 | M115: 12/22/2013
A116: 10/07/2013 | B116: Sioux Rad | C116: 46 | M116: 10/07/2013
A117: 01/05/2014 | B117: Gardenia Calm | C117: 18 | M117: 01/05/2014
A118: 10/20/2013 | B118: Sioux Sup | C118: 54 | M118: 10/20/2013
A119: 12/06/2013 | B119: Battalion Cool | C119: 40 | M119: 12/06/2013
A120: 10/06/2013 | B120: Battalion Cool | C120: 47 | M120: 10/06/2013
A121: 09/24/2013 | B121: Gigi Calm | C121: 54 | M121: 09/24/2013
A122: 12/12/2013 | B122: Gardenia Cool | C122: 38 | M122: 12/12/2013
A123: 09/03/2013 | B123: Sioux Sup | C123: 21 | M123: 09/03/2013
A124: 08/15/2013 | B124: Battalion Cool | C124: 48 | M124: 08/15/2013
A125: 11/19/2013 | B125: Gardenia Sup | C125: 36 | M125: 11/19/2013
A126: 10/29/2013 | B126: Phil Rad | C126: 13 | M126: 10/29/2013
A127: 10/05/2013 | B127: Phil Cool | C127: 45 | M127: 10/05/2013
A128: 12/06/2013 | B128: Sioux Pretty | C128: 15 | M128: 12/06/2013
A129: 10/21/2013 | B129: Phil Sup | C129: 21 | M129: 10/21/2013
A130: 12/08/2013 | B130: Phil Pretty | C130: 14 | M130: 12/08/2013
A131: 12/26/2013 | B131: Phil Calm | C131: 35 | M131: 12/26/2013
A132: 09/07/2013 | B132: Phil Calm | C132: 54 | M132: 09/07/2013
A133: 11/24/2013 | B133: Battalion Pretty | C133: 10 | M133: 11/24/2013
A134: 12/25/2013 | B134: Battalion Calm | C134: 28 | M134: 12/25/2013
A135: 10/14/2013 | B135: Sioux Rad | C135: 34 | M135: 10/14/2013
A136: 08/16/2013 | B136: Battalion Calm | C136: 45 | M136: 08/16/2013
A137: 12/14/2013 | B137: Battalion Rad | C137: 16 | M137: 12/14/2013
A138: 11/01/2013 | B138: Gardenia Calm | C138: 28 | M138: 11/01/2013
A139: 08/14/2013 | B139: Sioux Cool | C139: 56 | M139: 08/14/2013
A140: 08/14/2013 | B140: Gigi Sup | C140: 16 | M140: 08/14/2013
A141: 11/25/2013 | B141: Gigi Rad | C141: 29 | M141: 11/25/2013
A142: 09/24/2013 | B142: Battalion Cool | C142: 59 | M142: 09/24/2013
A143: 09/27/2013 | B143: Phil Rad | C143: 36 | M143: 09/27/2013
A144: 12/13/2013 | B144: Battalion Sup | C144: 40 | M144: 12/13/2013
A145: 10/14/2013 | B145: Gigi Cool | C145: 19 | M145: 10/14/2013
A146: 10/26/2013 | B146: Battalion Sup | C146: 14 | M146: 10/26/2013
A147: 12/09/2013 | B147: Gardenia Calm | C147: 41 | M147: 12/09/2013
A148: 11/16/2013 | B148: Phil Cool | C148: 26 | M148: 11/16/2013
A149: 09/14/2013 | B149: Battalion Sup | C149: 22 | M149: 09/14/2013
A150: 08/31/2013 | B150: Gigi Pretty | C150: 36 | M150: 08/31/2013
A151: 10/12/2013 | B151: Gigi Sup | C151: 38 | M151: 10/12/2013
A152: 12/03/2013 | B152: Gardenia Rad | C152: 20 | M152: 12/03/2013
A153: 09/24/2013 | B153: Sioux Pretty | C153: 25 | M153: 09/24/2013
A154: 10/02/2013 | B154: Gigi Rad | C154: 22 | M154: 10/02/2013
A155: 11/01/2013 | B155: Battalion Pretty | C155: 15 | M155: 11/01/2013
A156: 12/10/2013 | B156: Gigi Pretty | C156: 47 | M156: 12/10/2013
A157: 10/28/2013 | B157: Gardenia Rad | C157: 20 | M157: 10/28/2013
A158: 10/18/2013 | B158: Phil Calm | C158: 46 | M158: 10/18/2013
A159: 10/02/2013 | B159: Phil Pretty | C159: 47 | M159: 10/02/2013
A160: 10/23/2013 | B160: Battalion Pretty | C160: 27 | M160: 10/23/2013
A161: 12/10/2013 | B161: Sioux Sup | C161: 24 | M161: 12/10/2013
A162: 12/13/2013 | B162: Gardenia Cool | C162: 59 | M162: 12/13/2013
A163: 09/24/2013 | B163: Gigi Calm | C163: 16 | M163: 09/24/2013
A164: 10/01/2013 | B164: Sioux Cool | C164: 12 | M164: 10/01/2013
A165: 11/09/2013 | B165: Battalion Pretty | C165: 23 | M165: 11/09/2013
A166: 12/11/2013 | B166: Gardenia Sup | C166: 49 | M166: 12/11/2013
A167: 11/10/2013 | B167: Battalion Sup | C167: 17 | M167: 11/10/2013
A168: 11/19/2013 | B168: Gardenia Sup | C168: 19 | M168: 11/19/2013
A169: 10/17/2013 | B169: Gardenia Cool | C169: 57 | M169: 10/17/2013
A170: 11/13/2013 | B170: Gigi Pretty | C170: 42 | M170: 11/13/2013
A171: 11/26/2013 | B171: Phil Calm | C171: 31 | M171: 11/26/2013
A172: 09/28/2013 | B172: Gigi Rad | C172: 54 | M172: 09/28/2013
A173: 01/09/2014 | B173: Gigi Sup | C173: 52 | M173: 01/09/2014
A174: 01/03/2014 | B174: Phil Calm | C174: 52 | M174: 01/03/2014
A175: 12/13/2013 | B175: Battalion Calm | C175: 10 | M175: 12/13/2013
A176: 10/09/2013 | B176: Gardenia Pretty | C176: 35 | M176: 10/09/2013
A177: 09/24/2013 | B177: Gigi Sup | C177: 10 | M177: 09/24/2013
A178: 08/19/2013 | B178: Battalion Rad | C178: 53 | M178: 08/19/2013
A179: 10/24/2013 | B179: Sioux Pretty | C179: 51 | M179: 10/24/2013
A180: 10/13/2013 | B180: Gigi Cool | C180: 17 | M180: 10/13/2013
A181: 10/17/2013 | B181: Sioux Calm | C181: 26 | M181: 10/17/2013
A182: 11/26/2013 | B182: Sioux Cool | C182: 37 | M182: 11/26/2013
A183: 10/30/2013 | B183: Phil Cool | C183: 57 | M183: 10/30/2013
A184: 01/06/2014 | B184: Gardenia Pretty | C184: 45 | M184: 01/06/2014
A185: 09/04/2013 | B185: Battalion Sup | C185: 15 | M185: 09/04/2013
A186: 10/04/2013 | B186: Battalion Cool | C186: 46 | M186: 10/04/2013
A187: 11/04/2013 | B187: Sioux Cool | C187: 57 | M187: 11/04/2013
A188: 08/14/2013 | B188: Gardenia Sup | C188: 54 | M188: 08/14/2013
A189: 09/02/2013 | B189: Sioux Sup | C189: 17 | M189: 09/02/2013
A190: 09/20/2013 | B190: Battalion Pretty | C190: 30 | M190: 09/20/2013
A191: 12/19/2013 | B191: Gigi Calm | C191: 38 | M191: 12/19/2013
A192: 01/10/2014 | B192: Gigi Pretty | C192: 39 | M192: 01/10/2014
A193: 12/16/2013 | B193: Gigi Cool | C193: 22 | M193: 12/16/2013
A194: 10/05/2013 | B194: Gardenia Sup | C194: 56 | M194: 10/05/2013
A195: 10/01/2013 | B195: Sioux Sup | C195: 34 | M195: 10/01/2013
A196: 09/13/2013 | B196: Sioux Pretty | C196: 15 | M196: 09/13/2013
A197: 01/07/2014 | B197: Phil Calm | C197: 45 | M197: 01/07/2014
A198: 10/02/2013 | B198: Phil Rad | C198: 48 | M198: 10/02/2013
A199: 12/04/2013 | B199: Battalion Cool | C199: 19 | M199: 12/04/2013
A200: 12/29/2013 | B200: Phil Sup | C200: 14 | M200: 12/29/2013
... 602 more rows

Sheet E(3an)
A1: Dates | B1: Sales Reps | C1: Sales | E1: Min | F1: 2013-08-14
A2: 2013-11-18 | B2: Gigi Pretty | C2: 51 | E2: Max | F2: 2014-01-11
A3: 2013-09-09 | B3: Sioux Calm | C3: 12
A4: 2013-09-11 | B4: Phil Sup | C4: 38
A5: 2013-12-27 | B5: Gardenia Pretty | C5: 36 | E5: Start Date | F5: End Date | G5: Total
A6: 2013-12-25 | B6: Gardenia Pretty | C6: 12 | E6: =F1 -> 2013-08-14 | F6: =EOMONTH(E6,0) -> 2013-08-31 | G6: =SUMIFS($C$2:$C$802,$A$2:$A$802,">="&E6,$A$2:$A$802,"<="&F6) -> 3174
A7: 2013-10-06 | B7: Gigi Sup | C7: 26 | E7: =F6+1 -> 2013-09-01 | F7: =EOMONTH(E7,0) -> 2013-09-30 | G7: =SUMIFS($C$2:$C$802,$A$2:$A$802,">="&E7,$A$2:$A$802,"<="&F7) -> 5255
A8: 2014-01-09 | B8: Sioux Calm | C8: 13 | E8: =F7+1 -> 2013-10-01 | F8: =EOMONTH(E8,0) -> 2013-10-31 | G8: 6145
A9: 2013-12-03 | B9: Gardenia Cool | C9: 29 | E9: 2013-11-01 | F9: 2013-11-30 | G9: 5607
A10: 2013-11-26 | B10: Gigi Rad | C10: 33 | E10: 2013-12-01 | F10: 2013-12-31 | G10: 5309
A11: 2013-08-28 | B11: Gardenia Rad | C11: 48 | E11: 2014-01-01 | F11: 2014-01-31 | G11: 2248
A12: 2013-12-12 | B12: Battalion Pretty | C12: 45
A13: 2013-08-22 | B13: Gigi Sup | C13: 36
A14: 2013-11-24 | B14: Battalion Rad | C14: 54
A15: 2013-08-30 | B15: Gigi Sup | C15: 45
A16: 2013-10-07 | B16: Sioux Cool | C16: 37
A17: 2013-10-26 | B17: Sioux Pretty | C17: 41
A18: 2013-11-11 | B18: Battalion Rad | C18: 46
A19: 2013-09-14 | B19: Gardenia Calm | C19: 23
A20: 2013-12-15 | B20: Gardenia Rad | C20: 27
A21: 2013-12-09 | B21: Phil Sup | C21: 55
A22: 2013-10-22 | B22: Gigi Sup | C22: 36
A23: 2013-12-29 | B23: Gardenia Cool | C23: 15
A24: 2013-11-25 | B24: Battalion Cool | C24: 19
A25: 2013-11-03 | B25: Battalion Cool | C25: 32
A26: 2013-11-20 | B26: Gardenia Calm | C26: 30
A27: 2013-11-28 | B27: Battalion Cool | C27: 36
A28: 2013-11-24 | B28: Battalion Sup | C28: 43
A29: 2013-11-17 | B29: Gardenia Rad | C29: 55
A30: 2013-09-11 | B30: Phil Cool | C30: 31
A31: 2013-11-20 | B31: Gigi Sup | C31: 14
A32: 2013-11-22 | B32: Sioux Calm | C32: 29
A33: 2013-11-02 | B33: Gigi Calm | C33: 58
A34: 2013-10-22 | B34: Gigi Pretty | C34: 37
A35: 2013-12-14 | B35: Gigi Calm | C35: 57
A36: 2013-12-20 | B36: Sioux Cool | C36: 43
A37: 2013-08-21 | B37: Battalion Calm | C37: 43
A38: 2013-10-21 | B38: Gardenia Calm | C38: 49
A39: 2013-10-05 | B39: Gigi Rad | C39: 56
A40: 2013-12-03 | B40: Gardenia Calm | C40: 58
A41: 2013-09-08 | B41: Battalion Calm | C41: 17
A42: 2013-12-20 | B42: Gigi Pretty | C42: 27
A43: 2013-12-30 | B43: Battalion Calm | C43: 26
A44: 2013-08-24 | B44: Gigi Calm | C44: 25
A45: 2014-01-09 | B45: Sioux Calm | C45: 55
A46: 2013-09-14 | B46: Battalion Sup | C46: 31
A47: 2013-12-13 | B47: Sioux Rad | C47: 50
A48: 2013-12-25 | B48: Phil Sup | C48: 42
A49: 2014-01-02 | B49: Battalion Calm | C49: 40
A50: 2013-11-04 | B50: Sioux Rad | C50: 35
A51: 2013-10-04 | B51: Gigi Rad | C51: 17
A52: 2013-12-01 | B52: Phil Pretty | C52: 17
A53: 2013-12-26 | B53: Battalion Calm | C53: 10
A54: 2013-10-25 | B54: Sioux Pretty | C54: 17
A55: 2013-11-04 | B55: Sioux Rad | C55: 27
A56: 2013-08-15 | B56: Phil Rad | C56: 53
A57: 2013-09-24 | B57: Sioux Pretty | C57: 59
A58: 2013-08-17 | B58: Battalion Cool | C58: 29
A59: 2013-11-15 | B59: Sioux Calm | C59: 49
A60: 2013-10-07 | B60: Phil Cool | C60: 33
A61: 2013-11-14 | B61: Gardenia Rad | C61: 38
A62: 2013-10-02 | B62: Sioux Pretty | C62: 53
A63: 2013-09-15 | B63: Phil Pretty | C63: 41
A64: 2014-01-08 | B64: Battalion Sup | C64: 56
A65: 2013-12-22 | B65: Gardenia Cool | C65: 29
A66: 2013-10-24 | B66: Gardenia Rad | C66: 55
A67: 2013-10-24 | B67: Gardenia Rad | C67: 16
A68: 2013-08-27 | B68: Sioux Sup | C68: 46
A69: 2013-09-13 | B69: Phil Pretty | C69: 56
A70: 2013-10-02 | B70: Phil Calm | C70: 21
A71: 2013-10-23 | B71: Phil Calm | C71: 41
A72: 2013-10-01 | B72: Battalion Calm | C72: 25
A73: 2013-11-08 | B73: Phil Rad | C73: 17
A74: 2013-09-23 | B74: Gardenia Cool | C74: 17
A75: 2013-08-17 | B75: Gigi Pretty | C75: 45
A76: 2014-01-06 | B76: Phil Calm | C76: 46
A77: 2013-09-30 | B77: Battalion Sup | C77: 17
A78: 2013-09-21 | B78: Sioux Pretty | C78: 26
A79: 2013-09-19 | B79: Gigi Rad | C79: 37
A80: 2013-11-19 | B80: Gigi Rad | C80: 54
A81: 2013-09-17 | B81: Phil Sup | C81: 55
A82: 2013-12-20 | B82: Gigi Cool | C82: 53
A83: 2013-09-25 | B83: Gigi Calm | C83: 35
A84: 2013-08-28 | B84: Gardenia Rad | C84: 36
A85: 2013-12-16 | B85: Battalion Sup | C85: 33
A86: 2013-11-19 | B86: Phil Sup | C86: 33
A87: 2013-09-14 | B87: Gardenia Rad | C87: 18
A88: 2013-10-22 | B88: Gigi Rad | C88: 36
A89: 2014-01-07 | B89: Sioux Pretty | C89: 22
A90: 2013-12-07 | B90: Sioux Sup | C90: 17
A91: 2013-11-05 | B91: Phil Cool | C91: 45
A92: 2013-10-26 | B92: Battalion Pretty | C92: 35
A93: 2013-10-21 | B93: Gardenia Rad | C93: 29
A94: 2013-09-30 | B94: Phil Calm | C94: 21
A95: 2013-11-02 | B95: Sioux Rad | C95: 32
A96: 2014-01-06 | B96: Phil Rad | C96: 12
A97: 2013-11-24 | B97: Battalion Cool | C97: 43
A98: 2013-12-17 | B98: Gardenia Pretty | C98: 54
A99: 2013-11-02 | B99: Sioux Calm | C99: 23
A100: 2013-10-13 | B100: Sioux Rad | C100: 37
A101: 2014-01-01 | B101: Sioux Rad | C101: 31
A102: 2013-11-17 | B102: Gardenia Rad | C102: 12
A103: 2014-01-09 | B103: Gigi Rad | C103: 14
A104: 2013-11-11 | B104: Gigi Calm | C104: 35
A105: 2013-11-11 | B105: Sioux Sup | C105: 41
A106: 2014-01-03 | B106: Gardenia Sup | C106: 45
A107: 2014-01-08 | B107: Gigi Sup | C107: 31
A108: 2013-12-30 | B108: Phil Pretty | C108: 29
A109: 2013-09-05 | B109: Battalion Pretty | C109: 55
A110: 2013-12-12 | B110: Gigi Calm | C110: 16
A111: 2013-10-08 | B111: Gigi Sup | C111: 58
A112: 2013-09-21 | B112: Battalion Pretty | C112: 42
A113: 2013-09-21 | B113: Gigi Pretty | C113: 16
A114: 2013-11-19 | B114: Gigi Pretty | C114: 29
A115: 2013-12-22 | B115: Gardenia Rad | C115: 39
A116: 2013-10-07 | B116: Sioux Rad | C116: 46
A117: 2014-01-05 | B117: Gardenia Calm | C117: 18
A118: 2013-10-20 | B118: Sioux Sup | C118: 54
A119: 2013-12-06 | B119: Battalion Cool | C119: 40
A120: 2013-10-06 | B120: Battalion Cool | C120: 47
A121: 2013-09-24 | B121: Gigi Calm | C121: 54
A122: 2013-12-12 | B122: Gardenia Cool | C122: 38
A123: 2013-09-03 | B123: Sioux Sup | C123: 21
A124: 2013-08-15 | B124: Battalion Cool | C124: 48
A125: 2013-11-19 | B125: Gardenia Sup | C125: 36
A126: 2013-10-29 | B126: Phil Rad | C126: 13
A127: 2013-10-05 | B127: Phil Cool | C127: 45
A128: 2013-12-06 | B128: Sioux Pretty | C128: 15
A129: 2013-10-21 | B129: Phil Sup | C129: 21
A130: 2013-12-08 | B130: Phil Pretty | C130: 14
A131: 2013-12-26 | B131: Phil Calm | C131: 35
A132: 2013-09-07 | B132: Phil Calm | C132: 54
A133: 2013-11-24 | B133: Battalion Pretty | C133: 10
A134: 2013-12-25 | B134: Battalion Calm | C134: 28
A135: 2013-10-14 | B135: Sioux Rad | C135: 34
A136: 2013-08-16 | B136: Battalion Calm | C136: 45
A137: 2013-12-14 | B137: Battalion Rad | C137: 16
A138: 2013-11-01 | B138: Gardenia Calm | C138: 28
A139: 2013-08-14 | B139: Sioux Cool | C139: 56
A140: 2013-08-14 | B140: Gigi Sup | C140: 16
A141: 2013-11-25 | B141: Gigi Rad | C141: 29
A142: 2013-09-24 | B142: Battalion Cool | C142: 59
A143: 2013-09-27 | B143: Phil Rad | C143: 36
A144: 2013-12-13 | B144: Battalion Sup | C144: 40
A145: 2013-10-14 | B145: Gigi Cool | C145: 19
A146: 2013-10-26 | B146: Battalion Sup | C146: 14
A147: 2013-12-09 | B147: Gardenia Calm | C147: 41
A148: 2013-11-16 | B148: Phil Cool | C148: 26
A149: 2013-09-14 | B149: Battalion Sup | C149: 22
A150: 2013-08-31 | B150: Gigi Pretty | C150: 36
A151: 2013-10-12 | B151: Gigi Sup | C151: 38
A152: 2013-12-03 | B152: Gardenia Rad | C152: 20
A153: 2013-09-24 | B153: Sioux Pretty | C153: 25
A154: 2013-10-02 | B154: Gigi Rad | C154: 22
A155: 2013-11-01 | B155: Battalion Pretty | C155: 15
A156: 2013-12-10 | B156: Gigi Pretty | C156: 47
A157: 2013-10-28 | B157: Gardenia Rad | C157: 20
A158: 2013-10-18 | B158: Phil Calm | C158: 46
A159: 2013-10-02 | B159: Phil Pretty | C159: 47
A160: 2013-10-23 | B160: Battalion Pretty | C160: 27
A161: 2013-12-10 | B161: Sioux Sup | C161: 24
A162: 2013-12-13 | B162: Gardenia Cool | C162: 59
A163: 2013-09-24 | B163: Gigi Calm | C163: 16
A164: 2013-10-01 | B164: Sioux Cool | C164: 12
A165: 2013-11-09 | B165: Battalion Pretty | C165: 23
A166: 2013-12-11 | B166: Gardenia Sup | C166: 49
A167: 2013-11-10 | B167: Battalion Sup | C167: 17
A168: 2013-11-19 | B168: Gardenia Sup | C168: 19
A169: 2013-10-17 | B169: Gardenia Cool | C169: 57
A170: 2013-11-13 | B170: Gigi Pretty | C170: 42
A171: 2013-11-26 | B171: Phil Calm | C171: 31
A172: 2013-09-28 | B172: Gigi Rad | C172: 54
A173: 2014-01-09 | B173: Gigi Sup | C173: 52
A174: 2014-01-03 | B174: Phil Calm | C174: 52
A175: 2013-12-13 | B175: Battalion Calm | C175: 10
A176: 2013-10-09 | B176: Gardenia Pretty | C176: 35
A177: 2013-09-24 | B177: Gigi Sup | C177: 10
A178: 2013-08-19 | B178: Battalion Rad | C178: 53
A179: 2013-10-24 | B179: Sioux Pretty | C179: 51
A180: 2013-10-13 | B180: Gigi Cool | C180: 17
A181: 2013-10-17 | B181: Sioux Calm | C181: 26
A182: 2013-11-26 | B182: Sioux Cool | C182: 37
A183: 2013-10-30 | B183: Phil Cool | C183: 57
A184: 2014-01-06 | B184: Gardenia Pretty | C184: 45
A185: 2013-09-04 | B185: Battalion Sup | C185: 15
A186: 2013-10-04 | B186: Battalion Cool | C186: 46
A187: 2013-11-04 | B187: Sioux Cool | C187: 57
A188: 2013-08-14 | B188: Gardenia Sup | C188: 54
A189: 2013-09-02 | B189: Sioux Sup | C189: 17
A190: 2013-09-20 | B190: Battalion Pretty | C190: 30
A191: 2013-12-19 | B191: Gigi Calm | C191: 38
A192: 2014-01-10 | B192: Gigi Pretty | C192: 39
A193: 2013-12-16 | B193: Gigi Cool | C193: 22
A194: 2013-10-05 | B194: Gardenia Sup | C194: 56
A195: 2013-10-01 | B195: Sioux Sup | C195: 34
A196: 2013-09-13 | B196: Sioux Pretty | C196: 15
A197: 2014-01-07 | B197: Phil Calm | C197: 45
A198: 2013-10-02 | B198: Phil Rad | C198: 48
A199: 2013-12-04 | B199: Battalion Cool | C199: 19
A200: 2013-12-29 | B200: Phil Sup | C200: 14
... 602 more rows

Sheet E(4)
A1: Dates | B1: Sales Reps | C1: Sales | E1: Min | F1: =MIN($A$2:$A$802+0) -> 2013-08-14 | G1: =_xlfn.AGGREGATE(15,4,$A$2:$A$802+0,1) -> 2013-08-14
A2: 11/18/2013 | B2: Gigi Pretty | C2: 51 | E2: Max | F2: =MAX($A$2:$A$802+0) -> 2014-01-11 | G2: =_xlfn.AGGREGATE(14,4,$A$2:$A$802+0,1) -> 2014-01-11
A3: 09/09/2013 | B3: Sioux Calm | C3: 12
A4: 09/11/2013 | B4: Phil Sup | C4: 38
A5: 12/27/2013 | B5: Gardenia Pretty | C5: 36 | E5: Start Date | F5: End Date | G5: Total
A6: 12/25/2013 | B6: Gardenia Pretty | C6: 12 | E6: =F1 -> 2013-08-14 | F6: =EOMONTH(E6,0) -> 2013-08-31
A7: 10/06/2013 | B7: Gigi Sup | C7: 26 | E7: =F6+1 -> 2013-09-01 | F7: =EOMONTH(E7,0) -> 2013-09-30
A8: 01/09/2014 | B8: Sioux Calm | C8: 13 | E8: =F7+1 -> 2013-10-01 | F8: =EOMONTH(E8,0) -> 2013-10-31
A9: 12/03/2013 | B9: Gardenia Cool | C9: 29 | E9: 2013-11-01 | F9: 2013-11-30
A10: 11/26/2013 | B10: Gigi Rad | C10: 33 | E10: 2013-12-01 | F10: 2013-12-31
A11: 08/28/2013 | B11: Gardenia Rad | C11: 48 | E11: 2014-01-01 | F11: 2014-01-31
A12: 12/12/2013 | B12: Battalion Pretty | C12: 45
A13: 08/22/2013 | B13: Gigi Sup | C13: 36
A14: 11/24/2013 | B14: Battalion Rad | C14: 54
A15: 08/30/2013 | B15: Gigi Sup | C15: 45
A16: 10/07/2013 | B16: Sioux Cool | C16: 37
A17: 10/26/2013 | B17: Sioux Pretty | C17: 41
A18: 11/11/2013 | B18: Battalion Rad | C18: 46
A19: 09/14/2013 | B19: Gardenia Calm | C19: 23
A20: 12/15/2013 | B20: Gardenia Rad | C20: 27
A21: 12/09/2013 | B21: Phil Sup | C21: 55
A22: 10/22/2013 | B22: Gigi Sup | C22: 36
A23: 12/29/2013 | B23: Gardenia Cool | C23: 15
A24: 11/25/2013 | B24: Battalion Cool | C24: 19
A25: 11/03/2013 | B25: Battalion Cool | C25: 32
A26: 11/20/2013 | B26: Gardenia Calm | C26: 30
A27: 11/28/2013 | B27: Battalion Cool | C27: 36
A28: 11/24/2013 | B28: Battalion Sup | C28: 43
A29: 11/17/2013 | B29: Gardenia Rad | C29: 55
A30: 09/11/2013 | B30: Phil Cool | C30: 31
A31: 11/20/2013 | B31: Gigi Sup | C31: 14
A32: 11/22/2013 | B32: Sioux Calm | C32: 29
A33: 11/02/2013 | B33: Gigi Calm | C33: 58
A34: 10/22/2013 | B34: Gigi Pretty | C34: 37
A35: 12/14/2013 | B35: Gigi Calm | C35: 57
A36: 12/20/2013 | B36: Sioux Cool | C36: 43
A37: 08/21/2013 | B37: Battalion Calm | C37: 43
A38: 10/21/2013 | B38: Gardenia Calm | C38: 49
A39: 10/05/2013 | B39: Gigi Rad | C39: 56
A40: 12/03/2013 | B40: Gardenia Calm | C40: 58
A41: 09/08/2013 | B41: Battalion Calm | C41: 17
A42: 12/20/2013 | B42: Gigi Pretty | C42: 27
A43: 12/30/2013 | B43: Battalion Calm | C43: 26
A44: 08/24/2013 | B44: Gigi Calm | C44: 25
A45: 01/09/2014 | B45: Sioux Calm | C45: 55
A46: 09/14/2013 | B46: Battalion Sup | C46: 31
A47: 12/13/2013 | B47: Sioux Rad | C47: 50
A48: 12/25/2013 | B48: Phil Sup | C48: 42
A49: 01/02/2014 | B49: Battalion Calm | C49: 40
A50: 11/04/2013 | B50: Sioux Rad | C50: 35
A51: 10/04/2013 | B51: Gigi Rad | C51: 17
A52: 12/01/2013 | B52: Phil Pretty | C52: 17
A53: 12/26/2013 | B53: Battalion Calm | C53: 10
A54: 10/25/2013 | B54: Sioux Pretty | C54: 17
A55: 11/04/2013 | B55: Sioux Rad | C55: 27
A56: 08/15/2013 | B56: Phil Rad | C56: 53
A57: 09/24/2013 | B57: Sioux Pretty | C57: 59
A58: 08/17/2013 | B58: Battalion Cool | C58: 29
A59: 11/15/2013 | B59: Sioux Calm | C59: 49
A60: 10/07/2013 | B60: Phil Cool | C60: 33
A61: 11/14/2013 | B61: Gardenia Rad | C61: 38
A62: 10/02/2013 | B62: Sioux Pretty | C62: 53
A63: 09/15/2013 | B63: Phil Pretty | C63: 41
A64: 01/08/2014 | B64: Battalion Sup | C64: 56
A65: 12/22/2013 | B65: Gardenia Cool | C65: 29
A66: 10/24/2013 | B66: Gardenia Rad | C66: 55
A67: 10/24/2013 | B67: Gardenia Rad | C67: 16
A68: 08/27/2013 | B68: Sioux Sup | C68: 46
A69: 09/13/2013 | B69: Phil Pretty | C69: 56
A70: 10/02/2013 | B70: Phil Calm | C70: 21
A71: 10/23/2013 | B71: Phil Calm | C71: 41
A72: 10/01/2013 | B72: Battalion Calm | C72: 25
A73: 11/08/2013 | B73: Phil Rad | C73: 17
A74: 09/23/2013 | B74: Gardenia Cool | C74: 17
A75: 08/17/2013 | B75: Gigi Pretty | C75: 45
A76: 01/06/2014 | B76: Phil Calm | C76: 46
A77: 09/30/2013 | B77: Battalion Sup | C77: 17
A78: 09/21/2013 | B78: Sioux Pretty | C78: 26
A79: 09/19/2013 | B79: Gigi Rad | C79: 37
A80: 11/19/2013 | B80: Gigi Rad | C80: 54
A81: 09/17/2013 | B81: Phil Sup | C81: 55
A82: 12/20/2013 | B82: Gigi Cool | C82: 53
A83: 09/25/2013 | B83: Gigi Calm | C83: 35
A84: 08/28/2013 | B84: Gardenia Rad | C84: 36
A85: 12/16/2013 | B85: Battalion Sup | C85: 33
A86: 11/19/2013 | B86: Phil Sup | C86: 33
A87: 09/14/2013 | B87: Gardenia Rad | C87: 18
A88: 10/22/2013 | B88: Gigi Rad | C88: 36
A89: 01/07/2014 | B89: Sioux Pretty | C89: 22
A90: 12/07/2013 | B90: Sioux Sup | C90: 17
A91: 11/05/2013 | B91: Phil Cool | C91: 45
A92: 10/26/2013 | B92: Battalion Pretty | C92: 35
A93: 10/21/2013 | B93: Gardenia Rad | C93: 29
A94: 09/30/2013 | B94: Phil Calm | C94: 21
A95: 11/02/2013 | B95: Sioux Rad | C95: 32
A96: 01/06/2014 | B96: Phil Rad | C96: 12
A97: 11/24/2013 | B97: Battalion Cool | C97: 43
A98: 12/17/2013 | B98: Gardenia Pretty | C98: 54
A99: 11/02/2013 | B99: Sioux Calm | C99: 23
A100: 10/13/2013 | B100: Sioux Rad | C100: 37
A101: 01/01/2014 | B101: Sioux Rad | C101: 31
A102: 11/17/2013 | B102: Gardenia Rad | C102: 12
A103: 01/09/2014 | B103: Gigi Rad | C103: 14
A104: 11/11/2013 | B104: Gigi Calm | C104: 35
A105: 11/11/2013 | B105: Sioux Sup | C105: 41
A106: 01/03/2014 | B106: Gardenia Sup | C106: 45
A107: 01/08/2014 | B107: Gigi Sup | C107: 31
A108: 12/30/2013 | B108: Phil Pretty | C108: 29
A109: 09/05/2013 | B109: Battalion Pretty | C109: 55
A110: 12/12/2013 | B110: Gigi Calm | C110: 16
A111: 10/08/2013 | B111: Gigi Sup | C111: 58
A112: 09/21/2013 | B112: Battalion Pretty | C112: 42
A113: 09/21/2013 | B113: Gigi Pretty | C113: 16
A114: 11/19/2013 | B114: Gigi Pretty | C114: 29
A115: 12/22/2013 | B115: Gardenia Rad | C115: 39
A116: 10/07/2013 | B116: Sioux Rad | C116: 46
A117: 01/05/2014 | B117: Gardenia Calm | C117: 18
A118: 10/20/2013 | B118: Sioux Sup | C118: 54
A119: 12/06/2013 | B119: Battalion Cool | C119: 40
A120: 10/06/2013 | B120: Battalion Cool | C120: 47
A121: 09/24/2013 | B121: Gigi Calm | C121: 54
A122: 12/12/2013 | B122: Gardenia Cool | C122: 38
A123: 09/03/2013 | B123: Sioux Sup | C123: 21
A124: 08/15/2013 | B124: Battalion Cool | C124: 48
A125: 11/19/2013 | B125: Gardenia Sup | C125: 36
A126: 10/29/2013 | B126: Phil Rad | C126: 13
A127: 10/05/2013 | B127: Phil Cool | C127: 45
A128: 12/06/2013 | B128: Sioux Pretty | C128: 15
A129: 10/21/2013 | B129: Phil Sup | C129: 21
A130: 12/08/2013 | B130: Phil Pretty | C130: 14
A131: 12/26/2013 | B131: Phil Calm | C131: 35
A132: 09/07/2013 | B132: Phil Calm | C132: 54
A133: 11/24/2013 | B133: Battalion Pretty | C133: 10
A134: 12/25/2013 | B134: Battalion Calm | C134: 28
A135: 10/14/2013 | B135: Sioux Rad | C135: 34
A136: 08/16/2013 | B136: Battalion Calm | C136: 45
A137: 12/14/2013 | B137: Battalion Rad | C137: 16
A138: 11/01/2013 | B138: Gardenia Calm | C138: 28
A139: 08/14/2013 | B139: Sioux Cool | C139: 56
A140: 08/14/2013 | B140: Gigi Sup | C140: 16
A141: 11/25/2013 | B141: Gigi Rad | C141: 29
A142: 09/24/2013 | B142: Battalion Cool | C142: 59
A143: 09/27/2013 | B143: Phil Rad | C143: 36
A144: 12/13/2013 | B144: Battalion Sup | C144: 40
A145: 10/14/2013 | B145: Gigi Cool | C145: 19
A146: 10/26/2013 | B146: Battalion Sup | C146: 14
A147: 12/09/2013 | B147: Gardenia Calm | C147: 41
A148: 11/16/2013 | B148: Phil Cool | C148: 26
A149: 09/14/2013 | B149: Battalion Sup | C149: 22
A150: 08/31/2013 | B150: Gigi Pretty | C150: 36
A151: 10/12/2013 | B151: Gigi Sup | C151: 38
A152: 12/03/2013 | B152: Gardenia Rad | C152: 20
A153: 09/24/2013 | B153: Sioux Pretty | C153: 25
A154: 10/02/2013 | B154: Gigi Rad | C154: 22
A155: 11/01/2013 | B155: Battalion Pretty | C155: 15
A156: 12/10/2013 | B156: Gigi Pretty | C156: 47
A157: 10/28/2013 | B157: Gardenia Rad | C157: 20
A158: 10/18/2013 | B158: Phil Calm | C158: 46
A159: 10/02/2013 | B159: Phil Pretty | C159: 47
A160: 10/23/2013 | B160: Battalion Pretty | C160: 27
A161: 12/10/2013 | B161: Sioux Sup | C161: 24
A162: 12/13/2013 | B162: Gardenia Cool | C162: 59
A163: 09/24/2013 | B163: Gigi Calm | C163: 16
A164: 10/01/2013 | B164: Sioux Cool | C164: 12
A165: 11/09/2013 | B165: Battalion Pretty | C165: 23
A166: 12/11/2013 | B166: Gardenia Sup | C166: 49
A167: 11/10/2013 | B167: Battalion Sup | C167: 17
A168: 11/19/2013 | B168: Gardenia Sup | C168: 19
A169: 10/17/2013 | B169: Gardenia Cool | C169: 57
A170: 11/13/2013 | B170: Gigi Pretty | C170: 42
A171: 11/26/2013 | B171: Phil Calm | C171: 31
A172: 09/28/2013 | B172: Gigi Rad | C172: 54
A173: 01/09/2014 | B173: Gigi Sup | C173: 52
A174: 01/03/2014 | B174: Phil Calm | C174: 52
A175: 12/13/2013 | B175: Battalion Calm | C175: 10
A176: 10/09/2013 | B176: Gardenia Pretty | C176: 35
A177: 09/24/2013 | B177: Gigi Sup | C177: 10
A178: 08/19/2013 | B178: Battalion Rad | C178: 53
A179: 10/24/2013 | B179: Sioux Pretty | C179: 51
A180: 10/13/2013 | B180: Gigi Cool | C180: 17
A181: 10/17/2013 | B181: Sioux Calm | C181: 26
A182: 11/26/2013 | B182: Sioux Cool | C182: 37
A183: 10/30/2013 | B183: Phil Cool | C183: 57
A184: 01/06/2014 | B184: Gardenia Pretty | C184: 45
A185: 09/04/2013 | B185: Battalion Sup | C185: 15
A186: 10/04/2013 | B186: Battalion Cool | C186: 46
A187: 11/04/2013 | B187: Sioux Cool | C187: 57
A188: 08/14/2013 | B188: Gardenia Sup | C188: 54
A189: 09/02/2013 | B189: Sioux Sup | C189: 17
A190: 09/20/2013 | B190: Battalion Pretty | C190: 30
A191: 12/19/2013 | B191: Gigi Calm | C191: 38
A192: 01/10/2014 | B192: Gigi Pretty | C192: 39
A193: 12/16/2013 | B193: Gigi Cool | C193: 22
A194: 10/05/2013 | B194: Gardenia Sup | C194: 56
A195: 10/01/2013 | B195: Sioux Sup | C195: 34
A196: 09/13/2013 | B196: Sioux Pretty | C196: 15
A197: 01/07/2014 | B197: Phil Calm | C197: 45
A198: 10/02/2013 | B198: Phil Rad | C198: 48
A199: 12/04/2013 | B199: Battalion Cool | C199: 19
A200: 12/29/2013 | B200: Phil Sup | C200: 14
... 602 more rows

Sheet E(4an)
A1: Dates | B1: Sales Reps | C1: Sales | E1: Min | F1: =MIN($A$2:$A$802+0) -> 2013-08-14 | G1: =_xlfn.AGGREGATE(15,4,$A$2:$A$802+0,1) -> 2013-08-14
A2: 11/18/2013 | B2: Gigi Pretty | C2: 51 | E2: Max | F2: =MAX($A$2:$A$802+0) -> 2014-01-11 | G2: =_xlfn.AGGREGATE(14,4,$A$2:$A$802+0,1) -> 2014-01-11
A3: 09/09/2013 | B3: Sioux Calm | C3: 12
A4: 09/11/2013 | B4: Phil Sup | C4: 38
A5: 12/27/2013 | B5: Gardenia Pretty | C5: 36 | E5: Start Date | F5: End Date | G5: Total
A6: 12/25/2013 | B6: Gardenia Pretty | C6: 12 | E6: =F1 -> 2013-08-14 | F6: =EOMONTH(E6,0) -> 2013-08-31 | G6: =SUMPRODUCT(--(A2:A802+0>=E6),--(A2:A802+0<=F6),C2:C802) -> 3174
A7: 10/06/2013 | B7: Gigi Sup | C7: 26 | E7: =F6+1 -> 2013-09-01 | F7: =EOMONTH(E7,0) -> 2013-09-30 | G7: =SUMPRODUCT(--(A3:A803+0>=E7),--(A3:A803+0<=F7),C3:C803) -> 5255
A8: 01/09/2014 | B8: Sioux Calm | C8: 13 | E8: =F7+1 -> 2013-10-01 | F8: =EOMONTH(E8,0) -> 2013-10-31 | G8: 6145
A9: 12/03/2013 | B9: Gardenia Cool | C9: 29 | E9: 2013-11-01 | F9: 2013-11-30 | G9: 5556
A10: 11/26/2013 | B10: Gigi Rad | C10: 33 | E10: 2013-12-01 | F10: 2013-12-31 | G10: 5273
A11: 08/28/2013 | B11: Gardenia Rad | C11: 48 | E11: 2014-01-01 | F11: 2014-01-31 | G11: 2248
A12: 12/12/2013 | B12: Battalion Pretty | C12: 45
A13: 08/22/2013 | B13: Gigi Sup | C13: 36
A14: 11/24/2013 | B14: Battalion Rad | C14: 54
A15: 08/30/2013 | B15: Gigi Sup | C15: 45
A16: 10/07/2013 | B16: Sioux Cool | C16: 37
A17: 10/26/2013 | B17: Sioux Pretty | C17: 41
A18: 11/11/2013 | B18: Battalion Rad | C18: 46
A19: 09/14/2013 | B19: Gardenia Calm | C19: 23
A20: 12/15/2013 | B20: Gardenia Rad | C20: 27
A21: 12/09/2013 | B21: Phil Sup | C21: 55
A22: 10/22/2013 | B22: Gigi Sup | C22: 36
A23: 12/29/2013 | B23: Gardenia Cool | C23: 15
A24: 11/25/2013 | B24: Battalion Cool | C24: 19
A25: 11/03/2013 | B25: Battalion Cool | C25: 32
A26: 11/20/2013 | B26: Gardenia Calm | C26: 30
A27: 11/28/2013 | B27: Battalion Cool | C27: 36
A28: 11/24/2013 | B28: Battalion Sup | C28: 43
A29: 11/17/2013 | B29: Gardenia Rad | C29: 55
A30: 09/11/2013 | B30: Phil Cool | C30: 31
A31: 11/20/2013 | B31: Gigi Sup | C31: 14
A32: 11/22/2013 | B32: Sioux Calm | C32: 29
A33: 11/02/2013 | B33: Gigi Calm | C33: 58
A34: 10/22/2013 | B34: Gigi Pretty | C34: 37
A35: 12/14/2013 | B35: Gigi Calm | C35: 57
A36: 12/20/2013 | B36: Sioux Cool | C36: 43
A37: 08/21/2013 | B37: Battalion Calm | C37: 43
A38: 10/21/2013 | B38: Gardenia Calm | C38: 49
A39: 10/05/2013 | B39: Gigi Rad | C39: 56
A40: 12/03/2013 | B40: Gardenia Calm | C40: 58
A41: 09/08/2013 | B41: Battalion Calm | C41: 17
A42: 12/20/2013 | B42: Gigi Pretty | C42: 27
A43: 12/30/2013 | B43: Battalion Calm | C43: 26
A44: 08/24/2013 | B44: Gigi Calm | C44: 25
A45: 01/09/2014 | B45: Sioux Calm | C45: 55
A46: 09/14/2013 | B46: Battalion Sup | C46: 31
A47: 12/13/2013 | B47: Sioux Rad | C47: 50
A48: 12/25/2013 | B48: Phil Sup | C48: 42
A49: 01/02/2014 | B49: Battalion Calm | C49: 40
A50: 11/04/2013 | B50: Sioux Rad | C50: 35
A51: 10/04/2013 | B51: Gigi Rad | C51: 17
A52: 12/01/2013 | B52: Phil Pretty | C52: 17
A53: 12/26/2013 | B53: Battalion Calm | C53: 10
A54: 10/25/2013 | B54: Sioux Pretty | C54: 17
A55: 11/04/2013 | B55: Sioux Rad | C55: 27
A56: 08/15/2013 | B56: Phil Rad | C56: 53
A57: 09/24/2013 | B57: Sioux Pretty | C57: 59
A58: 08/17/2013 | B58: Battalion Cool | C58: 29
A59: 11/15/2013 | B59: Sioux Calm | C59: 49
A60: 10/07/2013 | B60: Phil Cool | C60: 33
A61: 11/14/2013 | B61: Gardenia Rad | C61: 38
A62: 10/02/2013 | B62: Sioux Pretty | C62: 53
A63: 09/15/2013 | B63: Phil Pretty | C63: 41
A64: 01/08/2014 | B64: Battalion Sup | C64: 56
A65: 12/22/2013 | B65: Gardenia Cool | C65: 29
A66: 10/24/2013 | B66: Gardenia Rad | C66: 55
A67: 10/24/2013 | B67: Gardenia Rad | C67: 16
A68: 08/27/2013 | B68: Sioux Sup | C68: 46
A69: 09/13/2013 | B69: Phil Pretty | C69: 56
A70: 10/02/2013 | B70: Phil Calm | C70: 21
A71: 10/23/2013 | B71: Phil Calm | C71: 41
A72: 10/01/2013 | B72: Battalion Calm | C72: 25
A73: 11/08/2013 | B73: Phil Rad | C73: 17
A74: 09/23/2013 | B74: Gardenia Cool | C74: 17
A75: 08/17/2013 | B75: Gigi Pretty | C75: 45
A76: 01/06/2014 | B76: Phil Calm | C76: 46
A77: 09/30/2013 | B77: Battalion Sup | C77: 17
A78: 09/21/2013 | B78: Sioux Pretty | C78: 26
A79: 09/19/2013 | B79: Gigi Rad | C79: 37
A80: 11/19/2013 | B80: Gigi Rad | C80: 54
A81: 09/17/2013 | B81: Phil Sup | C81: 55
A82: 12/20/2013 | B82: Gigi Cool | C82: 53
A83: 09/25/2013 | B83: Gigi Calm | C83: 35
A84: 08/28/2013 | B84: Gardenia Rad | C84: 36
A85: 12/16/2013 | B85: Battalion Sup | C85: 33
A86: 11/19/2013 | B86: Phil Sup | C86: 33
A87: 09/14/2013 | B87: Gardenia Rad | C87: 18
A88: 10/22/2013 | B88: Gigi Rad | C88: 36
A89: 01/07/2014 | B89: Sioux Pretty | C89: 22
A90: 12/07/2013 | B90: Sioux Sup | C90: 17
A91: 11/05/2013 | B91: Phil Cool | C91: 45
A92: 10/26/2013 | B92: Battalion Pretty | C92: 35
A93: 10/21/2013 | B93: Gardenia Rad | C93: 29
A94: 09/30/2013 | B94: Phil Calm | C94: 21
A95: 11/02/2013 | B95: Sioux Rad | C95: 32
A96: 01/06/2014 | B96: Phil Rad | C96: 12
A97: 11/24/2013 | B97: Battalion Cool | C97: 43
A98: 12/17/2013 | B98: Gardenia Pretty | C98: 54
A99: 11/02/2013 | B99: Sioux Calm | C99: 23
A100: 10/13/2013 | B100: Sioux Rad | C100: 37
A101: 01/01/2014 | B101: Sioux Rad | C101: 31
A102: 11/17/2013 | B102: Gardenia Rad | C102: 12
A103: 01/09/2014 | B103: Gigi Rad | C103: 14
A104: 11/11/2013 | B104: Gigi Calm | C104: 35
A105: 11/11/2013 | B105: Sioux Sup | C105: 41
A106: 01/03/2014 | B106: Gardenia Sup | C106: 45
A107: 01/08/2014 | B107: Gigi Sup | C107: 31
A108: 12/30/2013 | B108: Phil Pretty | C108: 29
A109: 09/05/2013 | B109: Battalion Pretty | C109: 55
A110: 12/12/2013 | B110: Gigi Calm | C110: 16
A111: 10/08/2013 | B111: Gigi Sup | C111: 58
A112: 09/21/2013 | B112: Battalion Pretty | C112: 42
A113: 09/21/2013 | B113: Gigi Pretty | C113: 16
A114: 11/19/2013 | B114: Gigi Pretty | C114: 29
A115: 12/22/2013 | B115: Gardenia Rad | C115: 39
A116: 10/07/2013 | B116: Sioux Rad | C116: 46
A117: 01/05/2014 | B117: Gardenia Calm | C117: 18
A118: 10/20/2013 | B118: Sioux Sup | C118: 54
A119: 12/06/2013 | B119: Battalion Cool | C119: 40
A120: 10/06/2013 | B120: Battalion Cool | C120: 47
A121: 09/24/2013 | B121: Gigi Calm | C121: 54
A122: 12/12/2013 | B122: Gardenia Cool | C122: 38
A123: 09/03/2013 | B123: Sioux Sup | C123: 21
A124: 08/15/2013 | B124: Battalion Cool | C124: 48
A125: 11/19/2013 | B125: Gardenia Sup | C125: 36
A126: 10/29/2013 | B126: Phil Rad | C126: 13
A127: 10/05/2013 | B127: Phil Cool | C127: 45
A128: 12/06/2013 | B128: Sioux Pretty | C128: 15
A129: 10/21/2013 | B129: Phil Sup | C129: 21
A130: 12/08/2013 | B130: Phil Pretty | C130: 14
A131: 12/26/2013 | B131: Phil Calm | C131: 35
A132: 09/07/2013 | B132: Phil Calm | C132: 54
A133: 11/24/2013 | B133: Battalion Pretty | C133: 10
A134: 12/25/2013 | B134: Battalion Calm | C134: 28
A135: 10/14/2013 | B135: Sioux Rad | C135: 34
A136: 08/16/2013 | B136: Battalion Calm | C136: 45
A137: 12/14/2013 | B137: Battalion Rad | C137: 16
A138: 11/01/2013 | B138: Gardenia Calm | C138: 28
A139: 08/14/2013 | B139: Sioux Cool | C139: 56
A140: 08/14/2013 | B140: Gigi Sup | C140: 16
A141: 11/25/2013 | B141: Gigi Rad | C141: 29
A142: 09/24/2013 | B142: Battalion Cool | C142: 59
A143: 09/27/2013 | B143: Phil Rad | C143: 36
A144: 12/13/2013 | B144: Battalion Sup | C144: 40
A145: 10/14/2013 | B145: Gigi Cool | C145: 19
A146: 10/26/2013 | B146: Battalion Sup | C146: 14
A147: 12/09/2013 | B147: Gardenia Calm | C147: 41
A148: 11/16/2013 | B148: Phil Cool | C148: 26
A149: 09/14/2013 | B149: Battalion Sup | C149: 22
A150: 08/31/2013 | B150: Gigi Pretty | C150: 36
A151: 10/12/2013 | B151: Gigi Sup | C151: 38
A152: 12/03/2013 | B152: Gardenia Rad | C152: 20
A153: 09/24/2013 | B153: Sioux Pretty | C153: 25
A154: 10/02/2013 | B154: Gigi Rad | C154: 22
A155: 11/01/2013 | B155: Battalion Pretty | C155: 15
A156: 12/10/2013 | B156: Gigi Pretty | C156: 47
A157: 10/28/2013 | B157: Gardenia Rad | C157: 20
A158: 10/18/2013 | B158: Phil Calm | C158: 46
A159: 10/02/2013 | B159: Phil Pretty | C159: 47
A160: 10/23/2013 | B160: Battalion Pretty | C160: 27
A161: 12/10/2013 | B161: Sioux Sup | C161: 24
A162: 12/13/2013 | B162: Gardenia Cool | C162: 59
A163: 09/24/2013 | B163: Gigi Calm | C163: 16
A164: 10/01/2013 | B164: Sioux Cool | C164: 12
A165: 11/09/2013 | B165: Battalion Pretty | C165: 23
A166: 12/11/2013 | B166: Gardenia Sup | C166: 49
A167: 11/10/2013 | B167: Battalion Sup | C167: 17
A168: 11/19/2013 | B168: Gardenia Sup | C168: 19
A169: 10/17/2013 | B169: Gardenia Cool | C169: 57
A170: 11/13/2013 | B170: Gigi Pretty | C170: 42
A171: 11/26/2013 | B171: Phil Calm | C171: 31
A172: 09/28/2013 | B172: Gigi Rad | C172: 54
A173: 01/09/2014 | B173: Gigi Sup | C173: 52
A174: 01/03/2014 | B174: Phil Calm | C174: 52
A175: 12/13/2013 | B175: Battalion Calm | C175: 10
A176: 10/09/2013 | B176: Gardenia Pretty | C176: 35
A177: 09/24/2013 | B177: Gigi Sup | C177: 10
A178: 08/19/2013 | B178: Battalion Rad | C178: 53
A179: 10/24/2013 | B179: Sioux Pretty | C179: 51
A180: 10/13/2013 | B180: Gigi Cool | C180: 17
A181: 10/17/2013 | B181: Sioux Calm | C181: 26
A182: 11/26/2013 | B182: Sioux Cool | C182: 37
A183: 10/30/2013 | B183: Phil Cool | C183: 57
A184: 01/06/2014 | B184: Gardenia Pretty | C184: 45
A185: 09/04/2013 | B185: Battalion Sup | C185: 15
A186: 10/04/2013 | B186: Battalion Cool | C186: 46
A187: 11/04/2013 | B187: Sioux Cool | C187: 57
A188: 08/14/2013 | B188: Gardenia Sup | C188: 54
A189: 09/02/2013 | B189: Sioux Sup | C189: 17
A190: 09/20/2013 | B190: Battalion Pretty | C190: 30
A191: 12/19/2013 | B191: Gigi Calm | C191: 38
A192: 01/10/2014 | B192: Gigi Pretty | C192: 39
A193: 12/16/2013 | B193: Gigi Cool | C193: 22
A194: 10/05/2013 | B194: Gardenia Sup | C194: 56
A195: 10/01/2013 | B195: Sioux Sup | C195: 34
A196: 09/13/2013 | B196: Sioux Pretty | C196: 15
A197: 01/07/2014 | B197: Phil Calm | C197: 45
A198: 10/02/2013 | B198: Phil Rad | C198: 48
A199: 12/04/2013 | B199: Battalion Cool | C199: 19
A200: 12/29/2013 | B200: Phil Sup | C200: 14
... 602 more rows

Sheet E(5 )
B2: Message | C2: What it is | D2: Example | H2: Jan | I2: Feb | J2: Mar
C3: Divide by zero | D3: =100/0 ->  | E3: =100/INDEX(H3:J7,MATCH("P3",G3:G7,0),MATCH("Mar",H2:J2,0)) ->  | G3: P1 | H3: 103 | I3: 62 | J3: 80
C4: Formula is using cell reference that has been deleted, or other invalid cell reference | D4: =A18 -> 16 | E4: =A1 -> 0 | G4: P2 | H4: 118 | I4: 93 | J4: 75
C5: Excel built-in function misspelled, Defined Name misspelled, or "text" (word data) in formula is not in double quotes. | D5: =aveage(H3:H7) ->  | E5: =INDEX(H3:J7,0,MATCH(Jan,H2:J2,0)) ->  | G5: P3 | H5: 111 | I5: 102
C6: Not Available/ No Answer | D6: =VLOOKUP("P7",G3:J7,2,0) ->  | E6: =MATCH("P1 ",G3:G7,0) ->  | G6: P4 | H6: 34 | I6: 57 | J6: 35
C7: Invalid operand or argument type (argument in a function), or Array Formula was entered without Ctrl + Shift + Enter | D7: ="Red"^2 ->  | E7: =MATCH("P1",G3:G7,"Red") ->  | G7: P5 | H7: 51 | I7: 88 | J7: 65
C8: No Intersection | D8: =H5:J5 I3:I7 -> 102 | E8: =H3:H7 J3:J7 -> 
C9: Invalid numeric values in a formula or function, or an iterative function like IRR cannot find an answer, or the number is too big or small (number must be between -1*10^307 and 1*10^307) | D9: =9E+99^3000 ->  | E9: =-9E+99^3000 ->  | G9: End Time | H9: Begin Time | J9: Jan
B10: ####### | C10: Column width not wide enough to display data (values), or negative date or time | D10: =100000000 -> 100000000 | E10: =H10-G10 -> -0.125 | G10: 21:00:00 | H10: 18:00:00 | J10: 3
B11: Circular Cell Reference | C11: Cell reference in formula refers to the formulas result (itself). You see a dialog message about this error | D11: =SUM(H3:H7,d11) | E11: =ROWS(E$11:E11) -> 1 | J11: 4
J12: 5
I13: Total
A17: Number:
A18: 16

Sheet E(5an)
A2: Message | B2: What it is | C2: Example | G2: Jan | H2: Feb | I2: Mar
B3: Divide by zero | C3: =100/0 ->  | D3: =100/INDEX(G3:I7,MATCH("P3",F3:F7,0),MATCH("Mar",G2:I2,0)) ->  | F3: P1 | G3: 103 | H3: 62 | I3: 80
B4: Formula is using cell reference that has been deleted, or other invalid cell reference | C4: =#REF! ->  | D4: =#REF! ->  | F4: P2 | G4: 118 | H4: 93 | I4: 75
B5: Excel built-in function misspelled, Defined Name misspelled, or "text" (word data) in formula is not in double quotes. | C5: =AVERAGE(G3:G7) -> 83.4 | D5: =INDEX(G3:I7,0,MATCH("Jan",G2:I2,0)) -> 111 | F5: P3 | G5: 111 | H5: 102
B6: Not Available/ No Answer | C6: =VLOOKUP("P7",F3:I7,2,0) ->  | D6: =MATCH("P1 ",F3:F7,0) ->  | F6: P4 | G6: 34 | H6: 57 | I6: 35
B7: Invalid operand or argument type (argument in a function), or Array Formula was entered without Ctrl + Shift + Enter | C7: ="Red"^2 ->  | D7: =MATCH("P1",F3:F7,"Red") ->  | F7: P5 | G7: 51 | H7: 88 | I7: 65
B8: No Intersection | C8: =G5:I5 H3:H7 -> 102 | D8: =G3:G7 I3:I7 -> 
B9: Invalid numeric values in a formula or function, or an iterative function like IRR cannot find an answer, or the number is too big or small (number must be between -1*10^307 and 1*10^307) | C9: =9E+99^3000 ->  | D9: =-9E+99^3000 ->  | F9: End Time | G9: Begin Time | I9: Jan
A10: ####### | B10: Column width not wide enough to display data (values), or negative date or time | C10: =100000000 -> 100000000 | D10: =G10-F10 -> -0.125 | F10: 21:00:00 | G10: 18:00:00 | I10: 3
A11: Circular Cell Reference | B11: Cell reference in formula refers to the formulas result (itself). You see a dialog message about this error | C11: =SUM(H3:H7,C11) | D11: =ROWS(D$11:D11) -> 1 | I11: 4
I12: 5
H13: Total | I13: =SUM(I9:I13) -> 0

Sheet DV
A1: Data Validation = DV = Validate that the correct data goes into the cell.
A2: If incorrect data is in cells BEFORE you add DV, when you add DV, it won't automatically tell you about the incorrect data.
A3: Unless you: Data menu, Data Tools group, Data Validation, "Circle invalid data".
A4: Copy and Paste will overwrite Data Validation
A5: Keyboard: Alt, D, L
A6: Allow text box:
A7: Whole Number: 1) Choose comparative operator and 2) Set limits
A8: Decimal: 1) Choose comparative operator and 2) Set limits
A9: List: values in "Source" text box can be cells, Defined Names, Range from Excel Table, Values typed in separated by commas
A10: Date: 1) Choose comparative operator and 2) Set limits
A11: Time: 1) Choose comparative operator and 2) Set limits
A12: Text length: 1) Choose comparative operator and 2) Set limits
A13: Custom: Logical Formula that evaluates to TRUE (value allowed) or FALSE (value not allowed).
A14: Input Message
A15: Text that shows up if you click in the cell with DV
A16: Error Alter
A17: "Stop" means that you cannot violate the rule
A18: "Warning" gives an option to adhere to or not adhere to the data validation
A19: "Information" just gives information without enforcement of rule.
A25: Highline Excel 2013 Class Video 28:
A26: Excel Data Validation (10 Examples)
A28: Data Validation: Validate that the correct information goes into the cell.
A29: Keyboard: Alt, D, L
A30: Allow text box:
A31: Whole Number: 1) Choose comparative operator and 2) Set limits
A32: Input Message
A33: Text that shows up if you click in the cell with DV
A34: Error Alter
A35: "Stop" means that you cannot violate the rule
A36: If incorrect data is in cells BEFORE you add DV, when you add DV, it won't automatically tell you about the incorrect data.
A37: Unless you: Data menu, Data Tools group, Data Validation, "Circle invalid data".
A38: Copy and Paste will overwrite Data Validation
A39: Lower Limit | B39: 1 | C39: 6 | D39: 1 | F39: 50
A40: Upper Limit | B40: 5 | C40: 15 | D40: 10
B41: Bolt 01 | C41: Bolt 02 | D41: Bolt 03
A42: Size | B42: 6
A46: Allow text box:
A47: Decimal: 1) Choose comparative operator and 2) Set limits
A48: Error Alter
A49: "Warning" gives an option to adhere to or not adhere to the data validation
A50: Product | B50: Hammer
A51: Cost | D51: Information
A54: Allow text box:
A55: List: values in "Source" text box can be cells, Defined Names, Range from Excel Table, Values typed in separated by commas
C56: Range | D56: Defined Name | E56: Excel table: Dynamic Range
A57: Products | C57: Products | D57: Products | E57: Products | G57: Boomerangs:
A58: Sunset | G58: Freestyle | H58: Fast | I58: Aussie | J58: Wind
A59: Sunshine | G59: Quad | H59: GelFast | I59: Sunset | J59: BWD
A60: Quad | C60: Wholesale/Resale? | G60: Carlota | H60: Darnell | I60: V | J60: Hole MB
A61: Carlota | G61: C Double | I61: W Sunset | J61: Hole Sunshine
J62: Wind Pig
G63: Type | H63: Boom
B66: Allow text box: | G66: ** INDIRECT function takes text that represents a
B67: Date: 1) Choose comparative operator and 2) Set limits | G67: reference and converts it back to a reference.
B68: Time: 1) Choose comparative operator and 2) Set limits
B69: Text length: 1) Choose comparative operator and 2) Set limits
B70: Start | C70: 2014-01-01 | D70: =C71+1 -> 2014-02-01 | E70: =D71+1 -> 2014-03-01
B71: End | C71: =EOMONTH(C70,0) -> 2014-01-31 | D71: =EOMONTH(D70,0) -> 2014-02-28 | E71: 2014-03-31
C72: =C70 -> 2014-01-01 | D72: 2014-02-01 | E72: 2014-03-01
B73: Date
B74: Time
B75: Desciption
B78: Allow text box:
B79: Custom: Logical Formula that evaluates to TRUE (value allowed) or FALSE (value not allowed).
B80: Products | C80: Cost | D80: Price
B81: Sunset | C81: 9.5
B82: Sunshine | C82: 7.15
B83: Quad | C83: 13.35
B84: Carlota | C84: 11.75
B86: Products | D86: No Duplicates
B87: Sunset
B88: Sunshine
B89: Quad
B90: Carlota
B96: Playlist with more videos about Data Validation:
B97: Excel Data Validation
B98: https://www.youtube.com/playlist?list=PL0EB55D99E9CF7E13

Sheet DV (an)
A1: Data Validation = DV = Validate that the correct data goes into the cell.
A2: If incorrect data is in cells BEFORE you add DV, when you add DV, it won't automatically tell you about the incorrect data.
A3: Unless you: Data menu, Data Tools group, Data Validation, "Circle invalid data".
A4: Copy and Paste will overwrite Data Validation
A5: Keyboard: Alt, D, L
A6: Allow text box:
A7: Whole Number: 1) Choose comparative operator and 2) Set limits
A8: Decimal: 1) Choose comparative operator and 2) Set limits
A9: List: values in "Source" text box can be cells, Defined Names, Range from Excel Table, Values typed in separated by commas
A10: Date: 1) Choose comparative operator and 2) Set limits
A11: Time: 1) Choose comparative operator and 2) Set limits
A12: Text length: 1) Choose comparative operator and 2) Set limits
A13: Custom: Logical Formula that evaluates to TRUE (value allowed) or FALSE (value not allowed).
A14: Input Message
A15: Text that shows up if you click in the cell with DV
A16: Error Alter
A17: "Stop" means that you cannot violate the rule
A18: "Warning" gives an option to adhere to or not adhere to the data validation
A19: "Information" just gives information without enforcement of rule.
A25: Highline Excel 2013 Class Video 28:
A26: Excel Data Validation (10 Examples)
A28: Data Validation: Validate that the correct information goes into the cell.
A29: Keyboard: Alt, D, L
A30: Allow text box:
A31: Whole Number: 1) Choose comparative operator and 2) Set limits
A32: Input Message
A33: Text that shows up if you click in the cell with DV
A34: Error Alter
A35: "Stop" means that you cannot violate the rule
A36: If incorrect data is in cells BEFORE you add DV, when you add DV, it won't automatically tell you about the incorrect data.
A37: Unless you: Data menu, Data Tools group, Data Validation, "Circle invalid data".
A38: Copy and Paste will overwrite Data Validation
A39: Lower Limit | B39: 1 | C39: 6 | D39: 1 | F39: 50
A40: Upper Limit | B40: 5 | C40: 15 | D40: 10
B41: Bolt 01 | C41: Bolt 02 | D41: Bolt 03
A42: Size | B42: 5 | C42: 6
A46: Allow text box:
A47: Decimal: 1) Choose comparative operator and 2) Set limits
A48: Error Alter
A49: "Warning" gives an option to adhere to or not adhere to the data validation
A50: Product | B50: Hammer
A51: Cost | B51: 19.51 | D51: Information
C52: Cost | D52: 19.51
A54: Allow text box:
A55: List: values in "Source" text box can be cells, Defined Names, Range from Excel Table, Values typed in separated by commas
C56: Range | D56: Defined Name | E56: Excel table: Dynamic Range
A57: Products | C57: Products | D57: Products | E57: Products | G57: Boomerangs:
A58: Sunset | C58: SB Weight | D58: SB Weight | E58: Quad | G58: FreestyleANSWER | H58: FastANSWER | I58: AussieANSWER | J58: WindANSWER
A59: Sunshine | G59: Quad | H59: GelFast | I59: Sunset | J59: BWD
A60: Quad | C60: Wholesale/Resale? | G60: Carlota | H60: Darnell | I60: V | J60: Hole MB
A61: Carlota | C61: Wholesale | G61: C Double | I61: W Sunset | J61: Hole Sunshine
A62: SB Weight | J62: Wind Pig
G63: Type | H63: Boom
G64: WindANSWER | H64: Hole Sunshine
B66: Allow text box: | G66: ** INDIRECT function takes text that represents a
B67: Date: 1) Choose comparative operator and 2) Set limits | G67: reference and converts it back to a reference.
B68: Time: 1) Choose comparative operator and 2) Set limits
B69: Text length: 1) Choose comparative operator and 2) Set limits
B70: Start | C70: 2014-01-01 | D70: =C71+1 -> 2014-02-01 | E70: =D71+1 -> 2014-03-01
B71: End | C71: =EOMONTH(C70,0) -> 2014-01-31 | D71: =EOMONTH(D70,0) -> 2014-02-28 | E71: 2014-03-31
C72: =C70 -> 2014-01-01 | D72: 2014-02-01 | E72: 2014-03-01
B73: Date | C73: 2014-01-05
B74: Time | C74: 08:01:00
B75: Desciption | C75: Meeting
B78: Allow text box:
B79: Custom: Logical Formula that evaluates to TRUE (value allowed) or FALSE (value not allowed).
B80: Products | C80: Cost | D80: Price
B81: Sunset | C81: 9.5 | D81: 19
B82: Sunshine | C82: 7.15 | D82: 14
B83: Quad | C83: 13.35
B84: Carlota | C84: 11.75
B86: Products | D86: No Duplicates
B87: Sunset | E87: =COUNTIF($B$87:B87,B87)<2 -> TRUE
B88: Sunshine | E88: =COUNTIF($B$87:B88,B88)<2 -> TRUE
B89: Quad | E89: =COUNTIF($B$87:B89,B89)<2 -> TRUE
B90: Carlota | E90: =COUNTIF($B$87:B90,B90)<2 -> TRUE
B91: SP Daft | E91: =COUNTIF($B$87:B91,B91)<2 -> TRUE
E92: =COUNTIF($B$87:B92,B92)<2 -> TRUE
E93: =COUNTIF($B$87:B93,B93)<2 -> TRUE
E94: =COUNTIF($B$87:B94,B94)<2 -> TRUE
B96: Playlist with more videos about Data Validation:
B97: Excel Data Validation
B98: https://www.youtube.com/playlist?list=PL0EB55D99E9CF7E13

Sheet Flash Fill
A1: Highline Excel 2013 Class Video 29:
A2: Excel Flash Fill To Extract, Combine Insert or Reverse Data (Text, Dates, Numbers, Time)
A3: "Programming-by-example"
A4: You give one or more examples and it will extrapolate what you want to do.
A5: Two or more examples help flash fill to "see" what you want.
A6: Flash Fill does not recognize changes in source data, but formulas do.
A7: Flash Fill: Ctrl + E
A9: Names | B9: First | C9: Last | D9: Initials | E9: Reverse | F9: Insert | G9: Change Case
A10: MO DIM
A11: GIGI TRAN
A12: ALTHEA BERTIN
A13: KELLY GAMBLIN
A14: CHANDRA VALENZULA
A15: CODY CASTILLON
A16: TYRONE BRAZIER
A17: ALTHEA BUHL
A18: DOLLIE MUNSEY
A19: ALLYSON PHOU
A21: First | B21: Last | C21: Combine
A22: Mo | B22: Dim
A23: Gigi | B23: Tran
A24: Althea | B24: Bertin
A25: Kelly | B25: Gamblin
A26: Chandra | B26: Valenzula
A27: Cody | B27: Castillon
A28: Tyrone | B28: Brazier
A29: Althea | B29: Buhl
A30: Dollie | B30: Munsey
A31: Allyson | B31: Phou
A33: Names | B33: First | D33: Empty Cell…
A34: Mo Dim | D34: First example, highlight range, Ctrl + E
A35: Gigi Tran
A37: Kelly Gamblin
A38: Chandra Valenzula
A40: Tyrone Brazier
A42: Dollie Munsey
A43: Allyson Phou
A45: First | B45: Last | C45: First & Last Initial | E45: Second Example sometimes helps!
A46: Mo | B46: Dim | E46: Try just "Mo D" in cell C58
A47: Gigi | B47: Tran | E47: Staus Bar reports: 7 changes, 2 "Blank"
A48: Althea | B48: Bertin
A49: Kelly | E49: "Mo D" in cell C58 and Kelly in cell C61, Ctrl + E
A50: Chandra | B50: Valenzula | E50: Then it works
A51: Cody | B51: Castillon
A52: Tyrone | B52: Brazier
A53: Althea
A54: Dollie | B54: Munsey
A55: Allyson | B55: Phou
A57: Name | B57: First & Middle | D57: Help Flash Fill To "see" by giving it a few examples
A58: Mo Jo Dim
A59: Gigi Tran | D59: In B70 type "Mo Jo", In B71 type "Tom", Ctrl + E
A60: Julie Franks Thomas
A61: Sioux Radcoolinator | D61: But then try:
A62: Fran Mills
A63: Thomas J. Kilmond | D63: In B70 type "Mo Jo", In B75 type "Thomas J.", Ctrl + E
A64: Hans C. Joey
A65: Gin Blondy
A66: Yin Pham
A67: Tom Rino
A69: Date | B69: Year | C69: Day | D69: Month | F69: Date | G69: Day | H69: Month
A70: 2012-07-24 | F70: 2012-07-24
A71: 2012-07-25 | F71: 2012-07-25
A72: 2012-07-26 | F72: 2012-07-26
A73: 2012-07-27 | F73: 2012-07-27
A74: 2013-07-28 | F74: 2013-07-28
A75: 2013-07-29 | F75: 2013-07-29
A76: 2013-07-30 | F76: 2013-07-30
A77: 2013-07-31 | F77: 2013-07-31
A78: 2013-08-01 | F78: 2013-08-01
A79: 2013-08-02 | F79: 2013-08-02
A81: Dates | B81: Date No Pre-Format | D81: Dates | E81: Date Pre-Format
A82: 20010714 | D82: 20010714 | G82: Help Flash Fill To "see" Dates by Pre Formatting
A83: 20040410 | D83: 20040410 | G83: mm/dd/yyy
A84: 20091115 | D84: 20091115 | G84: AND
A85: 20000610 | D85: 20000610 | G85: Give it two examples
A86: 20080401 | D86: 20080401
A87: 20100717 | D87: 20100717
A89: Phone | B89: Insert | D89: Student ID | E89: Insert
A90: 2065874545 | D90: 880712259
A91: 2536987455 | D91: 880709467
A92: 2159874439 | D92: 880527987
A93: 4156559933 | D93: 998613133
A94: 5105557845 | D94: 880945725
A96: Sales | B96: Pennies | C96: Interger | D96: Dollar
A97: 97.65
A98: 51.04
A99: 21.96
A100: 50.6
A101: 35.74
A102: 12.33
A103: 74.21
A104: 49.34
A105: 65.56
A106: 31.2
A108: Time | B108: Hour | C108: Minute
A109: 01:12:00
A110: 04:18:00
A111: 18:54:00
A112: 11:06:00
A113: 09:12:00 | F113: Ctrl + Shift + ~ (`)
A114: 17:42:00 | F114: General Number Formatting
A115: 1
A116: 23:06:00
A117: 04:00:00
A118: 09:24:00
A120: Choices | B120: Last Choice
A121: Red-Red
A122: Blue-Green
A123: Gray-Blue
A124: Violet-Pink
A125: Green-Blue
A126: Sand-Sand
A127: Yellow-Pink

Sheet Flash Fill (an)
A1: Highline Excel 2013 Class Video 29:
A2: Excel Flash Fill To Extract, Combine Insert or Reverse Data (Text, Dates, Numbers, Time)
A3: "Programming-by-example"
A4: You give one or more examples and it will extrapolate what you want to do.
A5: Two or more examples help flash fill to "see" what you want.
A6: Flash Fill does not recognize changes in source data, but formulas do.
A7: Flash Fill: Ctrl + E
A9: Names | B9: First | C9: Last | D9: Initials | E9: Reverse | F9: Insert | G9: Change Case
A10: MO DIM | B10: MO | C10: DIM | D10: M D | E10: DIM MO | F10: DIM, MO | G10: Mo Dim
A11: GIGI TRAN | B11: GIGI | C11: TRAN | D11: G T | E11: TRAN GIGI | F11: TRAN, GIGI | G11: Gigi Tran
A12: ALTHEA BERTIN | B12: ALTHEA | C12: BERTIN | D12: A B | E12: BERTIN ALTHEA | F12: BERTIN, ALTHEA | G12: Althea Bertin
A13: KELLY GAMBLIN | B13: KELLY | C13: GAMBLIN | D13: K G | E13: GAMBLIN KELLY | F13: GAMBLIN, KELLY | G13: Kelly Gamblin
A14: CHANDRA VALENZULA | B14: CHANDRA | C14: VALENZULA | D14: C V | E14: VALENZULA CHANDRA | F14: VALENZULA, CHANDRA | G14: Chandra Valenzula
A15: CODY CASTILLON | B15: CODY | C15: CASTILLON | D15: C C | E15: CASTILLON CODY | F15: CASTILLON, CODY | G15: Cody Castillon
A16: TYRONE BRAZIER | B16: TYRONE | C16: BRAZIER | D16: T B | E16: BRAZIER TYRONE | F16: BRAZIER, TYRONE | G16: Tyrone Brazier
A17: ALTHEA BUHL | B17: ALTHEA | C17: BUHL | D17: A B | E17: BUHL ALTHEA | F17: BUHL, ALTHEA | G17: Althea Buhl
A18: DOLLIE MUNSEY | B18: DOLLIE | C18: MUNSEY | D18: D M | E18: MUNSEY DOLLIE | F18: MUNSEY, DOLLIE | G18: Dollie Munsey
A19: ALLYSON PHOU | B19: ALLYSON | C19: PHOU | D19: A P | E19: PHOU ALLYSON | F19: PHOU, ALLYSON | G19: Allyson Phou
A21: First | B21: Last | C21: Combine
A22: Mo | B22: Dim | C22: Mo Dim
A23: Gigi | B23: Tran | C23: Gigi Tran
A24: Althea | B24: Bertin | C24: Althea Bertin
A25: Kelly | B25: Gamblin | C25: Kelly Gamblin
A26: Chandra | B26: Valenzula | C26: Chandra Valenzula
A27: Cody | B27: Castillon | C27: Cody Castillon
A28: Tyrone | B28: Brazier | C28: Tyrone Brazier
A29: Althea | B29: Buhl | C29: Althea Buhl
A30: Dollie | B30: Munsey | C30: Dollie Munsey
A31: Allyson | B31: Phou | C31: Allyson Phou
A33: Names | B33: First | D33: Empty Cell…
A34: Mo Dim | B34: Mo | D34: First example, highlight range, Ctrl + E
A35: Gigi Tran | B35: Gigi
A37: Kelly Gamblin | B37: Kelly
A38: Chandra Valenzula | B38: Chandra
A40: Tyrone Brazier | B40: Tyrone
A42: Dollie Munsey | B42: Dollie
A43: Allyson Phou | B43: Allyson
A45: First | B45: Last | C45: First & Last Initial | E45: Second Example sometimes helps!
A46: Mo | B46: Dim | C46: Mo D | E46: Try just "Mo D" in cell C58
A47: Gigi | B47: Tran | C47: Gigi T | E47: Staus Bar reports: 7 changes, 2 "Blank"
A48: Althea | B48: Bertin | C48: Althea B
A49: Kelly | C49: Kelly | E49: "Mo D" in cell C58 and Kelly in cell C61, Ctrl + E
A50: Chandra | B50: Valenzula | C50: Chandra V | E50: Then it works
A51: Cody | B51: Castillon | C51: Cody C
A52: Tyrone | B52: Brazier | C52: Tyrone B
A53: Althea | C53: Althea
A54: Dollie | B54: Munsey | C54: Dollie M
A55: Allyson | B55: Phou | C55: Allyson P
A57: Name | B57: First & Middle | D57: Help Flash Fill To "see" by giving it a few examples
A58: Mo Jo Dim | B58: Mo Jo
A59: Gigi Tran | B59: Gigi | D59: In B70 type "Mo Jo", In B71 type "Tom", Ctrl + E
A60: Julie Franks Thomas | B60: Julie Franks
A61: Sioux Radcoolinator | B61: Sioux | D61: But then try:
A62: Fran Mills | B62: Fran
A63: Thomas J. Kilmond | B63: Thomas J. | D63: In B70 type "Mo Jo", In B75 type "Thomas J.", Ctrl + E
A64: Hans C. Joey | B64: Hans C.
A65: Gin Blondy | B65: Gin
A66: Yin Pham | B66: Yin
A67: Tom Rino | B67: Tom
A69: Date | B69: Year | C69: Day | D69: Month | F69: Date | G69: Day | H69: Month
A70: 2012-07-24 | B70: 2012 | C70: 24 | D70: 7 | F70: 2012-07-24 | G70: 24 | H70: 7
A71: 2012-07-25 | B71: 2012 | C71: 25 | D71: 7 | F71: 2012-07-25 | G71: 25 | H71: 7
A72: 2012-07-26 | B72: 2012 | C72: 26 | D72: 7 | F72: 2012-07-26 | G72: 26 | H72: 7
A73: 2012-07-27 | B73: 2012 | C73: 27 | D73: 7 | F73: 2012-07-27 | G73: 27 | H73: 7
A74: 2013-07-28 | B74: 2013 | C74: 28 | D74: 7 | F74: 2013-07-28 | G74: 28 | H74: 7
A75: 2013-07-29 | B75: 2013 | C75: 29 | D75: 7 | F75: 2013-07-29 | G75: 29 | H75: 7
A76: 2013-07-30 | B76: 2013 | C76: 30 | D76: 7 | F76: 2013-07-30 | G76: 30 | H76: 7
A77: 2013-07-31 | B77: 2013 | C77: 31 | D77: 7 | F77: 2013-07-31 | G77: 31 | H77: 7
A78: 2013-08-01 | B78: 2013 | C78: 1 | D78: 8 | F78: 2013-08-01 | G78: 1 | H78: 8
A79: 2013-08-02 | B79: 2013 | C79: 2 | D79: 8 | F79: 2013-08-02 | G79: 2 | H79: 8
A81: Dates | B81: Date No Pre-Format | D81: Dates | E81: Date Pre-Format
A82: 20010714 | B82: 2001-07-14 | D82: 20010714 | E82: 2001-07-14 | G82: Help Flash Fill To "see" Dates by Pre Formatting
A83: 20040410 | B83: 2004-07-10 | D83: 20040410 | E83: 2004-04-10 | G83: mm/dd/yyy
A84: 20091115 | B84: 2009-07-15 | D84: 20091115 | E84: 2009-11-15 | G84: AND
A85: 20000610 | B85: 2000-07-10 | D85: 20000610 | E85: 2000-06-10 | G85: Give it two examples
A86: 20080401 | B86: 2008-07-01 | D86: 20080401 | E86: 2008-04-01
A87: 20100717 | B87: 2010-07-17 | D87: 20100717 | E87: 2010-07-17
A89: Phone | B89: Insert | D89: Student ID | E89: Insert
A90: 2065874545 | B90: (206) 587-4545 | D90: 880712259 | E90: 880-71-2259
A91: 2536987455 | B91: (253) 698-7455 | D91: 880709467 | E91: 880-70-9467
A92: 2159874439 | B92: (215) 987-4439 | D92: 880527987 | E92: 880-52-7987
A93: 4156559933 | B93: (415) 655-9933 | D93: 998613133 | E93: 998-61-3133
A94: 5105557845 | B94: (510) 555-7845 | D94: 880945725 | E94: 880-94-5725
A96: Sales | B96: Pennies | C96: Interger | D96: Dollar
A97: 97.65 | B97: 0.65 | C97: 97 | D97: 97
A98: 51.04 | B98: 0.04 | C98: 51 | D98: 51
A99: 21.96 | B99: 0.96 | C99: 21 | D99: 21
A100: 50.6 | B100: 0.6 | C100: 50 | D100: 50
A101: 35.74 | B101: 0.74 | C101: 35 | D101: 35
A102: 12.33 | B102: 0.33 | C102: 12 | D102: 12
A103: 74.21 | B103: 0.21 | C103: 74 | D103: 74
A104: 49.34 | B104: 0.34 | C104: 49 | D104: 49
A105: 65.56 | B105: 0.56 | C105: 65 | D105: 65
A106: 31.2 | B106: 0.2 | C106: 31 | D106: 31
A108: Time | B108: Hour | C108: Minute
A109: 01:12:00 | B109: 1 | C109: 12
A110: 04:18:00 | B110: 4 | C110: 18
A111: 18:54:00 | B111: 6 | C111: 54
A112: 11:06:00 | B112: 11 | C112: 6
A113: 09:12:00 | B113: 9 | C113: 12 | F113: Ctrl + Shift + ~ (`)
A114: 17:42:00 | B114: 5 | C114: 42 | F114: General Number Formatting
A115: 1 | B115: 12 | C115: 0
A116: 23:06:00 | B116: 11 | C116: 6
A117: 04:00:00 | B117: 4 | C117: 0
A118: 09:24:00 | B118: 9 | C118: 24
A120: Choices | B120: Last Choice
A121: Red-Red | B121: Red
A122: Blue-Green | B122: Green
A123: Gray-Blue | B123: Blue
A124: Violet-Pink | B124: Pink
A125: Green-Blue | B125: Blue
A126: Sand-Sand | B126: Sand
A127: Yellow-Pink | B127: Pink

Sheet CNF-Notes
A1: Symbol | B1: Usage | C1: Typed digits | D1: Displayed value
A2: # | B2: Digit placeholder that displays significant digits only; example ####.# | C2: 12.77 | D2: 12.77
C3: 5 | D3: 5
A4: 0 | B4: Digit placeholder that displays significant and insignificant zeroes; example: 0.00 | C4: 0.35 | D4: 0.35
C5: 23 | D5: 23
A6: 0 | B6: Zeros before digit like 00345; example: 00000 | C6: 345 | D6: 345
A7: 0 | B7: display many digits 0.000000000000000 | C7: .125489632586635 | D7: 0.1254896326
A8: ? | B8: Acts as a digit placeholder that does not display insignificant digits but does hold a place so that decimal points will align; example: 0.00? | C8: 27.3 | D8: 27.3
C9: 5.132 | D9: 5.132
A10: ? | B10: Scoots the decimal over; example: 0.00???? | C10: 27.3 | D10: 27.3
C11: 5.132 | D11: 5.132
A12: % | B12: Rules for formatting a % (times 100 and add symbol); example 0.00% | C12: 0.3 | D12: 0.3
A13: , | B13: Inserts a comma for thousands; example: #,### | C13: 1000000 | D13: 1000000
A14: , | B14: Use as a scaling operator; example #,, | C14: 1000000 | D14: 1000000
A15: * | B15: Tells the cell to put enough of the character (space) after it to fill the column; example $* 0.00 | C15: 548 | D15: 548
A16: * | B16: Tells the cell to put enough of the character (^) after it to fill the column; example $*^0.01 | C16: 548 | D16: 548
A17: _ | B17: Skip the width of the next character - often used with ) to help positive numbers align with negative numbers; example: _($* #,###0.00_);_($* (#,###0.00);_(* "-"??_);_(@_) | C17: 256.36 | D17: 256.36
A18: _ | B18: example: _($* #,###0.00_);_($* (#,###0.00);_(* "-"??_);_(@_) | C18: -256.36 | D18: -256.36
A19: _ | B19: example: _($* #,###0.00_);_($* (#,###0.00);_(* "-"??_);_(@_) | C19: 0 | D19: 0
A21: " " | B21: adds text; example: 0.00" Rad" | C21: 23 | D21: 23
A22: " " | B22: "surplus";"deficit" | C22: 5 | D22: 5
C23: -10 | D23: -10
A24: @ | B24: Indicates the location where text should be inserted in cells formatted with custom format; if the @ is not included in the code, the text will not be displayed; example: _($@_) | C24: none | D24: none
A25: @ | B25: Use formatting to hide words; example: 0.00;-0.00;"--"; | C25: none | D25: none
A26: @ | B26: How to put a single character in front of a word; example: _(* #,##0.00_);_(* (#,##0.00);_(* "-"??_);_(^@_) | C26: rad | D26: rad
A27: @ | B27: This scoots the text over one width of a parenthesis; example: _($* #,###0.00_);_($* (#,###0.00);_(* "-"??_);_(@_) | C27: rad | D27: rad
A28: d | B28: day; example: dddd | C28: 2006-12-31 | D28: 2006-12-31
A29: m | B29: month; example: mmm. | C29: 2006-12-31 | D29: 2006-12-31
A30: y | B30: year; example: yy | C30: 2006-12-31 | D30: 2006-12-31
A31: d | B31: day; example: d | C31: 2006-12-31 | D31: 2006-12-31
A32: m | B32: month; example: m | C32: 2006-12-31 | D32: 2006-12-31 | E32: Be careful ==> | F32: =12*D32 -> 468984
A33: y | B33: year; example: yyyy | C33: 2006-12-31 | D33: 2006-12-31
A34: hh:mm:ss AM/PM | B34: Time | C34: 08:00:00 | D34: =C34 -> 08:00:00
A35: [h]:mm | B35: Show time greater than 24 hours | C35: 2 | D35: =C35 -> 2
A36: Note 1==> | B36: If you specify only two formats, the first is used for positive and zero
A37: Note 2==> | B37: If you specify only one formats, it is used for all numbers
A38: \ | B38: \ backslash and then a single character inserts text into a number format | C38: 65 | D38: =C38 -> 65
B39: Colors allowed:
B40: Black
B41: White
B42: Red
B43: Green
B44: Blue
B45: Yellow
B46: Magenta
B47: Cyan

Sheet CNF
A1: Date: m = month, d = day, y = year | B1: 2013-11-07 | D1: m/d/yyyy
B2: 2013-11-07 | D2: dddd
B3: 2013-11-07 | D3: dddd, mmm, d, yyy
A4: Time: h = hour, m = minute, s = second | B4: 09:57:00 | D4: h:mm AM/PM
A5: No AM/PM to show military time | B5: 09:57:00 | D5: hh:mm
A6: Time Greater than 24 hours: use square brackets | B6: 09:57:00 | D6: [h]:mm
A7: Digit placeholder that displays significant digits only: # | B7: 1.35 | D7: #.##
A8: Digit placeholder that displays significant and insignificant zeroes: 0 | B8: 1.35 | D8: 0.00
B9: 1.35 | D9: 0.0
A10: Use commas with # to have thousand separators | B10: 1000000 | D10: #,###.00
A11: Use extra comma at end to remove three zeros | B11: 1000000 | D11: #,###,
B12: 1000000 | D12: #,###,,
A13: "M" for million | B13: 1000000 | D13: #,###,," M"
A14: K for thousands | B14: 1000000
A15: Percenatges: % | B15: 0.3575 | D15: 0.00%
B16: 0.3575 | D16: 0.0%
A17: Fractions: ?/? | B17: =13/15 -> 0.8666666667 | D17: ??/??
B18: 0.8666666667 | D18: ?/?
A19: Insert Words, use double quotes: " unit price" | B19: 15.67 | D19: $0.00" unit price"
A20: Insert a single character, use back slash | B20: 15.67 | D20: $0.00\u
A21: Four sections separated by three semi-colons: POS;NEG;ZERO;TEXT | B21: 0 | D21: $0.00;-$0.00;" - "
A22: Hide words | B22: 2 | D22: $0.00;-$0.00;" - ";
A23: Nothing: ;;; | B23: 5 | D23: ;;;
A24: If you specify only two formats, the first is used for positive and zero
A25: If you specify only one formats, it is used for all numbers

Sheet CNF (an)
A1: Date: m = month, d = day, y = year | B1: 2013-11-07 | D1: m/d/yyyy
B2: 2013-11-07 | D2: dddd
B3: 2013-11-07 | D3: dddd, mmm, d, yyy
A4: Time: h = hour, m = minute, s = second | B4: 09:57:00 | D4: h:mm AM/PM
A5: No AM/PM to show military time | B5: 15:00:00 | D5: hh:mm
A6: Time Greater than 24 hours: use square brackets | B6: 1.5 | D6: [h]:mm
A7: Digit placeholder that displays significant digits only: # | B7: 1.4 | D7: #.##
A8: Digit placeholder that displays significant and insignificant zeroes: 0 | B8: 1.4 | D8: 0.00
B9: 1.35 | D9: 0.0
A10: Use commas with # to have thousand separators | B10: 1000000000 | D10: #,###.00
A11: Use extra comma at end to remove three zeros | B11: 1000000 | D11: #,###,
B12: 1000000 | D12: #,###,,
A13: "M" for million | B13: 1000000000 | D13: #,###,," M"
A14: K for thousands | B14: 1000000 | E14: 1000000
A15: Percenatges: % | B15: 0.3575 | D15: 0.00%
B16: 0.3575 | D16: 0.0%
A17: Fractions: ?/? | B17: =13/15 -> 0.8666666667 | D17: ??/?? | F17: =13/15 -> 0.8666666667
B18: 0.8666666667 | D18: ?/? | F18: =7/8 -> 0.875
A19: Insert Words, use double quotes: " unit price" | B19: 15.67 | D19: $0.00" unit price"
A20: Insert a single character, use back slash | B20: 15.67 | D20: $0.00\u
A21: Four sections separated by three semi-colons: POS;NEG;ZERO;TEXT | B21: -56 | D21: $0.00;-$0.00[Red];" - "
A22: Hide words | B22: 0 | D22: $0.00;[Red]-$0.00;0;
A23: Nothing: ;;; | B23: 5 | D23: ;;;
A24: If you specify only two formats, the first is used for positive and zero
A25: If you specify only one formats, it is used for all numbers

Sheet Text Formulas
A1: Custom Number Format to have word appear in cell with number. This allows you to still use the number in a formula
A2: 25
A3: Units | B3: Sales
A4: 12
A5: 15
A6: 9
A7: 25
A9: The TEXT function converts a number to text with a Custom Number Format that you specify. TEXT(number, "Custom Number Format in quotes")
A10: TEXT function with custom number format and & (ampersand) to make label
A11: 14:00:00 | D11: Your appointment time is 02:00 PM
A12: TEXT function with custom number format and & (ampersand) to make label
A13: 2010-12-15 | D13: The due date is 12/15/2010
A14: TEXT function with custom number format and & (ampersand) to make label
A15: 0.2555 | D15: The rate is 25.55%
A17: Some Other Text Functions we have already seen:
A18: RIGHT extracts a given number of characters from the right
A19: LEFT extracts a given number of characters from the left
A20: MID extracts from the midele giben a starting point and the number of charactesr that you want
A21: SEARCH tells you the starting position in a text string of text you specify. FIND is similar to SEARCH, but it is case sensitive.
A22: TRIM removes spaces from a text string except for single spaces between words
A24: Here are a few more:
A25: REPLACE function replaces part of a text string with text you specify, given a starting number and the number of characters
A26: PROPER function changes all capital letters or all lower case letters to all lower case except for first letter in each word
A27: The LEN function counts characters
A28: LOWER converts all letters to lower case
A29: UPPER converts all letters to upper case
A30: SUBSTITUTE function finds some text and replaces it with some different text
D32: Business e-mail:
D33: mdb.com
A35: Download Names | B35: Just First | C35: Just Last | D35: Create e-mail alas | E35: Len | F35: Just Last
A36: NEIL LIEBER
A37: MAT PRISCO
A38: ALTHEA BERTIN
A39: KELLY GAMBLIN
A40: CHANDRA VALENZULA
A41: CODY CASTILLON
A42: TYRONE BRAZIER
A43: ALTHEA BUHL
A44: DOLLIE MUNSEY
A45: ALLYSON PHOU
A48: Download Names | B48: Flash
A49: NEIL LIEBER
A50: MAT PRISCO
A51: ALTHEA BERTIN
A52: KELLY GAMBLIN
A53: CHANDRA VALENZULA
A54: CODY CASTILLON
A55: TYRONE BRAZIER
A56: ALTHEA BUHL
A57: DOLLIE MUNSEY
A58: ALLYSON PHOU
A61: Times: | B61: Time
A62: 0645 | D62: \ backslash and | E62: =D62&" "&D63&" "&D64&" "&D65&" "&D66 -> \ backslash and then a single character inserts text into a number format
A63: 0212 | D63: then a single
A64: 1236 | D64: character inserts
A65: 1520 | D65: text into a
A66: 0840 | D66: number format
A67: 0505
A68: 0635
A69: 0932
A70: 0322
A72: Mr Excel post by Barry Houdini:
A73: http://www.mrexcel.com/forum/showthread.php?t=492579
A75: Times: | B75: Flash:
A76: 0645
A77: 0212
A78: 1236
A79: 1520
A80: 0840
A81: 0505
A82: 0635
A83: 0932
A84: 0322

Sheet Text Formulas (an)
A1: Custom Number Format to have word appear in cell with number. This allows you to still use the number in a formula
A2: 25
A3: Units | B3: Sales
A4: 12 | B4: =A4*A$2 -> 300
A5: 15 | B5: =A5*A$2 -> 375
A6: 9 | B6: =A6*A$2 -> 225
A7: 25 | B7: =A7*A$2 -> 625
A9: The TEXT function converts a number to text with a Custom Number Format that you specify. TEXT(number, "Custom Number Format in quotes")
A10: TEXT function with custom number format and & (ampersand) to make label
A11: 14:00:00 | B11: ="Your appointment time is "&TEXT(A11,"hh:mm AM/PM") -> Your appointment time is 02:00 PM | D11: Your appointment time is 02:00 PM
A12: TEXT function with custom number format and & (ampersand) to make label
A13: 2013-11-07 | B13: ="The due date is "&TEXT(A13,"m/d/yyyy") -> The due date is 11/7/2013 | D13: The due date is 12/15/2010
A14: TEXT function with custom number format and & (ampersand) to make label
A15: 0.0357 | B15: ="The rate is "&TEXT(A15,"0.00%") -> The rate is 3.57% | D15: The rate is 25.55%
A17: Some Other Text Functions we have already seen:
A18: RIGHT extracts a given number of characters from the right
A19: LEFT extracts a given number of characters from the left
A20: MID extracts from the midele giben a starting point and the number of charactesr that you want
A21: SEARCH tells you the starting position in a text string of text you specify. FIND is similar to SEARCH, but it is case sensitive.
A22: TRIM removes spaces from a text string except for single spaces between words
A24: Here are a few more:
A25: REPLACE function replaces part of a text string with text you specify, given a starting number and the number of characters
A26: PROPER function changes all capital letters or all lower case letters to all lower case except for first letter in each word
A27: The LEN function counts characters
A28: LOWER converts all letters to lower case
A29: UPPER converts all letters to upper case
A30: SUBSTITUTE function finds some text and replaces it with some different text
D32: Business e-mail:
D33: mdb.com
A35: Download Names | B35: Just First | C35: Just Last | D35: Create e-mail alas | E35: Len | F35: Just Last
A36: NEIL LIEBER | B36: =LEFT(A36,SEARCH(" ",A36)-1) -> NEIL | C36: =REPLACE(A36,1,SEARCH(" ",A36),"") -> LIEBER | D36: =LOWER(LEFT(A36,1)&REPLACE(A36,1,SEARCH(" ",A36),""))&"@"&$D$33 -> nlieber@mdb.com | E36: =LEN(B36) -> 4 | F36: =SUBSTITUTE(A36,B36&" ","") -> LIEBER
A37: MAT PRISCO | B37: =LEFT(A37,SEARCH(" ",A37)-1) -> MAT | C37: =REPLACE(A37,1,SEARCH(" ",A37),"") -> PRISCO | D37: =LOWER(LEFT(A37,1)&REPLACE(A37,1,SEARCH(" ",A37),""))&"@"&$D$33 -> mprisco@mdb.com | E37: =LEN(B37) -> 3 | F37: =SUBSTITUTE(B37,A37&" ","") -> MAT
A38: ALTHEA BERTIN | B38: ALTHEA | C38: BERTIN | D38: abertin@mdb.com | E38: 6 | F38: ALTHEA
A39: KELLY GAMBLIN | B39: KELLY | C39: GAMBLIN | D39: kgamblin@mdb.com | E39: 5 | F39: KELLY
A40: CHANDRA VALENZULA | B40: CHANDRA | C40: VALENZULA | D40: cvalenzula@mdb.com | E40: 7 | F40: CHANDRA
A41: CODY CASTILLON | B41: CODY | C41: CASTILLON | D41: ccastillon@mdb.com | E41: 4 | F41: CODY
A42: TYRONE BRAZIER | B42: TYRONE | C42: BRAZIER | D42: tbrazier@mdb.com | E42: 6 | F42: TYRONE
A43: ALTHEA BUHL | B43: ALTHEA | C43: BUHL | D43: abuhl@mdb.com | E43: 6 | F43: ALTHEA
A44: DOLLIE MUNSEY | B44: DOLLIE | C44: MUNSEY | D44: dmunsey@mdb.com | E44: 6 | F44: DOLLIE
A45: ALLYSON PHOU | B45: ALLYSON | C45: PHOU | D45: aphou@mdb.com | E45: 7 | F45: ALLYSON
A48: Download Names | B48: Flash
A49: NEIL LIEBER | B49: nlieber@mdb.com
A50: MAT PRISCO | B50: mprisco@mdb.com
A51: ALTHEA BERTIN | B51: abertin@mdb.com
A52: KELLY GAMBLIN | B52: kgamblin@mdb.com
A53: CHANDRA VALENZULA | B53: cvalenzula@mdb.com
A54: CODY CASTILLON | B54: ccastillon@mdb.com
A55: TYRONE BRAZIER | B55: tbrazier@mdb.com
A56: ALTHEA BUHL | B56: abuhl@mdb.com
A57: DOLLIE MUNSEY | B57: dmunsey@mdb.com
A58: ALLYSON PHOU | B58: aphou@mdb.com
A61: Times: | B61: Time
A62: 0645 | B62: =TEXT(A62,"0\:00")+0 -> 06:45:00 | D62: \ backslash and | E62: =D62&" "&D63&" "&D64&" "&D65&" "&D66 -> \ backslash and then a single character inserts text into a number format
A63: 0212 | B63: =TEXT(A63,"0\:00")+0 -> 02:12:00 | D63: then a single
A64: 1236 | B64: 12:36:00 | D64: character inserts
A65: 1520 | B65: 15:20:00 | D65: text into a
A66: 0840 | B66: 08:40:00 | D66: number format
A67: 0505 | B67: 05:05:00
A68: 0635 | B68: 06:35:00
A69: 0932 | B69: 09:32:00
A70: 0322 | B70: 03:22:00
A72: Mr Excel post by Barry Houdini:
A73: http://www.mrexcel.com/forum/showthread.php?t=492579
A75: Times: | B75: Flash:
A76: 0645 | B76: 06:45:00
A77: 0212 | B77: 02:12:00
A78: 1236 | B78: 12:36:00
A79: 1520 | B79: 15:20:00
A80: 0840 | B80: 08:40:00
A81: 0505 | B81: 05:05:00
A82: 0635 | B82: 06:35:00
A83: 0932 | B83: 09:32:00
A84: 0322 | B84: 03:22:00

Sheet Date Functions
A1: Some Date Functions:
A2: TODAY function shows today's date (whole number)
A3: NOW function shows today's date and time (whole number & decimal)
A4: YEAR function looks at a date and tells you what year it is. Example YEAR(1/1/2005) = 2005
A5: MONTH function looks at a date and tells you what month it is. Example MONTH(1/1/2005) = 1
A6: DAY function looks at a date and tells you what day it is. Example DAY(1/1/2005) = 1
A7: EOMONTH function tells you what date is at the end of the month (including leap year)
A8: EDATE function jumps forward or backwards through the months given a start date (like 11/7/2011)
A9: DATE function builds a date for you. Example: DATE(2004,2,2) = 2/2/2004
A13: TODAY function shows today's date (whole number)
A14: NOW function shows today's date and time (whole number & decimal)
O15: Date | P15: Sales Rep | Q15: Sales | R15: YEAR | S15: MONTH | T15: DAY
A16: YEAR function looks at a date and tells you what year it is. Example YEAR(1/1/2005) = 2005 | G16: Examples ==>> | O16: 2009-01-02 | P16: Dina | Q16: =INT(RAND()*500+200) -> 559
A17: MONTH function looks at a date and tells you what month it is. Example MONTH(1/1/2005) = 1 | O17: 2009-02-12 | P17: Dan | Q17: =INT(RAND()*500+200) -> 585
A18: DAY function looks at a date and tells you what day it is. Example DAY(1/1/2005) = 1 | O18: 2009-03-01 | P18: Abdisamad A | Q18: 673
O19: 2009-04-20 | P19: Hassan M | Q19: 292
O20: 2009-05-01 | P20: Vivien R | Q20: 300
A21: EOMONTH function tells you what date is at the end of the month (including leap year) | O21: 2009-06-01 | P21: Michael G | Q21: 635
A22: Invoice Date (Date on Invoice) | B22: 2012-01-02 | O22: 2009-07-01 | P22: Catherine W | Q22: 443
A23: End of the Month | D23: 0 = this month, -1 = last month. 1 = next month. | O23: 2009-08-14 | P23: Toni M | Q23: 561
O24: 2009-09-01 | P24: Nikol M | Q24: 201
A25: EDATE function jumps forward or backwards through the months given a start date (like 11/7/2011) | O25: 2009-10-11 | P25: Dana L | Q25: 308
A26: Invoice Date (Date on Invoice) | B26: 2011-11-07 | O26: 2009-11-13 | P26: Desiree A | Q26: 533
A27: Same Day Next Month | D27: -1 = last month. 1 = next month. 2 = two months ahead. | O27: 2009-12-01 | P27: Sarabeth L | Q27: 435
A28: Same Day Next Month | D28: DATE function builds a date for you. Example: DATE(2004,2,2) = 2/2/2004 | O28: 2010-01-01 | P28: Tonya J | Q28: 403
O29: 2010-02-01 | P29: Analyssa C | Q29: 555
A30: Hire Date | B30: 2009-11-07 | O30: 2010-03-15 | P30: Donald Wayne | Q30: 313
A31: Number Years until Pension Vests | B31: 5 | O31: 2010-04-01 | P31: Cherry M | Q31: 438
A32: Vest Date | O32: 2010-05-01 | P32: Suzanne M | Q32: 390
A33: Vest Date | D33: DATE function builds a date for you. Example: DATE(2004,2,2) = 2/2/2004 | O33: 2010-06-01 | P33: Barbara C | Q33: 615
O34: 2010-07-01 | P34: Shannon L | Q34: 679
O35: 2010-08-14 | P35: Anastasiya A | Q35: 577
A36: Dates | B36: Date | O36: 2010-09-01 | P36: Dina | Q36: 425
A37: 20010714 | D37: DATE function builds a date for you. Example: DATE(2004,2,2) = 2/2/2004 | O37: 2010-10-01 | P37: Dan | Q37: 290
A38: 20040410 | O38: 2010-11-01 | P38: Abdisamad A | Q38: 209
A39: 20091115 | O39: 2010-12-01 | P39: Hassan M | Q39: 581
A40: 20000610 | O40: 2011-01-01 | P40: Vivien R | Q40: 676
A41: 20080401 | O41: 2011-02-01 | P41: Michael G | Q41: 452
A42: 20100717 | O42: 2011-03-01 | P42: Catherine W | Q42: 434
O43: 2011-04-01 | P43: Toni M | Q43: 523
O44: 2011-05-01 | P44: Nikol M | Q44: 405
O45: 2011-06-01 | P45: Dana L | Q45: 540
O46: 2011-07-22 | P46: Desiree A | Q46: 285
O47: 2011-08-01 | P47: Sarabeth L | Q47: 677
O48: 2011-09-01 | P48: Tonya J | Q48: 656
O49: 2011-10-01 | P49: Analyssa C | Q49: 625
O50: 2011-11-05 | P50: Donald Wayne | Q50: 252
O51: 2011-12-01 | P51: Cherry M | Q51: 276
O52: 2012-01-01 | P52: Suzanne M | Q52: 396
O53: 2012-02-01 | P53: Barbara C | Q53: 322
O54: 2012-03-01 | P54: Shannon L | Q54: 427
O55: 2012-04-01 | P55: Anastasiya A | Q55: 314
O56: 2012-05-01 | P56: Dina | Q56: 641
O57: 2012-06-01 | P57: Dan | Q57: 264
O58: 2012-07-06 | P58: Abdisamad A | Q58: 622
O59: 2012-08-08 | P59: Hassan M | Q59: 679
O60: 2012-09-03 | P60: Vivien R | Q60: 662

Sheet Date Functions (an)
A1: Some Date Functions:
A2: TODAY function shows today's date (whole number)
A3: NOW function shows today's date and time (whole number & decimal)
A4: YEAR function looks at a date and tells you what year it is. Example YEAR(1/1/2005) = 2005
A5: MONTH function looks at a date and tells you what month it is. Example MONTH(1/1/2005) = 1
A6: DAY function looks at a date and tells you what day it is. Example DAY(1/1/2005) = 1
A7: EOMONTH function tells you what date is at the end of the month (including leap year)
A8: EDATE function jumps forward or backwards through the months given a start date (like 11/7/2011)
A9: DATE function builds a date for you. Example: DATE(2004,2,2) = 2/2/2004
A13: TODAY function shows today's date (whole number) | B13: =TODAY() -> 2018-12-03
A14: NOW function shows today's date and time (whole number & decimal) | B14: =NOW() -> 2018-12-03T08:32:24.060
O15: Date | P15: Sales Rep | Q15: Sales | R15: YEAR | S15: MONTH | T15: DAY
A16: YEAR function looks at a date and tells you what year it is. Example YEAR(1/1/2005) = 2005 | G16: Examples ==>> | O16: 2009-01-02 | P16: Dina | Q16: =INT(RAND()*500+200) -> 539 | R16: =YEAR(O16) -> 2009 | S16: =MONTH(O16) -> 1 | T16: =DAY(O16) -> 2
A17: MONTH function looks at a date and tells you what month it is. Example MONTH(1/1/2005) = 1 | O17: 2009-02-12 | P17: Dan | Q17: =INT(RAND()*500+200) -> 278 | R17: =YEAR(O17) -> 2009 | S17: =MONTH(O17) -> 2 | T17: =DAY(O17) -> 12
A18: DAY function looks at a date and tells you what day it is. Example DAY(1/1/2005) = 1 | O18: 2009-03-01 | P18: Abdisamad A | Q18: 685 | R18: 2009 | S18: 3 | T18: 1
O19: 2009-04-20 | P19: Hassan M | Q19: 341 | R19: 2009 | S19: 4 | T19: 20
O20: 2009-05-01 | P20: Vivien R | Q20: 403 | R20: 2009 | S20: 5 | T20: 1
A21: EOMONTH function tells you what date is at the end of the month (including leap year) | O21: 2009-06-01 | P21: Michael G | Q21: 667 | R21: 2009 | S21: 6 | T21: 1
A22: Invoice Date (Date on Invoice) | B22: 2012-01-02 | O22: 2009-07-01 | P22: Catherine W | Q22: 356 | R22: 2009 | S22: 7 | T22: 1
A23: End of the Month | B23: =EOMONTH(B22,0) -> 2012-01-31 | D23: 0 = this month, -1 = last month. 1 = next month. | O23: 2009-08-14 | P23: Toni M | Q23: 469 | R23: 2009 | S23: 8 | T23: 14
O24: 2009-09-01 | P24: Nikol M | Q24: 608 | R24: 2009 | S24: 9 | T24: 1
A25: EDATE function jumps forward or backwards through the months given a start date (like 11/7/2011) | O25: 2009-10-11 | P25: Dana L | Q25: 225 | R25: 2009 | S25: 10 | T25: 11
A26: Invoice Date (Date on Invoice) | B26: 2011-11-07 | O26: 2009-11-13 | P26: Desiree A | Q26: 548 | R26: 2009 | S26: 11 | T26: 13
A27: Same Day Next Month | B27: =EDATE(B26,1) -> 2011-12-07 | D27: -1 = last month. 1 = next month. 2 = two months ahead. | O27: 2009-12-01 | P27: Sarabeth L | Q27: 262 | R27: 2009 | S27: 12 | T27: 1
A28: Same Day Next Month | B28: =DATE(YEAR(B26),MONTH(B26)=1,DAY(B26)) -> 2010-12-07 | D28: DATE function builds a date for you. Example: DATE(2004,2,2) = 2/2/2004 | O28: 2010-01-01 | P28: Tonya J | Q28: 384 | R28: 2010 | S28: 1 | T28: 1
O29: 2010-02-01 | P29: Analyssa C | Q29: 249 | R29: 2010 | S29: 2 | T29: 1
A30: Hire Date | B30: 2009-11-07 | O30: 2010-03-15 | P30: Donald Wayne | Q30: 643 | R30: 2010 | S30: 3 | T30: 15
A31: Number Years until Pension Vests | B31: 5 | O31: 2010-04-01 | P31: Cherry M | Q31: 477 | R31: 2010 | S31: 4 | T31: 1
A32: Vest Date | B32: =EDATE(B30,B31*12) -> 2014-11-07 | O32: 2010-05-01 | P32: Suzanne M | Q32: 623 | R32: 2010 | S32: 5 | T32: 1
A33: Vest Date | B33: =DATE(YEAR(B30)+B31,MONTH(B30),DAY(B30)) -> 2014-11-07 | D33: DATE function builds a date for you. Example: DATE(2004,2,2) = 2/2/2004 | O33: 2010-06-01 | P33: Barbara C | Q33: 289 | R33: 2010 | S33: 6 | T33: 1
O34: 2010-07-01 | P34: Shannon L | Q34: 287 | R34: 2010 | S34: 7 | T34: 1
O35: 2010-08-14 | P35: Anastasiya A | Q35: 411 | R35: 2010 | S35: 8 | T35: 14
A36: Dates | B36: Date | O36: 2010-09-01 | P36: Dina | Q36: 653 | R36: 2010 | S36: 9 | T36: 1
A37: 20010714 | B37: =DATE(LEFT(A37,4),MID(A37,5,2),RIGHT(A37,2)) -> 2001-07-14 | D37: DATE function builds a date for you. Example: DATE(2004,2,2) = 2/2/2004 | O37: 2010-10-01 | P37: Dan | Q37: 432 | R37: 2010 | S37: 10 | T37: 1
A38: 20040410 | B38: =DATE(LEFT(A38,4),MID(A38,5,2),RIGHT(A38,2)) -> 2004-04-10 | O38: 2010-11-01 | P38: Abdisamad A | Q38: 330 | R38: 2010 | S38: 11 | T38: 1
A39: 20091115 | B39: 2009-11-15 | O39: 2010-12-01 | P39: Hassan M | Q39: 246 | R39: 2010 | S39: 12 | T39: 1
A40: 20000610 | B40: 2000-06-10 | O40: 2011-01-01 | P40: Vivien R | Q40: 440 | R40: 2011 | S40: 1 | T40: 1
A41: 20080401 | B41: 2008-04-01 | O41: 2011-02-01 | P41: Michael G | Q41: 452 | R41: 2011 | S41: 2 | T41: 1
A42: 20100717 | B42: 2010-07-17 | O42: 2011-03-01 | P42: Catherine W | Q42: 571 | R42: 2011 | S42: 3 | T42: 1
O43: 2011-04-01 | P43: Toni M | Q43: 333 | R43: 2011 | S43: 4 | T43: 1
A44: Dates | B44: Date | O44: 2011-05-01 | P44: Nikol M | Q44: 311 | R44: 2011 | S44: 5 | T44: 1
A45: 20010714 | B45: =TEXT(A45,"0000\/00\/00")+0 -> 2001-07-14 | O45: 2011-06-01 | P45: Dana L | Q45: 358 | R45: 2011 | S45: 6 | T45: 1
A46: 20040410 | B46: 2004-04-10 | O46: 2011-07-22 | P46: Desiree A | Q46: 204 | R46: 2011 | S46: 7 | T46: 22
A47: 20091115 | B47: 2009-11-15 | O47: 2011-08-01 | P47: Sarabeth L | Q47: 547 | R47: 2011 | S47: 8 | T47: 1
A48: 20000610 | B48: 2000-06-10 | O48: 2011-09-01 | P48: Tonya J | Q48: 406 | R48: 2011 | S48: 9 | T48: 1
A49: 20080401 | B49: 2008-04-01 | O49: 2011-10-01 | P49: Analyssa C | Q49: 466 | R49: 2011 | S49: 10 | T49: 1
A50: 20100717 | B50: 2010-07-17 | O50: 2011-11-05 | P50: Donald Wayne | Q50: 362 | R50: 2011 | S50: 11 | T50: 5
O51: 2011-12-01 | P51: Cherry M | Q51: 672 | R51: 2011 | S51: 12 | T51: 1
O52: 2012-01-01 | P52: Suzanne M | Q52: 234 | R52: 2012 | S52: 1 | T52: 1
O53: 2012-02-01 | P53: Barbara C | Q53: 345 | R53: 2012 | S53: 2 | T53: 1
O54: 2012-03-01 | P54: Shannon L | Q54: 511 | R54: 2012 | S54: 3 | T54: 1
O55: 2012-04-01 | P55: Anastasiya A | Q55: 414 | R55: 2012 | S55: 4 | T55: 1
O56: 2012-05-01 | P56: Dina | Q56: 201 | R56: 2012 | S56: 5 | T56: 1
O57: 2012-06-01 | P57: Dan | Q57: 507 | R57: 2012 | S57: 6 | T57: 1
O58: 2012-07-06 | P58: Abdisamad A | Q58: 347 | R58: 2012 | S58: 7 | T58: 6
O59: 2012-08-08 | P59: Hassan M | Q59: 600 | R59: 2012 | S59: 8 | T59: 8
O60: 2012-09-03 | P60: Vivien R | Q60: 692 | R60: 2012 | S60: 9 | T60: 3

Sheet Array Formulas
A1: Highline Excel 2013 Class Video 32:
A2: Introduction To Array Formulas
A3: We have seen:
A4: 1) SUMIFS and COUNTIFS function argument array operation
A5: 2) Use SUMPRODUCT to add an array calculation.
A6: Definition of array formula:
A7: An array formula is a formula that contains an operation (math, comparative, join,
A8: or function argument) on an array of items rather than on single items, and, the
A9: operation delivers a resultant array of items rather than a single item.
A10: This operation is called an array operation and is distinguished from an aggregate
A11: operation, which delivers a single item.
A12: The resultant array of items can be used as a formula element in a larger formulas,
A13: or it can be the final answer.
A14: The final answer from an array formula can either be a single item or an array of items.
A15: Key in definition: operation on an array of items rather than single items.
A17: Goal: Use SUMPRODUCT to add an array calculation. | F17: Goal: Use SUMPRODUCT to add an array calculation.
A18: Total Profit | F18: Sales Rep | G18: Calls | I18: Team1
A19: Rev | B19: Cost | C19: Profit | F19: Jo | G19: 3 | I19: Pham | K19: <<== 2 criteria in argument, therefore SUMIFS spits out two answers
A20: 500 | B20: 300 | F20: Mo | G20: 4 | I20: Phil
A21: 250 | B21: 150 | F21: Phil | G21: 3 | I21: Total
A22: 300 | B22: 200 | F22: Pham | G22: 4 | K22: =IF(_xlfn.ISFORMULA(I22)," < Formula "&_xlfn.FORMULATEXT(I22),"") -> 
A23: 400 | B23: 200 | F23: Pham | G23: 6
A24: 500 | B24: 200 | F24: Jo | G24: 7 | I24: Criteria
B25: Total | F25: Phil | G25: 3 | I25: Pham | K25: <<== 1 criteria in argument
I26: Total
A27: Total Sales
C28: =IF(_xlfn.ISFORMULA(A28)," < Formula "&_xlfn.FORMULATEXT(A28),"") -> 
A30: ** Subtraction math operation is not just on single cell, but many cells, therefore, operation spits out many answers.
A32: Date | B32: Product | C32: COGS | D32: Sales
A33: 2010-09-13 | B33: M 2 | C33: 7740 | D33: 21500 | H33: =FIXED(D33,0)&" - "&FIXED(C33,0)&" = "&FIXED(D33-C33,0) -> 21,500 - 7,740 = 13,760
A34: 2010-07-17 | B34: M 3 | C34: 9460 | D34: 21500 | H34: =FIXED(D34,0)&" - "&FIXED(C34,0)&" = "&FIXED(D34-C34,0) -> 21,500 - 9,460 = 12,040
A35: 2010-07-30 | B35: M 4 | C35: 4350 | D35: 15000 | H35: 15,000 - 4,350 = 10,650
A36: 2010-08-27 | B36: M 5 | C36: 4350 | D36: 15000 | H36: 15,000 - 4,350 = 10,650
A37: 2010-09-25 | B37: M 6 | C37: 14785 | D37: 31458 | H37: 31,458 - 14,785 = 16,673
A38: 2010-08-28 | B38: M 7 | C38: 4176 | D38: 14400 | H38: 14,400 - 4,176 = 10,224
A39: 2010-07-29 | B39: M 8 | C39: 8859 | D39: 29532 | H39: 29,532 - 8,859 = 20,673
A41: Total Gross Profit | F41: ** Math operation is not just on single cell, but many cells, therefore, operation spits out many answers.
A43: ** SUMPRODUCT is a special function that can handle array operations without any special keystroke.
A44: ** Not all functions can handle array operations.
A45: For most functions you have to use the special keystroke, Ctrl + Shift + Enter to tell the function to make the array operation.
A47: Total Profit
A48: Rev | B48: Cost | C48: Profit
A49: 500 | B49: 300
A50: 250 | B50: 150
A51: 300 | B51: 200
A52: 400 | B52: 200
A53: 500 | B53: 200
B54: Max
A56: Max | D56: For array formulas, #VALUE errors mean that you forgot the keystroke to tell Excel to make an array operation: Ctrl + Shift + Enter.
A57: Max | D57: AGGREGATE functions 14 to 19 can make array calculations without Ctrl + Shift + Enter
A58: Min
M59: 1 | N59: If the function argument cannot handle array operations, you must enter the formula with the keystrokes Ctrl + Shift + Enter.
A60: ** In these examples we need to filter the values before the functions process the numbers. We can do this with an array operation in the IF function. | M60: 2 | N60: If the formula is next to the data set and you forget to use Ctrl + Shift + Enter, you may get an incorrect annswer from implicit intersection.
A61: These formulas require Ctrl + Shift + Enter because the IF can't make array operations without this keystroke. 3 important points to right ==>> | M61: 3 | N61: Always verify that an array formula that requires Ctrl + Shift + Enter was entered with Ctrl + Shift + Enter by looking to see whether Excel has placed the curly brackets in the formula bar.
A62: Location | B62: Time (Minutes) To Assemble Product | D62: Location | E62: AVERAGE Time | F62: MIN Time | G62: MAX Time | H62: MODE Time | I62: Standard Deviation
A63: Seattle | B63: 6.7 | D63: Seattle | E63: =AVERAGEIFS($B$63:$B$222,$A$63:$A$222,D63) -> 5.887755102
A64: Oakland | B64: 5.4 | D64: Oakland | E64: =AVERAGEIFS($B$63:$B$222,$A$63:$A$222,D64) -> 5.261538462
A65: Oakland | B65: 4.7 | D65: SF | E65: 7.76779661
A66: SF | B66: 7.7
A67: SF | B67: 5.2 | D67: We have seen two functions that can handle array operations without Ctrl + Shift + Enter:
A68: SF | B68: 9.5 | D68: SUMPRODUCT
A69: Oakland | B69: 4.6 | D69: AGGREGATE
A70: Oakland | B70: 4.4 | D70: We have seen these functions that can NOT handle array operations without Ctrl + Shift + Enter:
A71: Seattle | B71: 5.9 | D71: MAX
A72: Oakland | B72: 6.7 | D72: MIN
A73: Oakland | B73: 6.3 | D73: MODE.SNGL
A74: Oakland | B74: 5.6 | D74: STDEV.S
A75: SF | B75: 5.7
A76: SF | B76: 6.2 | D76: Of the 450 Excel functions, only these contain arguments that can handle array operations without Ctrl + Shift + Enter:
A77: Oakland | B77: 4.5 | D77: The array_1, array_2, etc. arguments in SUMPRODUCT
A78: SF | B78: 7.9 | D78: The lookup_vector argument in the LOOKUP function
A79: SF | B79: 5.2 | D79: The result_vector argument in the LOOKUP function
A80: SF | B80: 7.2 | D80: The array argument in INDEX
A81: Seattle | B81: 6.7 | D81: The array argument in AGGREGATE for functions 14 to 19
A82: Oakland | B82: 5.2
A83: SF | B83: 7.9 | D83: These function argumnets can NEVER perform array operations:
A84: SF | B84: 6 | D84: lookup_value argument in VLOOKUP
A85: Seattle | B85: 4.2 | D85: lookup_value argument in HLOOKUP
A86: SF | B86: 7.9 | D86: range and sum_range arguments in SUMIF
A87: Seattle | B87: 6.3 | D87: range argument in COUNTIF
A88: SF | B88: 9.4 | D88: range and average_range arguments in AVERAGEIF
A89: SF | B89: 7.4 | D89: criteria_range and sum_range arguments in SUMIFS
A90: Seattle | B90: 6.4 | D90: criteria_range argument in COUNTIFS
A91: SF | B91: 9 | D91: criteria_range and average_range arguments in AVEARGEIFS
A92: SF | B92: 5.9
A93: Seattle | B93: 6.9 | D93: Book:
A94: Oakland | B94: 5.7 | D94: Ctrl + Shift + Enter: Mastering Excel Array Formulas
A95: SF | B95: 7.1 | D95: Video Series at YouTube in Dec 2013
A96: Seattle | B96: 4.4
A97: SF | B97: 8.9 | D97: Playlist of videos ALL about AGGREGATE:
A98: Seattle | B98: 6.6 | D98: http://www.youtube.com/playlist?list=PL95781BFAAB4162C0
A99: SF | B99: 9.1 | D99: http://www.youtube.com/playlist?list=PL95781BFAAB4162C0
A100: SF | B100: 7.2
A101: SF | B101: 9.8
A102: Oakland | B102: 4.7
A103: Seattle | B103: 6.2
A104: SF | B104: 8.3
A105: SF | B105: 9.9
A106: SF | B106: 5.7
A107: Oakland | B107: 6
A108: Oakland | B108: 6.8
A109: Oakland | B109: 6.2
A110: Oakland | B110: 4.3
A111: Seattle | B111: 4.4
A112: Oakland | B112: 4.8
A113: SF | B113: 8.9
A114: Seattle | B114: 5.2
A115: Seattle | B115: 5.7
A116: SF | B116: 9.5
A117: Seattle | B117: 6.1
A118: Seattle | B118: 6.7
A119: Oakland | B119: 5
A120: Seattle | B120: 6.7
A121: SF | B121: 7.5
A122: Seattle | B122: 6.1
A123: Oakland | B123: 4.2
A124: SF | B124: 9.4
A125: Oakland | B125: 6.1
A126: Seattle | B126: 4.2
A127: Oakland | B127: 4.3
A128: Seattle | B128: 7
A129: Seattle | B129: 6.1
A130: Oakland | B130: 6.7
A131: Seattle | B131: 6.3
A132: Oakland | B132: 4.6
A133: SF | B133: 7.3
A134: SF | B134: 9
A135: Oakland | B135: 5.8
A136: SF | B136: 7.4
A137: Seattle | B137: 5.7
A138: Seattle | B138: 5.7
A139: SF | B139: 5.9
A140: SF | B140: 7.8
A141: SF | B141: 9.5
A142: SF | B142: 9.5
A143: Oakland | B143: 4.2
A144: Oakland | B144: 4.6
A145: Oakland | B145: 4
A146: Seattle | B146: 6
A147: Oakland | B147: 4.5
A148: SF | B148: 6.7
A149: SF | B149: 7.6
A150: Seattle | B150: 6.8
A151: SF | B151: 10
A152: Oakland | B152: 4.8
A153: SF | B153: 6.1
A154: SF | B154: 7.6
A155: SF | B155: 8.2
A156: Oakland | B156: 5.4
A157: Seattle | B157: 6.9
A158: Seattle | B158: 6.3
A159: Oakland | B159: 6.1
A160: Oakland | B160: 6.8
A161: Oakland | B161: 4.1
A162: SF | B162: 5.9
A163: Oakland | B163: 4.7
A164: Oakland | B164: 5.4
A165: SF | B165: 7
A166: Oakland | B166: 5.1
A167: Oakland | B167: 5.1
A168: Oakland | B168: 5.8
A169: Oakland | B169: 5.7
A170: SF | B170: 5.8
A171: Seattle | B171: 5.6
A172: Seattle | B172: 4.8
A173: SF | B173: 5.4
A174: Seattle | B174: 5.7
A175: Seattle | B175: 5.2
A176: Seattle | B176: 6.5
A177: Oakland | B177: 4.9
A178: SF | B178: 8.7
A179: SF | B179: 9.7
A180: Seattle | B180: 5.5
A181: SF | B181: 6.2
A182: Seattle | B182: 4.2
A183: SF | B183: 8
A184: Oakland | B184: 5.7
A185: Oakland | B185: 5
A186: SF | B186: 8.6
A187: SF | B187: 9.3
A188: Seattle | B188: 4.6
A189: Oakland | B189: 5.1
A190: Seattle | B190: 5
A191: Oakland | B191: 5.4
A192: Seattle | B192: 6.5
A193: Seattle | B193: 4.3
A194: SF | B194: 8.5
A195: Seattle | B195: 5
A196: SF | B196: 5.8
A197: Oakland | B197: 4.8
A198: Oakland | B198: 4.2
A199: Oakland | B199: 5.6
A200: Seattle | B200: 6.6
A201: Seattle | B201: 6.6
A202: SF | B202: 9.3
A203: Oakland | B203: 6.8
A204: SF | B204: 7.6
A205: Seattle | B205: 6.4
A206: Seattle | B206: 5.4
A207: Seattle | B207: 6.5
... 15 more rows

Sheet Array Formulas (an)
A1: Highline Excel 2013 Class Video 32:
A2: Introduction To Array Formulas
A3: We have seen:
A4: 1) SUMIFS and COUNTIFS function argument array operation
A5: 2) Use SUMPRODUCT to add an array calculation.
A6: Definition of array formula:
A7: An array formula is a formula that contains an operation (math, comparative, join,
A8: or function argument) on an array of items rather than on single items, and, the
A9: operation delivers a resultant array of items rather than a single item.
A10: This operation is called an array operation and is distinguished from an aggregate
A11: operation, which delivers a single item.
A12: The resultant array of items can be used as a formula element in a larger formulas,
A13: or it can be the final answer.
A14: The final answer from an array formula can either be a single item or an array of items.
A15: Key in definition: operation on an array of items rather than single items.
A17: Goal: Use SUMPRODUCT to add an array calculation. | F17: Goal: Use SUMPRODUCT to add an array calculation.
A18: Total Profit | F18: Sales Rep | G18: Calls | I18: Team1
A19: Rev | B19: Cost | C19: Profit | F19: Jo | G19: 3 | I19: Pham | K19: <<== 2 criteria in argument, therefore SUMIFS spits out two answers
A20: 500 | B20: 300 | C20: =A20-B20 -> 200 | F20: Mo | G20: 4 | I20: Phil
A21: 250 | B21: 150 | C21: =A21-B21 -> 100 | F21: Phil | G21: 3 | I21: Total
A22: 300 | B22: 200 | C22: =A22-B22 -> 100 | F22: Pham | G22: 4 | I22: =SUMPRODUCT(SUMIFS(G19:G25,F19:F25,I19:I20)) -> 16 | K22: =IF(_xlfn.ISFORMULA(I22)," < Formula "&_xlfn.FORMULATEXT(I22),"") -> < Formula =SUMPRODUCT(SUMIFS(G19:G25,F19:F25,I19:I20))
A23: 400 | B23: 200 | C23: =A23-B23 -> 200 | F23: Pham | G23: 6
A24: 500 | B24: 200 | C24: =A24-B24 -> 300 | F24: Jo | G24: 7 | I24: Criteria
B25: Total | C25: =SUM(C20:C24) -> 900 | F25: Phil | G25: 3 | I25: Pham | K25: <<== 1 criteria in argument
I26: Total
A27: Total Sales | I27: =SUMIFS(G19:G25,F19:F25,I25) -> 10
A28: =SUMPRODUCT(A20:A24-B20:B24) -> 900 | C28: =IF(_xlfn.ISFORMULA(A28)," < Formula "&_xlfn.FORMULATEXT(A28),"") -> < Formula =SUMPRODUCT(A20:A24-B20:B24)
A30: ** Subtraction math operation is not just on single cell, but many cells, therefore, operation spits out many answers.
A32: Date | B32: Product | C32: COGS | D32: Sales
A33: 2010-09-13 | B33: M 2 | C33: 7740 | D33: 21500 | H33: =FIXED(D33,0)&" - "&FIXED(C33,0)&" = "&FIXED(D33-C33,0) -> 21,500 - 7,740 = 13,760
A34: 2010-07-17 | B34: M 3 | C34: 9460 | D34: 21500 | H34: =FIXED(D34,0)&" - "&FIXED(C34,0)&" = "&FIXED(D34-C34,0) -> 21,500 - 9,460 = 12,040
A35: 2010-07-30 | B35: M 4 | C35: 4350 | D35: 15000 | H35: 15,000 - 4,350 = 10,650
A36: 2010-08-27 | B36: M 5 | C36: 4350 | D36: 15000 | H36: 15,000 - 4,350 = 10,650
A37: 2010-09-25 | B37: M 6 | C37: 14785 | D37: 31458 | H37: 31,458 - 14,785 = 16,673
A38: 2010-08-28 | B38: M 7 | C38: 4176 | D38: 14400 | H38: 14,400 - 4,176 = 10,224
A39: 2010-07-29 | B39: M 8 | C39: 8859 | D39: 29532 | H39: 29,532 - 8,859 = 20,673
A41: Total Gross Profit | D41: =SUMPRODUCT(D33:D39-C33:C39) -> 94670 | F41: ** Math operation is not just on single cell, but many cells, therefore, operation spits out many answers.
A43: ** SUMPRODUCT is a special function that can handle array operations without any special keystroke.
A44: ** Not all functions can handle array operations.
A45: For most functions you have to use the special keystroke, Ctrl + Shift + Enter to tell the function to make the array operation.
A47: Total Profit
A48: Rev | B48: Cost | C48: Profit
A49: 500 | B49: 300 | C49: =A49-B49 -> 200
A50: 250 | B50: 150 | C50: =A50-B50 -> 100
A51: 300 | B51: 200 | C51: 100
A52: 400 | B52: 200 | C52: 200
A53: 500 | B53: 200 | C53: 300
B54: Max | C54: =MAX(C49:C53) -> 300
A56: Max | B56: =MAX(A49:A53-B49:B53) -> 300 | D56: For array formulas, #VALUE errors mean that you forgot the keystroke to tell Excel to make an array operation: Ctrl + Shift + Enter.
A57: Max | B57: =_xlfn.AGGREGATE(14,4,A49:A53-B49:B53,1) -> 300 | D57: AGGREGATE functions 14 to 19 can make array calculations without Ctrl + Shift + Enter
A58: Min | B58: =_xlfn.AGGREGATE(15,4,A49:A53-B49:B53,1) -> 100
M59: 1 | N59: If the function argument cannot handle array operations, you must enter the formula with the keystrokes Ctrl + Shift + Enter.
A60: ** In these examples we need to filter the values before the functions process the numbers. We can do this with an array operation in the IF function. | M60: 2 | N60: If the formula is next to the data set and you forget to use Ctrl + Shift + Enter, you may get an incorrect annswer from implicit intersection.
A61: These formulas require Ctrl + Shift + Enter because the IF can't make array operations without this keystroke. 3 important points to right ==>> | M61: 3 | N61: Always verify that an array formula that requires Ctrl + Shift + Enter was entered with Ctrl + Shift + Enter by looking to see whether Excel has placed the curly brackets in the formula bar.
A62: Location | B62: Time (Minutes) To Assemble Product | D62: Location | E62: AVERAGE Time | F62: MIN Time | G62: MAX Time | H62: MODE Time | I62: Standard Deviation
A63: Seattle | B63: 6.7 | D63: Seattle | E63: =AVERAGEIFS($B$63:$B$222,$A$63:$A$222,D63) -> 5.887755102 | F63: =MIN(IF($A$63:$A$222=D63,$B$63:$B$222)) -> 4.2 | G63: =MAX(IF($A$63:$A$222=D63,$B$63:$B$222)) -> 7 | H63: =_xlfn.MODE.SNGL(IF($A$63:$A$222=D63,$B$63:$B$222)) -> 6.6 | I63: =_xlfn.STDEV.S(IF($A$63:$A$222=D63,$B$63:$B$222)) -> 0.8685794564
A64: Oakland | B64: 5.4 | D64: Oakland | E64: =AVERAGEIFS($B$63:$B$222,$A$63:$A$222,D64) -> 5.261538462 | F64: =MIN(IF($A$63:$A$222=D64,$B$63:$B$222)) -> 4 | G64: =MAX(IF($A$63:$A$222=D64,$B$63:$B$222)) -> 6.8 | H64: =_xlfn.MODE.SNGL(IF($A$63:$A$222=D64,$B$63:$B$222)) -> 5.4 | I64: =_xlfn.STDEV.S(IF($A$63:$A$222=D64,$B$63:$B$222)) -> 0.8366960809
A65: Oakland | B65: 4.7 | D65: SF | E65: 7.76779661 | F65: =MIN(IF($A$63:$A$222=D65,$B$63:$B$222)) -> 5.2 | G65: =MAX(IF($A$63:$A$222=D65,$B$63:$B$222)) -> 10 | H65: =_xlfn.MODE.SNGL(IF($A$63:$A$222=D65,$B$63:$B$222)) -> 9.5 | I65: =_xlfn.STDEV.S(IF($A$63:$A$222=D65,$B$63:$B$222)) -> 1.406198186
A66: SF | B66: 7.7
A67: SF | B67: 5.2 | D67: We have seen two functions that can handle array operations without Ctrl + Shift + Enter:
A68: SF | B68: 9.5 | D68: SUMPRODUCT
A69: Oakland | B69: 4.6 | D69: AGGREGATE
A70: Oakland | B70: 4.4 | D70: We have seen these functions that can NOT handle array operations without Ctrl + Shift + Enter:
A71: Seattle | B71: 5.9 | D71: MAX
A72: Oakland | B72: 6.7 | D72: MIN
A73: Oakland | B73: 6.3 | D73: MODE.SNGL
A74: Oakland | B74: 5.6 | D74: STDEV.S
A75: SF | B75: 5.7
A76: SF | B76: 6.2 | D76: Of the 450 Excel functions, only these contain arguments that can handle array operations without Ctrl + Shift + Enter:
A77: Oakland | B77: 4.5 | D77: The array_1, array_2, etc. arguments in SUMPRODUCT
A78: SF | B78: 7.9 | D78: The lookup_vector argument in the LOOKUP function
A79: SF | B79: 5.2 | D79: The result_vector argument in the LOOKUP function
A80: SF | B80: 7.2 | D80: The array argument in INDEX
A81: Seattle | B81: 6.7 | D81: The array argument in AGGREGATE for functions 14 to 19
A82: Oakland | B82: 5.2
A83: SF | B83: 7.9 | D83: These function argumnets can NEVER perform array operations:
A84: SF | B84: 6 | D84: lookup_value argument in VLOOKUP
A85: Seattle | B85: 4.2 | D85: lookup_value argument in HLOOKUP
A86: SF | B86: 7.9 | D86: range and sum_range arguments in SUMIF
A87: Seattle | B87: 6.3 | D87: range argument in COUNTIF
A88: SF | B88: 9.4 | D88: range and average_range arguments in AVERAGEIF
A89: SF | B89: 7.4 | D89: criteria_range and sum_range arguments in SUMIFS
A90: Seattle | B90: 6.4 | D90: criteria_range argument in COUNTIFS
A91: SF | B91: 9 | D91: criteria_range and average_range arguments in AVEARGEIFS
A92: SF | B92: 5.9
A93: Seattle | B93: 6.9 | D93: Book:
A94: Oakland | B94: 5.7 | D94: Ctrl + Shift + Enter: Mastering Excel Array Formulas
A95: SF | B95: 7.1 | D95: Video Series at YouTube in Dec 2013
A96: Seattle | B96: 4.4
A97: SF | B97: 8.9 | D97: Playlist of videos ALL about AGGREGATE:
A98: Seattle | B98: 6.6 | D98: http://www.youtube.com/playlist?list=PL95781BFAAB4162C0
A99: SF | B99: 9.1 | D99: http://www.youtube.com/playlist?list=PL95781BFAAB4162C0
A100: SF | B100: 7.2
A101: SF | B101: 9.8
A102: Oakland | B102: 4.7
A103: Seattle | B103: 6.2
A104: SF | B104: 8.3
A105: SF | B105: 9.9
A106: SF | B106: 5.7
A107: Oakland | B107: 6
A108: Oakland | B108: 6.8
A109: Oakland | B109: 6.2
A110: Oakland | B110: 4.3
A111: Seattle | B111: 4.4
A112: Oakland | B112: 4.8
A113: SF | B113: 8.9
A114: Seattle | B114: 5.2
A115: Seattle | B115: 5.7
A116: SF | B116: 9.5
A117: Seattle | B117: 6.1
A118: Seattle | B118: 6.7
A119: Oakland | B119: 5
A120: Seattle | B120: 6.7
A121: SF | B121: 7.5
A122: Seattle | B122: 6.1
A123: Oakland | B123: 4.2
A124: SF | B124: 9.4
A125: Oakland | B125: 6.1
A126: Seattle | B126: 4.2
A127: Oakland | B127: 4.3
A128: Seattle | B128: 7
A129: Seattle | B129: 6.1
A130: Oakland | B130: 6.7
A131: Seattle | B131: 6.3
A132: Oakland | B132: 4.6
A133: SF | B133: 7.3
A134: SF | B134: 9
A135: Oakland | B135: 5.8
A136: SF | B136: 7.4
A137: Seattle | B137: 5.7
A138: Seattle | B138: 5.7
A139: SF | B139: 5.9
A140: SF | B140: 7.8
A141: SF | B141: 9.5
A142: SF | B142: 9.5
A143: Oakland | B143: 4.2
A144: Oakland | B144: 4.6
A145: Oakland | B145: 4
A146: Seattle | B146: 6
A147: Oakland | B147: 4.5
A148: SF | B148: 6.7
A149: SF | B149: 7.6
A150: Seattle | B150: 6.8
A151: SF | B151: 10
A152: Oakland | B152: 4.8
A153: SF | B153: 6.1
A154: SF | B154: 7.6
A155: SF | B155: 8.2
A156: Oakland | B156: 5.4
A157: Seattle | B157: 6.9
A158: Seattle | B158: 6.3
A159: Oakland | B159: 6.1
A160: Oakland | B160: 6.8
A161: Oakland | B161: 4.1
A162: SF | B162: 5.9
A163: Oakland | B163: 4.7
A164: Oakland | B164: 5.4
A165: SF | B165: 7
A166: Oakland | B166: 5.1
A167: Oakland | B167: 5.1
A168: Oakland | B168: 5.8
A169: Oakland | B169: 5.7
A170: SF | B170: 5.8
A171: Seattle | B171: 5.6
A172: Seattle | B172: 4.8
A173: SF | B173: 5.4
A174: Seattle | B174: 5.7
A175: Seattle | B175: 5.2
A176: Seattle | B176: 6.5
A177: Oakland | B177: 4.9
A178: SF | B178: 8.7
A179: SF | B179: 9.7
A180: Seattle | B180: 5.5
A181: SF | B181: 6.2
A182: Seattle | B182: 4.2
A183: SF | B183: 8
A184: Oakland | B184: 5.7
A185: Oakland | B185: 5
A186: SF | B186: 8.6
A187: SF | B187: 9.3
A188: Seattle | B188: 4.6
A189: Oakland | B189: 5.1
A190: Seattle | B190: 5
A191: Oakland | B191: 5.4
A192: Seattle | B192: 6.5
A193: Seattle | B193: 4.3
A194: SF | B194: 8.5
A195: Seattle | B195: 5
A196: SF | B196: 5.8
A197: Oakland | B197: 4.8
A198: Oakland | B198: 4.2
A199: Oakland | B199: 5.6
A200: Seattle | B200: 6.6
A201: Seattle | B201: 6.6
A202: SF | B202: 9.3
A203: Oakland | B203: 6.8
A204: SF | B204: 7.6
A205: Seattle | B205: 6.4
A206: Seattle | B206: 5.4
A207: Seattle | B207: 6.5
... 15 more rows

Sheet Array Functions
A1: Sales | C1: Category | D1: Upper Limit | E1: Frequency
A2: 249.99 | C2: ="Sales <= "&DOLLAR(D2,0) -> Sales <= $250 | D2: 250
A3: 250 | C3: =DOLLAR(D2,0)&" < Sales <= "&DOLLAR(D3,0) -> $250 < Sales <= $500 | D3: 500
A4: 250.01 | C4: $500 < Sales <= $750 | D4: 750
A5: 450 | C5: $750 < Sales <= $1,000 | D5: 1000
A6: 499.99 | C6: ="Sales > "&DOLLAR(D5,0) -> Sales > $1,000
A7: 500
A8: 500.01
A9: 800 | C9: FREQUENCY Notes ==>>
A10: 900
A11: 850
A12: 800
A13: 1000
A14: 2000
C19: January Sales | D19: Sales Rep1 | E19: Sales Rep2 | F19: Sales Rep3 | G19: Sales Rep4 | H19: Totals
C20: Pro1 | D20: 415 | E20: 244 | F20: 248 | G20: 417 | H20: =SUM(D20:G20) -> 1324
C21: Pro2 | D21: 279 | E21: 223 | F21: 321 | G21: 191 | H21: 1014
C22: Pro3 | D22: 379 | E22: 382 | F22: 215 | G22: 304 | H22: 1280
C23: Pro4 | D23: 181 | E23: 227 | F23: 150 | G23: 260 | H23: 818
C24: Pro5 | D24: 290 | E24: 440 | F24: 212 | G24: 368 | H24: 1310
C25: Totals | D25: =SUM(D20:D24) -> 1544 | E25: =SUM(E20:E24) -> 1516 | F25: =SUM(F20:F24) -> 1146 | G25: =SUM(G20:G24) -> 1540 | H25: 5746

Sheet Array Functions (an)
A1: Sales | C1: Category | D1: Upper Limit | E1: Frequency
A2: 249.99 | C2: ="Sales <= "&DOLLAR(D2,0) -> Sales <= $250 | D2: 250 | E2: =FREQUENCY(A2:A14,D2:D5) -> 2
A3: 250 | C3: =DOLLAR(D2,0)&" < Sales <= "&DOLLAR(D3,0) -> $250 < Sales <= $500 | D3: 500 | E3: 4
A4: 250.01 | C4: $500 < Sales <= $750 | D4: 750 | E4: 1
A5: 450 | C5: $750 < Sales <= $1,000 | D5: 1000 | E5: 5
A6: 499.99 | C6: ="Sales > "&DOLLAR(D5,0) -> Sales > $1,000 | E6: 1
A7: 500
A8: 500.01
A9: 800 | C9: FREQUENCY Notes ==>>
A10: 900
A11: 850
A12: 800
A13: 1000
A14: 2000
C19: January Sales | D19: Sales Rep1 | E19: Sales Rep2 | F19: Sales Rep3 | G19: Sales Rep4 | H19: Totals
C20: Pro1 | D20: 415 | E20: 244 | F20: 248 | G20: 417 | H20: =SUM(D20:G20) -> 1324
C21: Pro2 | D21: 279 | E21: 223 | F21: 321 | G21: 191 | H21: 1014
C22: Pro3 | D22: 379 | E22: 382 | F22: 215 | G22: 304 | H22: 1280
C23: Pro4 | D23: 181 | E23: 227 | F23: 150 | G23: 260 | H23: 818
C24: Pro5 | D24: 290 | E24: 440 | F24: 212 | G24: 368 | H24: 1310
C25: Totals | D25: =SUM(D20:D24) -> 1544 | E25: =SUM(E20:E24) -> 1516 | F25: =SUM(F20:F24) -> 1146 | G25: =SUM(G20:G24) -> 1540 | H25: 5746
C27: =TRANSPOSE(C19:H25) -> January Sales | D27: Pro1 | E27: Pro2 | F27: Pro3 | G27: Pro4 | H27: Pro5 | I27: Totals
C28: Sales Rep1 | D28: 415 | E28: 279 | F28: 379 | G28: 181 | H28: 290 | I28: 1544
C29: Sales Rep2 | D29: 244 | E29: 223 | F29: 382 | G29: 227 | H29: 440 | I29: 1516
C30: Sales Rep3 | D30: 248 | E30: 321 | F30: 215 | G30: 150 | H30: 212 | I30: 1146
C31: Sales Rep4 | D31: 417 | E31: 191 | F31: 304 | G31: 260 | H31: 368 | I31: 1540
C32: Totals | D32: 1324 | E32: 1014 | F32: 1280 | G32: 818 | H32: 1310 | I32: 5746
C34: January Sales | D34: Pro1 | E34: Pro2 | F34: Pro3 | G34: Pro4 | H34: Pro5 | I34: Totals
C35: Sales Rep1 | D35: 415 | E35: 279 | F35: 379 | G35: 181 | H35: 290 | I35: =SUM(D35:H35) -> 1544
C36: Sales Rep2 | D36: 244 | E36: 223 | F36: 382 | G36: 227 | H36: 440 | I36: =SUM(D36:H36) -> 1516
C37: Sales Rep3 | D37: 248 | E37: 321 | F37: 215 | G37: 150 | H37: 212 | I37: =SUM(D37:H37) -> 1146
C38: Sales Rep4 | D38: 417 | E38: 191 | F38: 304 | G38: 260 | H38: 368 | I38: =SUM(D38:H38) -> 1540
C39: Totals | D39: =SUM(D35:D38) -> 1324 | E39: 1014 | F39: 1280 | G39: 818 | H39: 1310 | I39: 5746

Sheet Homework ==>>

Sheet HW(1)
A1: There are five formulas with errors. Fix the errors.
A3: Error 1:
A4: Product | B4: Price | D4: Product | F4: Price
A5: Bellen | B5: 23 | D5: Quad | F5: =VLOOKUP(D5,B5:C8,3,0) -> 
A6: Yanaki | B6: 19.5
A7: Carlota | B7: 22
A8: Quad | B8: 40
A11: Error 2:
A12: Product | B12: Price | D12: Product | F12: Price
A13: Bellen | B13: 23 | D13: Quad | F13: =VLOOKUP(D13,A13:A16,2,0) -> 
A14: Yanaki | B14: 19.5
A15: Carlota | B15: 22
A16: Quad | B16: 40
A18: Error 3:
A19: Product | B19: Price | D19: Product | F19: Price
A20: Bellen | B20: 23 | D20: Quad | F20: =VLOOKUP(D20,A20:B23,2) -> 23
A21: Yanaki | B21: 19.5
A22: Carlota | B22: 22
A23: Quad | B23: 40
A25: Error 4:
A26: Product | B26: Price | D26: Product | F26: Price
A27: Bellen | B27: 23 | D27: Quad | F27: =VLOOKUP(D27:E27,A27:B30,2) -> 
A28: Yanaki | B28: 19.5
A29: Carlota | B29: 22
A30: Quad | B30: 40
A32: Error5:
A33: Product | D33: Total
A34: 3 | D34: =SUM(A35:A44) -> 54
A35: 9
A36: 9
A37: 9
A38: 1
A39: 3
A40: 10
A41: 6
A42: 1
A43: 4
A44: 2

Sheet HW(1an)
A1: There are five formulas with errors. Fix the errors.
A3: Error 1:
A4: Product | B4: Price | D4: Product | F4: Price
A5: Bellen | B5: 23 | D5: Quad | F5: =VLOOKUP(D5,A5:B8,2,0) -> 40
A6: Yanaki | B6: 19.5
A7: Carlota | B7: 22
A8: Quad | B8: 40
A11: Error 2:
A12: Product | B12: Price | D12: Product | F12: Price
A13: Bellen | B13: 23 | D13: Quad | F13: =VLOOKUP(D13,A13:B16,2,0) -> 40
A14: Yanaki | B14: 19.5
A15: Carlota | B15: 22
A16: Quad | B16: 40
A18: Error 3:
A19: Product | B19: Price | D19: Product | F19: Price
A20: Bellen | B20: 23 | D20: Quad | F20: =VLOOKUP(D20,A20:B23,2,0) -> 40
A21: Yanaki | B21: 19.5
A22: Carlota | B22: 22
A23: Quad | B23: 40
A25: Error 4:
A26: Product | B26: Price | D26: Product | F26: Price
A27: Bellen | B27: 23 | D27: Quad | F27: =VLOOKUP(D27,A27:B30,2,0) -> 40
A28: Yanaki | B28: 19.5
A29: Carlota | B29: 22
A30: Quad | B30: 40
A32: Error5:
A33: Product | D33: Total
A34: 3 | D34: =SUM(A34:A44) -> 57
A35: 9
A36: 9
A37: 9
A38: 1
A39: 3
A40: 10
A41: 6
A42: 1
A43: 4
A44: 2

Sheet HW(2)
A1: Find what is causing the problem with the SUMIFS formula in the E column and fix it.
A3: Name | B3: Calls made | D3: Name | E3: Total Calls | K3: Name | L3: Commision Rate
A4: Darin Jenkins | B4: 4 | D4: Darin Jenkins | E4: =SUMIFS($B$4:$B$373,$A$4:$A$373,D4) -> 0 | K4: Darin Jenkins | L4: =RANDBETWEEN(10,60)/1000 -> 0.046
A5: Gina Stone | B5: 2 | D5: Gina Stone | E5: 0 | K5: Gina Stone | L5: =RANDBETWEEN(10,60)/1000 -> 0.014
A6: Nathan Nguyen | B6: 3 | D6: Lois Luna | E6: 0 | K6: Lois Luna | L6: 0.053
A7: Gregg Lawson | B7: 8 | D7: Nathan Nguyen | E7: 0 | K7: Gregg Lawson | L7: 0.046
A8: Pat Anderson | B8: 8 | D8: Gregg Lawson | E8: 0 | K8: Kelly Fowler | L8: 0.054
A9: Bradley Hodges | B9: 4 | D9: Kelly Fowler | E9: 0 | K9: Bradley Hodges | L9: 0.028
A10: Beulah Howell | B10: 5 | D10: Bradley Hodges | E10: 0 | K10: Ray Silva | L10: 0.013
A11: Diana Holt | B11: 9 | D11: Ray Silva | E11: 0 | K11: Roderick White | L11: 0.03
A12: Dave Martin | B12: 8 | D12: Roderick White | E12: 0 | K12: Diana Holt | L12: 0.024
A13: Diana Holt | B13: 7 | D13: Diana Holt | E13: 0 | K13: Pat Anderson | L13: 0.027
A14: Krystal Hubbard | B14: 10 | D14: Pat Anderson | E14: 0 | K14: Beulah Howell | L14: 0.046
A15: Dave Martin | B15: 6 | D15: Beulah Howell | E15: 0 | K15: Krystal Hubbard | L15: 0.055
A16: Diana Holt | B16: 5 | D16: Krystal Hubbard | E16: 0 | K16: Roger Henderson | L16: 0.054
A17: Darin Jenkins | B17: 2 | D17: Roger Henderson | E17: 0 | K17: Dave Martin | L17: 0.054
A18: Diana Holt | B18: 4 | D18: Dave Martin | E18: 0 | K18: Nathan Nguyen | L18: 0.045
A19: Lois Luna | B19: 1
A20: Lois Luna | B20: 7
A21: Bradley Hodges | B21: 1
A22: Krystal Hubbard | B22: 1
A23: Ray Silva | B23: 9
A24: Darin Jenkins | B24: 1
A25: Dave Martin | B25: 8
A26: Gregg Lawson | B26: 1
A27: Gina Stone | B27: 6
A28: Beulah Howell | B28: 6
A29: Ray Silva | B29: 8
A30: Dave Martin | B30: 2
A31: Gina Stone | B31: 10
A32: Nathan Nguyen | B32: 8
A33: Roger Henderson | B33: 4
A34: Lois Luna | B34: 10
A35: Bradley Hodges | B35: 3
A36: Diana Holt | B36: 3
A37: Pat Anderson | B37: 4
A38: Beulah Howell | B38: 10
A39: Gregg Lawson | B39: 10
A40: Roger Henderson | B40: 3
A41: Krystal Hubbard | B41: 1
A42: Beulah Howell | B42: 5
A43: Pat Anderson | B43: 9
A44: Gina Stone | B44: 6
A45: Roderick White | B45: 7
A46: Roderick White | B46: 3
A47: Nathan Nguyen | B47: 4
A48: Lois Luna | B48: 1
A49: Kelly Fowler | B49: 5
A50: Gina Stone | B50: 1
A51: Diana Holt | B51: 6
A52: Nathan Nguyen | B52: 8
A53: Beulah Howell | B53: 4
A54: Beulah Howell | B54: 9
A55: Krystal Hubbard | B55: 3
A56: Darin Jenkins | B56: 5
A57: Diana Holt | B57: 8
A58: Dave Martin | B58: 10
A59: Gina Stone | B59: 6
A60: Gina Stone | B60: 8
A61: Gregg Lawson | B61: 5
A62: Beulah Howell | B62: 7
A63: Krystal Hubbard | B63: 10
A64: Beulah Howell | B64: 2
A65: Roger Henderson | B65: 1
A66: Pat Anderson | B66: 2
A67: Kelly Fowler | B67: 6
A68: Roger Henderson | B68: 9
A69: Darin Jenkins | B69: 9
A70: Diana Holt | B70: 4
A71: Beulah Howell | B71: 9
A72: Krystal Hubbard | B72: 10
A73: Gina Stone | B73: 2
A74: Beulah Howell | B74: 5
A75: Dave Martin | B75: 3
A76: Gina Stone | B76: 5
A77: Diana Holt | B77: 6
A78: Ray Silva | B78: 9
A79: Pat Anderson | B79: 4
A80: Pat Anderson | B80: 1
A81: Bradley Hodges | B81: 5
A82: Gregg Lawson | B82: 2
A83: Ray Silva | B83: 10
A84: Gina Stone | B84: 1
A85: Kelly Fowler | B85: 9
A86: Krystal Hubbard | B86: 9
A87: Pat Anderson | B87: 8
A88: Roderick White | B88: 1
A89: Lois Luna | B89: 3
A90: Roderick White | B90: 5
A91: Diana Holt | B91: 2
A92: Darin Jenkins | B92: 9
A93: Beulah Howell | B93: 10
A94: Gina Stone | B94: 9
A95: Roger Henderson | B95: 6
A96: Roger Henderson | B96: 7
A97: Dave Martin | B97: 2
A98: Kelly Fowler | B98: 7
A99: Roderick White | B99: 4
A100: Krystal Hubbard | B100: 10
A101: Kelly Fowler | B101: 6
A102: Ray Silva | B102: 6
A103: Bradley Hodges | B103: 7
A104: Diana Holt | B104: 4
A105: Kelly Fowler | B105: 10
A106: Ray Silva | B106: 8
A107: Lois Luna | B107: 6
A108: Gregg Lawson | B108: 4
A109: Dave Martin | B109: 7
A110: Dave Martin | B110: 3
A111: Gregg Lawson | B111: 5
A112: Pat Anderson | B112: 1
A113: Diana Holt | B113: 6
A114: Darin Jenkins | B114: 2
A115: Pat Anderson | B115: 10
A116: Lois Luna | B116: 6
A117: Kelly Fowler | B117: 7
A118: Krystal Hubbard | B118: 3
A119: Roderick White | B119: 4
A120: Gregg Lawson | B120: 6
A121: Bradley Hodges | B121: 5
A122: Darin Jenkins | B122: 10
A123: Kelly Fowler | B123: 4
A124: Roger Henderson | B124: 1
A125: Roderick White | B125: 9
A126: Dave Martin | B126: 10
A127: Lois Luna | B127: 10
A128: Dave Martin | B128: 10
A129: Roderick White | B129: 9
A130: Ray Silva | B130: 1
A131: Roger Henderson | B131: 7
A132: Gina Stone | B132: 1
A133: Gina Stone | B133: 10
A134: Beulah Howell | B134: 4
A135: Kelly Fowler | B135: 4
A136: Beulah Howell | B136: 8
A137: Darin Jenkins | B137: 8
A138: Pat Anderson | B138: 5
A139: Krystal Hubbard | B139: 1
A140: Kelly Fowler | B140: 9
A141: Beulah Howell | B141: 2
A142: Diana Holt | B142: 6
A143: Krystal Hubbard | B143: 3
A144: Darin Jenkins | B144: 2
A145: Roger Henderson | B145: 6
A146: Nathan Nguyen | B146: 3
A147: Roger Henderson | B147: 7
A148: Kelly Fowler | B148: 7
A149: Beulah Howell | B149: 7
A150: Gina Stone | B150: 1
A151: Lois Luna | B151: 5
A152: Bradley Hodges | B152: 7
A153: Gregg Lawson | B153: 3
A154: Ray Silva | B154: 9
A155: Roger Henderson | B155: 3
A156: Krystal Hubbard | B156: 10
A157: Roger Henderson | B157: 1
A158: Pat Anderson | B158: 2
A159: Pat Anderson | B159: 5
A160: Gina Stone | B160: 3
A161: Bradley Hodges | B161: 3
A162: Diana Holt | B162: 8
A163: Gina Stone | B163: 8
A164: Pat Anderson | B164: 2
A165: Ray Silva | B165: 7
A166: Krystal Hubbard | B166: 8
A167: Dave Martin | B167: 9
A168: Bradley Hodges | B168: 6
A169: Krystal Hubbard | B169: 8
A170: Lois Luna | B170: 5
A171: Lois Luna | B171: 5
A172: Roderick White | B172: 7
A173: Krystal Hubbard | B173: 7
A174: Dave Martin | B174: 1
A175: Lois Luna | B175: 10
A176: Beulah Howell | B176: 4
A177: Kelly Fowler | B177: 6
A178: Pat Anderson | B178: 2
A179: Roger Henderson | B179: 3
A180: Ray Silva | B180: 4
A181: Gregg Lawson | B181: 6
A182: Gina Stone | B182: 10
A183: Ray Silva | B183: 6
A184: Gregg Lawson | B184: 10
A185: Beulah Howell | B185: 5
A186: Gina Stone | B186: 8
A187: Roderick White | B187: 5
A188: Dave Martin | B188: 5
A189: Nathan Nguyen | B189: 1
A190: Lois Luna | B190: 7
A191: Ray Silva | B191: 3
A192: Diana Holt | B192: 8
A193: Gregg Lawson | B193: 9
A194: Pat Anderson | B194: 10
A195: Darin Jenkins | B195: 3
A196: Roderick White | B196: 6
A197: Darin Jenkins | B197: 1
A198: Roderick White | B198: 6
A199: Darin Jenkins | B199: 8
A200: Ray Silva | B200: 8
A201: Kelly Fowler | B201: 10
... 172 more rows

Sheet HW(2an)
A1: Find what is causing the problem with the SUMIFS formula in the E column and fix it.
A3: Name | B3: Calls made | D3: Name | E3: Total Calls | I3: Name | J3: TRIM | K3: Total Calls
A4: Darin Jenkins | B4: 4 | D4: Darin Jenkins | E4: =SUMIFS($B$4:$B$373,$A$4:$A$373,TRIM(D4)) -> 127 | I4: Darin Jenkins | J4: =TRIM(I4) -> Darin Jenkins | K4: =SUMIFS($B$4:$B$373,$A$4:$A$373,J4) -> 127
A5: Gina Stone | B5: 2 | D5: Gina Stone | E5: =SUMIFS($B$4:$B$373,$A$4:$A$373,TRIM(D5)) -> 172 | G5: or | I5: Gina Stone | J5: Gina Stone | K5: =SUMIFS($B$4:$B$373,$A$4:$A$373,J5) -> 172
A6: Nathan Nguyen | B6: 3 | D6: Lois Luna | E6: 134 | I6: Lois Luna | J6: Lois Luna | K6: 134
A7: Gregg Lawson | B7: 8 | D7: Nathan Nguyen | E7: 140 | I7: Nathan Nguyen | J7: Nathan Nguyen | K7: 140
A8: Pat Anderson | B8: 8 | D8: Gregg Lawson | E8: 140 | I8: Gregg Lawson | J8: Gregg Lawson | K8: 140
A9: Bradley Hodges | B9: 4 | D9: Kelly Fowler | E9: 155 | I9: Kelly Fowler | J9: Kelly Fowler | K9: 155
A10: Beulah Howell | B10: 5 | D10: Bradley Hodges | E10: 118 | I10: Bradley Hodges | J10: Bradley Hodges | K10: 118
A11: Diana Holt | B11: 9 | D11: Ray Silva | E11: 137 | I11: Ray Silva | J11: Ray Silva | K11: 137
A12: Dave Martin | B12: 8 | D12: Roderick White | E12: 127 | I12: Roderick White | J12: Roderick White | K12: 127
A13: Diana Holt | B13: 7 | D13: Diana Holt | E13: 127 | I13: Diana Holt | J13: Diana Holt | K13: 127
A14: Krystal Hubbard | B14: 10 | D14: Pat Anderson | E14: 124 | I14: Pat Anderson | J14: Pat Anderson | K14: 124
A15: Dave Martin | B15: 6 | D15: Beulah Howell | E15: 173 | I15: Beulah Howell | J15: Beulah Howell | K15: 173
A16: Diana Holt | B16: 5 | D16: Krystal Hubbard | E16: 166 | I16: Krystal Hubbard | J16: Krystal Hubbard | K16: 166
A17: Darin Jenkins | B17: 2 | D17: Roger Henderson | E17: 127 | I17: Roger Henderson | J17: Roger Henderson | K17: 127
A18: Diana Holt | B18: 4 | D18: Dave Martin | E18: 113 | I18: Dave Martin | J18: Dave Martin | K18: 113
A19: Lois Luna | B19: 1
A20: Lois Luna | B20: 7
A21: Bradley Hodges | B21: 1
A22: Krystal Hubbard | B22: 1
A23: Ray Silva | B23: 9
A24: Darin Jenkins | B24: 1
A25: Dave Martin | B25: 8
A26: Gregg Lawson | B26: 1
A27: Gina Stone | B27: 6
A28: Beulah Howell | B28: 6
A29: Ray Silva | B29: 8
A30: Dave Martin | B30: 2
A31: Gina Stone | B31: 10
A32: Nathan Nguyen | B32: 8
A33: Roger Henderson | B33: 4
A34: Lois Luna | B34: 10
A35: Bradley Hodges | B35: 3
A36: Diana Holt | B36: 3
A37: Pat Anderson | B37: 4
A38: Beulah Howell | B38: 10
A39: Gregg Lawson | B39: 10
A40: Roger Henderson | B40: 3
A41: Krystal Hubbard | B41: 1
A42: Beulah Howell | B42: 5
A43: Pat Anderson | B43: 9
A44: Gina Stone | B44: 6
A45: Roderick White | B45: 7
A46: Roderick White | B46: 3
A47: Nathan Nguyen | B47: 4
A48: Lois Luna | B48: 1
A49: Kelly Fowler | B49: 5
A50: Gina Stone | B50: 1
A51: Diana Holt | B51: 6
A52: Nathan Nguyen | B52: 8
A53: Beulah Howell | B53: 4
A54: Beulah Howell | B54: 9
A55: Krystal Hubbard | B55: 3
A56: Darin Jenkins | B56: 5
A57: Diana Holt | B57: 8
A58: Dave Martin | B58: 10
A59: Gina Stone | B59: 6
A60: Gina Stone | B60: 8
A61: Gregg Lawson | B61: 5
A62: Beulah Howell | B62: 7
A63: Krystal Hubbard | B63: 10
A64: Beulah Howell | B64: 2
A65: Roger Henderson | B65: 1
A66: Pat Anderson | B66: 2
A67: Kelly Fowler | B67: 6
A68: Roger Henderson | B68: 9
A69: Darin Jenkins | B69: 9
A70: Diana Holt | B70: 4
A71: Beulah Howell | B71: 9
A72: Krystal Hubbard | B72: 10
A73: Gina Stone | B73: 2
A74: Beulah Howell | B74: 5
A75: Dave Martin | B75: 3
A76: Gina Stone | B76: 5
A77: Diana Holt | B77: 6
A78: Ray Silva | B78: 9
A79: Pat Anderson | B79: 4
A80: Pat Anderson | B80: 1
A81: Bradley Hodges | B81: 5
A82: Gregg Lawson | B82: 2
A83: Ray Silva | B83: 10
A84: Gina Stone | B84: 1
A85: Kelly Fowler | B85: 9
A86: Krystal Hubbard | B86: 9
A87: Pat Anderson | B87: 8
A88: Roderick White | B88: 1
A89: Lois Luna | B89: 3
A90: Roderick White | B90: 5
A91: Diana Holt | B91: 2
A92: Darin Jenkins | B92: 9
A93: Beulah Howell | B93: 10
A94: Gina Stone | B94: 9
A95: Roger Henderson | B95: 6
A96: Roger Henderson | B96: 7
A97: Dave Martin | B97: 2
A98: Kelly Fowler | B98: 7
A99: Roderick White | B99: 4
A100: Krystal Hubbard | B100: 10
A101: Kelly Fowler | B101: 6
A102: Ray Silva | B102: 6
A103: Bradley Hodges | B103: 7
A104: Diana Holt | B104: 4
A105: Kelly Fowler | B105: 10
A106: Ray Silva | B106: 8
A107: Lois Luna | B107: 6
A108: Gregg Lawson | B108: 4
A109: Dave Martin | B109: 7
A110: Dave Martin | B110: 3
A111: Gregg Lawson | B111: 5
A112: Pat Anderson | B112: 1
A113: Diana Holt | B113: 6
A114: Darin Jenkins | B114: 2
A115: Pat Anderson | B115: 10
A116: Lois Luna | B116: 6
A117: Kelly Fowler | B117: 7
A118: Krystal Hubbard | B118: 3
A119: Roderick White | B119: 4
A120: Gregg Lawson | B120: 6
A121: Bradley Hodges | B121: 5
A122: Darin Jenkins | B122: 10
A123: Kelly Fowler | B123: 4
A124: Roger Henderson | B124: 1
A125: Roderick White | B125: 9
A126: Dave Martin | B126: 10
A127: Lois Luna | B127: 10
A128: Dave Martin | B128: 10
A129: Roderick White | B129: 9
A130: Ray Silva | B130: 1
A131: Roger Henderson | B131: 7
A132: Gina Stone | B132: 1
A133: Gina Stone | B133: 10
A134: Beulah Howell | B134: 4
A135: Kelly Fowler | B135: 4
A136: Beulah Howell | B136: 8
A137: Darin Jenkins | B137: 8
A138: Pat Anderson | B138: 5
A139: Krystal Hubbard | B139: 1
A140: Kelly Fowler | B140: 9
A141: Beulah Howell | B141: 2
A142: Diana Holt | B142: 6
A143: Krystal Hubbard | B143: 3
A144: Darin Jenkins | B144: 2
A145: Roger Henderson | B145: 6
A146: Nathan Nguyen | B146: 3
A147: Roger Henderson | B147: 7
A148: Kelly Fowler | B148: 7
A149: Beulah Howell | B149: 7
A150: Gina Stone | B150: 1
A151: Lois Luna | B151: 5
A152: Bradley Hodges | B152: 7
A153: Gregg Lawson | B153: 3
A154: Ray Silva | B154: 9
A155: Roger Henderson | B155: 3
A156: Krystal Hubbard | B156: 10
A157: Roger Henderson | B157: 1
A158: Pat Anderson | B158: 2
A159: Pat Anderson | B159: 5
A160: Gina Stone | B160: 3
A161: Bradley Hodges | B161: 3
A162: Diana Holt | B162: 8
A163: Gina Stone | B163: 8
A164: Pat Anderson | B164: 2
A165: Ray Silva | B165: 7
A166: Krystal Hubbard | B166: 8
A167: Dave Martin | B167: 9
A168: Bradley Hodges | B168: 6
A169: Krystal Hubbard | B169: 8
A170: Lois Luna | B170: 5
A171: Lois Luna | B171: 5
A172: Roderick White | B172: 7
A173: Krystal Hubbard | B173: 7
A174: Dave Martin | B174: 1
A175: Lois Luna | B175: 10
A176: Beulah Howell | B176: 4
A177: Kelly Fowler | B177: 6
A178: Pat Anderson | B178: 2
A179: Roger Henderson | B179: 3
A180: Ray Silva | B180: 4
A181: Gregg Lawson | B181: 6
A182: Gina Stone | B182: 10
A183: Ray Silva | B183: 6
A184: Gregg Lawson | B184: 10
A185: Beulah Howell | B185: 5
A186: Gina Stone | B186: 8
A187: Roderick White | B187: 5
A188: Dave Martin | B188: 5
A189: Nathan Nguyen | B189: 1
A190: Lois Luna | B190: 7
A191: Ray Silva | B191: 3
A192: Diana Holt | B192: 8
A193: Gregg Lawson | B193: 9
A194: Pat Anderson | B194: 10
A195: Darin Jenkins | B195: 3
A196: Roderick White | B196: 6
A197: Darin Jenkins | B197: 1
A198: Roderick White | B198: 6
A199: Darin Jenkins | B199: 8
A200: Ray Silva | B200: 8
A201: Kelly Fowler | B201: 10
... 172 more rows

Sheet HW(3)
O1: =INDEX($A$5:$A$19,RANDBETWEEN(1,COUNTA($A$5:$A$19)))&REPT(" ",RANDBETWEEN(0,2)) -> Dave Martin
A3: Lookup Table: | D3: Data Set:
A4: sales Rep | B4: Commision Rate | D4: Date | E4: Sales Rep | F4: Sales | G4: Lookup Commission Rate
A5: Darin Jenkins | B5: 0.053 | D5: =RANDBETWEEN(41500,41555) -> 2013-09-22 | E5: Diana Holt | F5: 604 | G5: =VLOOKUP(E5,$A$5:$B$19,2,0) -> 
A6: Gina Stone | B6: 0.031 | D6: =RANDBETWEEN(41500,41555) -> 2013-08-23 | E6: Ray Silva | F6: 773 | G6: =VLOOKUP(E6,$A$5:$B$19,2,0) -> 
A7: Lois Luna | B7: 0.014 | D7: 2013-09-26 | E7: Beulah Howell | F7: 742
A8: Gregg Lawson | B8: 0.045 | D8: 2013-08-19 | E8: Roderick White | F8: 234
A9: Kelly Fowler | B9: 0.042 | D9: 2013-09-10 | E9: Diana Holt | F9: 648
A10: Bradley Hodges | B10: 0.02 | D10: 2013-09-26 | E10: Roderick White | F10: 361
A11: Ray Silva | B11: 0.056 | D11: 2013-08-26 | E11: Roger Henderson | F11: 749
A12: Roderick White | B12: 0.017 | D12: 2013-09-07 | E12: Bradley Hodges | F12: 491 | G12: 0.02
A13: Diana Holt | B13: 0.01 | D13: 2013-09-03 | E13: Nathan Nguyen | F13: 594
A14: Pat Anderson | B14: 0.04 | D14: 2013-08-14 | E14: Diana Holt | F14: 583
A15: Beulah Howell | B15: 0.037 | D15: 2013-09-24 | E15: Nathan Nguyen | F15: 222
A16: Krystal Hubbard | B16: 0.06 | D16: 2013-10-01 | E16: Pat Anderson | F16: 374
A17: Roger Henderson | B17: 0.028 | D17: 2013-08-14 | E17: Darin Jenkins | F17: 486
A18: Dave Martin | B18: 0.043 | D18: 2013-09-24 | E18: Lois Luna | F18: 684
A19: Nathan Nguyen | B19: 0.01 | D19: 2013-10-03 | E19: Roger Henderson | F19: 401
D20: 2013-08-23 | E20: Krystal Hubbard | F20: 257
D21: 2013-09-16 | E21: Kelly Fowler | F21: 102
D22: 2013-10-08 | E22: Pat Anderson | F22: 556
D23: 2013-09-16 | E23: Darin Jenkins | F23: 753
D24: 2013-08-27 | E24: Lois Luna | F24: 214
D25: 2013-09-04 | E25: Bradley Hodges | F25: 394
D26: 2013-10-03 | E26: Ray Silva | F26: 379
D27: 2013-08-23 | E27: Krystal Hubbard | F27: 425
D28: 2013-08-22 | E28: Ray Silva | F28: 277
D29: 2013-09-23 | E29: Nathan Nguyen | F29: 218
D30: 2013-10-02 | E30: Pat Anderson | F30: 405
D31: 2013-09-08 | E31: Gregg Lawson | F31: 653
D32: 2013-08-24 | E32: Roger Henderson | F32: 546
D33: 2013-09-24 | E33: Bradley Hodges | F33: 327
D34: 2013-08-27 | E34: Gregg Lawson | F34: 638
D35: 2013-09-15 | E35: Gregg Lawson | F35: 518
D36: 2013-09-01 | E36: Darin Jenkins | F36: 176
D37: 2013-09-17 | E37: Ray Silva | F37: 567
D38: 2013-09-16 | E38: Dave Martin | F38: 469
D39: 2013-10-06 | E39: Beulah Howell | F39: 723 | G39: 0.037
D40: 2013-08-26 | E40: Ray Silva | F40: 525 | G40: 0.056
D41: 2013-09-19 | E41: Nathan Nguyen | F41: 748
D42: 2013-09-02 | E42: Ray Silva | F42: 197
D43: 2013-09-04 | E43: Beulah Howell | F43: 611
D44: 2013-09-15 | E44: Beulah Howell | F44: 666
D45: 2013-09-18 | E45: Pat Anderson | F45: 528
D46: 2013-09-07 | E46: Roger Henderson | F46: 329
D47: 2013-10-06 | E47: Roderick White | F47: 205
D48: 2013-09-18 | E48: Dave Martin | F48: 366
D49: 2013-08-29 | E49: Lois Luna | F49: 369
D50: 2013-09-11 | E50: Darin Jenkins | F50: 469
D51: 2013-09-09 | E51: Krystal Hubbard | F51: 244
D52: 2013-09-02 | E52: Beulah Howell | F52: 593
D53: 2013-09-30 | E53: Krystal Hubbard | F53: 132
D54: 2013-09-17 | E54: Gina Stone | F54: 442
D55: 2013-09-20 | E55: Nathan Nguyen | F55: 666
D56: 2013-09-30 | E56: Diana Holt | F56: 542
D57: 2013-09-01 | E57: Nathan Nguyen | F57: 157
D58: 2013-09-20 | E58: Beulah Howell | F58: 505
D59: 2013-09-26 | E59: Diana Holt | F59: 641
D60: 2013-10-03 | E60: Diana Holt | F60: 638
D61: 2013-09-27 | E61: Kelly Fowler | F61: 564
D62: 2013-08-28 | E62: Darin Jenkins | F62: 144
D63: 2013-09-23 | E63: Gregg Lawson | F63: 401
D64: 2013-09-19 | E64: Gregg Lawson | F64: 148
D65: 2013-09-19 | E65: Beulah Howell | F65: 287
D66: 2013-08-26 | E66: Gina Stone | F66: 785
D67: 2013-09-13 | E67: Ray Silva | F67: 406
D68: 2013-09-11 | E68: Diana Holt | F68: 394
D69: 2013-08-14 | E69: Bradley Hodges | F69: 279
D70: =RANDBETWEEN(41500,41555) -> 2013-09-02 | E70: Gina Stone | F70: 305 | G70: =VLOOKUP(E70,$A$5:$B$19,2,0) -> 
D71: 2013-08-23 | E71: Pat Anderson | F71: 177
D72: 2013-09-04 | E72: Gregg Lawson | F72: 124
D73: 2013-10-01 | E73: Dave Martin | F73: 223
D74: 2013-09-06 | E74: Diana Holt | F74: 782
D75: 2013-08-29 | E75: Dave Martin | F75: 301
D76: 2013-08-25 | E76: Roderick White | F76: 224
D77: 2013-10-03 | E77: Roger Henderson | F77: 517
D78: 2013-08-27 | E78: Beulah Howell | F78: 292 | G78: 0.037
D79: 2013-09-26 | E79: Krystal Hubbard | F79: 408
D80: 2013-08-21 | E80: Kelly Fowler | F80: 454
D81: 2013-09-17 | E81: Ray Silva | F81: 653 | G81: 0.056
D82: 2013-10-02 | E82: Gina Stone | F82: 727
D83: 2013-09-26 | E83: Gina Stone | F83: 201
D84: 2013-09-21 | E84: Nathan Nguyen | F84: 707
D85: 2013-09-13 | E85: Diana Holt | F85: 347
D86: 2013-09-15 | E86: Krystal Hubbard | F86: 229
D87: 2013-09-17 | E87: Bradley Hodges | F87: 403 | G87: 0.02
D88: 2013-09-09 | E88: Lois Luna | F88: 208
D89: 2013-09-01 | E89: Pat Anderson | F89: 774
D90: 2013-08-27 | E90: Ray Silva | F90: 366
D91: 2013-09-19 | E91: Gregg Lawson | F91: 450
D92: 2013-08-17 | E92: Lois Luna | F92: 601
D93: 2013-08-31 | E93: Beulah Howell | F93: 525 | G93: 0.037
D94: 2013-08-30 | E94: Roger Henderson | F94: 425
D95: 2013-08-26 | E95: Gregg Lawson | F95: 585
D96: 2013-09-07 | E96: Lois Luna | F96: 318
D97: 2013-09-09 | E97: Krystal Hubbard | F97: 707
D98: 2013-09-18 | E98: Ray Silva | F98: 197
D99: 2013-08-24 | E99: Gregg Lawson | F99: 487
D100: 2013-08-15 | E100: Gregg Lawson | F100: 379 | G100: 0.045
D101: 2013-09-02 | E101: Ray Silva | F101: 204
D102: 2013-08-14 | E102: Dave Martin | F102: 280
D103: 2013-09-28 | E103: Darin Jenkins | F103: 767
D104: 2013-08-23 | E104: Bradley Hodges | F104: 423
D105: 2013-09-03 | E105: Nathan Nguyen | F105: 129
D106: 2013-08-28 | E106: Roderick White | F106: 662
D107: 2013-09-02 | E107: Nathan Nguyen | F107: 581
D108: 2013-09-26 | E108: Kelly Fowler | F108: 774
D109: 2013-09-29 | E109: Nathan Nguyen | F109: 382
D110: 2013-09-07 | E110: Krystal Hubbard | F110: 669
D111: 2013-09-11 | E111: Nathan Nguyen | F111: 752
D112: 2013-09-25 | E112: Gregg Lawson | F112: 250
D113: 2013-10-06 | E113: Ray Silva | F113: 630
D114: 2013-09-28 | E114: Roger Henderson | F114: 235
D115: 2013-10-04 | E115: Roderick White | F115: 650
D116: 2013-08-20 | E116: Beulah Howell | F116: 562
D117: 2013-08-20 | E117: Lois Luna | F117: 684
D118: 2013-08-17 | E118: Gina Stone | F118: 492
D119: 2013-08-29 | E119: Roderick White | F119: 657
D120: 2013-08-21 | E120: Bradley Hodges | F120: 197
D121: 2013-09-05 | E121: Lois Luna | F121: 562
D122: 2013-08-31 | E122: Dave Martin | F122: 125
D123: 2013-10-01 | E123: Beulah Howell | F123: 527
D124: 2013-08-21 | E124: Gregg Lawson | F124: 500
D125: 2013-09-22 | E125: Gina Stone | F125: 241
D126: 2013-09-16 | E126: Lois Luna | F126: 719
D127: 2013-08-27 | E127: Dave Martin | F127: 624
D128: 2013-08-18 | E128: Darin Jenkins | F128: 500
D129: 2013-10-01 | E129: Roger Henderson | F129: 174
D130: 2013-09-06 | E130: Roderick White | F130: 327
D131: 2013-10-02 | E131: Roderick White | F131: 375
D132: 2013-09-13 | E132: Beulah Howell | F132: 467 | G132: 0.037
D133: 2013-09-02 | E133: Dave Martin | F133: 211
D134: =RANDBETWEEN(41500,41555) -> 2013-08-27 | E134: Beulah Howell | F134: 463 | G134: =VLOOKUP(E134,$A$5:$B$19,2,0) -> 0.037
D135: 2013-08-28 | E135: Roger Henderson | F135: 266
D136: 2013-09-21 | E136: Gina Stone | F136: 384
D137: 2013-08-27 | E137: Roderick White | F137: 347
D138: 2013-08-20 | E138: Gina Stone | F138: 575
D139: 2013-08-30 | E139: Diana Holt | F139: 452
D140: 2013-09-18 | E140: Bradley Hodges | F140: 470
D141: 2013-09-09 | E141: Nathan Nguyen | F141: 710
D142: 2013-09-28 | E142: Diana Holt | F142: 304
D143: 2013-09-13 | E143: Diana Holt | F143: 403
D144: 2013-10-04 | E144: Bradley Hodges | F144: 776
D145: 2013-08-28 | E145: Ray Silva | F145: 404
D146: 2013-09-06 | E146: Dave Martin | F146: 690
D147: 2013-10-08 | E147: Ray Silva | F147: 519
D148: 2013-09-04 | E148: Kelly Fowler | F148: 325
D149: 2013-08-14 | E149: Roderick White | F149: 577
D150: 2013-09-13 | E150: Diana Holt | F150: 595
D151: 2013-10-06 | E151: Diana Holt | F151: 133
D152: 2013-09-13 | E152: Diana Holt | F152: 328
D153: 2013-08-21 | E153: Darin Jenkins | F153: 339
D154: 2013-09-30 | E154: Pat Anderson | F154: 642
D155: 2013-09-17 | E155: Roger Henderson | F155: 227
D156: 2013-08-24 | E156: Lois Luna | F156: 549
D157: 2013-08-16 | E157: Lois Luna | F157: 210
D158: 2013-08-19 | E158: Pat Anderson | F158: 209
D159: 2013-09-23 | E159: Lois Luna | F159: 645
D160: 2013-08-26 | E160: Beulah Howell | F160: 666
D161: 2013-08-16 | E161: Pat Anderson | F161: 124
D162: 2013-09-14 | E162: Pat Anderson | F162: 116
D163: 2013-09-28 | E163: Pat Anderson | F163: 231
D164: 2013-10-06 | E164: Ray Silva | F164: 138 | G164: 0.056
D165: 2013-09-16 | E165: Darin Jenkins | F165: 558
D166: 2013-08-26 | E166: Gregg Lawson | F166: 256 | G166: 0.045
D167: 2013-09-17 | E167: Lois Luna | F167: 490
D168: 2013-09-02 | E168: Krystal Hubbard | F168: 486
D169: 2013-09-20 | E169: Kelly Fowler | F169: 401
D170: 2013-08-27 | E170: Pat Anderson | F170: 754
D171: 2013-09-08 | E171: Roderick White | F171: 226
D172: 2013-08-24 | E172: Nathan Nguyen | F172: 764
D173: 2013-09-13 | E173: Roderick White | F173: 722
D174: 2013-08-25 | E174: Krystal Hubbard | F174: 560
D175: 2013-10-06 | E175: Roderick White | F175: 620
D176: 2013-09-26 | E176: Kelly Fowler | F176: 480
D177: 2013-08-16 | E177: Pat Anderson | F177: 340
D178: 2013-10-08 | E178: Ray Silva | F178: 123
D179: 2013-09-08 | E179: Ray Silva | F179: 286
D180: 2013-09-04 | E180: Gina Stone | F180: 235
D181: 2013-08-19 | E181: Beulah Howell | F181: 408
D182: 2013-09-30 | E182: Nathan Nguyen | F182: 764
D183: 2013-08-24 | E183: Diana Holt | F183: 129
D184: 2013-09-20 | E184: Krystal Hubbard | F184: 360
D185: 2013-09-08 | E185: Beulah Howell | F185: 662
D186: 2013-09-18 | E186: Ray Silva | F186: 557
D187: 2013-08-16 | E187: Dave Martin | F187: 245
D188: 2013-10-07 | E188: Gregg Lawson | F188: 257
D189: 2013-08-22 | E189: Roger Henderson | F189: 200 | G189: 0.028
D190: 2013-08-16 | E190: Roderick White | F190: 718
D191: 2013-09-13 | E191: Beulah Howell | F191: 770
D192: 2013-08-20 | E192: Pat Anderson | F192: 473
D193: 2013-09-07 | E193: Gregg Lawson | F193: 328
D194: 2013-09-14 | E194: Roger Henderson | F194: 762
D195: 2013-10-08 | E195: Nathan Nguyen | F195: 257
D196: 2013-09-01 | E196: Pat Anderson | F196: 516
D197: 2013-08-14 | E197: Krystal Hubbard | F197: 204
D198: =RANDBETWEEN(41500,41555) -> 2013-09-12 | E198: Roger Henderson | F198: 459 | G198: =VLOOKUP(E198,$A$5:$B$19,2,0) -> 
D199: 2013-09-23 | E199: Gina Stone | F199: 763
D200: 2013-09-30 | E200: Dave Martin | F200: 240
D201: 2013-09-27 | E201: Ray Silva | F201: 185
... 21 more rows

Sheet HW(3an)
V1: =INDEX($A$5:$A$19,RANDBETWEEN(1,COUNTA($A$5:$A$19)))&REPT(" ",RANDBETWEEN(0,2)) -> Lois Luna
A3: Lookup Table: | D3: Data Set: | K3: Data Set:
A4: sales Rep | B4: Commision Rate | D4: Date | E4: Sales Rep | F4: Sales | G4: Lookup Commission Rate | K4: Date | L4: Sales Rep | M4: Sales | N4: Lookup Commission Rate | O4: Lookup Commission Rate
A5: Darin Jenkins | B5: 0.053 | D5: =RANDBETWEEN(41500,41555) -> 2013-08-24 | E5: Diana Holt | F5: 604 | G5: =VLOOKUP(TRIM(E5),$A$5:$B$19,2,0) -> 0.01 | I5: or | K5: =RANDBETWEEN(41500,41555) -> 2013-09-06 | L5: Diana Holt | M5: 604 | N5: =VLOOKUP(O5,$A$5:$B$19,2,0) -> 0.01 | O5: =TRIM(L5) -> Diana Holt
A6: Gina Stone | B6: 0.031 | D6: =RANDBETWEEN(41500,41555) -> 2013-09-14 | E6: Ray Silva | F6: 773 | G6: =VLOOKUP(TRIM(E6),$A$5:$B$19,2,0) -> 0.056 | K6: =RANDBETWEEN(41500,41555) -> 2013-09-16 | L6: Ray Silva | M6: 773 | N6: =VLOOKUP(O6,$A$5:$B$19,2,0) -> 0.056 | O6: =TRIM(L6) -> Ray Silva
A7: Lois Luna | B7: 0.014 | D7: 2013-09-02 | E7: Beulah Howell | F7: 742 | G7: 0.037 | K7: 2013-10-04 | L7: Beulah Howell | M7: 742 | N7: 0.037 | O7: Beulah Howell
A8: Gregg Lawson | B8: 0.045 | D8: 2013-08-19 | E8: Roderick White | F8: 234 | G8: 0.017 | K8: 2013-09-18 | L8: Roderick White | M8: 234 | N8: 0.017 | O8: Roderick White
A9: Kelly Fowler | B9: 0.042 | D9: 2013-09-04 | E9: Diana Holt | F9: 648 | G9: 0.01 | K9: 2013-08-31 | L9: Diana Holt | M9: 648 | N9: 0.01 | O9: Diana Holt
A10: Bradley Hodges | B10: 0.02 | D10: 2013-09-25 | E10: Roderick White | F10: 361 | G10: 0.017 | K10: 2013-09-24 | L10: Roderick White | M10: 361 | N10: 0.017 | O10: Roderick White
A11: Ray Silva | B11: 0.056 | D11: 2013-09-02 | E11: Roger Henderson | F11: 749 | G11: 0.028 | K11: 2013-09-05 | L11: Roger Henderson | M11: 749 | N11: 0.028 | O11: Roger Henderson
A12: Roderick White | B12: 0.017 | D12: 2013-08-17 | E12: Bradley Hodges | F12: 491 | G12: 0.02 | K12: 2013-10-03 | L12: Bradley Hodges | M12: 491 | N12: 0.02 | O12: Bradley Hodges
A13: Diana Holt | B13: 0.01 | D13: 2013-09-08 | E13: Nathan Nguyen | F13: 594 | G13: 0.01 | K13: 2013-09-23 | L13: Nathan Nguyen | M13: 594 | N13: 0.01 | O13: Nathan Nguyen
A14: Pat Anderson | B14: 0.04 | D14: 2013-08-22 | E14: Diana Holt | F14: 583 | G14: 0.01 | K14: 2013-09-09 | L14: Diana Holt | M14: 583 | N14: 0.01 | O14: Diana Holt
A15: Beulah Howell | B15: 0.037 | D15: 2013-09-14 | E15: Nathan Nguyen | F15: 222 | G15: 0.01 | K15: 2013-09-17 | L15: Nathan Nguyen | M15: 222 | N15: 0.01 | O15: Nathan Nguyen
A16: Krystal Hubbard | B16: 0.06 | D16: 2013-09-08 | E16: Pat Anderson | F16: 374 | G16: 0.04 | K16: 2013-09-13 | L16: Pat Anderson | M16: 374 | N16: 0.04 | O16: Pat Anderson
A17: Roger Henderson | B17: 0.028 | D17: 2013-09-04 | E17: Darin Jenkins | F17: 486 | G17: 0.053 | K17: 2013-09-05 | L17: Darin Jenkins | M17: 486 | N17: 0.053 | O17: Darin Jenkins
A18: Dave Martin | B18: 0.043 | D18: 2013-10-06 | E18: Lois Luna | F18: 684 | G18: 0.014 | K18: 2013-10-07 | L18: Lois Luna | M18: 684 | N18: 0.014 | O18: Lois Luna
A19: Nathan Nguyen | B19: 0.01 | D19: 2013-08-28 | E19: Roger Henderson | F19: 401 | G19: 0.028 | K19: 2013-08-21 | L19: Roger Henderson | M19: 401 | N19: 0.028 | O19: Roger Henderson
D20: 2013-09-28 | E20: Krystal Hubbard | F20: 257 | G20: 0.06 | K20: 2013-09-17 | L20: Krystal Hubbard | M20: 257 | N20: 0.06 | O20: Krystal Hubbard
D21: 2013-09-23 | E21: Kelly Fowler | F21: 102 | G21: 0.042 | K21: 2013-08-31 | L21: Kelly Fowler | M21: 102 | N21: 0.042 | O21: Kelly Fowler
D22: 2013-09-30 | E22: Pat Anderson | F22: 556 | G22: 0.04 | K22: 2013-09-18 | L22: Pat Anderson | M22: 556 | N22: 0.04 | O22: Pat Anderson
D23: 2013-09-14 | E23: Darin Jenkins | F23: 753 | G23: 0.053 | K23: 2013-09-04 | L23: Darin Jenkins | M23: 753 | N23: 0.053 | O23: Darin Jenkins
D24: 2013-09-29 | E24: Lois Luna | F24: 214 | G24: 0.014 | K24: 2013-10-03 | L24: Lois Luna | M24: 214 | N24: 0.014 | O24: Lois Luna
D25: 2013-09-07 | E25: Bradley Hodges | F25: 394 | G25: 0.02 | K25: 2013-09-13 | L25: Bradley Hodges | M25: 394 | N25: 0.02 | O25: Bradley Hodges
D26: 2013-09-04 | E26: Ray Silva | F26: 379 | G26: 0.056 | K26: 2013-08-26 | L26: Ray Silva | M26: 379 | N26: 0.056 | O26: Ray Silva
D27: 2013-08-19 | E27: Krystal Hubbard | F27: 425 | G27: 0.06 | K27: 2013-09-03 | L27: Krystal Hubbard | M27: 425 | N27: 0.06 | O27: Krystal Hubbard
D28: 2013-10-05 | E28: Ray Silva | F28: 277 | G28: 0.056 | K28: 2013-09-05 | L28: Ray Silva | M28: 277 | N28: 0.056 | O28: Ray Silva
D29: 2013-08-21 | E29: Nathan Nguyen | F29: 218 | G29: 0.01 | K29: 2013-10-08 | L29: Nathan Nguyen | M29: 218 | N29: 0.01 | O29: Nathan Nguyen
D30: 2013-10-08 | E30: Pat Anderson | F30: 405 | G30: 0.04 | K30: 2013-09-03 | L30: Pat Anderson | M30: 405 | N30: 0.04 | O30: Pat Anderson
D31: 2013-09-27 | E31: Gregg Lawson | F31: 653 | G31: 0.045 | K31: 2013-08-31 | L31: Gregg Lawson | M31: 653 | N31: 0.045 | O31: Gregg Lawson
D32: 2013-09-12 | E32: Roger Henderson | F32: 546 | G32: 0.028 | K32: 2013-08-17 | L32: Roger Henderson | M32: 546 | N32: 0.028 | O32: Roger Henderson
D33: 2013-08-29 | E33: Bradley Hodges | F33: 327 | G33: 0.02 | K33: 2013-08-17 | L33: Bradley Hodges | M33: 327 | N33: 0.02 | O33: Bradley Hodges
D34: 2013-09-28 | E34: Gregg Lawson | F34: 638 | G34: 0.045 | K34: 2013-08-14 | L34: Gregg Lawson | M34: 638 | N34: 0.045 | O34: Gregg Lawson
D35: 2013-09-24 | E35: Gregg Lawson | F35: 518 | G35: 0.045 | K35: 2013-09-30 | L35: Gregg Lawson | M35: 518 | N35: 0.045 | O35: Gregg Lawson
D36: 2013-09-13 | E36: Darin Jenkins | F36: 176 | G36: 0.053 | K36: 2013-09-29 | L36: Darin Jenkins | M36: 176 | N36: 0.053 | O36: Darin Jenkins
D37: 2013-09-09 | E37: Ray Silva | F37: 567 | G37: 0.056 | K37: 2013-09-06 | L37: Ray Silva | M37: 567 | N37: 0.056 | O37: Ray Silva
D38: 2013-09-05 | E38: Dave Martin | F38: 469 | G38: 0.043 | K38: 2013-08-21 | L38: Dave Martin | M38: 469 | N38: 0.043 | O38: Dave Martin
D39: 2013-09-15 | E39: Beulah Howell | F39: 723 | G39: 0.037 | K39: 2013-09-27 | L39: Beulah Howell | M39: 723 | N39: 0.037 | O39: Beulah Howell
D40: 2013-09-17 | E40: Ray Silva | F40: 525 | G40: 0.056 | K40: 2013-08-20 | L40: Ray Silva | M40: 525 | N40: 0.056 | O40: Ray Silva
D41: 2013-10-08 | E41: Nathan Nguyen | F41: 748 | G41: 0.01 | K41: 2013-09-30 | L41: Nathan Nguyen | M41: 748 | N41: 0.01 | O41: Nathan Nguyen
D42: 2013-08-15 | E42: Ray Silva | F42: 197 | G42: 0.056 | K42: 2013-09-22 | L42: Ray Silva | M42: 197 | N42: 0.056 | O42: Ray Silva
D43: 2013-09-08 | E43: Beulah Howell | F43: 611 | G43: 0.037 | K43: 2013-09-18 | L43: Beulah Howell | M43: 611 | N43: 0.037 | O43: Beulah Howell
D44: 2013-08-15 | E44: Beulah Howell | F44: 666 | G44: 0.037 | K44: 2013-08-31 | L44: Beulah Howell | M44: 666 | N44: 0.037 | O44: Beulah Howell
D45: 2013-09-07 | E45: Pat Anderson | F45: 528 | G45: 0.04 | K45: 2013-09-04 | L45: Pat Anderson | M45: 528 | N45: 0.04 | O45: Pat Anderson
D46: 2013-08-27 | E46: Roger Henderson | F46: 329 | G46: 0.028 | K46: 2013-08-22 | L46: Roger Henderson | M46: 329 | N46: 0.028 | O46: Roger Henderson
D47: 2013-09-29 | E47: Roderick White | F47: 205 | G47: 0.017 | K47: 2013-09-28 | L47: Roderick White | M47: 205 | N47: 0.017 | O47: Roderick White
D48: 2013-08-22 | E48: Dave Martin | F48: 366 | G48: 0.043 | K48: 2013-08-28 | L48: Dave Martin | M48: 366 | N48: 0.043 | O48: Dave Martin
D49: 2013-09-09 | E49: Lois Luna | F49: 369 | G49: 0.014 | K49: 2013-10-03 | L49: Lois Luna | M49: 369 | N49: 0.014 | O49: Lois Luna
D50: 2013-09-08 | E50: Darin Jenkins | F50: 469 | G50: 0.053 | K50: 2013-08-24 | L50: Darin Jenkins | M50: 469 | N50: 0.053 | O50: Darin Jenkins
D51: 2013-08-16 | E51: Krystal Hubbard | F51: 244 | G51: 0.06 | K51: 2013-09-20 | L51: Krystal Hubbard | M51: 244 | N51: 0.06 | O51: Krystal Hubbard
D52: 2013-09-23 | E52: Beulah Howell | F52: 593 | G52: 0.037 | K52: 2013-08-18 | L52: Beulah Howell | M52: 593 | N52: 0.037 | O52: Beulah Howell
D53: 2013-08-20 | E53: Krystal Hubbard | F53: 132 | G53: 0.06 | K53: 2013-09-11 | L53: Krystal Hubbard | M53: 132 | N53: 0.06 | O53: Krystal Hubbard
D54: 2013-09-01 | E54: Gina Stone | F54: 442 | G54: 0.031 | K54: 2013-09-03 | L54: Gina Stone | M54: 442 | N54: 0.031 | O54: Gina Stone
D55: 2013-08-22 | E55: Nathan Nguyen | F55: 666 | G55: 0.01 | K55: 2013-09-25 | L55: Nathan Nguyen | M55: 666 | N55: 0.01 | O55: Nathan Nguyen
D56: 2013-08-18 | E56: Diana Holt | F56: 542 | G56: 0.01 | K56: 2013-08-30 | L56: Diana Holt | M56: 542 | N56: 0.01 | O56: Diana Holt
D57: 2013-08-23 | E57: Nathan Nguyen | F57: 157 | G57: 0.01 | K57: 2013-10-06 | L57: Nathan Nguyen | M57: 157 | N57: 0.01 | O57: Nathan Nguyen
D58: 2013-09-08 | E58: Beulah Howell | F58: 505 | G58: 0.037 | K58: 2013-10-07 | L58: Beulah Howell | M58: 505 | N58: 0.037 | O58: Beulah Howell
D59: 2013-09-19 | E59: Diana Holt | F59: 641 | G59: 0.01 | K59: 2013-09-17 | L59: Diana Holt | M59: 641 | N59: 0.01 | O59: Diana Holt
D60: 2013-08-31 | E60: Diana Holt | F60: 638 | G60: 0.01 | K60: 2013-09-13 | L60: Diana Holt | M60: 638 | N60: 0.01 | O60: Diana Holt
D61: 2013-09-13 | E61: Kelly Fowler | F61: 564 | G61: 0.042 | K61: 2013-10-07 | L61: Kelly Fowler | M61: 564 | N61: 0.042 | O61: Kelly Fowler
D62: 2013-08-21 | E62: Darin Jenkins | F62: 144 | G62: 0.053 | K62: 2013-10-02 | L62: Darin Jenkins | M62: 144 | N62: 0.053 | O62: Darin Jenkins
D63: 2013-08-28 | E63: Gregg Lawson | F63: 401 | G63: 0.045 | K63: 2013-08-23 | L63: Gregg Lawson | M63: 401 | N63: 0.045 | O63: Gregg Lawson
D64: 2013-08-28 | E64: Gregg Lawson | F64: 148 | G64: 0.045 | K64: 2013-08-18 | L64: Gregg Lawson | M64: 148 | N64: 0.045 | O64: Gregg Lawson
D65: 2013-10-03 | E65: Beulah Howell | F65: 287 | G65: 0.037 | K65: 2013-09-08 | L65: Beulah Howell | M65: 287 | N65: 0.037 | O65: Beulah Howell
D66: 2013-09-02 | E66: Gina Stone | F66: 785 | G66: 0.031 | K66: 2013-10-07 | L66: Gina Stone | M66: 785 | N66: 0.031 | O66: Gina Stone
D67: 2013-09-10 | E67: Ray Silva | F67: 406 | G67: 0.056 | K67: 2013-09-24 | L67: Ray Silva | M67: 406 | N67: 0.056 | O67: Ray Silva
D68: 2013-09-13 | E68: Diana Holt | F68: 394 | G68: 0.01 | K68: 2013-09-18 | L68: Diana Holt | M68: 394 | N68: 0.01 | O68: Diana Holt
D69: 2013-09-05 | E69: Bradley Hodges | F69: 279 | G69: 0.02 | K69: 2013-08-27 | L69: Bradley Hodges | M69: 279 | N69: 0.02 | O69: Bradley Hodges
D70: =RANDBETWEEN(41500,41555) -> 2013-08-27 | E70: Gina Stone | F70: 305 | G70: =VLOOKUP(TRIM(E70),$A$5:$B$19,2,0) -> 0.031 | K70: =RANDBETWEEN(41500,41555) -> 2013-09-22 | L70: Gina Stone | M70: 305 | N70: =VLOOKUP(O70,$A$5:$B$19,2,0) -> 0.031 | O70: =TRIM(L70) -> Gina Stone
D71: 2013-08-25 | E71: Pat Anderson | F71: 177 | G71: 0.04 | K71: 2013-10-07 | L71: Pat Anderson | M71: 177 | N71: 0.04 | O71: Pat Anderson
D72: 2013-09-05 | E72: Gregg Lawson | F72: 124 | G72: 0.045 | K72: 2013-09-11 | L72: Gregg Lawson | M72: 124 | N72: 0.045 | O72: Gregg Lawson
D73: 2013-09-21 | E73: Dave Martin | F73: 223 | G73: 0.043 | K73: 2013-08-31 | L73: Dave Martin | M73: 223 | N73: 0.043 | O73: Dave Martin
D74: 2013-09-18 | E74: Diana Holt | F74: 782 | G74: 0.01 | K74: 2013-08-24 | L74: Diana Holt | M74: 782 | N74: 0.01 | O74: Diana Holt
D75: 2013-10-03 | E75: Dave Martin | F75: 301 | G75: 0.043 | K75: 2013-09-06 | L75: Dave Martin | M75: 301 | N75: 0.043 | O75: Dave Martin
D76: 2013-09-08 | E76: Roderick White | F76: 224 | G76: 0.017 | K76: 2013-08-23 | L76: Roderick White | M76: 224 | N76: 0.017 | O76: Roderick White
D77: 2013-09-29 | E77: Roger Henderson | F77: 517 | G77: 0.028 | K77: 2013-09-18 | L77: Roger Henderson | M77: 517 | N77: 0.028 | O77: Roger Henderson
D78: 2013-08-31 | E78: Beulah Howell | F78: 292 | G78: 0.037 | K78: 2013-09-26 | L78: Beulah Howell | M78: 292 | N78: 0.037 | O78: Beulah Howell
D79: 2013-08-21 | E79: Krystal Hubbard | F79: 408 | G79: 0.06 | K79: 2013-10-01 | L79: Krystal Hubbard | M79: 408 | N79: 0.06 | O79: Krystal Hubbard
D80: 2013-08-27 | E80: Kelly Fowler | F80: 454 | G80: 0.042 | K80: 2013-09-16 | L80: Kelly Fowler | M80: 454 | N80: 0.042 | O80: Kelly Fowler
D81: 2013-09-13 | E81: Ray Silva | F81: 653 | G81: 0.056 | K81: 2013-08-19 | L81: Ray Silva | M81: 653 | N81: 0.056 | O81: Ray Silva
D82: 2013-10-02 | E82: Gina Stone | F82: 727 | G82: 0.031 | K82: 2013-09-04 | L82: Gina Stone | M82: 727 | N82: 0.031 | O82: Gina Stone
D83: 2013-09-19 | E83: Gina Stone | F83: 201 | G83: 0.031 | K83: 2013-09-30 | L83: Gina Stone | M83: 201 | N83: 0.031 | O83: Gina Stone
D84: 2013-09-11 | E84: Nathan Nguyen | F84: 707 | G84: 0.01 | K84: 2013-09-01 | L84: Nathan Nguyen | M84: 707 | N84: 0.01 | O84: Nathan Nguyen
D85: 2013-10-08 | E85: Diana Holt | F85: 347 | G85: 0.01 | K85: 2013-10-05 | L85: Diana Holt | M85: 347 | N85: 0.01 | O85: Diana Holt
D86: 2013-09-21 | E86: Krystal Hubbard | F86: 229 | G86: 0.06 | K86: 2013-09-26 | L86: Krystal Hubbard | M86: 229 | N86: 0.06 | O86: Krystal Hubbard
D87: 2013-09-06 | E87: Bradley Hodges | F87: 403 | G87: 0.02 | K87: 2013-09-04 | L87: Bradley Hodges | M87: 403 | N87: 0.02 | O87: Bradley Hodges
D88: 2013-10-06 | E88: Lois Luna | F88: 208 | G88: 0.014 | K88: 2013-08-20 | L88: Lois Luna | M88: 208 | N88: 0.014 | O88: Lois Luna
D89: 2013-09-23 | E89: Pat Anderson | F89: 774 | G89: 0.04 | K89: 2013-09-07 | L89: Pat Anderson | M89: 774 | N89: 0.04 | O89: Pat Anderson
D90: 2013-08-19 | E90: Ray Silva | F90: 366 | G90: 0.056 | K90: 2013-08-27 | L90: Ray Silva | M90: 366 | N90: 0.056 | O90: Ray Silva
D91: 2013-10-07 | E91: Gregg Lawson | F91: 450 | G91: 0.045 | K91: 2013-08-14 | L91: Gregg Lawson | M91: 450 | N91: 0.045 | O91: Gregg Lawson
D92: 2013-09-17 | E92: Lois Luna | F92: 601 | G92: 0.014 | K92: 2013-09-07 | L92: Lois Luna | M92: 601 | N92: 0.014 | O92: Lois Luna
D93: 2013-09-02 | E93: Beulah Howell | F93: 525 | G93: 0.037 | K93: 2013-10-02 | L93: Beulah Howell | M93: 525 | N93: 0.037 | O93: Beulah Howell
D94: 2013-09-22 | E94: Roger Henderson | F94: 425 | G94: 0.028 | K94: 2013-08-28 | L94: Roger Henderson | M94: 425 | N94: 0.028 | O94: Roger Henderson
D95: 2013-09-05 | E95: Gregg Lawson | F95: 585 | G95: 0.045 | K95: 2013-08-25 | L95: Gregg Lawson | M95: 585 | N95: 0.045 | O95: Gregg Lawson
D96: 2013-08-30 | E96: Lois Luna | F96: 318 | G96: 0.014 | K96: 2013-09-04 | L96: Lois Luna | M96: 318 | N96: 0.014 | O96: Lois Luna
D97: 2013-09-25 | E97: Krystal Hubbard | F97: 707 | G97: 0.06 | K97: 2013-08-17 | L97: Krystal Hubbard | M97: 707 | N97: 0.06 | O97: Krystal Hubbard
D98: 2013-08-25 | E98: Ray Silva | F98: 197 | G98: 0.056 | K98: 2013-10-06 | L98: Ray Silva | M98: 197 | N98: 0.056 | O98: Ray Silva
D99: 2013-08-29 | E99: Gregg Lawson | F99: 487 | G99: 0.045 | K99: 2013-09-09 | L99: Gregg Lawson | M99: 487 | N99: 0.045 | O99: Gregg Lawson
D100: 2013-09-05 | E100: Gregg Lawson | F100: 379 | G100: 0.045 | K100: 2013-09-16 | L100: Gregg Lawson | M100: 379 | N100: 0.045 | O100: Gregg Lawson
D101: 2013-09-10 | E101: Ray Silva | F101: 204 | G101: 0.056 | K101: 2013-09-13 | L101: Ray Silva | M101: 204 | N101: 0.056 | O101: Ray Silva
D102: 2013-09-23 | E102: Dave Martin | F102: 280 | G102: 0.043 | K102: 2013-08-14 | L102: Dave Martin | M102: 280 | N102: 0.043 | O102: Dave Martin
D103: 2013-08-22 | E103: Darin Jenkins | F103: 767 | G103: 0.053 | K103: 2013-08-23 | L103: Darin Jenkins | M103: 767 | N103: 0.053 | O103: Darin Jenkins
D104: 2013-08-20 | E104: Bradley Hodges | F104: 423 | G104: 0.02 | K104: 2013-08-31 | L104: Bradley Hodges | M104: 423 | N104: 0.02 | O104: Bradley Hodges
D105: 2013-09-01 | E105: Nathan Nguyen | F105: 129 | G105: 0.01 | K105: 2013-08-18 | L105: Nathan Nguyen | M105: 129 | N105: 0.01 | O105: Nathan Nguyen
D106: 2013-10-04 | E106: Roderick White | F106: 662 | G106: 0.017 | K106: 2013-08-30 | L106: Roderick White | M106: 662 | N106: 0.017 | O106: Roderick White
D107: 2013-08-27 | E107: Nathan Nguyen | F107: 581 | G107: 0.01 | K107: 2013-09-25 | L107: Nathan Nguyen | M107: 581 | N107: 0.01 | O107: Nathan Nguyen
D108: 2013-09-17 | E108: Kelly Fowler | F108: 774 | G108: 0.042 | K108: 2013-09-13 | L108: Kelly Fowler | M108: 774 | N108: 0.042 | O108: Kelly Fowler
D109: 2013-09-01 | E109: Nathan Nguyen | F109: 382 | G109: 0.01 | K109: 2013-10-03 | L109: Nathan Nguyen | M109: 382 | N109: 0.01 | O109: Nathan Nguyen
D110: 2013-10-01 | E110: Krystal Hubbard | F110: 669 | G110: 0.06 | K110: 2013-09-24 | L110: Krystal Hubbard | M110: 669 | N110: 0.06 | O110: Krystal Hubbard
D111: 2013-09-02 | E111: Nathan Nguyen | F111: 752 | G111: 0.01 | K111: 2013-09-05 | L111: Nathan Nguyen | M111: 752 | N111: 0.01 | O111: Nathan Nguyen
D112: 2013-08-22 | E112: Gregg Lawson | F112: 250 | G112: 0.045 | K112: 2013-08-24 | L112: Gregg Lawson | M112: 250 | N112: 0.045 | O112: Gregg Lawson
D113: 2013-09-18 | E113: Ray Silva | F113: 630 | G113: 0.056 | K113: 2013-10-07 | L113: Ray Silva | M113: 630 | N113: 0.056 | O113: Ray Silva
D114: 2013-08-14 | E114: Roger Henderson | F114: 235 | G114: 0.028 | K114: 2013-10-04 | L114: Roger Henderson | M114: 235 | N114: 0.028 | O114: Roger Henderson
D115: 2013-09-03 | E115: Roderick White | F115: 650 | G115: 0.017 | K115: 2013-09-08 | L115: Roderick White | M115: 650 | N115: 0.017 | O115: Roderick White
D116: 2013-09-04 | E116: Beulah Howell | F116: 562 | G116: 0.037 | K116: 2013-10-06 | L116: Beulah Howell | M116: 562 | N116: 0.037 | O116: Beulah Howell
D117: 2013-10-06 | E117: Lois Luna | F117: 684 | G117: 0.014 | K117: 2013-09-11 | L117: Lois Luna | M117: 684 | N117: 0.014 | O117: Lois Luna
D118: 2013-09-06 | E118: Gina Stone | F118: 492 | G118: 0.031 | K118: 2013-09-07 | L118: Gina Stone | M118: 492 | N118: 0.031 | O118: Gina Stone
D119: 2013-09-05 | E119: Roderick White | F119: 657 | G119: 0.017 | K119: 2013-08-24 | L119: Roderick White | M119: 657 | N119: 0.017 | O119: Roderick White
D120: 2013-09-06 | E120: Bradley Hodges | F120: 197 | G120: 0.02 | K120: 2013-09-07 | L120: Bradley Hodges | M120: 197 | N120: 0.02 | O120: Bradley Hodges
D121: 2013-09-13 | E121: Lois Luna | F121: 562 | G121: 0.014 | K121: 2013-10-07 | L121: Lois Luna | M121: 562 | N121: 0.014 | O121: Lois Luna
D122: 2013-09-27 | E122: Dave Martin | F122: 125 | G122: 0.043 | K122: 2013-09-09 | L122: Dave Martin | M122: 125 | N122: 0.043 | O122: Dave Martin
D123: 2013-10-07 | E123: Beulah Howell | F123: 527 | G123: 0.037 | K123: 2013-08-14 | L123: Beulah Howell | M123: 527 | N123: 0.037 | O123: Beulah Howell
D124: 2013-09-14 | E124: Gregg Lawson | F124: 500 | G124: 0.045 | K124: 2013-08-18 | L124: Gregg Lawson | M124: 500 | N124: 0.045 | O124: Gregg Lawson
D125: 2013-09-25 | E125: Gina Stone | F125: 241 | G125: 0.031 | K125: 2013-09-01 | L125: Gina Stone | M125: 241 | N125: 0.031 | O125: Gina Stone
D126: 2013-09-25 | E126: Lois Luna | F126: 719 | G126: 0.014 | K126: 2013-09-20 | L126: Lois Luna | M126: 719 | N126: 0.014 | O126: Lois Luna
D127: 2013-09-19 | E127: Dave Martin | F127: 624 | G127: 0.043 | K127: 2013-09-25 | L127: Dave Martin | M127: 624 | N127: 0.043 | O127: Dave Martin
D128: 2013-09-03 | E128: Darin Jenkins | F128: 500 | G128: 0.053 | K128: 2013-08-15 | L128: Darin Jenkins | M128: 500 | N128: 0.053 | O128: Darin Jenkins
D129: 2013-09-08 | E129: Roger Henderson | F129: 174 | G129: 0.028 | K129: 2013-08-23 | L129: Roger Henderson | M129: 174 | N129: 0.028 | O129: Roger Henderson
D130: 2013-09-23 | E130: Roderick White | F130: 327 | G130: 0.017 | K130: 2013-09-28 | L130: Roderick White | M130: 327 | N130: 0.017 | O130: Roderick White
D131: 2013-09-24 | E131: Roderick White | F131: 375 | G131: 0.017 | K131: 2013-09-21 | L131: Roderick White | M131: 375 | N131: 0.017 | O131: Roderick White
D132: 2013-09-04 | E132: Beulah Howell | F132: 467 | G132: 0.037 | K132: 2013-10-02 | L132: Beulah Howell | M132: 467 | N132: 0.037 | O132: Beulah Howell
D133: 2013-08-18 | E133: Dave Martin | F133: 211 | G133: 0.043 | K133: 2013-08-31 | L133: Dave Martin | M133: 211 | N133: 0.043 | O133: Dave Martin
D134: =RANDBETWEEN(41500,41555) -> 2013-09-11 | E134: Beulah Howell | F134: 463 | G134: =VLOOKUP(TRIM(E134),$A$5:$B$19,2,0) -> 0.037 | K134: =RANDBETWEEN(41500,41555) -> 2013-09-29 | L134: Beulah Howell | M134: 463 | N134: =VLOOKUP(O134,$A$5:$B$19,2,0) -> 0.037 | O134: =TRIM(L134) -> Beulah Howell
D135: 2013-10-04 | E135: Roger Henderson | F135: 266 | G135: 0.028 | K135: 2013-10-05 | L135: Roger Henderson | M135: 266 | N135: 0.028 | O135: Roger Henderson
D136: 2013-10-04 | E136: Gina Stone | F136: 384 | G136: 0.031 | K136: 2013-08-22 | L136: Gina Stone | M136: 384 | N136: 0.031 | O136: Gina Stone
D137: 2013-09-26 | E137: Roderick White | F137: 347 | G137: 0.017 | K137: 2013-09-29 | L137: Roderick White | M137: 347 | N137: 0.017 | O137: Roderick White
D138: 2013-08-25 | E138: Gina Stone | F138: 575 | G138: 0.031 | K138: 2013-09-17 | L138: Gina Stone | M138: 575 | N138: 0.031 | O138: Gina Stone
D139: 2013-09-24 | E139: Diana Holt | F139: 452 | G139: 0.01 | K139: 2013-09-05 | L139: Diana Holt | M139: 452 | N139: 0.01 | O139: Diana Holt
D140: 2013-10-03 | E140: Bradley Hodges | F140: 470 | G140: 0.02 | K140: 2013-10-02 | L140: Bradley Hodges | M140: 470 | N140: 0.02 | O140: Bradley Hodges
D141: 2013-09-05 | E141: Nathan Nguyen | F141: 710 | G141: 0.01 | K141: 2013-09-26 | L141: Nathan Nguyen | M141: 710 | N141: 0.01 | O141: Nathan Nguyen
D142: 2013-09-17 | E142: Diana Holt | F142: 304 | G142: 0.01 | K142: 2013-09-27 | L142: Diana Holt | M142: 304 | N142: 0.01 | O142: Diana Holt
D143: 2013-10-03 | E143: Diana Holt | F143: 403 | G143: 0.01 | K143: 2013-09-26 | L143: Diana Holt | M143: 403 | N143: 0.01 | O143: Diana Holt
D144: 2013-08-17 | E144: Bradley Hodges | F144: 776 | G144: 0.02 | K144: 2013-09-27 | L144: Bradley Hodges | M144: 776 | N144: 0.02 | O144: Bradley Hodges
D145: 2013-08-25 | E145: Ray Silva | F145: 404 | G145: 0.056 | K145: 2013-08-22 | L145: Ray Silva | M145: 404 | N145: 0.056 | O145: Ray Silva
D146: 2013-09-23 | E146: Dave Martin | F146: 690 | G146: 0.043 | K146: 2013-10-08 | L146: Dave Martin | M146: 690 | N146: 0.043 | O146: Dave Martin
D147: 2013-08-29 | E147: Ray Silva | F147: 519 | G147: 0.056 | K147: 2013-09-25 | L147: Ray Silva | M147: 519 | N147: 0.056 | O147: Ray Silva
D148: 2013-08-30 | E148: Kelly Fowler | F148: 325 | G148: 0.042 | K148: 2013-09-28 | L148: Kelly Fowler | M148: 325 | N148: 0.042 | O148: Kelly Fowler
D149: 2013-09-04 | E149: Roderick White | F149: 577 | G149: 0.017 | K149: 2013-10-05 | L149: Roderick White | M149: 577 | N149: 0.017 | O149: Roderick White
D150: 2013-10-04 | E150: Diana Holt | F150: 595 | G150: 0.01 | K150: 2013-09-12 | L150: Diana Holt | M150: 595 | N150: 0.01 | O150: Diana Holt
D151: 2013-08-29 | E151: Diana Holt | F151: 133 | G151: 0.01 | K151: 2013-08-31 | L151: Diana Holt | M151: 133 | N151: 0.01 | O151: Diana Holt
D152: 2013-08-26 | E152: Diana Holt | F152: 328 | G152: 0.01 | K152: 2013-09-04 | L152: Diana Holt | M152: 328 | N152: 0.01 | O152: Diana Holt
D153: 2013-09-08 | E153: Darin Jenkins | F153: 339 | G153: 0.053 | K153: 2013-08-23 | L153: Darin Jenkins | M153: 339 | N153: 0.053 | O153: Darin Jenkins
D154: 2013-09-09 | E154: Pat Anderson | F154: 642 | G154: 0.04 | K154: 2013-09-23 | L154: Pat Anderson | M154: 642 | N154: 0.04 | O154: Pat Anderson
D155: 2013-09-11 | E155: Roger Henderson | F155: 227 | G155: 0.028 | K155: 2013-09-08 | L155: Roger Henderson | M155: 227 | N155: 0.028 | O155: Roger Henderson
D156: 2013-09-05 | E156: Lois Luna | F156: 549 | G156: 0.014 | K156: 2013-09-05 | L156: Lois Luna | M156: 549 | N156: 0.014 | O156: Lois Luna
D157: 2013-09-19 | E157: Lois Luna | F157: 210 | G157: 0.014 | K157: 2013-08-29 | L157: Lois Luna | M157: 210 | N157: 0.014 | O157: Lois Luna
D158: 2013-10-08 | E158: Pat Anderson | F158: 209 | G158: 0.04 | K158: 2013-09-10 | L158: Pat Anderson | M158: 209 | N158: 0.04 | O158: Pat Anderson
D159: 2013-09-06 | E159: Lois Luna | F159: 645 | G159: 0.014 | K159: 2013-10-03 | L159: Lois Luna | M159: 645 | N159: 0.014 | O159: Lois Luna
D160: 2013-09-17 | E160: Beulah Howell | F160: 666 | G160: 0.037 | K160: 2013-09-28 | L160: Beulah Howell | M160: 666 | N160: 0.037 | O160: Beulah Howell
D161: 2013-09-13 | E161: Pat Anderson | F161: 124 | G161: 0.04 | K161: 2013-09-02 | L161: Pat Anderson | M161: 124 | N161: 0.04 | O161: Pat Anderson
D162: 2013-08-31 | E162: Pat Anderson | F162: 116 | G162: 0.04 | K162: 2013-10-01 | L162: Pat Anderson | M162: 116 | N162: 0.04 | O162: Pat Anderson
D163: 2013-09-25 | E163: Pat Anderson | F163: 231 | G163: 0.04 | K163: 2013-09-05 | L163: Pat Anderson | M163: 231 | N163: 0.04 | O163: Pat Anderson
D164: 2013-09-22 | E164: Ray Silva | F164: 138 | G164: 0.056 | K164: 2013-08-14 | L164: Ray Silva | M164: 138 | N164: 0.056 | O164: Ray Silva
D165: 2013-10-06 | E165: Darin Jenkins | F165: 558 | G165: 0.053 | K165: 2013-09-03 | L165: Darin Jenkins | M165: 558 | N165: 0.053 | O165: Darin Jenkins
D166: 2013-09-15 | E166: Gregg Lawson | F166: 256 | G166: 0.045 | K166: 2013-09-05 | L166: Gregg Lawson | M166: 256 | N166: 0.045 | O166: Gregg Lawson
D167: 2013-09-04 | E167: Lois Luna | F167: 490 | G167: 0.014 | K167: 2013-09-19 | L167: Lois Luna | M167: 490 | N167: 0.014 | O167: Lois Luna
D168: 2013-09-28 | E168: Krystal Hubbard | F168: 486 | G168: 0.06 | K168: 2013-08-16 | L168: Krystal Hubbard | M168: 486 | N168: 0.06 | O168: Krystal Hubbard
D169: 2013-08-21 | E169: Kelly Fowler | F169: 401 | G169: 0.042 | K169: 2013-09-07 | L169: Kelly Fowler | M169: 401 | N169: 0.042 | O169: Kelly Fowler
D170: 2013-09-20 | E170: Pat Anderson | F170: 754 | G170: 0.04 | K170: 2013-09-04 | L170: Pat Anderson | M170: 754 | N170: 0.04 | O170: Pat Anderson
D171: 2013-09-03 | E171: Roderick White | F171: 226 | G171: 0.017 | K171: 2013-08-31 | L171: Roderick White | M171: 226 | N171: 0.017 | O171: Roderick White
D172: 2013-08-16 | E172: Nathan Nguyen | F172: 764 | G172: 0.01 | K172: 2013-08-31 | L172: Nathan Nguyen | M172: 764 | N172: 0.01 | O172: Nathan Nguyen
D173: 2013-10-04 | E173: Roderick White | F173: 722 | G173: 0.017 | K173: 2013-08-22 | L173: Roderick White | M173: 722 | N173: 0.017 | O173: Roderick White
D174: 2013-10-07 | E174: Krystal Hubbard | F174: 560 | G174: 0.06 | K174: 2013-08-28 | L174: Krystal Hubbard | M174: 560 | N174: 0.06 | O174: Krystal Hubbard
D175: 2013-08-16 | E175: Roderick White | F175: 620 | G175: 0.017 | K175: 2013-08-27 | L175: Roderick White | M175: 620 | N175: 0.017 | O175: Roderick White
D176: 2013-09-13 | E176: Kelly Fowler | F176: 480 | G176: 0.042 | K176: 2013-09-25 | L176: Kelly Fowler | M176: 480 | N176: 0.042 | O176: Kelly Fowler
D177: 2013-08-15 | E177: Pat Anderson | F177: 340 | G177: 0.04 | K177: 2013-08-20 | L177: Pat Anderson | M177: 340 | N177: 0.04 | O177: Pat Anderson
D178: 2013-09-06 | E178: Ray Silva | F178: 123 | G178: 0.056 | K178: 2013-09-12 | L178: Ray Silva | M178: 123 | N178: 0.056 | O178: Ray Silva
D179: 2013-09-02 | E179: Ray Silva | F179: 286 | G179: 0.056 | K179: 2013-10-04 | L179: Ray Silva | M179: 286 | N179: 0.056 | O179: Ray Silva
D180: 2013-09-20 | E180: Gina Stone | F180: 235 | G180: 0.031 | K180: 2013-08-16 | L180: Gina Stone | M180: 235 | N180: 0.031 | O180: Gina Stone
D181: 2013-08-28 | E181: Beulah Howell | F181: 408 | G181: 0.037 | K181: 2013-08-14 | L181: Beulah Howell | M181: 408 | N181: 0.037 | O181: Beulah Howell
D182: 2013-09-14 | E182: Nathan Nguyen | F182: 764 | G182: 0.01 | K182: 2013-08-21 | L182: Nathan Nguyen | M182: 764 | N182: 0.01 | O182: Nathan Nguyen
D183: 2013-09-11 | E183: Diana Holt | F183: 129 | G183: 0.01 | K183: 2013-08-21 | L183: Diana Holt | M183: 129 | N183: 0.01 | O183: Diana Holt
D184: 2013-08-14 | E184: Krystal Hubbard | F184: 360 | G184: 0.06 | K184: 2013-08-21 | L184: Krystal Hubbard | M184: 360 | N184: 0.06 | O184: Krystal Hubbard
D185: 2013-09-11 | E185: Beulah Howell | F185: 662 | G185: 0.037 | K185: 2013-08-21 | L185: Beulah Howell | M185: 662 | N185: 0.037 | O185: Beulah Howell
D186: 2013-09-08 | E186: Ray Silva | F186: 557 | G186: 0.056 | K186: 2013-09-19 | L186: Ray Silva | M186: 557 | N186: 0.056 | O186: Ray Silva
D187: 2013-10-07 | E187: Dave Martin | F187: 245 | G187: 0.043 | K187: 2013-08-16 | L187: Dave Martin | M187: 245 | N187: 0.043 | O187: Dave Martin
D188: 2013-09-03 | E188: Gregg Lawson | F188: 257 | G188: 0.045 | K188: 2013-09-04 | L188: Gregg Lawson | M188: 257 | N188: 0.045 | O188: Gregg Lawson
D189: 2013-08-14 | E189: Roger Henderson | F189: 200 | G189: 0.028 | K189: 2013-08-16 | L189: Roger Henderson | M189: 200 | N189: 0.028 | O189: Roger Henderson
D190: 2013-10-02 | E190: Roderick White | F190: 718 | G190: 0.017 | K190: 2013-09-16 | L190: Roderick White | M190: 718 | N190: 0.017 | O190: Roderick White
D191: 2013-09-01 | E191: Beulah Howell | F191: 770 | G191: 0.037 | K191: 2013-09-03 | L191: Beulah Howell | M191: 770 | N191: 0.037 | O191: Beulah Howell
D192: 2013-10-01 | E192: Pat Anderson | F192: 473 | G192: 0.04 | K192: 2013-09-07 | L192: Pat Anderson | M192: 473 | N192: 0.04 | O192: Pat Anderson
D193: 2013-09-25 | E193: Gregg Lawson | F193: 328 | G193: 0.045 | K193: 2013-09-28 | L193: Gregg Lawson | M193: 328 | N193: 0.045 | O193: Gregg Lawson
D194: 2013-09-16 | E194: Roger Henderson | F194: 762 | G194: 0.028 | K194: 2013-08-19 | L194: Roger Henderson | M194: 762 | N194: 0.028 | O194: Roger Henderson
D195: 2013-09-18 | E195: Nathan Nguyen | F195: 257 | G195: 0.01 | K195: 2013-09-11 | L195: Nathan Nguyen | M195: 257 | N195: 0.01 | O195: Nathan Nguyen
D196: 2013-10-06 | E196: Pat Anderson | F196: 516 | G196: 0.04 | K196: 2013-09-12 | L196: Pat Anderson | M196: 516 | N196: 0.04 | O196: Pat Anderson
D197: 2013-09-06 | E197: Krystal Hubbard | F197: 204 | G197: 0.06 | K197: 2013-08-29 | L197: Krystal Hubbard | M197: 204 | N197: 0.06 | O197: Krystal Hubbard
D198: =RANDBETWEEN(41500,41555) -> 2013-08-14 | E198: Roger Henderson | F198: 459 | G198: =VLOOKUP(TRIM(E198),$A$5:$B$19,2,0) -> 0.028 | K198: =RANDBETWEEN(41500,41555) -> 2013-09-05 | L198: Roger Henderson | M198: 459 | N198: =VLOOKUP(O198,$A$5:$B$19,2,0) -> 0.028 | O198: =TRIM(L198) -> Roger Henderson
D199: 2013-09-08 | E199: Gina Stone | F199: 763 | G199: 0.031 | K199: 2013-09-21 | L199: Gina Stone | M199: 763 | N199: 0.031 | O199: Gina Stone
D200: 2013-09-13 | E200: Dave Martin | F200: 240 | G200: 0.043 | K200: 2013-08-29 | L200: Dave Martin | M200: 240 | N200: 0.043 | O200: Dave Martin
D201: 2013-10-07 | E201: Ray Silva | F201: 185 | G201: 0.056 | K201: 2013-09-15 | L201: Ray Silva | M201: 185 | N201: 0.056 | O201: Ray Silva
... 21 more rows

Sheet HW(4)
A1: Add data validation in the Cost Sheet to the Cost and Qty columns based on the max numbers in the assumption table.
A3: Cost Sheet:
A4: Product | B4: Cost | C4: Qty | D4: Total
A5: Hammer | D5: =IF(COUNT(B5:C5)=2,B5*C5,"") -> 
A6: Wrench
A7: Screw Drivers
A8: Drill
A11: Assumptions:
A12: Max Numbers:
A13: Product | B13: Cost | C13: Qty
A14: Hammer | B14: 15 | C14: 5
A15: Wrench | B15: 16 | C15: 25
A16: Screw Drivers | B16: 7 | C16: 5
A17: Drill | B17: 38 | C17: 1

Sheet HW(4an)
A1: Add data validation in the Cost Sheet to the Cost and Qty columns based on the max numbers in the assumption table.
A3: Cost Sheet:
A4: Product | B4: Cost | C4: Qty | D4: Total
A5: Hammer | B5: 15.5 | C5: 4 | D5: =IF(COUNT(B5:C5)=2,B5*C5,"") -> 62
A6: Wrench | D6: =IF(COUNT(B6:C6)=2,B6*C6,"") -> 
A7: Screw Drivers
A8: Drill
A11: Assumptions:
A12: Max Numbers:
A13: Product | B13: Cost | C13: Qty
A14: Hammer | B14: 15.5 | C14: 5
A15: Wrench | B15: 16 | C15: 25
A16: Screw Drivers | B16: 7.75 | C16: 5
A17: Drill | B17: 38 | C17: 1

Sheet HW(5)
A1: Using Defined Names, the INDIRECT function and Data Validation List, create a drop down list in cell A6
A2: for the Supervisors (Jo Sims, Tina Chin, Franny Pham, Gigi Giggles) and then a dependent drop down list in cell B6
A3: that will show a different dropdown list depending on what supervisor name is selected in cell A6.
A5: Supervisor | B5: Supervisees
A8: Supervisor: | B8: Jonn | C8: Tina | D8: Franny | E8: Gigi
A9: Supervisees: | B9: Phil | C9: Bob | D9: Yesler | E9: Min
B10: Greg | C10: Kip | D10: Tim | E10: Lynn
B11: Jonn | C11: Manny | D11: Lin | E11: Jin
B12: Sue | E12: Shela
E13: Tyron

Sheet HW(5an)
A1: Using Defined Names, the INDIRECT function and Data Validation List, create a drop down list in cell A6
A2: for the Supervisors (Jo Sims, Tina Chin, Franny Pham, Gigi Giggles) and then a dependent drop down list in cell B6
A3: that will show a different dropdown list depending on what supervisor name is selected in cell A6.
A5: Supervisor | B5: Supervisees
A6: TinaANSWER | B6: Manny
A8: Supervisor: | B8: JonnANSWER | C8: TinaANSWER | D8: FrannyANSWER | E8: GigiANSWER
A9: Supervisees: | B9: Phil | C9: Bob | D9: Yesler | E9: Min
B10: Greg | C10: Kip | D10: Tim | E10: Lynn
B11: Jonn | C11: Manny | D11: Lin | E11: Jin
B12: Sue | E12: Shela
E13: Tyron

Sheet HW(6)
A1: Try to do the Flash Fill examples below (these are the same as the video, but you try to do thwem with refering back to the video example.
A3: Names | B3: First | C3: Last | D3: Initials | E3: Reverse | F3: Insert | G3: Change Case
A4: MO DIM
A5: GIGI TRAN
A6: ALTHEA BERTIN
A7: KELLY GAMBLIN
A8: CHANDRA VALENZULA
A9: CODY CASTILLON
A10: TYRONE BRAZIER
A11: ALTHEA BUHL
A12: DOLLIE MUNSEY
A13: ALLYSON PHOU
A15: First | B15: Last | C15: Combine
A16: Mo | B16: Dim
A17: Gigi | B17: Tran
A18: Althea | B18: Bertin
A19: Kelly | B19: Gamblin
A20: Chandra | B20: Valenzula
A21: Cody | B21: Castillon
A22: Tyrone | B22: Brazier
A23: Althea | B23: Buhl
A24: Dollie | B24: Munsey
A25: Allyson | B25: Phou
A27: Names | B27: First
A28: Mo Dim
A29: Gigi Tran
A31: Kelly Gamblin
A32: Chandra Valenzula
A34: Tyrone Brazier
A36: Dollie Munsey
A37: Allyson Phou
A39: First | B39: Last | C39: First & Last Initial
A40: Mo | B40: Dim
A41: Gigi | B41: Tran
A42: Althea | B42: Bertin
A43: Kelly
A44: Chandra | B44: Valenzula
A45: Cody | B45: Castillon
A46: Tyrone | B46: Brazier
A47: Althea
A48: Dollie | B48: Munsey
A49: Allyson | B49: Phou
A51: Name | B51: First & Middle
A52: Mo Jo Dim
A53: Gigi Tran
A54: Julie Franks Thomas
A55: Sioux Radcoolinator
A56: Fran Mills
A57: Thomas J. Kilmond
A58: Hans C. Joey
A59: Gin Blondy
A60: Yin Pham
A61: Tom Rino
A63: Date | B63: Year | C63: Day | D63: Month
A64: 2012-07-24
A65: 2012-07-25
A66: 2012-07-26
A67: 2012-07-27
A68: 2013-07-28
A69: 2013-07-29
A70: 2013-07-30
A71: 2013-07-31
A72: 2013-08-01
A73: 2013-08-02
A75: Phone | B75: Insert | D75: Student ID | E75: Insert
A76: 2065874545 | D76: 880712259
A77: 2536987455 | D77: 880709467
A78: 2159874439 | D78: 880527987
A79: 4156559933 | D79: 998613133
A80: 5105557845 | D80: 880945725
A82: Sales | B82: Pennies | C82: Interger | D82: Dollar
A83: 97.65
A84: 51.04
A85: 21.96
A86: 50.6
A87: 35.74
A88: 12.33
A89: 74.21
A90: 49.34
A91: 65.56
A92: 31.2
A94: Time | B94: Hour | C94: Minute
A95: 01:12:00
A96: 04:18:00
A97: 18:54:00
A98: 11:06:00
A99: 09:12:00
A100: 17:42:00
A101: 1
A102: 23:06:00
A103: 04:00:00
A104: 09:24:00
A106: Choices | B106: Last Choice
A107: Red-Red
A108: Blue-Green
A109: Gray-Blue
A110: Violet-Pink
A111: Green-Blue
A112: Sand-Sand
A113: Yellow-Pink

Sheet HW(6an)
A1: Try to do the Flash Fill examples below (these are the same as the video, but you try to do thwem with refering back to the video example.
A3: Names | B3: First | C3: Last | D3: Initials | E3: Reverse | F3: Insert | G3: Change Case
A4: MO DIM | B4: MO | C4: DIM | D4: M D | E4: DIM MO | F4: DIM, MO | G4: Mo Dim
A5: GIGI TRAN | B5: GIGI | C5: TRAN | D5: G T | E5: TRAN GIGI | F5: TRAN, GIGI | G5: Gigi Tran
A6: ALTHEA BERTIN | B6: ALTHEA | C6: BERTIN | D6: A B | E6: BERTIN ALTHEA | F6: BERTIN, ALTHEA | G6: Althea Bertin
A7: KELLY GAMBLIN | B7: KELLY | C7: GAMBLIN | D7: K G | E7: GAMBLIN KELLY | F7: GAMBLIN, KELLY | G7: Kelly Gamblin
A8: CHANDRA VALENZULA | B8: CHANDRA | C8: VALENZULA | D8: C V | E8: VALENZULA CHANDRA | F8: VALENZULA, CHANDRA | G8: Chandra Valenzula
A9: CODY CASTILLON | B9: CODY | C9: CASTILLON | D9: C C | E9: CASTILLON CODY | F9: CASTILLON, CODY | G9: Cody Castillon
A10: TYRONE BRAZIER | B10: TYRONE | C10: BRAZIER | D10: T B | E10: BRAZIER TYRONE | F10: BRAZIER, TYRONE | G10: Tyrone Brazier
A11: ALTHEA BUHL | B11: ALTHEA | C11: BUHL | D11: A B | E11: BUHL ALTHEA | F11: BUHL, ALTHEA | G11: Althea Buhl
A12: DOLLIE MUNSEY | B12: DOLLIE | C12: MUNSEY | D12: D M | E12: MUNSEY DOLLIE | F12: MUNSEY, DOLLIE | G12: Dollie Munsey
A13: ALLYSON PHOU | B13: ALLYSON | C13: PHOU | D13: A P | E13: PHOU ALLYSON | F13: PHOU, ALLYSON | G13: Allyson Phou
A15: First | B15: Last | C15: Combine
A16: Mo | B16: Dim | C16: Mo Dim
A17: Gigi | B17: Tran | C17: Gigi Tran
A18: Althea | B18: Bertin | C18: Althea Bertin
A19: Kelly | B19: Gamblin | C19: Kelly Gamblin
A20: Chandra | B20: Valenzula | C20: Chandra Valenzula
A21: Cody | B21: Castillon | C21: Cody Castillon
A22: Tyrone | B22: Brazier | C22: Tyrone Brazier
A23: Althea | B23: Buhl | C23: Althea Buhl
A24: Dollie | B24: Munsey | C24: Dollie Munsey
A25: Allyson | B25: Phou | C25: Allyson Phou
A27: Names | B27: First
A28: Mo Dim | B28: Mo
A29: Gigi Tran | B29: Gigi
A31: Kelly Gamblin | B31: Kelly
A32: Chandra Valenzula | B32: Chandra
A34: Tyrone Brazier | B34: Tyrone
A36: Dollie Munsey | B36: Dollie
A37: Allyson Phou | B37: Allyson
A39: First | B39: Last | C39: First & Last Initial
A40: Mo | B40: Dim | C40: Mo D
A41: Gigi | B41: Tran | C41: Gigi T
A42: Althea | B42: Bertin | C42: Althea B
A43: Kelly | C43: Kelly
A44: Chandra | B44: Valenzula | C44: Chandra V
A45: Cody | B45: Castillon | C45: Cody C
A46: Tyrone | B46: Brazier | C46: Tyrone B
A47: Althea | C47: Althea
A48: Dollie | B48: Munsey | C48: Dollie M
A49: Allyson | B49: Phou | C49: Allyson P
A51: Name | B51: First & Middle
A52: Mo Jo Dim | B52: Mo Jo
A53: Gigi Tran | B53: Gigi
A54: Julie Franks Thomas | B54: Julie Franks
A55: Sioux Radcoolinator | B55: Sioux
A56: Fran Mills | B56: Fran
A57: Thomas J. Kilmond | B57: Thomas J.
A58: Hans C. Joey | B58: Hans C.
A59: Gin Blondy | B59: Gin
A60: Yin Pham | B60: Yin
A61: Tom Rino | B61: Tom
A63: Date | B63: Year | C63: Day | D63: Month
A64: 2012-07-24 | B64: 2012 | C64: 24 | D64: 7
A65: 2012-07-25 | B65: 2012 | C65: 25 | D65: 7
A66: 2012-07-26 | B66: 2012 | C66: 26 | D66: 7
A67: 2012-07-27 | B67: 2012 | C67: 27 | D67: 7
A68: 2013-07-28 | B68: 2013 | C68: 28 | D68: 7
A69: 2013-07-29 | B69: 2013 | C69: 29 | D69: 7
A70: 2013-07-30 | B70: 2013 | C70: 30 | D70: 7
A71: 2013-07-31 | B71: 2013 | C71: 31 | D71: 7
A72: 2013-08-01 | B72: 2013 | C72: 1 | D72: 8
A73: 2013-08-02 | B73: 2013 | C73: 2 | D73: 8
A75: Phone | B75: Insert | D75: Student ID | E75: Insert
A76: 2065874545 | B76: (206) 587-4545 | D76: 880712259 | E76: 880-71-2259
A77: 2536987455 | B77: (253) 698-7455 | D77: 880709467 | E77: 880-70-9467
A78: 2159874439 | B78: (215) 987-4439 | D78: 880527987 | E78: 880-52-7987
A79: 4156559933 | B79: (415) 655-9933 | D79: 998613133 | E79: 998-61-3133
A80: 5105557845 | B80: (510) 555-7845 | D80: 880945725 | E80: 880-94-5725
A82: Sales | B82: Pennies | C82: Interger | D82: Dollar
A83: 97.65 | B83: 0.65 | C83: 97 | D83: 97
A84: 51.04 | B84: 0.04 | C84: 51 | D84: 51
A85: 21.96 | B85: 0.96 | C85: 21 | D85: 21
A86: 50.6 | B86: 0.6 | C86: 50 | D86: 50
A87: 35.74 | B87: 0.74 | C87: 35 | D87: 35
A88: 12.33 | B88: 0.33 | C88: 12 | D88: 12
A89: 74.21 | B89: 0.21 | C89: 74 | D89: 74
A90: 49.34 | B90: 0.34 | C90: 49 | D90: 49
A91: 65.56 | B91: 0.56 | C91: 65 | D91: 65
A92: 31.2 | B92: 0.2 | C92: 31 | D92: 31
A94: Time | B94: Hour | C94: Minute
A95: 01:12:00 | B95: 1 | C95: 12
A96: 04:18:00 | B96: 4 | C96: 18
A97: 18:54:00 | B97: 6 | C97: 54
A98: 11:06:00 | B98: 11 | C98: 6
A99: 09:12:00 | B99: 9 | C99: 12
A100: 17:42:00 | B100: 5 | C100: 42
A101: 1 | B101: 12 | C101: 0
A102: 23:06:00 | B102: 11 | C102: 6
A103: 04:00:00 | B103: 4 | C103: 0
A104: 09:24:00 | B104: 9 | C104: 24
A106: Choices | B106: Last Choice
A107: Red-Red | B107: Red
A108: Blue-Green | B108: Green
A109: Gray-Blue | B109: Blue
A110: Violet-Pink | B110: Pink
A111: Green-Blue | B111: Blue
A112: Sand-Sand | B112: Sand
A113: Yellow-Pink | B113: Pink

Sheet HW(7)
A1: Create text formulas in the green cells below.
A4: Download Names | B4: Extract first name & capitalize only first letter
A5: NEIL LIEBER
A6: MAT PRISCO
A7: ALTHEA BERTIN
A8: KELLY GAMBLIN
A9: CHANDRA VALENZULA
A10: CODY CASTILLON
A11: TYRONE BRAZIER
A12: ALTHEA BUHL
A13: DOLLIE MUNSEY
A14: ALLYSON PHOU
A16: Download Names | B16: Extract last name & capitalize only first letter
A17: NEIL LIEBER
A18: MAT PRISCO
A19: ALTHEA BERTIN
A20: KELLY GAMBLIN
A21: CHANDRA VALENZULA
A22: CODY CASTILLON
A23: TYRONE BRAZIER
A24: ALTHEA BUHL
A25: DOLLIE MUNSEY
A26: ALLYSON PHOU
A28: Download Names | B28: ExtractFirst initial of first name and first initial of last name separated by a space.
A29: NEIL LIEBER
A30: MAT PRISCO
A31: ALTHEA BERTIN
A32: KELLY GAMBLIN
A33: CHANDRA VALENZULA
A34: CODY CASTILLON
A35: TYRONE BRAZIER
A36: ALTHEA BUHL
A37: DOLLIE MUNSEY
A38: ALLYSON PHOU

Sheet HW(7an)
A1: Create text formulas in the green cells below.
A4: Download Names | B4: Extract first name & capitalize only first letter
A5: NEIL LIEBER | B5: =PROPER(LEFT(A5,SEARCH(" ",A5))) -> Neil
A6: MAT PRISCO | B6: =PROPER(LEFT(A6,SEARCH(" ",A6))) -> Mat
A7: ALTHEA BERTIN | B7: Althea
A8: KELLY GAMBLIN | B8: Kelly
A9: CHANDRA VALENZULA | B9: Chandra
A10: CODY CASTILLON | B10: Cody
A11: TYRONE BRAZIER | B11: Tyrone
A12: ALTHEA BUHL | B12: Althea
A13: DOLLIE MUNSEY | B13: Dollie
A14: ALLYSON PHOU | B14: Allyson
A16: Download Names | B16: Extract last name & capitalize only first letter
A17: NEIL LIEBER | B17: =PROPER(REPLACE(A17,1,SEARCH(" ",A17),"")) -> Lieber
A18: MAT PRISCO | B18: =PROPER(REPLACE(A18,1,SEARCH(" ",A18),"")) -> Prisco
A19: ALTHEA BERTIN | B19: Bertin
A20: KELLY GAMBLIN | B20: Gamblin
A21: CHANDRA VALENZULA | B21: Valenzula
A22: CODY CASTILLON | B22: Castillon
A23: TYRONE BRAZIER | B23: Brazier
A24: ALTHEA BUHL | B24: Buhl
A25: DOLLIE MUNSEY | B25: Munsey
A26: ALLYSON PHOU | B26: Phou
A28: Download Names | B28: ExtractFirst initial of first name and first initial of last name separated by a space.
A29: NEIL LIEBER | B29: =LEFT(A29,1)&" "&MID(A29,SEARCH(" ",A29)+1,1) -> N L
A30: MAT PRISCO | B30: =LEFT(A30,1)&" "&MID(A30,SEARCH(" ",A30)+1,1) -> M P
A31: ALTHEA BERTIN | B31: A B
A32: KELLY GAMBLIN | B32: K G
A33: CHANDRA VALENZULA | B33: C V
A34: CODY CASTILLON | B34: C C
A35: TYRONE BRAZIER | B35: T B
A36: ALTHEA BUHL | B36: A B
A37: DOLLIE MUNSEY | B37: D M
A38: ALLYSON PHOU | B38: A P

Sheet HW(8)
A1: In the green cells below, calculate these required dates:
A2: End of the Month
A3: Same Day Next Month
A4: Vest Date
A5: Year
A8: Invoice Date (Date on Invoice) | B8: 2013-11-07
A9: End of the Month
A11: Invoice Date (Date on Invoice) | B11: 2013-05-05
A12: Same Day Next Month
A14: Hire Date | B14: 2010-01-20
A15: Number Years until Pension Vests | B15: 8
A16: Vest Date
A18: Date | B18: Sales | C18: Year | E18: Year | F18: Total Sales
A19: 2014-11-21 | B19: 24 | E19: 2013 | F19: =SUMIFS($B$19:$B$254,$C$19:$C$254,E19) -> 0
A20: 2013-09-13 | B20: 77 | E20: 2014 | F20: 0
A21: 2013-11-01 | B21: 64 | E21: 2015 | F21: 0
A22: 2014-04-07 | B22: 73
A23: 2014-12-13 | B23: 90
A24: 2014-10-31 | B24: 37
A25: 2014-09-08 | B25: 66
A26: 2013-10-12 | B26: 98
A27: 2015-03-13 | B27: 68
A28: 2014-12-11 | B28: 23
A29: 2015-02-07 | B29: 49
A30: 2014-01-30 | B30: 47
A31: 2015-02-08 | B31: 68
A32: 2014-06-02 | B32: 56
A33: 2013-10-17 | B33: 57
A34: 2015-01-24 | B34: 27
A35: 2014-08-25 | B35: 56
A36: 2013-08-28 | B36: 96
A37: 2014-02-26 | B37: 71
A38: 2013-09-02 | B38: 19
A39: 2014-02-02 | B39: 88
A40: 2014-02-13 | B40: 12
A41: 2013-11-30 | B41: 86
A42: 2013-10-28 | B42: 43
A43: 2013-09-27 | B43: 62
A44: 2014-10-19 | B44: 60
A45: 2014-01-23 | B45: 55
A46: 2014-03-10 | B46: 53
A47: 2014-08-10 | B47: 30
A48: 2015-03-21 | B48: 64
A49: 2014-09-12 | B49: 17
A50: 2014-06-20 | B50: 47
A51: 2013-12-27 | B51: 26
A52: 2013-10-10 | B52: 52
A53: 2014-12-16 | B53: 72
A54: 2014-01-08 | B54: 86
A55: 2015-04-02 | B55: 93
A56: 2014-08-22 | B56: 65
A57: 2015-01-24 | B57: 93
A58: 2014-07-23 | B58: 61
A59: 2013-12-23 | B59: 18
A60: 2014-03-23 | B60: 72
A61: 2014-05-05 | B61: 47
A62: 2014-01-30 | B62: 18
A63: 2013-08-26 | B63: 13
A64: 2014-06-23 | B64: 59
A65: 2015-01-25 | B65: 98
A66: 2014-02-24 | B66: 30
A67: 2013-12-11 | B67: 58
A68: 2014-10-29 | B68: 82
A69: 2014-11-14 | B69: 49
A70: 2014-08-28 | B70: 12
A71: 2013-08-29 | B71: 53
A72: 2015-01-19 | B72: 84
A73: 2014-12-29 | B73: 14
A74: 2014-01-10 | B74: 56
A75: 2014-06-18 | B75: 60
A76: 2014-08-28 | B76: 86
A77: 2015-01-27 | B77: 99
A78: 2013-09-03 | B78: 46
A79: 2015-01-19 | B79: 36
A80: 2015-01-14 | B80: 30
A81: 2014-07-25 | B81: 35
A82: 2014-06-06 | B82: 99
A83: 2014-12-29 | B83: 25
A84: 2014-09-14 | B84: 69
A85: 2014-08-06 | B85: 14
A86: 2015-02-24 | B86: 58
A87: 2014-10-05 | B87: 29
A88: 2014-06-23 | B88: 26
A89: 2014-05-14 | B89: 75
A90: 2013-10-08 | B90: 97
A91: 2014-07-24 | B91: 83
A92: 2013-11-18 | B92: 27
A93: 2014-10-12 | B93: 42
A94: 2013-08-17 | B94: 27
A95: 2014-12-07 | B95: 41
A96: 2015-01-08 | B96: 49
A97: 2014-11-15 | B97: 85
A98: 2014-05-25 | B98: 66
A99: 2015-01-15 | B99: 65
A100: 2014-08-26 | B100: 13
A101: 2013-10-10 | B101: 80
A102: 2014-06-02 | B102: 71
A103: 2014-01-06 | B103: 74
A104: 2014-09-11 | B104: 57
A105: 2014-09-21 | B105: 76
A106: 2014-08-06 | B106: 45
A107: 2014-10-30 | B107: 24
A108: 2013-10-06 | B108: 18
A109: 2014-06-13 | B109: 70
A110: 2014-06-09 | B110: 14
A111: 2014-06-26 | B111: 87
A112: 2014-12-15 | B112: 10
A113: 2013-12-17 | B113: 82
A114: 2015-03-28 | B114: 63
A115: 2014-10-16 | B115: 77
A116: 2015-02-21 | B116: 67
A117: 2014-02-20 | B117: 23
A118: 2014-05-25 | B118: 57
A119: 2013-12-08 | B119: 40
A120: 2014-04-26 | B120: 83
A121: 2014-03-26 | B121: 22
A122: 2013-09-23 | B122: 44
A123: 2013-08-27 | B123: 57
A124: 2013-09-05 | B124: 51
A125: 2014-05-27 | B125: 99
A126: 2014-06-24 | B126: 35
A127: 2014-10-18 | B127: 30
A128: 2014-01-15 | B128: 81
A129: 2014-07-18 | B129: 94
A130: 2014-01-22 | B130: 64
A131: 2013-08-19 | B131: 24
A132: 2014-08-21 | B132: 33
A133: 2015-03-31 | B133: 14
A134: 2013-08-31 | B134: 93
A135: 2014-10-17 | B135: 69
A136: 2014-07-28 | B136: 12
A137: 2014-04-05 | B137: 33
A138: 2014-12-19 | B138: 49
A139: 2014-06-16 | B139: 59
A140: 2014-06-24 | B140: 68
A141: 2014-04-06 | B141: 35
A142: 2014-07-20 | B142: 26
A143: 2014-07-08 | B143: 76
A144: 2013-10-19 | B144: 68
A145: 2013-10-08 | B145: 71
A146: 2014-09-20 | B146: 28
A147: 2014-02-05 | B147: 87
A148: 2013-10-19 | B148: 51
A149: 2013-10-09 | B149: 10
A150: 2013-09-10 | B150: 45
A151: 2014-04-28 | B151: 41
A152: 2014-12-09 | B152: 90
A153: 2014-01-19 | B153: 65
A154: 2014-06-09 | B154: 73
A155: 2014-09-20 | B155: 18
A156: 2014-04-02 | B156: 52
A157: 2014-05-31 | B157: 18
A158: 2014-07-19 | B158: 36
A159: 2014-03-12 | B159: 39
A160: 2014-07-23 | B160: 85
A161: 2015-01-04 | B161: 79
A162: 2013-09-23 | B162: 34
A163: 2014-03-03 | B163: 58
A164: 2015-03-24 | B164: 99
A165: 2014-03-10 | B165: 93
A166: 2014-03-27 | B166: 38
A167: 2013-08-26 | B167: 72
A168: 2013-11-21 | B168: 46
A169: 2015-03-15 | B169: 20
A170: 2014-05-21 | B170: 95
A171: 2013-11-26 | B171: 57
A172: 2015-01-12 | B172: 88
A173: 2014-10-06 | B173: 56
A174: 2014-01-21 | B174: 42
A175: 2014-12-15 | B175: 58
A176: 2013-09-24 | B176: 30
A177: 2014-01-30 | B177: 18
A178: 2014-08-18 | B178: 64
A179: 2014-03-04 | B179: 29
A180: 2013-10-21 | B180: 95
A181: 2014-06-13 | B181: 43
A182: 2014-07-06 | B182: 86
A183: 2014-06-25 | B183: 34
A184: 2014-11-23 | B184: 62
A185: 2014-01-22 | B185: 69
A186: 2013-11-10 | B186: 15
A187: 2014-04-30 | B187: 46
A188: 2014-07-14 | B188: 64
A189: 2014-10-26 | B189: 38
A190: 2014-02-03 | B190: 28
A191: 2013-09-14 | B191: 65
A192: 2014-07-20 | B192: 10
A193: 2014-05-06 | B193: 20
A194: 2014-11-13 | B194: 43
A195: 2014-07-16 | B195: 81
A196: 2014-07-13 | B196: 27
A197: 2014-12-07 | B197: 66
A198: 2014-11-20 | B198: 46
A199: 2014-11-19 | B199: 46
A200: 2014-10-17 | B200: 66
A201: 2014-03-23 | B201: 91
A202: 2014-09-28 | B202: 14
A203: 2015-03-31 | B203: 29
A204: 2013-09-01 | B204: 61
A205: 2014-04-07 | B205: 97
... 49 more rows

Sheet HW(8an)
A1: In the green cells below, calculate these required dates:
A2: End of the Month
A3: Same Day Next Month
A4: Vest Date
A5: Year
A8: Invoice Date (Date on Invoice) | B8: 2013-11-07
A9: End of the Month | B9: =EOMONTH(B8,0) -> 2013-11-30
A11: Invoice Date (Date on Invoice) | B11: 2013-05-05
A12: Same Day Next Month | B12: =EDATE(B11,1) -> 2013-06-05
A14: Hire Date | B14: 2010-01-20
A15: Number Years until Pension Vests | B15: 8
A16: Vest Date | B16: =EDATE(B14,B15*12) -> 2018-01-20
A18: Date | B18: Sales | C18: Year | E18: Year | F18: Total Sales
A19: 2014-11-21 | B19: 24 | C19: =YEAR(A19) -> 2014 | E19: 2013 | F19: =SUMIFS($B$19:$B$254,$C$19:$C$254,E19) -> 2659
A20: 2013-09-13 | B20: 77 | C20: =YEAR(A20) -> 2013 | E20: 2014 | F20: 8269
A21: 2013-11-01 | B21: 64 | C21: 2013 | E21: 2015 | F21: 2096
A22: 2014-04-07 | B22: 73 | C22: 2014
A23: 2014-12-13 | B23: 90 | C23: 2014
A24: 2014-10-31 | B24: 37 | C24: 2014
A25: 2014-09-08 | B25: 66 | C25: 2014
A26: 2013-10-12 | B26: 98 | C26: 2013
A27: 2015-03-13 | B27: 68 | C27: 2015
A28: 2014-12-11 | B28: 23 | C28: 2014
A29: 2015-02-07 | B29: 49 | C29: 2015
A30: 2014-01-30 | B30: 47 | C30: 2014
A31: 2015-02-08 | B31: 68 | C31: 2015
A32: 2014-06-02 | B32: 56 | C32: 2014
A33: 2013-10-17 | B33: 57 | C33: 2013
A34: 2015-01-24 | B34: 27 | C34: 2015
A35: 2014-08-25 | B35: 56 | C35: 2014
A36: 2013-08-28 | B36: 96 | C36: 2013
A37: 2014-02-26 | B37: 71 | C37: 2014
A38: 2013-09-02 | B38: 19 | C38: 2013
A39: 2014-02-02 | B39: 88 | C39: 2014
A40: 2014-02-13 | B40: 12 | C40: 2014
A41: 2013-11-30 | B41: 86 | C41: 2013
A42: 2013-10-28 | B42: 43 | C42: 2013
A43: 2013-09-27 | B43: 62 | C43: 2013
A44: 2014-10-19 | B44: 60 | C44: 2014
A45: 2014-01-23 | B45: 55 | C45: 2014
A46: 2014-03-10 | B46: 53 | C46: 2014
A47: 2014-08-10 | B47: 30 | C47: 2014
A48: 2015-03-21 | B48: 64 | C48: 2015
A49: 2014-09-12 | B49: 17 | C49: 2014
A50: 2014-06-20 | B50: 47 | C50: 2014
A51: 2013-12-27 | B51: 26 | C51: 2013
A52: 2013-10-10 | B52: 52 | C52: 2013
A53: 2014-12-16 | B53: 72 | C53: 2014
A54: 2014-01-08 | B54: 86 | C54: 2014
A55: 2015-04-02 | B55: 93 | C55: 2015
A56: 2014-08-22 | B56: 65 | C56: 2014
A57: 2015-01-24 | B57: 93 | C57: 2015
A58: 2014-07-23 | B58: 61 | C58: 2014
A59: 2013-12-23 | B59: 18 | C59: 2013
A60: 2014-03-23 | B60: 72 | C60: 2014
A61: 2014-05-05 | B61: 47 | C61: 2014
A62: 2014-01-30 | B62: 18 | C62: 2014
A63: 2013-08-26 | B63: 13 | C63: 2013
A64: 2014-06-23 | B64: 59 | C64: 2014
A65: 2015-01-25 | B65: 98 | C65: 2015
A66: 2014-02-24 | B66: 30 | C66: 2014
A67: 2013-12-11 | B67: 58 | C67: 2013
A68: 2014-10-29 | B68: 82 | C68: 2014
A69: 2014-11-14 | B69: 49 | C69: 2014
A70: 2014-08-28 | B70: 12 | C70: 2014
A71: 2013-08-29 | B71: 53 | C71: 2013
A72: 2015-01-19 | B72: 84 | C72: 2015
A73: 2014-12-29 | B73: 14 | C73: 2014
A74: 2014-01-10 | B74: 56 | C74: 2014
A75: 2014-06-18 | B75: 60 | C75: 2014
A76: 2014-08-28 | B76: 86 | C76: 2014
A77: 2015-01-27 | B77: 99 | C77: 2015
A78: 2013-09-03 | B78: 46 | C78: 2013
A79: 2015-01-19 | B79: 36 | C79: 2015
A80: 2015-01-14 | B80: 30 | C80: 2015
A81: 2014-07-25 | B81: 35 | C81: 2014
A82: 2014-06-06 | B82: 99 | C82: 2014
A83: 2014-12-29 | B83: 25 | C83: 2014
A84: 2014-09-14 | B84: 69 | C84: =YEAR(A84) -> 2014
A85: 2014-08-06 | B85: 14 | C85: 2014
A86: 2015-02-24 | B86: 58 | C86: 2015
A87: 2014-10-05 | B87: 29 | C87: 2014
A88: 2014-06-23 | B88: 26 | C88: 2014
A89: 2014-05-14 | B89: 75 | C89: 2014
A90: 2013-10-08 | B90: 97 | C90: 2013
A91: 2014-07-24 | B91: 83 | C91: 2014
A92: 2013-11-18 | B92: 27 | C92: 2013
A93: 2014-10-12 | B93: 42 | C93: 2014
A94: 2013-08-17 | B94: 27 | C94: 2013
A95: 2014-12-07 | B95: 41 | C95: 2014
A96: 2015-01-08 | B96: 49 | C96: 2015
A97: 2014-11-15 | B97: 85 | C97: 2014
A98: 2014-05-25 | B98: 66 | C98: 2014
A99: 2015-01-15 | B99: 65 | C99: 2015
A100: 2014-08-26 | B100: 13 | C100: 2014
A101: 2013-10-10 | B101: 80 | C101: 2013
A102: 2014-06-02 | B102: 71 | C102: 2014
A103: 2014-01-06 | B103: 74 | C103: 2014
A104: 2014-09-11 | B104: 57 | C104: 2014
A105: 2014-09-21 | B105: 76 | C105: 2014
A106: 2014-08-06 | B106: 45 | C106: 2014
A107: 2014-10-30 | B107: 24 | C107: 2014
A108: 2013-10-06 | B108: 18 | C108: 2013
A109: 2014-06-13 | B109: 70 | C109: 2014
A110: 2014-06-09 | B110: 14 | C110: 2014
A111: 2014-06-26 | B111: 87 | C111: 2014
A112: 2014-12-15 | B112: 10 | C112: 2014
A113: 2013-12-17 | B113: 82 | C113: 2013
A114: 2015-03-28 | B114: 63 | C114: 2015
A115: 2014-10-16 | B115: 77 | C115: 2014
A116: 2015-02-21 | B116: 67 | C116: 2015
A117: 2014-02-20 | B117: 23 | C117: 2014
A118: 2014-05-25 | B118: 57 | C118: 2014
A119: 2013-12-08 | B119: 40 | C119: 2013
A120: 2014-04-26 | B120: 83 | C120: 2014
A121: 2014-03-26 | B121: 22 | C121: 2014
A122: 2013-09-23 | B122: 44 | C122: 2013
A123: 2013-08-27 | B123: 57 | C123: 2013
A124: 2013-09-05 | B124: 51 | C124: 2013
A125: 2014-05-27 | B125: 99 | C125: 2014
A126: 2014-06-24 | B126: 35 | C126: 2014
A127: 2014-10-18 | B127: 30 | C127: 2014
A128: 2014-01-15 | B128: 81 | C128: 2014
A129: 2014-07-18 | B129: 94 | C129: 2014
A130: 2014-01-22 | B130: 64 | C130: 2014
A131: 2013-08-19 | B131: 24 | C131: 2013
A132: 2014-08-21 | B132: 33 | C132: 2014
A133: 2015-03-31 | B133: 14 | C133: 2015
A134: 2013-08-31 | B134: 93 | C134: 2013
A135: 2014-10-17 | B135: 69 | C135: 2014
A136: 2014-07-28 | B136: 12 | C136: 2014
A137: 2014-04-05 | B137: 33 | C137: 2014
A138: 2014-12-19 | B138: 49 | C138: 2014
A139: 2014-06-16 | B139: 59 | C139: 2014
A140: 2014-06-24 | B140: 68 | C140: 2014
A141: 2014-04-06 | B141: 35 | C141: 2014
A142: 2014-07-20 | B142: 26 | C142: 2014
A143: 2014-07-08 | B143: 76 | C143: 2014
A144: 2013-10-19 | B144: 68 | C144: 2013
A145: 2013-10-08 | B145: 71 | C145: 2013
A146: 2014-09-20 | B146: 28 | C146: 2014
A147: 2014-02-05 | B147: 87 | C147: 2014
A148: 2013-10-19 | B148: 51 | C148: =YEAR(A148) -> 2013
A149: 2013-10-09 | B149: 10 | C149: 2013
A150: 2013-09-10 | B150: 45 | C150: 2013
A151: 2014-04-28 | B151: 41 | C151: 2014
A152: 2014-12-09 | B152: 90 | C152: 2014
A153: 2014-01-19 | B153: 65 | C153: 2014
A154: 2014-06-09 | B154: 73 | C154: 2014
A155: 2014-09-20 | B155: 18 | C155: 2014
A156: 2014-04-02 | B156: 52 | C156: 2014
A157: 2014-05-31 | B157: 18 | C157: 2014
A158: 2014-07-19 | B158: 36 | C158: 2014
A159: 2014-03-12 | B159: 39 | C159: 2014
A160: 2014-07-23 | B160: 85 | C160: 2014
A161: 2015-01-04 | B161: 79 | C161: 2015
A162: 2013-09-23 | B162: 34 | C162: 2013
A163: 2014-03-03 | B163: 58 | C163: 2014
A164: 2015-03-24 | B164: 99 | C164: 2015
A165: 2014-03-10 | B165: 93 | C165: 2014
A166: 2014-03-27 | B166: 38 | C166: 2014
A167: 2013-08-26 | B167: 72 | C167: 2013
A168: 2013-11-21 | B168: 46 | C168: 2013
A169: 2015-03-15 | B169: 20 | C169: 2015
A170: 2014-05-21 | B170: 95 | C170: 2014
A171: 2013-11-26 | B171: 57 | C171: 2013
A172: 2015-01-12 | B172: 88 | C172: 2015
A173: 2014-10-06 | B173: 56 | C173: 2014
A174: 2014-01-21 | B174: 42 | C174: 2014
A175: 2014-12-15 | B175: 58 | C175: 2014
A176: 2013-09-24 | B176: 30 | C176: 2013
A177: 2014-01-30 | B177: 18 | C177: 2014
A178: 2014-08-18 | B178: 64 | C178: 2014
A179: 2014-03-04 | B179: 29 | C179: 2014
A180: 2013-10-21 | B180: 95 | C180: 2013
A181: 2014-06-13 | B181: 43 | C181: 2014
A182: 2014-07-06 | B182: 86 | C182: 2014
A183: 2014-06-25 | B183: 34 | C183: 2014
A184: 2014-11-23 | B184: 62 | C184: 2014
A185: 2014-01-22 | B185: 69 | C185: 2014
A186: 2013-11-10 | B186: 15 | C186: 2013
A187: 2014-04-30 | B187: 46 | C187: 2014
A188: 2014-07-14 | B188: 64 | C188: 2014
A189: 2014-10-26 | B189: 38 | C189: 2014
A190: 2014-02-03 | B190: 28 | C190: 2014
A191: 2013-09-14 | B191: 65 | C191: 2013
A192: 2014-07-20 | B192: 10 | C192: 2014
A193: 2014-05-06 | B193: 20 | C193: 2014
A194: 2014-11-13 | B194: 43 | C194: 2014
A195: 2014-07-16 | B195: 81 | C195: 2014
A196: 2014-07-13 | B196: 27 | C196: 2014
A197: 2014-12-07 | B197: 66 | C197: 2014
A198: 2014-11-20 | B198: 46 | C198: 2014
A199: 2014-11-19 | B199: 46 | C199: 2014
A200: 2014-10-17 | B200: 66 | C200: 2014
A201: 2014-03-23 | B201: 91 | C201: 2014
A202: 2014-09-28 | B202: 14 | C202: 2014
A203: 2015-03-31 | B203: 29 | C203: 2015
A204: 2013-09-01 | B204: 61 | C204: 2013
A205: 2014-04-07 | B205: 97 | C205: 2014
... 49 more rows

Sheet HW(9)
A1: In the Discount Date column create a formula that will calculate a date that is "Days after EOM to get Discount" days past the end of the month for the date in the Date column.
A2: For example, if the date in the Date column is 10/3/2013 and the days in the "Days after EOM to get Discount" column is 10, the Discount Date should be 11/10/2013.
A4: Date | B4: Invoice Number | C4: Amount | D4: Terms | E4: Days after EOM to get Discount | F4: Discount Date
A5: 2013-10-03 | B5: 58968 | C5: 320.98 | D5: ="EOM plus "&E5&" days" -> EOM plus 10 days | E5: 10
A6: 2013-10-03 | B6: 58969 | C6: 92.25 | D6: EOM plus 5 days | E6: 5
A7: 2013-10-03 | B7: 58970 | C7: 47.54 | D7: EOM plus 15 days | E7: 15
A8: 2013-10-03 | B8: 58971 | C8: 385.71 | D8: EOM plus 20 days | E8: 20
A9: 2013-10-03 | B9: 58972 | C9: 216.01 | D9: EOM plus 20 days | E9: 20
A10: 2013-10-03 | B10: 58973 | C10: 236.64 | D10: EOM plus 5 days | E10: 5
A11: 2013-10-03 | B11: 58974 | C11: 107.74 | D11: EOM plus 5 days | E11: 5
A12: 2013-10-03 | B12: 58975 | C12: 258.29 | D12: EOM plus 5 days | E12: 5
A13: 2013-10-03 | B13: 58976 | C13: 87.58 | D13: EOM plus 10 days | E13: 10
A14: 2013-10-03 | B14: 58977 | C14: 122.03 | D14: EOM plus 20 days | E14: 20
A15: 2013-10-03 | B15: 58978 | C15: 88.41 | D15: EOM plus 10 days | E15: 10
A16: 2013-10-04 | B16: 58979 | C16: 286.4 | D16: EOM plus 10 days | E16: 10
A17: 2013-10-04 | B17: 58980 | C17: 277.09 | D17: EOM plus 5 days | E17: 5
A18: 2013-10-04 | B18: 58981 | C18: 212.03 | D18: EOM plus 10 days | E18: 10
A19: 2013-10-04 | B19: 58982 | C19: 130.04 | D19: EOM plus 15 days | E19: 15
A20: 2013-10-04 | B20: 58983 | C20: 272.83 | D20: EOM plus 15 days | E20: 15
A21: 2013-10-04 | B21: 58984 | C21: 68.44 | D21: EOM plus 10 days | E21: 10
A22: 2013-10-04 | B22: 58985 | C22: 63.62 | D22: EOM plus 5 days | E22: 5
A23: 2013-10-04 | B23: 58986 | C23: 245.92 | D23: EOM plus 5 days | E23: 5
A24: 2013-10-04 | B24: 58987 | C24: 285.31 | D24: EOM plus 5 days | E24: 5
A25: 2013-10-04 | B25: 58988 | C25: 256.69 | D25: EOM plus 10 days | E25: 10
A26: 2013-10-04 | B26: 58989 | C26: 329.98 | D26: EOM plus 5 days | E26: 5
A27: 2013-10-04 | B27: 58990 | C27: 293.24 | D27: EOM plus 10 days | E27: 10
A28: 2013-10-05 | B28: 58991 | C28: 269.52 | D28: EOM plus 10 days | E28: 10
A29: 2013-10-05 | B29: 58992 | C29: 46.21 | D29: EOM plus 10 days | E29: 10
A30: 2013-10-05 | B30: 58993 | C30: 193.27 | D30: EOM plus 10 days | E30: 10
A31: 2013-10-05 | B31: 58994 | C31: 323.79 | D31: EOM plus 10 days | E31: 10
A32: 2013-10-05 | B32: 58995 | C32: 130.78 | D32: EOM plus 10 days | E32: 10
A33: 2013-10-05 | B33: 58996 | C33: 222.56 | D33: EOM plus 10 days | E33: 10
A34: 2013-10-05 | B34: 58997 | C34: 263.54 | D34: EOM plus 5 days | E34: 5
A35: 2013-10-05 | B35: 58998 | C35: 209.94 | D35: EOM plus 5 days | E35: 5
A36: 2013-10-05 | B36: 58999 | C36: 105.09 | D36: EOM plus 5 days | E36: 5
A37: 2013-10-05 | B37: 59000 | C37: 173.68 | D37: EOM plus 15 days | E37: 15
A38: 2013-10-05 | B38: 59001 | C38: 307.77 | D38: EOM plus 10 days | E38: 10
A39: 2013-10-05 | B39: 59002 | C39: 149.06 | D39: EOM plus 5 days | E39: 5
A40: 2013-10-06 | B40: 59003 | C40: 248.51 | D40: EOM plus 20 days | E40: 20
A41: 2013-10-06 | B41: 59004 | C41: 231.73 | D41: EOM plus 5 days | E41: 5
A42: 2013-10-06 | B42: 59005 | C42: 324.43 | D42: EOM plus 10 days | E42: 10
A43: 2013-10-06 | B43: 59006 | C43: 249.58 | D43: EOM plus 5 days | E43: 5
A44: 2013-10-06 | B44: 59007 | C44: 161.94 | D44: EOM plus 10 days | E44: 10
A45: 2013-10-06 | B45: 59008 | C45: 247.87 | D45: EOM plus 10 days | E45: 10
A46: 2013-10-06 | B46: 59009 | C46: 248.86 | D46: EOM plus 15 days | E46: 15
A47: 2013-10-06 | B47: 59010 | C47: 235.98 | D47: EOM plus 10 days | E47: 10
A48: 2013-10-06 | B48: 59011 | C48: 224.49 | D48: EOM plus 10 days | E48: 10
A49: 2013-10-06 | B49: 59012 | C49: 256.42 | D49: EOM plus 15 days | E49: 15
A50: 2013-10-06 | B50: 59013 | C50: 233.01 | D50: EOM plus 20 days | E50: 20
A51: 2013-10-06 | B51: 59014 | C51: 379.98 | D51: EOM plus 15 days | E51: 15
A52: 2013-10-06 | B52: 59015 | C52: 219.3 | D52: EOM plus 20 days | E52: 20
A53: 2013-10-06 | B53: 59016 | C53: 371.22 | D53: EOM plus 20 days | E53: 20
A54: 2013-10-06 | B54: 59017 | C54: 385.88 | D54: EOM plus 5 days | E54: 5
A55: 2013-10-06 | B55: 59018 | C55: 155.65 | D55: EOM plus 5 days | E55: 5
A56: 2013-10-07 | B56: 59019 | C56: 325.83 | D56: EOM plus 5 days | E56: 5
A57: 2013-10-07 | B57: 59020 | C57: 101.09 | D57: EOM plus 5 days | E57: 5
A58: 2013-10-07 | B58: 59021 | C58: 259.24 | D58: EOM plus 5 days | E58: 5
A59: 2013-10-07 | B59: 59022 | C59: 188.54 | D59: EOM plus 5 days | E59: 5
A60: 2013-10-07 | B60: 59023 | C60: 56.87 | D60: EOM plus 20 days | E60: 20
A61: 2013-10-07 | B61: 59024 | C61: 241.46 | D61: EOM plus 10 days | E61: 10
A62: 2013-10-07 | B62: 59025 | C62: 99.87 | D62: EOM plus 20 days | E62: 20
A63: 2013-10-07 | B63: 59026 | C63: 52.75 | D63: EOM plus 5 days | E63: 5
A64: 2013-10-07 | B64: 59027 | C64: 67.82 | D64: EOM plus 10 days | E64: 10
A65: 2013-10-07 | B65: 59028 | C65: 114.91 | D65: EOM plus 5 days | E65: 5
A66: 2013-10-07 | B66: 59029 | C66: 189.99 | D66: EOM plus 20 days | E66: 20
A67: 2013-10-07 | B67: 59030 | C67: 280.49 | D67: EOM plus 10 days | E67: 10
A68: 2013-10-07 | B68: 59031 | C68: 137.1 | D68: EOM plus 10 days | E68: 10
A69: 2013-10-07 | B69: 59032 | C69: 182.84 | D69: ="EOM plus "&E69&" days" -> EOM plus 15 days | E69: 15
A70: 2013-10-07 | B70: 59033 | C70: 327.65 | D70: EOM plus 10 days | E70: 10
A71: 2013-10-07 | B71: 59034 | C71: 269.27 | D71: EOM plus 5 days | E71: 5
A72: 2013-10-07 | B72: 59035 | C72: 92.39 | D72: EOM plus 20 days | E72: 20
A73: 2013-10-07 | B73: 59036 | C73: 97.21 | D73: EOM plus 5 days | E73: 5
A74: 2013-10-08 | B74: 59037 | C74: 97.59 | D74: EOM plus 10 days | E74: 10
A75: 2013-10-08 | B75: 59038 | C75: 353.5 | D75: EOM plus 15 days | E75: 15
A76: 2013-10-08 | B76: 59039 | C76: 130.79 | D76: EOM plus 10 days | E76: 10
A77: 2013-10-08 | B77: 59040 | C77: 379.46 | D77: EOM plus 15 days | E77: 15
A78: 2013-10-08 | B78: 59041 | C78: 143.1 | D78: EOM plus 5 days | E78: 5
A79: 2013-10-08 | B79: 59042 | C79: 163.51 | D79: EOM plus 10 days | E79: 10
A80: 2013-10-08 | B80: 59043 | C80: 131.96 | D80: EOM plus 5 days | E80: 5
A81: 2013-10-08 | B81: 59044 | C81: 365.99 | D81: EOM plus 15 days | E81: 15
A82: 2013-10-08 | B82: 59045 | C82: 311.21 | D82: EOM plus 10 days | E82: 10
A83: 2013-10-08 | B83: 59046 | C83: 163.17 | D83: EOM plus 10 days | E83: 10
A84: 2013-10-08 | B84: 59047 | C84: 68.66 | D84: EOM plus 10 days | E84: 10
A85: 2013-10-08 | B85: 59048 | C85: 72.08 | D85: EOM plus 15 days | E85: 15
A86: 2013-10-08 | B86: 59049 | C86: 363.6 | D86: EOM plus 15 days | E86: 15
A87: 2013-10-08 | B87: 59050 | C87: 291.38 | D87: EOM plus 5 days | E87: 5
A88: 2013-10-08 | B88: 59051 | C88: 317.54 | D88: EOM plus 10 days | E88: 10
A89: 2013-10-08 | B89: 59052 | C89: 381.83 | D89: EOM plus 5 days | E89: 5
A90: 2013-10-08 | B90: 59053 | C90: 199.1 | D90: EOM plus 15 days | E90: 15
A91: 2013-10-08 | B91: 59054 | C91: 194.58 | D91: EOM plus 10 days | E91: 10
A92: 2013-10-08 | B92: 59055 | C92: 84.63 | D92: EOM plus 20 days | E92: 20
A93: 2013-10-08 | B93: 59056 | C93: 174.5 | D93: EOM plus 5 days | E93: 5
A94: 2013-10-09 | B94: 59057 | C94: 70.51 | D94: EOM plus 5 days | E94: 5
A95: 2013-10-09 | B95: 59058 | C95: 243.02 | D95: EOM plus 5 days | E95: 5
A96: 2013-10-09 | B96: 59059 | C96: 185.32 | D96: EOM plus 10 days | E96: 10
A97: 2013-10-09 | B97: 59060 | C97: 344.37 | D97: EOM plus 10 days | E97: 10
A98: 2013-10-09 | B98: 59061 | C98: 192.89 | D98: EOM plus 10 days | E98: 10
A99: 2013-10-09 | B99: 59062 | C99: 343.18 | D99: EOM plus 10 days | E99: 10
A100: 2013-10-09 | B100: 59063 | C100: 233.61 | D100: EOM plus 5 days | E100: 5
A101: 2013-10-09 | B101: 59064 | C101: 263.82 | D101: EOM plus 20 days | E101: 20
A102: 2013-10-09 | B102: 59065 | C102: 42.16 | D102: EOM plus 15 days | E102: 15
A103: 2013-10-09 | B103: 59066 | C103: 193.92 | D103: EOM plus 20 days | E103: 20
A104: 2013-10-09 | B104: 59067 | C104: 263.2 | D104: EOM plus 20 days | E104: 20
A105: 2013-10-09 | B105: 59068 | C105: 237.3 | D105: EOM plus 10 days | E105: 10
A106: 2013-10-09 | B106: 59069 | C106: 335.98 | D106: EOM plus 20 days | E106: 20
A107: 2013-10-09 | B107: 59070 | C107: 89.59 | D107: EOM plus 20 days | E107: 20
A108: 2013-10-09 | B108: 59071 | C108: 273.16 | D108: EOM plus 10 days | E108: 10
A109: 2013-10-09 | B109: 59072 | C109: 160.41 | D109: EOM plus 5 days | E109: 5
A110: 2013-10-10 | B110: 59073 | C110: 111.8 | D110: EOM plus 20 days | E110: 20
A111: 2013-10-10 | B111: 59074 | C111: 57.68 | D111: EOM plus 10 days | E111: 10
A112: 2013-10-10 | B112: 59075 | C112: 172.57 | D112: EOM plus 20 days | E112: 20
A113: 2013-10-10 | B113: 59076 | C113: 265.03 | D113: EOM plus 5 days | E113: 5
A114: 2013-10-10 | B114: 59077 | C114: 253.47 | D114: EOM plus 5 days | E114: 5
A115: 2013-10-10 | B115: 59078 | C115: 344.94 | D115: EOM plus 10 days | E115: 10
A116: 2013-10-10 | B116: 59079 | C116: 159.99 | D116: EOM plus 10 days | E116: 10
A117: 2013-10-10 | B117: 59080 | C117: 333.4 | D117: EOM plus 15 days | E117: 15
A118: 2013-10-10 | B118: 59081 | C118: 107.94 | D118: EOM plus 10 days | E118: 10
A119: 2013-10-10 | B119: 59082 | C119: 71.91 | D119: EOM plus 15 days | E119: 15
A120: 2013-10-10 | B120: 59083 | C120: 72.51 | D120: EOM plus 10 days | E120: 10
A121: 2013-10-10 | B121: 59084 | C121: 163.51 | D121: EOM plus 15 days | E121: 15
A122: 2013-10-10 | B122: 59085 | C122: 83.31 | D122: EOM plus 5 days | E122: 5
A123: 2013-10-10 | B123: 59086 | C123: 178.08 | D123: EOM plus 10 days | E123: 10
A124: 2013-10-10 | B124: 59087 | C124: 133.58 | D124: EOM plus 10 days | E124: 10
A125: 2013-10-10 | B125: 59088 | C125: 332.54 | D125: EOM plus 20 days | E125: 20
A126: 2013-10-10 | B126: 59089 | C126: 170.48 | D126: EOM plus 10 days | E126: 10
A127: 2013-10-10 | B127: 59090 | C127: 328.78 | D127: EOM plus 10 days | E127: 10
A128: 2013-10-10 | B128: 59091 | C128: 200.31 | D128: EOM plus 5 days | E128: 5
A129: 2013-10-10 | B129: 59092 | C129: 152.29 | D129: EOM plus 20 days | E129: 20
A130: 2013-10-10 | B130: 59093 | C130: 304.71 | D130: EOM plus 20 days | E130: 20
A131: 2013-10-10 | B131: 59094 | C131: 371.78 | D131: EOM plus 10 days | E131: 10
A132: 2013-10-11 | B132: 59095 | C132: 204.74 | D132: EOM plus 10 days | E132: 10
A133: 2013-10-11 | B133: 59096 | C133: 169.07 | D133: ="EOM plus "&E133&" days" -> EOM plus 10 days | E133: 10
A134: 2013-10-11 | B134: 59097 | C134: 321.23 | D134: EOM plus 5 days | E134: 5
A135: 2013-10-11 | B135: 59098 | C135: 266.53 | D135: EOM plus 5 days | E135: 5
A136: 2013-10-11 | B136: 59099 | C136: 262.87 | D136: EOM plus 5 days | E136: 5
A137: 2013-10-11 | B137: 59100 | C137: 103.58 | D137: EOM plus 10 days | E137: 10
A138: 2013-10-11 | B138: 59101 | C138: 218.88 | D138: EOM plus 10 days | E138: 10
A139: 2013-10-11 | B139: 59102 | C139: 271.44 | D139: EOM plus 15 days | E139: 15
A140: 2013-10-11 | B140: 59103 | C140: 309.05 | D140: EOM plus 20 days | E140: 20
A141: 2013-10-11 | B141: 59104 | C141: 243.41 | D141: EOM plus 20 days | E141: 20
A142: 2013-10-11 | B142: 59105 | C142: 43.12 | D142: EOM plus 5 days | E142: 5
A143: 2013-10-11 | B143: 59106 | C143: 202.33 | D143: EOM plus 10 days | E143: 10
A144: 2013-10-11 | B144: 59107 | C144: 77.84 | D144: EOM plus 5 days | E144: 5
A145: 2013-10-11 | B145: 59108 | C145: 63 | D145: EOM plus 15 days | E145: 15
A146: 2013-10-11 | B146: 59109 | C146: 157.48 | D146: EOM plus 15 days | E146: 15
A147: 2013-10-11 | B147: 59110 | C147: 37.21 | D147: EOM plus 15 days | E147: 15
A148: 2013-10-11 | B148: 59111 | C148: 259.35 | D148: EOM plus 10 days | E148: 10
A149: 2013-10-11 | B149: 59112 | C149: 227.62 | D149: EOM plus 10 days | E149: 10
A150: 2013-10-11 | B150: 59113 | C150: 40.02 | D150: EOM plus 20 days | E150: 20
A151: 2013-10-11 | B151: 59114 | C151: 246.71 | D151: EOM plus 10 days | E151: 10
A152: 2013-10-11 | B152: 59115 | C152: 120.66 | D152: EOM plus 10 days | E152: 10
A153: 2013-10-11 | B153: 59116 | C153: 53.84 | D153: EOM plus 20 days | E153: 20
A154: 2013-10-11 | B154: 59117 | C154: 90.75 | D154: EOM plus 10 days | E154: 10
A155: 2013-10-11 | B155: 59118 | C155: 66.25 | D155: EOM plus 15 days | E155: 15
A156: 2013-10-11 | B156: 59119 | C156: 329.61 | D156: EOM plus 10 days | E156: 10
A157: 2013-10-11 | B157: 59120 | C157: 322.38 | D157: EOM plus 10 days | E157: 10
A158: 2013-10-12 | B158: 59121 | C158: 325.39 | D158: EOM plus 10 days | E158: 10
A159: 2013-10-12 | B159: 59122 | C159: 329.75 | D159: EOM plus 5 days | E159: 5
A160: 2013-10-12 | B160: 59123 | C160: 47.73 | D160: EOM plus 5 days | E160: 5
A161: 2013-10-12 | B161: 59124 | C161: 75.07 | D161: EOM plus 10 days | E161: 10
A162: 2013-10-12 | B162: 59125 | C162: 152.39 | D162: EOM plus 5 days | E162: 5
A163: 2013-10-12 | B163: 59126 | C163: 285.69 | D163: EOM plus 5 days | E163: 5
A164: 2013-10-12 | B164: 59127 | C164: 284.08 | D164: EOM plus 5 days | E164: 5
A165: 2013-10-12 | B165: 59128 | C165: 111.94 | D165: EOM plus 10 days | E165: 10
A166: 2013-10-12 | B166: 59129 | C166: 58.69 | D166: EOM plus 10 days | E166: 10
A167: 2013-10-12 | B167: 59130 | C167: 74.29 | D167: EOM plus 10 days | E167: 10
A168: 2013-10-12 | B168: 59131 | C168: 230.41 | D168: EOM plus 10 days | E168: 10
A169: 2013-10-12 | B169: 59132 | C169: 348.47 | D169: EOM plus 5 days | E169: 5
A170: 2013-10-12 | B170: 59133 | C170: 357.34 | D170: EOM plus 20 days | E170: 20
A171: 2013-10-12 | B171: 59134 | C171: 145.47 | D171: EOM plus 20 days | E171: 20
A172: 2013-10-12 | B172: 59135 | C172: 48.37 | D172: EOM plus 10 days | E172: 10
A173: 2013-10-12 | B173: 59136 | C173: 342.34 | D173: EOM plus 10 days | E173: 10
A174: 2013-10-12 | B174: 59137 | C174: 278.18 | D174: EOM plus 5 days | E174: 5
A175: 2013-10-12 | B175: 59138 | C175: 324.29 | D175: EOM plus 10 days | E175: 10
A176: 2013-10-12 | B176: 59139 | C176: 76.45 | D176: EOM plus 15 days | E176: 15
A177: 2013-10-12 | B177: 59140 | C177: 114.44 | D177: EOM plus 10 days | E177: 10
A178: 2013-10-12 | B178: 59141 | C178: 125.72 | D178: EOM plus 5 days | E178: 5
A179: 2013-10-13 | B179: 59142 | C179: 111.16 | D179: EOM plus 15 days | E179: 15
A180: 2013-10-13 | B180: 59143 | C180: 46.82 | D180: EOM plus 5 days | E180: 5
A181: 2013-10-13 | B181: 59144 | C181: 213.48 | D181: EOM plus 10 days | E181: 10
A182: 2013-10-13 | B182: 59145 | C182: 128.81 | D182: EOM plus 10 days | E182: 10
A183: 2013-10-13 | B183: 59146 | C183: 380.16 | D183: EOM plus 10 days | E183: 10
A184: 2013-10-13 | B184: 59147 | C184: 71.74 | D184: EOM plus 5 days | E184: 5
A185: 2013-10-13 | B185: 59148 | C185: 340.88 | D185: EOM plus 15 days | E185: 15
A186: 2013-10-13 | B186: 59149 | C186: 182.63 | D186: EOM plus 5 days | E186: 5
A187: 2013-10-13 | B187: 59150 | C187: 260.07 | D187: EOM plus 5 days | E187: 5
A188: 2013-10-13 | B188: 59151 | C188: 314.4 | D188: EOM plus 10 days | E188: 10
A189: 2013-10-13 | B189: 59152 | C189: 49.44 | D189: EOM plus 10 days | E189: 10
A190: 2013-10-13 | B190: 59153 | C190: 39.53 | D190: EOM plus 5 days | E190: 5
A191: 2013-10-13 | B191: 59154 | C191: 157.85 | D191: EOM plus 5 days | E191: 5
A192: 2013-10-13 | B192: 59155 | C192: 99.53 | D192: EOM plus 10 days | E192: 10
A193: 2013-10-13 | B193: 59156 | C193: 180.01 | D193: EOM plus 5 days | E193: 5
A194: 2013-10-14 | B194: 59157 | C194: 168.56 | D194: EOM plus 10 days | E194: 10
A195: 2013-10-14 | B195: 59158 | C195: 169.08 | D195: EOM plus 5 days | E195: 5
A196: 2013-10-14 | B196: 59159 | C196: 39.12 | D196: EOM plus 10 days | E196: 10
A197: 2013-10-14 | B197: 59160 | C197: 78.98 | D197: ="EOM plus "&E197&" days" -> EOM plus 5 days | E197: 5
A198: 2013-10-14 | B198: 59161 | C198: 195.01 | D198: EOM plus 10 days | E198: 10
A199: 2013-10-14 | B199: 59162 | C199: 308.02 | D199: EOM plus 15 days | E199: 15
A200: 2013-10-14 | B200: 59163 | C200: 331.5 | D200: EOM plus 5 days | E200: 5
A201: 2013-10-14 | B201: 59164 | C201: 389.32 | D201: EOM plus 10 days | E201: 10
... 605 more rows

Sheet HW(9an)
A1: In the Discount Date column create a formula that will calculate a date that is "Days after EOM to get Discount" days past the end of the month for the date in the Date column.
A2: For example, if the date in the Date column is 10/3/2013 and the days in the "Days after EOM to get Discount" column is 10, the Discount Date should be 11/10/2013.
A4: Date | B4: Invoice Number | C4: Amount | D4: Terms | E4: Days after EOM to get Discount | F4: Discount Date | J4: Discount Date | L4: Equal?
A5: 2013-10-03 | B5: 58968 | C5: 320.98 | D5: ="EOM plus "&E5&" days" -> EOM plus 10 days | E5: 10 | F5: =EOMONTH(A5,0)+E5 -> 2013-11-10 | J5: =DATE(YEAR(A5),MONTH(A5)+1,E5) -> 2013-11-10 | L5: =J5=F5 -> TRUE
A6: 2013-10-03 | B6: 58969 | C6: 92.25 | D6: EOM plus 5 days | E6: 5 | F6: =EOMONTH(A6,0)+E6 -> 2013-11-05 | H6: or | J6: =DATE(YEAR(A6),MONTH(A6)+1,E6) -> 2013-11-05 | L6: =J6=F6 -> TRUE
A7: 2013-10-03 | B7: 58970 | C7: 47.54 | D7: EOM plus 15 days | E7: 15 | F7: 2013-11-15 | J7: 2013-11-15 | L7: TRUE
A8: 2013-10-03 | B8: 58971 | C8: 385.71 | D8: EOM plus 20 days | E8: 20 | F8: 2013-11-20 | J8: 2013-11-20 | L8: TRUE
A9: 2013-10-03 | B9: 58972 | C9: 216.01 | D9: EOM plus 20 days | E9: 20 | F9: 2013-11-20 | J9: 2013-11-20 | L9: TRUE
A10: 2013-10-03 | B10: 58973 | C10: 236.64 | D10: EOM plus 5 days | E10: 5 | F10: 2013-11-05 | J10: 2013-11-05 | L10: TRUE
A11: 2013-10-03 | B11: 58974 | C11: 107.74 | D11: EOM plus 5 days | E11: 5 | F11: 2013-11-05 | J11: 2013-11-05 | L11: TRUE
A12: 2013-10-03 | B12: 58975 | C12: 258.29 | D12: EOM plus 5 days | E12: 5 | F12: 2013-11-05 | J12: 2013-11-05 | L12: TRUE
A13: 2013-10-03 | B13: 58976 | C13: 87.58 | D13: EOM plus 10 days | E13: 10 | F13: 2013-11-10 | J13: 2013-11-10 | L13: TRUE
A14: 2013-10-03 | B14: 58977 | C14: 122.03 | D14: EOM plus 20 days | E14: 20 | F14: 2013-11-20 | J14: 2013-11-20 | L14: TRUE
A15: 2013-10-03 | B15: 58978 | C15: 88.41 | D15: EOM plus 10 days | E15: 10 | F15: 2013-11-10 | J15: 2013-11-10 | L15: TRUE
A16: 2013-10-04 | B16: 58979 | C16: 286.4 | D16: EOM plus 10 days | E16: 10 | F16: 2013-11-10 | J16: 2013-11-10 | L16: TRUE
A17: 2013-10-04 | B17: 58980 | C17: 277.09 | D17: EOM plus 5 days | E17: 5 | F17: 2013-11-05 | J17: 2013-11-05 | L17: TRUE
A18: 2013-10-04 | B18: 58981 | C18: 212.03 | D18: EOM plus 10 days | E18: 10 | F18: 2013-11-10 | J18: 2013-11-10 | L18: TRUE
A19: 2013-10-04 | B19: 58982 | C19: 130.04 | D19: EOM plus 15 days | E19: 15 | F19: 2013-11-15 | J19: 2013-11-15 | L19: TRUE
A20: 2013-10-04 | B20: 58983 | C20: 272.83 | D20: EOM plus 15 days | E20: 15 | F20: 2013-11-15 | J20: 2013-11-15 | L20: TRUE
A21: 2013-10-04 | B21: 58984 | C21: 68.44 | D21: EOM plus 10 days | E21: 10 | F21: 2013-11-10 | J21: 2013-11-10 | L21: TRUE
A22: 2013-10-04 | B22: 58985 | C22: 63.62 | D22: EOM plus 5 days | E22: 5 | F22: 2013-11-05 | J22: 2013-11-05 | L22: TRUE
A23: 2013-10-04 | B23: 58986 | C23: 245.92 | D23: EOM plus 5 days | E23: 5 | F23: 2013-11-05 | J23: 2013-11-05 | L23: TRUE
A24: 2013-10-04 | B24: 58987 | C24: 285.31 | D24: EOM plus 5 days | E24: 5 | F24: 2013-11-05 | J24: 2013-11-05 | L24: TRUE
A25: 2013-10-04 | B25: 58988 | C25: 256.69 | D25: EOM plus 10 days | E25: 10 | F25: 2013-11-10 | J25: 2013-11-10 | L25: TRUE
A26: 2013-10-04 | B26: 58989 | C26: 329.98 | D26: EOM plus 5 days | E26: 5 | F26: 2013-11-05 | J26: 2013-11-05 | L26: TRUE
A27: 2013-10-04 | B27: 58990 | C27: 293.24 | D27: EOM plus 10 days | E27: 10 | F27: 2013-11-10 | J27: 2013-11-10 | L27: TRUE
A28: 2013-10-05 | B28: 58991 | C28: 269.52 | D28: EOM plus 10 days | E28: 10 | F28: 2013-11-10 | J28: 2013-11-10 | L28: TRUE
A29: 2013-10-05 | B29: 58992 | C29: 46.21 | D29: EOM plus 10 days | E29: 10 | F29: 2013-11-10 | J29: 2013-11-10 | L29: TRUE
A30: 2013-10-05 | B30: 58993 | C30: 193.27 | D30: EOM plus 10 days | E30: 10 | F30: 2013-11-10 | J30: 2013-11-10 | L30: TRUE
A31: 2013-10-05 | B31: 58994 | C31: 323.79 | D31: EOM plus 10 days | E31: 10 | F31: 2013-11-10 | J31: 2013-11-10 | L31: TRUE
A32: 2013-10-05 | B32: 58995 | C32: 130.78 | D32: EOM plus 10 days | E32: 10 | F32: 2013-11-10 | J32: 2013-11-10 | L32: TRUE
A33: 2013-10-05 | B33: 58996 | C33: 222.56 | D33: EOM plus 10 days | E33: 10 | F33: 2013-11-10 | J33: 2013-11-10 | L33: TRUE
A34: 2013-10-05 | B34: 58997 | C34: 263.54 | D34: EOM plus 5 days | E34: 5 | F34: 2013-11-05 | J34: 2013-11-05 | L34: TRUE
A35: 2013-10-05 | B35: 58998 | C35: 209.94 | D35: EOM plus 5 days | E35: 5 | F35: 2013-11-05 | J35: 2013-11-05 | L35: TRUE
A36: 2013-10-05 | B36: 58999 | C36: 105.09 | D36: EOM plus 5 days | E36: 5 | F36: 2013-11-05 | J36: 2013-11-05 | L36: TRUE
A37: 2013-10-05 | B37: 59000 | C37: 173.68 | D37: EOM plus 15 days | E37: 15 | F37: 2013-11-15 | J37: 2013-11-15 | L37: TRUE
A38: 2013-10-05 | B38: 59001 | C38: 307.77 | D38: EOM plus 10 days | E38: 10 | F38: 2013-11-10 | J38: 2013-11-10 | L38: TRUE
A39: 2013-10-05 | B39: 59002 | C39: 149.06 | D39: EOM plus 5 days | E39: 5 | F39: 2013-11-05 | J39: 2013-11-05 | L39: TRUE
A40: 2013-10-06 | B40: 59003 | C40: 248.51 | D40: EOM plus 20 days | E40: 20 | F40: 2013-11-20 | J40: 2013-11-20 | L40: TRUE
A41: 2013-10-06 | B41: 59004 | C41: 231.73 | D41: EOM plus 5 days | E41: 5 | F41: 2013-11-05 | J41: 2013-11-05 | L41: TRUE
A42: 2013-10-06 | B42: 59005 | C42: 324.43 | D42: EOM plus 10 days | E42: 10 | F42: 2013-11-10 | J42: 2013-11-10 | L42: TRUE
A43: 2013-10-06 | B43: 59006 | C43: 249.58 | D43: EOM plus 5 days | E43: 5 | F43: 2013-11-05 | J43: 2013-11-05 | L43: TRUE
A44: 2013-10-06 | B44: 59007 | C44: 161.94 | D44: EOM plus 10 days | E44: 10 | F44: 2013-11-10 | J44: 2013-11-10 | L44: TRUE
A45: 2013-10-06 | B45: 59008 | C45: 247.87 | D45: EOM plus 10 days | E45: 10 | F45: 2013-11-10 | J45: 2013-11-10 | L45: TRUE
A46: 2013-10-06 | B46: 59009 | C46: 248.86 | D46: EOM plus 15 days | E46: 15 | F46: 2013-11-15 | J46: 2013-11-15 | L46: TRUE
A47: 2013-10-06 | B47: 59010 | C47: 235.98 | D47: EOM plus 10 days | E47: 10 | F47: 2013-11-10 | J47: 2013-11-10 | L47: TRUE
A48: 2013-10-06 | B48: 59011 | C48: 224.49 | D48: EOM plus 10 days | E48: 10 | F48: 2013-11-10 | J48: 2013-11-10 | L48: TRUE
A49: 2013-10-06 | B49: 59012 | C49: 256.42 | D49: EOM plus 15 days | E49: 15 | F49: 2013-11-15 | J49: 2013-11-15 | L49: TRUE
A50: 2013-10-06 | B50: 59013 | C50: 233.01 | D50: EOM plus 20 days | E50: 20 | F50: 2013-11-20 | J50: 2013-11-20 | L50: TRUE
A51: 2013-10-06 | B51: 59014 | C51: 379.98 | D51: EOM plus 15 days | E51: 15 | F51: 2013-11-15 | J51: 2013-11-15 | L51: TRUE
A52: 2013-10-06 | B52: 59015 | C52: 219.3 | D52: EOM plus 20 days | E52: 20 | F52: 2013-11-20 | J52: 2013-11-20 | L52: TRUE
A53: 2013-10-06 | B53: 59016 | C53: 371.22 | D53: EOM plus 20 days | E53: 20 | F53: 2013-11-20 | J53: 2013-11-20 | L53: TRUE
A54: 2013-10-06 | B54: 59017 | C54: 385.88 | D54: EOM plus 5 days | E54: 5 | F54: 2013-11-05 | J54: 2013-11-05 | L54: TRUE
A55: 2013-10-06 | B55: 59018 | C55: 155.65 | D55: EOM plus 5 days | E55: 5 | F55: 2013-11-05 | J55: 2013-11-05 | L55: TRUE
A56: 2013-10-07 | B56: 59019 | C56: 325.83 | D56: EOM plus 5 days | E56: 5 | F56: 2013-11-05 | J56: 2013-11-05 | L56: TRUE
A57: 2013-10-07 | B57: 59020 | C57: 101.09 | D57: EOM plus 5 days | E57: 5 | F57: 2013-11-05 | J57: 2013-11-05 | L57: TRUE
A58: 2013-10-07 | B58: 59021 | C58: 259.24 | D58: EOM plus 5 days | E58: 5 | F58: 2013-11-05 | J58: 2013-11-05 | L58: TRUE
A59: 2013-10-07 | B59: 59022 | C59: 188.54 | D59: EOM plus 5 days | E59: 5 | F59: 2013-11-05 | J59: 2013-11-05 | L59: TRUE
A60: 2013-10-07 | B60: 59023 | C60: 56.87 | D60: EOM plus 20 days | E60: 20 | F60: 2013-11-20 | J60: 2013-11-20 | L60: TRUE
A61: 2013-10-07 | B61: 59024 | C61: 241.46 | D61: EOM plus 10 days | E61: 10 | F61: 2013-11-10 | J61: 2013-11-10 | L61: TRUE
A62: 2013-10-07 | B62: 59025 | C62: 99.87 | D62: EOM plus 20 days | E62: 20 | F62: 2013-11-20 | J62: 2013-11-20 | L62: TRUE
A63: 2013-10-07 | B63: 59026 | C63: 52.75 | D63: EOM plus 5 days | E63: 5 | F63: 2013-11-05 | J63: 2013-11-05 | L63: TRUE
A64: 2013-10-07 | B64: 59027 | C64: 67.82 | D64: EOM plus 10 days | E64: 10 | F64: 2013-11-10 | J64: 2013-11-10 | L64: TRUE
A65: 2013-10-07 | B65: 59028 | C65: 114.91 | D65: EOM plus 5 days | E65: 5 | F65: 2013-11-05 | J65: 2013-11-05 | L65: TRUE
A66: 2013-10-07 | B66: 59029 | C66: 189.99 | D66: EOM plus 20 days | E66: 20 | F66: 2013-11-20 | J66: 2013-11-20 | L66: TRUE
A67: 2013-10-07 | B67: 59030 | C67: 280.49 | D67: EOM plus 10 days | E67: 10 | F67: 2013-11-10 | J67: 2013-11-10 | L67: TRUE
A68: 2013-10-07 | B68: 59031 | C68: 137.1 | D68: EOM plus 10 days | E68: 10 | F68: 2013-11-10 | J68: 2013-11-10 | L68: TRUE
A69: 2013-10-07 | B69: 59032 | C69: 182.84 | D69: ="EOM plus "&E69&" days" -> EOM plus 15 days | E69: 15 | F69: 2013-11-15 | J69: 2013-11-15 | L69: TRUE
A70: 2013-10-07 | B70: 59033 | C70: 327.65 | D70: EOM plus 10 days | E70: 10 | F70: =EOMONTH(A70,0)+E70 -> 2013-11-10 | J70: =DATE(YEAR(A70),MONTH(A70)+1,E70) -> 2013-11-10 | L70: =J70=F70 -> TRUE
A71: 2013-10-07 | B71: 59034 | C71: 269.27 | D71: EOM plus 5 days | E71: 5 | F71: 2013-11-05 | J71: 2013-11-05 | L71: TRUE
A72: 2013-10-07 | B72: 59035 | C72: 92.39 | D72: EOM plus 20 days | E72: 20 | F72: 2013-11-20 | J72: 2013-11-20 | L72: TRUE
A73: 2013-10-07 | B73: 59036 | C73: 97.21 | D73: EOM plus 5 days | E73: 5 | F73: 2013-11-05 | J73: 2013-11-05 | L73: TRUE
A74: 2013-10-08 | B74: 59037 | C74: 97.59 | D74: EOM plus 10 days | E74: 10 | F74: 2013-11-10 | J74: 2013-11-10 | L74: TRUE
A75: 2013-10-08 | B75: 59038 | C75: 353.5 | D75: EOM plus 15 days | E75: 15 | F75: 2013-11-15 | J75: 2013-11-15 | L75: TRUE
A76: 2013-10-08 | B76: 59039 | C76: 130.79 | D76: EOM plus 10 days | E76: 10 | F76: 2013-11-10 | J76: 2013-11-10 | L76: TRUE
A77: 2013-10-08 | B77: 59040 | C77: 379.46 | D77: EOM plus 15 days | E77: 15 | F77: 2013-11-15 | J77: 2013-11-15 | L77: TRUE
A78: 2013-10-08 | B78: 59041 | C78: 143.1 | D78: EOM plus 5 days | E78: 5 | F78: 2013-11-05 | J78: 2013-11-05 | L78: TRUE
A79: 2013-10-08 | B79: 59042 | C79: 163.51 | D79: EOM plus 10 days | E79: 10 | F79: 2013-11-10 | J79: 2013-11-10 | L79: TRUE
A80: 2013-10-08 | B80: 59043 | C80: 131.96 | D80: EOM plus 5 days | E80: 5 | F80: 2013-11-05 | J80: 2013-11-05 | L80: TRUE
A81: 2013-10-08 | B81: 59044 | C81: 365.99 | D81: EOM plus 15 days | E81: 15 | F81: 2013-11-15 | J81: 2013-11-15 | L81: TRUE
A82: 2013-10-08 | B82: 59045 | C82: 311.21 | D82: EOM plus 10 days | E82: 10 | F82: 2013-11-10 | J82: 2013-11-10 | L82: TRUE
A83: 2013-10-08 | B83: 59046 | C83: 163.17 | D83: EOM plus 10 days | E83: 10 | F83: 2013-11-10 | J83: 2013-11-10 | L83: TRUE
A84: 2013-10-08 | B84: 59047 | C84: 68.66 | D84: EOM plus 10 days | E84: 10 | F84: 2013-11-10 | J84: 2013-11-10 | L84: TRUE
A85: 2013-10-08 | B85: 59048 | C85: 72.08 | D85: EOM plus 15 days | E85: 15 | F85: 2013-11-15 | J85: 2013-11-15 | L85: TRUE
A86: 2013-10-08 | B86: 59049 | C86: 363.6 | D86: EOM plus 15 days | E86: 15 | F86: 2013-11-15 | J86: 2013-11-15 | L86: TRUE
A87: 2013-10-08 | B87: 59050 | C87: 291.38 | D87: EOM plus 5 days | E87: 5 | F87: 2013-11-05 | J87: 2013-11-05 | L87: TRUE
A88: 2013-10-08 | B88: 59051 | C88: 317.54 | D88: EOM plus 10 days | E88: 10 | F88: 2013-11-10 | J88: 2013-11-10 | L88: TRUE
A89: 2013-10-08 | B89: 59052 | C89: 381.83 | D89: EOM plus 5 days | E89: 5 | F89: 2013-11-05 | J89: 2013-11-05 | L89: TRUE
A90: 2013-10-08 | B90: 59053 | C90: 199.1 | D90: EOM plus 15 days | E90: 15 | F90: 2013-11-15 | J90: 2013-11-15 | L90: TRUE
A91: 2013-10-08 | B91: 59054 | C91: 194.58 | D91: EOM plus 10 days | E91: 10 | F91: 2013-11-10 | J91: 2013-11-10 | L91: TRUE
A92: 2013-10-08 | B92: 59055 | C92: 84.63 | D92: EOM plus 20 days | E92: 20 | F92: 2013-11-20 | J92: 2013-11-20 | L92: TRUE
A93: 2013-10-08 | B93: 59056 | C93: 174.5 | D93: EOM plus 5 days | E93: 5 | F93: 2013-11-05 | J93: 2013-11-05 | L93: TRUE
A94: 2013-10-09 | B94: 59057 | C94: 70.51 | D94: EOM plus 5 days | E94: 5 | F94: 2013-11-05 | J94: 2013-11-05 | L94: TRUE
A95: 2013-10-09 | B95: 59058 | C95: 243.02 | D95: EOM plus 5 days | E95: 5 | F95: 2013-11-05 | J95: 2013-11-05 | L95: TRUE
A96: 2013-10-09 | B96: 59059 | C96: 185.32 | D96: EOM plus 10 days | E96: 10 | F96: 2013-11-10 | J96: 2013-11-10 | L96: TRUE
A97: 2013-10-09 | B97: 59060 | C97: 344.37 | D97: EOM plus 10 days | E97: 10 | F97: 2013-11-10 | J97: 2013-11-10 | L97: TRUE
A98: 2013-10-09 | B98: 59061 | C98: 192.89 | D98: EOM plus 10 days | E98: 10 | F98: 2013-11-10 | J98: 2013-11-10 | L98: TRUE
A99: 2013-10-09 | B99: 59062 | C99: 343.18 | D99: EOM plus 10 days | E99: 10 | F99: 2013-11-10 | J99: 2013-11-10 | L99: TRUE
A100: 2013-10-09 | B100: 59063 | C100: 233.61 | D100: EOM plus 5 days | E100: 5 | F100: 2013-11-05 | J100: 2013-11-05 | L100: TRUE
A101: 2013-10-09 | B101: 59064 | C101: 263.82 | D101: EOM plus 20 days | E101: 20 | F101: 2013-11-20 | J101: 2013-11-20 | L101: TRUE
A102: 2013-10-09 | B102: 59065 | C102: 42.16 | D102: EOM plus 15 days | E102: 15 | F102: 2013-11-15 | J102: 2013-11-15 | L102: TRUE
A103: 2013-10-09 | B103: 59066 | C103: 193.92 | D103: EOM plus 20 days | E103: 20 | F103: 2013-11-20 | J103: 2013-11-20 | L103: TRUE
A104: 2013-10-09 | B104: 59067 | C104: 263.2 | D104: EOM plus 20 days | E104: 20 | F104: 2013-11-20 | J104: 2013-11-20 | L104: TRUE
A105: 2013-10-09 | B105: 59068 | C105: 237.3 | D105: EOM plus 10 days | E105: 10 | F105: 2013-11-10 | J105: 2013-11-10 | L105: TRUE
A106: 2013-10-09 | B106: 59069 | C106: 335.98 | D106: EOM plus 20 days | E106: 20 | F106: 2013-11-20 | J106: 2013-11-20 | L106: TRUE
A107: 2013-10-09 | B107: 59070 | C107: 89.59 | D107: EOM plus 20 days | E107: 20 | F107: 2013-11-20 | J107: 2013-11-20 | L107: TRUE
A108: 2013-10-09 | B108: 59071 | C108: 273.16 | D108: EOM plus 10 days | E108: 10 | F108: 2013-11-10 | J108: 2013-11-10 | L108: TRUE
A109: 2013-10-09 | B109: 59072 | C109: 160.41 | D109: EOM plus 5 days | E109: 5 | F109: 2013-11-05 | J109: 2013-11-05 | L109: TRUE
A110: 2013-10-10 | B110: 59073 | C110: 111.8 | D110: EOM plus 20 days | E110: 20 | F110: 2013-11-20 | J110: 2013-11-20 | L110: TRUE
A111: 2013-10-10 | B111: 59074 | C111: 57.68 | D111: EOM plus 10 days | E111: 10 | F111: 2013-11-10 | J111: 2013-11-10 | L111: TRUE
A112: 2013-10-10 | B112: 59075 | C112: 172.57 | D112: EOM plus 20 days | E112: 20 | F112: 2013-11-20 | J112: 2013-11-20 | L112: TRUE
A113: 2013-10-10 | B113: 59076 | C113: 265.03 | D113: EOM plus 5 days | E113: 5 | F113: 2013-11-05 | J113: 2013-11-05 | L113: TRUE
A114: 2013-10-10 | B114: 59077 | C114: 253.47 | D114: EOM plus 5 days | E114: 5 | F114: 2013-11-05 | J114: 2013-11-05 | L114: TRUE
A115: 2013-10-10 | B115: 59078 | C115: 344.94 | D115: EOM plus 10 days | E115: 10 | F115: 2013-11-10 | J115: 2013-11-10 | L115: TRUE
A116: 2013-10-10 | B116: 59079 | C116: 159.99 | D116: EOM plus 10 days | E116: 10 | F116: 2013-11-10 | J116: 2013-11-10 | L116: TRUE
A117: 2013-10-10 | B117: 59080 | C117: 333.4 | D117: EOM plus 15 days | E117: 15 | F117: 2013-11-15 | J117: 2013-11-15 | L117: TRUE
A118: 2013-10-10 | B118: 59081 | C118: 107.94 | D118: EOM plus 10 days | E118: 10 | F118: 2013-11-10 | J118: 2013-11-10 | L118: TRUE
A119: 2013-10-10 | B119: 59082 | C119: 71.91 | D119: EOM plus 15 days | E119: 15 | F119: 2013-11-15 | J119: 2013-11-15 | L119: TRUE
A120: 2013-10-10 | B120: 59083 | C120: 72.51 | D120: EOM plus 10 days | E120: 10 | F120: 2013-11-10 | J120: 2013-11-10 | L120: TRUE
A121: 2013-10-10 | B121: 59084 | C121: 163.51 | D121: EOM plus 15 days | E121: 15 | F121: 2013-11-15 | J121: 2013-11-15 | L121: TRUE
A122: 2013-10-10 | B122: 59085 | C122: 83.31 | D122: EOM plus 5 days | E122: 5 | F122: 2013-11-05 | J122: 2013-11-05 | L122: TRUE
A123: 2013-10-10 | B123: 59086 | C123: 178.08 | D123: EOM plus 10 days | E123: 10 | F123: 2013-11-10 | J123: 2013-11-10 | L123: TRUE
A124: 2013-10-10 | B124: 59087 | C124: 133.58 | D124: EOM plus 10 days | E124: 10 | F124: 2013-11-10 | J124: 2013-11-10 | L124: TRUE
A125: 2013-10-10 | B125: 59088 | C125: 332.54 | D125: EOM plus 20 days | E125: 20 | F125: 2013-11-20 | J125: 2013-11-20 | L125: TRUE
A126: 2013-10-10 | B126: 59089 | C126: 170.48 | D126: EOM plus 10 days | E126: 10 | F126: 2013-11-10 | J126: 2013-11-10 | L126: TRUE
A127: 2013-10-10 | B127: 59090 | C127: 328.78 | D127: EOM plus 10 days | E127: 10 | F127: 2013-11-10 | J127: 2013-11-10 | L127: TRUE
A128: 2013-10-10 | B128: 59091 | C128: 200.31 | D128: EOM plus 5 days | E128: 5 | F128: 2013-11-05 | J128: 2013-11-05 | L128: TRUE
A129: 2013-10-10 | B129: 59092 | C129: 152.29 | D129: EOM plus 20 days | E129: 20 | F129: 2013-11-20 | J129: 2013-11-20 | L129: TRUE
A130: 2013-10-10 | B130: 59093 | C130: 304.71 | D130: EOM plus 20 days | E130: 20 | F130: 2013-11-20 | J130: 2013-11-20 | L130: TRUE
A131: 2013-10-10 | B131: 59094 | C131: 371.78 | D131: EOM plus 10 days | E131: 10 | F131: 2013-11-10 | J131: 2013-11-10 | L131: TRUE
A132: 2013-10-11 | B132: 59095 | C132: 204.74 | D132: EOM plus 10 days | E132: 10 | F132: 2013-11-10 | J132: 2013-11-10 | L132: TRUE
A133: 2013-10-11 | B133: 59096 | C133: 169.07 | D133: ="EOM plus "&E133&" days" -> EOM plus 10 days | E133: 10 | F133: 2013-11-10 | J133: 2013-11-10 | L133: TRUE
A134: 2013-10-11 | B134: 59097 | C134: 321.23 | D134: EOM plus 5 days | E134: 5 | F134: =EOMONTH(A134,0)+E134 -> 2013-11-05 | J134: =DATE(YEAR(A134),MONTH(A134)+1,E134) -> 2013-11-05 | L134: =J134=F134 -> TRUE
A135: 2013-10-11 | B135: 59098 | C135: 266.53 | D135: EOM plus 5 days | E135: 5 | F135: 2013-11-05 | J135: 2013-11-05 | L135: TRUE
A136: 2013-10-11 | B136: 59099 | C136: 262.87 | D136: EOM plus 5 days | E136: 5 | F136: 2013-11-05 | J136: 2013-11-05 | L136: TRUE
A137: 2013-10-11 | B137: 59100 | C137: 103.58 | D137: EOM plus 10 days | E137: 10 | F137: 2013-11-10 | J137: 2013-11-10 | L137: TRUE
A138: 2013-10-11 | B138: 59101 | C138: 218.88 | D138: EOM plus 10 days | E138: 10 | F138: 2013-11-10 | J138: 2013-11-10 | L138: TRUE
A139: 2013-10-11 | B139: 59102 | C139: 271.44 | D139: EOM plus 15 days | E139: 15 | F139: 2013-11-15 | J139: 2013-11-15 | L139: TRUE
A140: 2013-10-11 | B140: 59103 | C140: 309.05 | D140: EOM plus 20 days | E140: 20 | F140: 2013-11-20 | J140: 2013-11-20 | L140: TRUE
A141: 2013-10-11 | B141: 59104 | C141: 243.41 | D141: EOM plus 20 days | E141: 20 | F141: 2013-11-20 | J141: 2013-11-20 | L141: TRUE
A142: 2013-10-11 | B142: 59105 | C142: 43.12 | D142: EOM plus 5 days | E142: 5 | F142: 2013-11-05 | J142: 2013-11-05 | L142: TRUE
A143: 2013-10-11 | B143: 59106 | C143: 202.33 | D143: EOM plus 10 days | E143: 10 | F143: 2013-11-10 | J143: 2013-11-10 | L143: TRUE
A144: 2013-10-11 | B144: 59107 | C144: 77.84 | D144: EOM plus 5 days | E144: 5 | F144: 2013-11-05 | J144: 2013-11-05 | L144: TRUE
A145: 2013-10-11 | B145: 59108 | C145: 63 | D145: EOM plus 15 days | E145: 15 | F145: 2013-11-15 | J145: 2013-11-15 | L145: TRUE
A146: 2013-10-11 | B146: 59109 | C146: 157.48 | D146: EOM plus 15 days | E146: 15 | F146: 2013-11-15 | J146: 2013-11-15 | L146: TRUE
A147: 2013-10-11 | B147: 59110 | C147: 37.21 | D147: EOM plus 15 days | E147: 15 | F147: 2013-11-15 | J147: 2013-11-15 | L147: TRUE
A148: 2013-10-11 | B148: 59111 | C148: 259.35 | D148: EOM plus 10 days | E148: 10 | F148: 2013-11-10 | J148: 2013-11-10 | L148: TRUE
A149: 2013-10-11 | B149: 59112 | C149: 227.62 | D149: EOM plus 10 days | E149: 10 | F149: 2013-11-10 | J149: 2013-11-10 | L149: TRUE
A150: 2013-10-11 | B150: 59113 | C150: 40.02 | D150: EOM plus 20 days | E150: 20 | F150: 2013-11-20 | J150: 2013-11-20 | L150: TRUE
A151: 2013-10-11 | B151: 59114 | C151: 246.71 | D151: EOM plus 10 days | E151: 10 | F151: 2013-11-10 | J151: 2013-11-10 | L151: TRUE
A152: 2013-10-11 | B152: 59115 | C152: 120.66 | D152: EOM plus 10 days | E152: 10 | F152: 2013-11-10 | J152: 2013-11-10 | L152: TRUE
A153: 2013-10-11 | B153: 59116 | C153: 53.84 | D153: EOM plus 20 days | E153: 20 | F153: 2013-11-20 | J153: 2013-11-20 | L153: TRUE
A154: 2013-10-11 | B154: 59117 | C154: 90.75 | D154: EOM plus 10 days | E154: 10 | F154: 2013-11-10 | J154: 2013-11-10 | L154: TRUE
A155: 2013-10-11 | B155: 59118 | C155: 66.25 | D155: EOM plus 15 days | E155: 15 | F155: 2013-11-15 | J155: 2013-11-15 | L155: TRUE
A156: 2013-10-11 | B156: 59119 | C156: 329.61 | D156: EOM plus 10 days | E156: 10 | F156: 2013-11-10 | J156: 2013-11-10 | L156: TRUE
A157: 2013-10-11 | B157: 59120 | C157: 322.38 | D157: EOM plus 10 days | E157: 10 | F157: 2013-11-10 | J157: 2013-11-10 | L157: TRUE
A158: 2013-10-12 | B158: 59121 | C158: 325.39 | D158: EOM plus 10 days | E158: 10 | F158: 2013-11-10 | J158: 2013-11-10 | L158: TRUE
A159: 2013-10-12 | B159: 59122 | C159: 329.75 | D159: EOM plus 5 days | E159: 5 | F159: 2013-11-05 | J159: 2013-11-05 | L159: TRUE
A160: 2013-10-12 | B160: 59123 | C160: 47.73 | D160: EOM plus 5 days | E160: 5 | F160: 2013-11-05 | J160: 2013-11-05 | L160: TRUE
A161: 2013-10-12 | B161: 59124 | C161: 75.07 | D161: EOM plus 10 days | E161: 10 | F161: 2013-11-10 | J161: 2013-11-10 | L161: TRUE
A162: 2013-10-12 | B162: 59125 | C162: 152.39 | D162: EOM plus 5 days | E162: 5 | F162: 2013-11-05 | J162: 2013-11-05 | L162: TRUE
A163: 2013-10-12 | B163: 59126 | C163: 285.69 | D163: EOM plus 5 days | E163: 5 | F163: 2013-11-05 | J163: 2013-11-05 | L163: TRUE
A164: 2013-10-12 | B164: 59127 | C164: 284.08 | D164: EOM plus 5 days | E164: 5 | F164: 2013-11-05 | J164: 2013-11-05 | L164: TRUE
A165: 2013-10-12 | B165: 59128 | C165: 111.94 | D165: EOM plus 10 days | E165: 10 | F165: 2013-11-10 | J165: 2013-11-10 | L165: TRUE
A166: 2013-10-12 | B166: 59129 | C166: 58.69 | D166: EOM plus 10 days | E166: 10 | F166: 2013-11-10 | J166: 2013-11-10 | L166: TRUE
A167: 2013-10-12 | B167: 59130 | C167: 74.29 | D167: EOM plus 10 days | E167: 10 | F167: 2013-11-10 | J167: 2013-11-10 | L167: TRUE
A168: 2013-10-12 | B168: 59131 | C168: 230.41 | D168: EOM plus 10 days | E168: 10 | F168: 2013-11-10 | J168: 2013-11-10 | L168: TRUE
A169: 2013-10-12 | B169: 59132 | C169: 348.47 | D169: EOM plus 5 days | E169: 5 | F169: 2013-11-05 | J169: 2013-11-05 | L169: TRUE
A170: 2013-10-12 | B170: 59133 | C170: 357.34 | D170: EOM plus 20 days | E170: 20 | F170: 2013-11-20 | J170: 2013-11-20 | L170: TRUE
A171: 2013-10-12 | B171: 59134 | C171: 145.47 | D171: EOM plus 20 days | E171: 20 | F171: 2013-11-20 | J171: 2013-11-20 | L171: TRUE
A172: 2013-10-12 | B172: 59135 | C172: 48.37 | D172: EOM plus 10 days | E172: 10 | F172: 2013-11-10 | J172: 2013-11-10 | L172: TRUE
A173: 2013-10-12 | B173: 59136 | C173: 342.34 | D173: EOM plus 10 days | E173: 10 | F173: 2013-11-10 | J173: 2013-11-10 | L173: TRUE
A174: 2013-10-12 | B174: 59137 | C174: 278.18 | D174: EOM plus 5 days | E174: 5 | F174: 2013-11-05 | J174: 2013-11-05 | L174: TRUE
A175: 2013-10-12 | B175: 59138 | C175: 324.29 | D175: EOM plus 10 days | E175: 10 | F175: 2013-11-10 | J175: 2013-11-10 | L175: TRUE
A176: 2013-10-12 | B176: 59139 | C176: 76.45 | D176: EOM plus 15 days | E176: 15 | F176: 2013-11-15 | J176: 2013-11-15 | L176: TRUE
A177: 2013-10-12 | B177: 59140 | C177: 114.44 | D177: EOM plus 10 days | E177: 10 | F177: 2013-11-10 | J177: 2013-11-10 | L177: TRUE
A178: 2013-10-12 | B178: 59141 | C178: 125.72 | D178: EOM plus 5 days | E178: 5 | F178: 2013-11-05 | J178: 2013-11-05 | L178: TRUE
A179: 2013-10-13 | B179: 59142 | C179: 111.16 | D179: EOM plus 15 days | E179: 15 | F179: 2013-11-15 | J179: 2013-11-15 | L179: TRUE
A180: 2013-10-13 | B180: 59143 | C180: 46.82 | D180: EOM plus 5 days | E180: 5 | F180: 2013-11-05 | J180: 2013-11-05 | L180: TRUE
A181: 2013-10-13 | B181: 59144 | C181: 213.48 | D181: EOM plus 10 days | E181: 10 | F181: 2013-11-10 | J181: 2013-11-10 | L181: TRUE
A182: 2013-10-13 | B182: 59145 | C182: 128.81 | D182: EOM plus 10 days | E182: 10 | F182: 2013-11-10 | J182: 2013-11-10 | L182: TRUE
A183: 2013-10-13 | B183: 59146 | C183: 380.16 | D183: EOM plus 10 days | E183: 10 | F183: 2013-11-10 | J183: 2013-11-10 | L183: TRUE
A184: 2013-10-13 | B184: 59147 | C184: 71.74 | D184: EOM plus 5 days | E184: 5 | F184: 2013-11-05 | J184: 2013-11-05 | L184: TRUE
A185: 2013-10-13 | B185: 59148 | C185: 340.88 | D185: EOM plus 15 days | E185: 15 | F185: 2013-11-15 | J185: 2013-11-15 | L185: TRUE
A186: 2013-10-13 | B186: 59149 | C186: 182.63 | D186: EOM plus 5 days | E186: 5 | F186: 2013-11-05 | J186: 2013-11-05 | L186: TRUE
A187: 2013-10-13 | B187: 59150 | C187: 260.07 | D187: EOM plus 5 days | E187: 5 | F187: 2013-11-05 | J187: 2013-11-05 | L187: TRUE
A188: 2013-10-13 | B188: 59151 | C188: 314.4 | D188: EOM plus 10 days | E188: 10 | F188: 2013-11-10 | J188: 2013-11-10 | L188: TRUE
A189: 2013-10-13 | B189: 59152 | C189: 49.44 | D189: EOM plus 10 days | E189: 10 | F189: 2013-11-10 | J189: 2013-11-10 | L189: TRUE
A190: 2013-10-13 | B190: 59153 | C190: 39.53 | D190: EOM plus 5 days | E190: 5 | F190: 2013-11-05 | J190: 2013-11-05 | L190: TRUE
A191: 2013-10-13 | B191: 59154 | C191: 157.85 | D191: EOM plus 5 days | E191: 5 | F191: 2013-11-05 | J191: 2013-11-05 | L191: TRUE
A192: 2013-10-13 | B192: 59155 | C192: 99.53 | D192: EOM plus 10 days | E192: 10 | F192: 2013-11-10 | J192: 2013-11-10 | L192: TRUE
A193: 2013-10-13 | B193: 59156 | C193: 180.01 | D193: EOM plus 5 days | E193: 5 | F193: 2013-11-05 | J193: 2013-11-05 | L193: TRUE
A194: 2013-10-14 | B194: 59157 | C194: 168.56 | D194: EOM plus 10 days | E194: 10 | F194: 2013-11-10 | J194: 2013-11-10 | L194: TRUE
A195: 2013-10-14 | B195: 59158 | C195: 169.08 | D195: EOM plus 5 days | E195: 5 | F195: 2013-11-05 | J195: 2013-11-05 | L195: TRUE
A196: 2013-10-14 | B196: 59159 | C196: 39.12 | D196: EOM plus 10 days | E196: 10 | F196: 2013-11-10 | J196: 2013-11-10 | L196: TRUE
A197: 2013-10-14 | B197: 59160 | C197: 78.98 | D197: ="EOM plus "&E197&" days" -> EOM plus 5 days | E197: 5 | F197: 2013-11-05 | J197: 2013-11-05 | L197: TRUE
A198: 2013-10-14 | B198: 59161 | C198: 195.01 | D198: EOM plus 10 days | E198: 10 | F198: =EOMONTH(A198,0)+E198 -> 2013-11-10 | J198: =DATE(YEAR(A198),MONTH(A198)+1,E198) -> 2013-11-10 | L198: =J198=F198 -> TRUE
A199: 2013-10-14 | B199: 59162 | C199: 308.02 | D199: EOM plus 15 days | E199: 15 | F199: 2013-11-15 | J199: 2013-11-15 | L199: TRUE
A200: 2013-10-14 | B200: 59163 | C200: 331.5 | D200: EOM plus 5 days | E200: 5 | F200: 2013-11-05 | J200: 2013-11-05 | L200: TRUE
A201: 2013-10-14 | B201: 59164 | C201: 389.32 | D201: EOM plus 10 days | E201: 10 | F201: 2013-11-10 | J201: 2013-11-10 | L201: TRUE
... 605 more rows

Sheet HW(10)
A1: Calculate the Due Date for each invoice.
A4: Date | B4: Invoice Number | C4: Amount | D4: Terms | E4: Due Date
A5: 2013-10-03 | B5: 58968 | C5: 320.98 | D5: Due Date is 1 month ahead.
A6: 2013-10-03 | B6: 58969 | C6: 92.25 | D6: Due Date is 1 month ahead.
A7: 2013-10-03 | B7: 58970 | C7: 47.54 | D7: Due Date is 1 month ahead.
A8: 2013-10-03 | B8: 58971 | C8: 385.71 | D8: Due Date is 1 month ahead.
A9: 2013-10-03 | B9: 58972 | C9: 216.01 | D9: Due Date is 1 month ahead.
A10: 2013-10-03 | B10: 58973 | C10: 236.64 | D10: Due Date is 1 month ahead.
A11: 2013-10-03 | B11: 58974 | C11: 107.74 | D11: Due Date is 1 month ahead.
A12: 2013-10-03 | B12: 58975 | C12: 258.29 | D12: Due Date is 1 month ahead.
A13: 2013-10-03 | B13: 58976 | C13: 87.58 | D13: Due Date is 1 month ahead.
A14: 2013-10-03 | B14: 58977 | C14: 122.03 | D14: Due Date is 1 month ahead.
A15: 2013-10-03 | B15: 58978 | C15: 88.41 | D15: Due Date is 1 month ahead.
A16: 2013-10-04 | B16: 58979 | C16: 286.4 | D16: Due Date is 1 month ahead.
A17: 2013-10-04 | B17: 58980 | C17: 277.09 | D17: Due Date is 1 month ahead.
A18: 2013-10-04 | B18: 58981 | C18: 212.03 | D18: Due Date is 1 month ahead.
A19: 2013-10-04 | B19: 58982 | C19: 130.04 | D19: Due Date is 1 month ahead.
A20: 2013-10-04 | B20: 58983 | C20: 272.83 | D20: Due Date is 1 month ahead.
A21: 2013-10-04 | B21: 58984 | C21: 68.44 | D21: Due Date is 1 month ahead.
A22: 2013-10-04 | B22: 58985 | C22: 63.62 | D22: Due Date is 1 month ahead.
A23: 2013-10-04 | B23: 58986 | C23: 245.92 | D23: Due Date is 1 month ahead.
A24: 2013-10-04 | B24: 58987 | C24: 285.31 | D24: Due Date is 1 month ahead.
A25: 2013-10-04 | B25: 58988 | C25: 256.69 | D25: Due Date is 1 month ahead.
A26: 2013-10-04 | B26: 58989 | C26: 329.98 | D26: Due Date is 1 month ahead.
A27: 2013-10-04 | B27: 58990 | C27: 293.24 | D27: Due Date is 1 month ahead.
A28: 2013-10-05 | B28: 58991 | C28: 269.52 | D28: Due Date is 1 month ahead.
A29: 2013-10-05 | B29: 58992 | C29: 46.21 | D29: Due Date is 1 month ahead.
A30: 2013-10-05 | B30: 58993 | C30: 193.27 | D30: Due Date is 1 month ahead.
A31: 2013-10-05 | B31: 58994 | C31: 323.79 | D31: Due Date is 1 month ahead.
A32: 2013-10-05 | B32: 58995 | C32: 130.78 | D32: Due Date is 1 month ahead.
A33: 2013-10-05 | B33: 58996 | C33: 222.56 | D33: Due Date is 1 month ahead.
A34: 2013-10-05 | B34: 58997 | C34: 263.54 | D34: Due Date is 1 month ahead.
A35: 2013-10-05 | B35: 58998 | C35: 209.94 | D35: Due Date is 1 month ahead.
A36: 2013-10-05 | B36: 58999 | C36: 105.09 | D36: Due Date is 1 month ahead.
A37: 2013-10-05 | B37: 59000 | C37: 173.68 | D37: Due Date is 1 month ahead.
A38: 2013-10-05 | B38: 59001 | C38: 307.77 | D38: Due Date is 1 month ahead.
A39: 2013-10-05 | B39: 59002 | C39: 149.06 | D39: Due Date is 1 month ahead.
A40: 2013-10-06 | B40: 59003 | C40: 248.51 | D40: Due Date is 1 month ahead.
A41: 2013-10-06 | B41: 59004 | C41: 231.73 | D41: Due Date is 1 month ahead.
A42: 2013-10-06 | B42: 59005 | C42: 324.43 | D42: Due Date is 1 month ahead.
A43: 2013-10-06 | B43: 59006 | C43: 249.58 | D43: Due Date is 1 month ahead.
A44: 2013-10-06 | B44: 59007 | C44: 161.94 | D44: Due Date is 1 month ahead.
A45: 2013-10-06 | B45: 59008 | C45: 247.87 | D45: Due Date is 1 month ahead.
A46: 2013-10-06 | B46: 59009 | C46: 248.86 | D46: Due Date is 1 month ahead.
A47: 2013-10-06 | B47: 59010 | C47: 235.98 | D47: Due Date is 1 month ahead.
A48: 2013-10-06 | B48: 59011 | C48: 224.49 | D48: Due Date is 1 month ahead.
A49: 2013-10-06 | B49: 59012 | C49: 256.42 | D49: Due Date is 1 month ahead.
A50: 2013-10-06 | B50: 59013 | C50: 233.01 | D50: Due Date is 1 month ahead.
A51: 2013-10-06 | B51: 59014 | C51: 379.98 | D51: Due Date is 1 month ahead.
A52: 2013-10-06 | B52: 59015 | C52: 219.3 | D52: Due Date is 1 month ahead.
A53: 2013-10-06 | B53: 59016 | C53: 371.22 | D53: Due Date is 1 month ahead.
A54: 2013-10-06 | B54: 59017 | C54: 385.88 | D54: Due Date is 1 month ahead.
A55: 2013-10-06 | B55: 59018 | C55: 155.65 | D55: Due Date is 1 month ahead.
A56: 2013-10-07 | B56: 59019 | C56: 325.83 | D56: Due Date is 1 month ahead.
A57: 2013-10-07 | B57: 59020 | C57: 101.09 | D57: Due Date is 1 month ahead.
A58: 2013-10-07 | B58: 59021 | C58: 259.24 | D58: Due Date is 1 month ahead.
A59: 2013-10-07 | B59: 59022 | C59: 188.54 | D59: Due Date is 1 month ahead.
A60: 2013-10-07 | B60: 59023 | C60: 56.87 | D60: Due Date is 1 month ahead.
A61: 2013-10-07 | B61: 59024 | C61: 241.46 | D61: Due Date is 1 month ahead.
A62: 2013-10-07 | B62: 59025 | C62: 99.87 | D62: Due Date is 1 month ahead.
A63: 2013-10-07 | B63: 59026 | C63: 52.75 | D63: Due Date is 1 month ahead.
A64: 2013-10-07 | B64: 59027 | C64: 67.82 | D64: Due Date is 1 month ahead.
A65: 2013-10-07 | B65: 59028 | C65: 114.91 | D65: Due Date is 1 month ahead.
A66: 2013-10-07 | B66: 59029 | C66: 189.99 | D66: Due Date is 1 month ahead.
A67: 2013-10-07 | B67: 59030 | C67: 280.49 | D67: Due Date is 1 month ahead.
A68: 2013-10-07 | B68: 59031 | C68: 137.1 | D68: Due Date is 1 month ahead.
A69: 2013-10-07 | B69: 59032 | C69: 182.84 | D69: Due Date is 1 month ahead.
A70: 2013-10-07 | B70: 59033 | C70: 327.65 | D70: Due Date is 1 month ahead.
A71: 2013-10-07 | B71: 59034 | C71: 269.27 | D71: Due Date is 1 month ahead.
A72: 2013-10-07 | B72: 59035 | C72: 92.39 | D72: Due Date is 1 month ahead.
A73: 2013-10-07 | B73: 59036 | C73: 97.21 | D73: Due Date is 1 month ahead.
A74: 2013-10-08 | B74: 59037 | C74: 97.59 | D74: Due Date is 1 month ahead.
A75: 2013-10-08 | B75: 59038 | C75: 353.5 | D75: Due Date is 1 month ahead.
A76: 2013-10-08 | B76: 59039 | C76: 130.79 | D76: Due Date is 1 month ahead.
A77: 2013-10-08 | B77: 59040 | C77: 379.46 | D77: Due Date is 1 month ahead.
A78: 2013-10-08 | B78: 59041 | C78: 143.1 | D78: Due Date is 1 month ahead.
A79: 2013-10-08 | B79: 59042 | C79: 163.51 | D79: Due Date is 1 month ahead.
A80: 2013-10-08 | B80: 59043 | C80: 131.96 | D80: Due Date is 1 month ahead.
A81: 2013-10-08 | B81: 59044 | C81: 365.99 | D81: Due Date is 1 month ahead.
A82: 2013-10-08 | B82: 59045 | C82: 311.21 | D82: Due Date is 1 month ahead.
A83: 2013-10-08 | B83: 59046 | C83: 163.17 | D83: Due Date is 1 month ahead.
A84: 2013-10-08 | B84: 59047 | C84: 68.66 | D84: Due Date is 1 month ahead.
A85: 2013-10-08 | B85: 59048 | C85: 72.08 | D85: Due Date is 1 month ahead.
A86: 2013-10-08 | B86: 59049 | C86: 363.6 | D86: Due Date is 1 month ahead.
A87: 2013-10-08 | B87: 59050 | C87: 291.38 | D87: Due Date is 1 month ahead.
A88: 2013-10-08 | B88: 59051 | C88: 317.54 | D88: Due Date is 1 month ahead.
A89: 2013-10-08 | B89: 59052 | C89: 381.83 | D89: Due Date is 1 month ahead.
A90: 2013-10-08 | B90: 59053 | C90: 199.1 | D90: Due Date is 1 month ahead.
A91: 2013-10-08 | B91: 59054 | C91: 194.58 | D91: Due Date is 1 month ahead.
A92: 2013-10-08 | B92: 59055 | C92: 84.63 | D92: Due Date is 1 month ahead.
A93: 2013-10-08 | B93: 59056 | C93: 174.5 | D93: Due Date is 1 month ahead.
A94: 2013-10-09 | B94: 59057 | C94: 70.51 | D94: Due Date is 1 month ahead.
A95: 2013-10-09 | B95: 59058 | C95: 243.02 | D95: Due Date is 1 month ahead.
A96: 2013-10-09 | B96: 59059 | C96: 185.32 | D96: Due Date is 1 month ahead.
A97: 2013-10-09 | B97: 59060 | C97: 344.37 | D97: Due Date is 1 month ahead.
A98: 2013-10-09 | B98: 59061 | C98: 192.89 | D98: Due Date is 1 month ahead.
A99: 2013-10-09 | B99: 59062 | C99: 343.18 | D99: Due Date is 1 month ahead.
A100: 2013-10-09 | B100: 59063 | C100: 233.61 | D100: Due Date is 1 month ahead.
A101: 2013-10-09 | B101: 59064 | C101: 263.82 | D101: Due Date is 1 month ahead.
A102: 2013-10-09 | B102: 59065 | C102: 42.16 | D102: Due Date is 1 month ahead.
A103: 2013-10-09 | B103: 59066 | C103: 193.92 | D103: Due Date is 1 month ahead.
A104: 2013-10-09 | B104: 59067 | C104: 263.2 | D104: Due Date is 1 month ahead.
A105: 2013-10-09 | B105: 59068 | C105: 237.3 | D105: Due Date is 1 month ahead.
A106: 2013-10-09 | B106: 59069 | C106: 335.98 | D106: Due Date is 1 month ahead.
A107: 2013-10-09 | B107: 59070 | C107: 89.59 | D107: Due Date is 1 month ahead.
A108: 2013-10-09 | B108: 59071 | C108: 273.16 | D108: Due Date is 1 month ahead.
A109: 2013-10-09 | B109: 59072 | C109: 160.41 | D109: Due Date is 1 month ahead.
A110: 2013-10-10 | B110: 59073 | C110: 111.8 | D110: Due Date is 1 month ahead.
A111: 2013-10-10 | B111: 59074 | C111: 57.68 | D111: Due Date is 1 month ahead.
A112: 2013-10-10 | B112: 59075 | C112: 172.57 | D112: Due Date is 1 month ahead.
A113: 2013-10-10 | B113: 59076 | C113: 265.03 | D113: Due Date is 1 month ahead.
A114: 2013-10-10 | B114: 59077 | C114: 253.47 | D114: Due Date is 1 month ahead.
A115: 2013-10-10 | B115: 59078 | C115: 344.94 | D115: Due Date is 1 month ahead.
A116: 2013-10-10 | B116: 59079 | C116: 159.99 | D116: Due Date is 1 month ahead.
A117: 2013-10-10 | B117: 59080 | C117: 333.4 | D117: Due Date is 1 month ahead.
A118: 2013-10-10 | B118: 59081 | C118: 107.94 | D118: Due Date is 1 month ahead.
A119: 2013-10-10 | B119: 59082 | C119: 71.91 | D119: Due Date is 1 month ahead.
A120: 2013-10-10 | B120: 59083 | C120: 72.51 | D120: Due Date is 1 month ahead.
A121: 2013-10-10 | B121: 59084 | C121: 163.51 | D121: Due Date is 1 month ahead.
A122: 2013-10-10 | B122: 59085 | C122: 83.31 | D122: Due Date is 1 month ahead.
A123: 2013-10-10 | B123: 59086 | C123: 178.08 | D123: Due Date is 1 month ahead.
A124: 2013-10-10 | B124: 59087 | C124: 133.58 | D124: Due Date is 1 month ahead.
A125: 2013-10-10 | B125: 59088 | C125: 332.54 | D125: Due Date is 1 month ahead.
A126: 2013-10-10 | B126: 59089 | C126: 170.48 | D126: Due Date is 1 month ahead.
A127: 2013-10-10 | B127: 59090 | C127: 328.78 | D127: Due Date is 1 month ahead.
A128: 2013-10-10 | B128: 59091 | C128: 200.31 | D128: Due Date is 1 month ahead.
A129: 2013-10-10 | B129: 59092 | C129: 152.29 | D129: Due Date is 1 month ahead.
A130: 2013-10-10 | B130: 59093 | C130: 304.71 | D130: Due Date is 1 month ahead.
A131: 2013-10-10 | B131: 59094 | C131: 371.78 | D131: Due Date is 1 month ahead.
A132: 2013-10-11 | B132: 59095 | C132: 204.74 | D132: Due Date is 1 month ahead.
A133: 2013-10-11 | B133: 59096 | C133: 169.07 | D133: Due Date is 1 month ahead.
A134: 2013-10-11 | B134: 59097 | C134: 321.23 | D134: Due Date is 1 month ahead.
A135: 2013-10-11 | B135: 59098 | C135: 266.53 | D135: Due Date is 1 month ahead.
A136: 2013-10-11 | B136: 59099 | C136: 262.87 | D136: Due Date is 1 month ahead.
A137: 2013-10-11 | B137: 59100 | C137: 103.58 | D137: Due Date is 1 month ahead.
A138: 2013-10-11 | B138: 59101 | C138: 218.88 | D138: Due Date is 1 month ahead.
A139: 2013-10-11 | B139: 59102 | C139: 271.44 | D139: Due Date is 1 month ahead.
A140: 2013-10-11 | B140: 59103 | C140: 309.05 | D140: Due Date is 1 month ahead.
A141: 2013-10-11 | B141: 59104 | C141: 243.41 | D141: Due Date is 1 month ahead.
A142: 2013-10-11 | B142: 59105 | C142: 43.12 | D142: Due Date is 1 month ahead.
A143: 2013-10-11 | B143: 59106 | C143: 202.33 | D143: Due Date is 1 month ahead.
A144: 2013-10-11 | B144: 59107 | C144: 77.84 | D144: Due Date is 1 month ahead.
A145: 2013-10-11 | B145: 59108 | C145: 63 | D145: Due Date is 1 month ahead.
A146: 2013-10-11 | B146: 59109 | C146: 157.48 | D146: Due Date is 1 month ahead.
A147: 2013-10-11 | B147: 59110 | C147: 37.21 | D147: Due Date is 1 month ahead.
A148: 2013-10-11 | B148: 59111 | C148: 259.35 | D148: Due Date is 1 month ahead.
A149: 2013-10-11 | B149: 59112 | C149: 227.62 | D149: Due Date is 1 month ahead.
A150: 2013-10-11 | B150: 59113 | C150: 40.02 | D150: Due Date is 1 month ahead.
A151: 2013-10-11 | B151: 59114 | C151: 246.71 | D151: Due Date is 1 month ahead.
A152: 2013-10-11 | B152: 59115 | C152: 120.66 | D152: Due Date is 1 month ahead.
A153: 2013-10-11 | B153: 59116 | C153: 53.84 | D153: Due Date is 1 month ahead.
A154: 2013-10-11 | B154: 59117 | C154: 90.75 | D154: Due Date is 1 month ahead.
A155: 2013-10-11 | B155: 59118 | C155: 66.25 | D155: Due Date is 1 month ahead.
A156: 2013-10-11 | B156: 59119 | C156: 329.61 | D156: Due Date is 1 month ahead.
A157: 2013-10-11 | B157: 59120 | C157: 322.38 | D157: Due Date is 1 month ahead.
A158: 2013-10-12 | B158: 59121 | C158: 325.39 | D158: Due Date is 1 month ahead.
A159: 2013-10-12 | B159: 59122 | C159: 329.75 | D159: Due Date is 1 month ahead.
A160: 2013-10-12 | B160: 59123 | C160: 47.73 | D160: Due Date is 1 month ahead.
A161: 2013-10-12 | B161: 59124 | C161: 75.07 | D161: Due Date is 1 month ahead.
A162: 2013-10-12 | B162: 59125 | C162: 152.39 | D162: Due Date is 1 month ahead.
A163: 2013-10-12 | B163: 59126 | C163: 285.69 | D163: Due Date is 1 month ahead.
A164: 2013-10-12 | B164: 59127 | C164: 284.08 | D164: Due Date is 1 month ahead.
A165: 2013-10-12 | B165: 59128 | C165: 111.94 | D165: Due Date is 1 month ahead.
A166: 2013-10-12 | B166: 59129 | C166: 58.69 | D166: Due Date is 1 month ahead.
A167: 2013-10-12 | B167: 59130 | C167: 74.29 | D167: Due Date is 1 month ahead.
A168: 2013-10-12 | B168: 59131 | C168: 230.41 | D168: Due Date is 1 month ahead.
A169: 2013-10-12 | B169: 59132 | C169: 348.47 | D169: Due Date is 1 month ahead.
A170: 2013-10-12 | B170: 59133 | C170: 357.34 | D170: Due Date is 1 month ahead.
A171: 2013-10-12 | B171: 59134 | C171: 145.47 | D171: Due Date is 1 month ahead.
A172: 2013-10-12 | B172: 59135 | C172: 48.37 | D172: Due Date is 1 month ahead.
A173: 2013-10-12 | B173: 59136 | C173: 342.34 | D173: Due Date is 1 month ahead.
A174: 2013-10-12 | B174: 59137 | C174: 278.18 | D174: Due Date is 1 month ahead.
A175: 2013-10-12 | B175: 59138 | C175: 324.29 | D175: Due Date is 1 month ahead.
A176: 2013-10-12 | B176: 59139 | C176: 76.45 | D176: Due Date is 1 month ahead.
A177: 2013-10-12 | B177: 59140 | C177: 114.44 | D177: Due Date is 1 month ahead.
A178: 2013-10-12 | B178: 59141 | C178: 125.72 | D178: Due Date is 1 month ahead.
A179: 2013-10-13 | B179: 59142 | C179: 111.16 | D179: Due Date is 1 month ahead.
A180: 2013-10-13 | B180: 59143 | C180: 46.82 | D180: Due Date is 1 month ahead.
A181: 2013-10-13 | B181: 59144 | C181: 213.48 | D181: Due Date is 1 month ahead.
A182: 2013-10-13 | B182: 59145 | C182: 128.81 | D182: Due Date is 1 month ahead.
A183: 2013-10-13 | B183: 59146 | C183: 380.16 | D183: Due Date is 1 month ahead.
A184: 2013-10-13 | B184: 59147 | C184: 71.74 | D184: Due Date is 1 month ahead.
A185: 2013-10-13 | B185: 59148 | C185: 340.88 | D185: Due Date is 1 month ahead.
A186: 2013-10-13 | B186: 59149 | C186: 182.63 | D186: Due Date is 1 month ahead.
A187: 2013-10-13 | B187: 59150 | C187: 260.07 | D187: Due Date is 1 month ahead.
A188: 2013-10-13 | B188: 59151 | C188: 314.4 | D188: Due Date is 1 month ahead.
A189: 2013-10-13 | B189: 59152 | C189: 49.44 | D189: Due Date is 1 month ahead.
A190: 2013-10-13 | B190: 59153 | C190: 39.53 | D190: Due Date is 1 month ahead.
A191: 2013-10-13 | B191: 59154 | C191: 157.85 | D191: Due Date is 1 month ahead.
A192: 2013-10-13 | B192: 59155 | C192: 99.53 | D192: Due Date is 1 month ahead.
A193: 2013-10-13 | B193: 59156 | C193: 180.01 | D193: Due Date is 1 month ahead.
A194: 2013-10-14 | B194: 59157 | C194: 168.56 | D194: Due Date is 1 month ahead.
A195: 2013-10-14 | B195: 59158 | C195: 169.08 | D195: Due Date is 1 month ahead.
A196: 2013-10-14 | B196: 59159 | C196: 39.12 | D196: Due Date is 1 month ahead.
A197: 2013-10-14 | B197: 59160 | C197: 78.98 | D197: Due Date is 1 month ahead.
A198: 2013-10-14 | B198: 59161 | C198: 195.01 | D198: Due Date is 1 month ahead.
A199: 2013-10-14 | B199: 59162 | C199: 308.02 | D199: Due Date is 1 month ahead.
A200: 2013-10-14 | B200: 59163 | C200: 331.5 | D200: Due Date is 1 month ahead.
A201: 2013-10-14 | B201: 59164 | C201: 389.32 | D201: Due Date is 1 month ahead.
A202: 2013-10-14 | B202: 59165 | C202: 78.14 | D202: Due Date is 1 month ahead.
... 604 more rows

Sheet HW(10an)
A1: Calculate the Due Date for each invoice.
A4: Date | B4: Invoice Number | C4: Amount | D4: Terms | E4: Due Date
A5: 2013-10-03 | B5: 58968 | C5: 320.98 | D5: Due Date is 1 month ahead. | E5: =EDATE(A5,1) -> 2013-11-03
A6: 2013-10-03 | B6: 58969 | C6: 92.25 | D6: Due Date is 1 month ahead. | E6: =EDATE(A6,1) -> 2013-11-03
A7: 2013-10-03 | B7: 58970 | C7: 47.54 | D7: Due Date is 1 month ahead. | E7: 2013-11-03
A8: 2013-10-03 | B8: 58971 | C8: 385.71 | D8: Due Date is 1 month ahead. | E8: 2013-11-03
A9: 2013-10-03 | B9: 58972 | C9: 216.01 | D9: Due Date is 1 month ahead. | E9: 2013-11-03
A10: 2013-10-03 | B10: 58973 | C10: 236.64 | D10: Due Date is 1 month ahead. | E10: 2013-11-03
A11: 2013-10-03 | B11: 58974 | C11: 107.74 | D11: Due Date is 1 month ahead. | E11: 2013-11-03
A12: 2013-10-03 | B12: 58975 | C12: 258.29 | D12: Due Date is 1 month ahead. | E12: 2013-11-03
A13: 2013-10-03 | B13: 58976 | C13: 87.58 | D13: Due Date is 1 month ahead. | E13: 2013-11-03
A14: 2013-10-03 | B14: 58977 | C14: 122.03 | D14: Due Date is 1 month ahead. | E14: 2013-11-03
A15: 2013-10-03 | B15: 58978 | C15: 88.41 | D15: Due Date is 1 month ahead. | E15: 2013-11-03
A16: 2013-10-04 | B16: 58979 | C16: 286.4 | D16: Due Date is 1 month ahead. | E16: 2013-11-04
A17: 2013-10-04 | B17: 58980 | C17: 277.09 | D17: Due Date is 1 month ahead. | E17: 2013-11-04
A18: 2013-10-04 | B18: 58981 | C18: 212.03 | D18: Due Date is 1 month ahead. | E18: 2013-11-04
A19: 2013-10-04 | B19: 58982 | C19: 130.04 | D19: Due Date is 1 month ahead. | E19: 2013-11-04
A20: 2013-10-04 | B20: 58983 | C20: 272.83 | D20: Due Date is 1 month ahead. | E20: 2013-11-04
A21: 2013-10-04 | B21: 58984 | C21: 68.44 | D21: Due Date is 1 month ahead. | E21: 2013-11-04
A22: 2013-10-04 | B22: 58985 | C22: 63.62 | D22: Due Date is 1 month ahead. | E22: 2013-11-04
A23: 2013-10-04 | B23: 58986 | C23: 245.92 | D23: Due Date is 1 month ahead. | E23: 2013-11-04
A24: 2013-10-04 | B24: 58987 | C24: 285.31 | D24: Due Date is 1 month ahead. | E24: 2013-11-04
A25: 2013-10-04 | B25: 58988 | C25: 256.69 | D25: Due Date is 1 month ahead. | E25: 2013-11-04
A26: 2013-10-04 | B26: 58989 | C26: 329.98 | D26: Due Date is 1 month ahead. | E26: 2013-11-04
A27: 2013-10-04 | B27: 58990 | C27: 293.24 | D27: Due Date is 1 month ahead. | E27: 2013-11-04
A28: 2013-10-05 | B28: 58991 | C28: 269.52 | D28: Due Date is 1 month ahead. | E28: 2013-11-05
A29: 2013-10-05 | B29: 58992 | C29: 46.21 | D29: Due Date is 1 month ahead. | E29: 2013-11-05
A30: 2013-10-05 | B30: 58993 | C30: 193.27 | D30: Due Date is 1 month ahead. | E30: 2013-11-05
A31: 2013-10-05 | B31: 58994 | C31: 323.79 | D31: Due Date is 1 month ahead. | E31: 2013-11-05
A32: 2013-10-05 | B32: 58995 | C32: 130.78 | D32: Due Date is 1 month ahead. | E32: 2013-11-05
A33: 2013-10-05 | B33: 58996 | C33: 222.56 | D33: Due Date is 1 month ahead. | E33: 2013-11-05
A34: 2013-10-05 | B34: 58997 | C34: 263.54 | D34: Due Date is 1 month ahead. | E34: 2013-11-05
A35: 2013-10-05 | B35: 58998 | C35: 209.94 | D35: Due Date is 1 month ahead. | E35: 2013-11-05
A36: 2013-10-05 | B36: 58999 | C36: 105.09 | D36: Due Date is 1 month ahead. | E36: 2013-11-05
A37: 2013-10-05 | B37: 59000 | C37: 173.68 | D37: Due Date is 1 month ahead. | E37: 2013-11-05
A38: 2013-10-05 | B38: 59001 | C38: 307.77 | D38: Due Date is 1 month ahead. | E38: 2013-11-05
A39: 2013-10-05 | B39: 59002 | C39: 149.06 | D39: Due Date is 1 month ahead. | E39: 2013-11-05
A40: 2013-10-06 | B40: 59003 | C40: 248.51 | D40: Due Date is 1 month ahead. | E40: 2013-11-06
A41: 2013-10-06 | B41: 59004 | C41: 231.73 | D41: Due Date is 1 month ahead. | E41: 2013-11-06
A42: 2013-10-06 | B42: 59005 | C42: 324.43 | D42: Due Date is 1 month ahead. | E42: 2013-11-06
A43: 2013-10-06 | B43: 59006 | C43: 249.58 | D43: Due Date is 1 month ahead. | E43: 2013-11-06
A44: 2013-10-06 | B44: 59007 | C44: 161.94 | D44: Due Date is 1 month ahead. | E44: 2013-11-06
A45: 2013-10-06 | B45: 59008 | C45: 247.87 | D45: Due Date is 1 month ahead. | E45: 2013-11-06
A46: 2013-10-06 | B46: 59009 | C46: 248.86 | D46: Due Date is 1 month ahead. | E46: 2013-11-06
A47: 2013-10-06 | B47: 59010 | C47: 235.98 | D47: Due Date is 1 month ahead. | E47: 2013-11-06
A48: 2013-10-06 | B48: 59011 | C48: 224.49 | D48: Due Date is 1 month ahead. | E48: 2013-11-06
A49: 2013-10-06 | B49: 59012 | C49: 256.42 | D49: Due Date is 1 month ahead. | E49: 2013-11-06
A50: 2013-10-06 | B50: 59013 | C50: 233.01 | D50: Due Date is 1 month ahead. | E50: 2013-11-06
A51: 2013-10-06 | B51: 59014 | C51: 379.98 | D51: Due Date is 1 month ahead. | E51: 2013-11-06
A52: 2013-10-06 | B52: 59015 | C52: 219.3 | D52: Due Date is 1 month ahead. | E52: 2013-11-06
A53: 2013-10-06 | B53: 59016 | C53: 371.22 | D53: Due Date is 1 month ahead. | E53: 2013-11-06
A54: 2013-10-06 | B54: 59017 | C54: 385.88 | D54: Due Date is 1 month ahead. | E54: 2013-11-06
A55: 2013-10-06 | B55: 59018 | C55: 155.65 | D55: Due Date is 1 month ahead. | E55: 2013-11-06
A56: 2013-10-07 | B56: 59019 | C56: 325.83 | D56: Due Date is 1 month ahead. | E56: 2013-11-07
A57: 2013-10-07 | B57: 59020 | C57: 101.09 | D57: Due Date is 1 month ahead. | E57: 2013-11-07
A58: 2013-10-07 | B58: 59021 | C58: 259.24 | D58: Due Date is 1 month ahead. | E58: 2013-11-07
A59: 2013-10-07 | B59: 59022 | C59: 188.54 | D59: Due Date is 1 month ahead. | E59: 2013-11-07
A60: 2013-10-07 | B60: 59023 | C60: 56.87 | D60: Due Date is 1 month ahead. | E60: 2013-11-07
A61: 2013-10-07 | B61: 59024 | C61: 241.46 | D61: Due Date is 1 month ahead. | E61: 2013-11-07
A62: 2013-10-07 | B62: 59025 | C62: 99.87 | D62: Due Date is 1 month ahead. | E62: 2013-11-07
A63: 2013-10-07 | B63: 59026 | C63: 52.75 | D63: Due Date is 1 month ahead. | E63: 2013-11-07
A64: 2013-10-07 | B64: 59027 | C64: 67.82 | D64: Due Date is 1 month ahead. | E64: 2013-11-07
A65: 2013-10-07 | B65: 59028 | C65: 114.91 | D65: Due Date is 1 month ahead. | E65: 2013-11-07
A66: 2013-10-07 | B66: 59029 | C66: 189.99 | D66: Due Date is 1 month ahead. | E66: 2013-11-07
A67: 2013-10-07 | B67: 59030 | C67: 280.49 | D67: Due Date is 1 month ahead. | E67: 2013-11-07
A68: 2013-10-07 | B68: 59031 | C68: 137.1 | D68: Due Date is 1 month ahead. | E68: 2013-11-07
A69: 2013-10-07 | B69: 59032 | C69: 182.84 | D69: Due Date is 1 month ahead. | E69: 2013-11-07
A70: 2013-10-07 | B70: 59033 | C70: 327.65 | D70: Due Date is 1 month ahead. | E70: =EDATE(A70,1) -> 2013-11-07
A71: 2013-10-07 | B71: 59034 | C71: 269.27 | D71: Due Date is 1 month ahead. | E71: 2013-11-07
A72: 2013-10-07 | B72: 59035 | C72: 92.39 | D72: Due Date is 1 month ahead. | E72: 2013-11-07
A73: 2013-10-07 | B73: 59036 | C73: 97.21 | D73: Due Date is 1 month ahead. | E73: 2013-11-07
A74: 2013-10-08 | B74: 59037 | C74: 97.59 | D74: Due Date is 1 month ahead. | E74: 2013-11-08
A75: 2013-10-08 | B75: 59038 | C75: 353.5 | D75: Due Date is 1 month ahead. | E75: 2013-11-08
A76: 2013-10-08 | B76: 59039 | C76: 130.79 | D76: Due Date is 1 month ahead. | E76: 2013-11-08
A77: 2013-10-08 | B77: 59040 | C77: 379.46 | D77: Due Date is 1 month ahead. | E77: 2013-11-08
A78: 2013-10-08 | B78: 59041 | C78: 143.1 | D78: Due Date is 1 month ahead. | E78: 2013-11-08
A79: 2013-10-08 | B79: 59042 | C79: 163.51 | D79: Due Date is 1 month ahead. | E79: 2013-11-08
A80: 2013-10-08 | B80: 59043 | C80: 131.96 | D80: Due Date is 1 month ahead. | E80: 2013-11-08
A81: 2013-10-08 | B81: 59044 | C81: 365.99 | D81: Due Date is 1 month ahead. | E81: 2013-11-08
A82: 2013-10-08 | B82: 59045 | C82: 311.21 | D82: Due Date is 1 month ahead. | E82: 2013-11-08
A83: 2013-10-08 | B83: 59046 | C83: 163.17 | D83: Due Date is 1 month ahead. | E83: 2013-11-08
A84: 2013-10-08 | B84: 59047 | C84: 68.66 | D84: Due Date is 1 month ahead. | E84: 2013-11-08
A85: 2013-10-08 | B85: 59048 | C85: 72.08 | D85: Due Date is 1 month ahead. | E85: 2013-11-08
A86: 2013-10-08 | B86: 59049 | C86: 363.6 | D86: Due Date is 1 month ahead. | E86: 2013-11-08
A87: 2013-10-08 | B87: 59050 | C87: 291.38 | D87: Due Date is 1 month ahead. | E87: 2013-11-08
A88: 2013-10-08 | B88: 59051 | C88: 317.54 | D88: Due Date is 1 month ahead. | E88: 2013-11-08
A89: 2013-10-08 | B89: 59052 | C89: 381.83 | D89: Due Date is 1 month ahead. | E89: 2013-11-08
A90: 2013-10-08 | B90: 59053 | C90: 199.1 | D90: Due Date is 1 month ahead. | E90: 2013-11-08
A91: 2013-10-08 | B91: 59054 | C91: 194.58 | D91: Due Date is 1 month ahead. | E91: 2013-11-08
A92: 2013-10-08 | B92: 59055 | C92: 84.63 | D92: Due Date is 1 month ahead. | E92: 2013-11-08
A93: 2013-10-08 | B93: 59056 | C93: 174.5 | D93: Due Date is 1 month ahead. | E93: 2013-11-08
A94: 2013-10-09 | B94: 59057 | C94: 70.51 | D94: Due Date is 1 month ahead. | E94: 2013-11-09
A95: 2013-10-09 | B95: 59058 | C95: 243.02 | D95: Due Date is 1 month ahead. | E95: 2013-11-09
A96: 2013-10-09 | B96: 59059 | C96: 185.32 | D96: Due Date is 1 month ahead. | E96: 2013-11-09
A97: 2013-10-09 | B97: 59060 | C97: 344.37 | D97: Due Date is 1 month ahead. | E97: 2013-11-09
A98: 2013-10-09 | B98: 59061 | C98: 192.89 | D98: Due Date is 1 month ahead. | E98: 2013-11-09
A99: 2013-10-09 | B99: 59062 | C99: 343.18 | D99: Due Date is 1 month ahead. | E99: 2013-11-09
A100: 2013-10-09 | B100: 59063 | C100: 233.61 | D100: Due Date is 1 month ahead. | E100: 2013-11-09
A101: 2013-10-09 | B101: 59064 | C101: 263.82 | D101: Due Date is 1 month ahead. | E101: 2013-11-09
A102: 2013-10-09 | B102: 59065 | C102: 42.16 | D102: Due Date is 1 month ahead. | E102: 2013-11-09
A103: 2013-10-09 | B103: 59066 | C103: 193.92 | D103: Due Date is 1 month ahead. | E103: 2013-11-09
A104: 2013-10-09 | B104: 59067 | C104: 263.2 | D104: Due Date is 1 month ahead. | E104: 2013-11-09
A105: 2013-10-09 | B105: 59068 | C105: 237.3 | D105: Due Date is 1 month ahead. | E105: 2013-11-09
A106: 2013-10-09 | B106: 59069 | C106: 335.98 | D106: Due Date is 1 month ahead. | E106: 2013-11-09
A107: 2013-10-09 | B107: 59070 | C107: 89.59 | D107: Due Date is 1 month ahead. | E107: 2013-11-09
A108: 2013-10-09 | B108: 59071 | C108: 273.16 | D108: Due Date is 1 month ahead. | E108: 2013-11-09
A109: 2013-10-09 | B109: 59072 | C109: 160.41 | D109: Due Date is 1 month ahead. | E109: 2013-11-09
A110: 2013-10-10 | B110: 59073 | C110: 111.8 | D110: Due Date is 1 month ahead. | E110: 2013-11-10
A111: 2013-10-10 | B111: 59074 | C111: 57.68 | D111: Due Date is 1 month ahead. | E111: 2013-11-10
A112: 2013-10-10 | B112: 59075 | C112: 172.57 | D112: Due Date is 1 month ahead. | E112: 2013-11-10
A113: 2013-10-10 | B113: 59076 | C113: 265.03 | D113: Due Date is 1 month ahead. | E113: 2013-11-10
A114: 2013-10-10 | B114: 59077 | C114: 253.47 | D114: Due Date is 1 month ahead. | E114: 2013-11-10
A115: 2013-10-10 | B115: 59078 | C115: 344.94 | D115: Due Date is 1 month ahead. | E115: 2013-11-10
A116: 2013-10-10 | B116: 59079 | C116: 159.99 | D116: Due Date is 1 month ahead. | E116: 2013-11-10
A117: 2013-10-10 | B117: 59080 | C117: 333.4 | D117: Due Date is 1 month ahead. | E117: 2013-11-10
A118: 2013-10-10 | B118: 59081 | C118: 107.94 | D118: Due Date is 1 month ahead. | E118: 2013-11-10
A119: 2013-10-10 | B119: 59082 | C119: 71.91 | D119: Due Date is 1 month ahead. | E119: 2013-11-10
A120: 2013-10-10 | B120: 59083 | C120: 72.51 | D120: Due Date is 1 month ahead. | E120: 2013-11-10
A121: 2013-10-10 | B121: 59084 | C121: 163.51 | D121: Due Date is 1 month ahead. | E121: 2013-11-10
A122: 2013-10-10 | B122: 59085 | C122: 83.31 | D122: Due Date is 1 month ahead. | E122: 2013-11-10
A123: 2013-10-10 | B123: 59086 | C123: 178.08 | D123: Due Date is 1 month ahead. | E123: 2013-11-10
A124: 2013-10-10 | B124: 59087 | C124: 133.58 | D124: Due Date is 1 month ahead. | E124: 2013-11-10
A125: 2013-10-10 | B125: 59088 | C125: 332.54 | D125: Due Date is 1 month ahead. | E125: 2013-11-10
A126: 2013-10-10 | B126: 59089 | C126: 170.48 | D126: Due Date is 1 month ahead. | E126: 2013-11-10
A127: 2013-10-10 | B127: 59090 | C127: 328.78 | D127: Due Date is 1 month ahead. | E127: 2013-11-10
A128: 2013-10-10 | B128: 59091 | C128: 200.31 | D128: Due Date is 1 month ahead. | E128: 2013-11-10
A129: 2013-10-10 | B129: 59092 | C129: 152.29 | D129: Due Date is 1 month ahead. | E129: 2013-11-10
A130: 2013-10-10 | B130: 59093 | C130: 304.71 | D130: Due Date is 1 month ahead. | E130: 2013-11-10
A131: 2013-10-10 | B131: 59094 | C131: 371.78 | D131: Due Date is 1 month ahead. | E131: 2013-11-10
A132: 2013-10-11 | B132: 59095 | C132: 204.74 | D132: Due Date is 1 month ahead. | E132: 2013-11-11
A133: 2013-10-11 | B133: 59096 | C133: 169.07 | D133: Due Date is 1 month ahead. | E133: 2013-11-11
A134: 2013-10-11 | B134: 59097 | C134: 321.23 | D134: Due Date is 1 month ahead. | E134: =EDATE(A134,1) -> 2013-11-11
A135: 2013-10-11 | B135: 59098 | C135: 266.53 | D135: Due Date is 1 month ahead. | E135: 2013-11-11
A136: 2013-10-11 | B136: 59099 | C136: 262.87 | D136: Due Date is 1 month ahead. | E136: 2013-11-11
A137: 2013-10-11 | B137: 59100 | C137: 103.58 | D137: Due Date is 1 month ahead. | E137: 2013-11-11
A138: 2013-10-11 | B138: 59101 | C138: 218.88 | D138: Due Date is 1 month ahead. | E138: 2013-11-11
A139: 2013-10-11 | B139: 59102 | C139: 271.44 | D139: Due Date is 1 month ahead. | E139: 2013-11-11
A140: 2013-10-11 | B140: 59103 | C140: 309.05 | D140: Due Date is 1 month ahead. | E140: 2013-11-11
A141: 2013-10-11 | B141: 59104 | C141: 243.41 | D141: Due Date is 1 month ahead. | E141: 2013-11-11
A142: 2013-10-11 | B142: 59105 | C142: 43.12 | D142: Due Date is 1 month ahead. | E142: 2013-11-11
A143: 2013-10-11 | B143: 59106 | C143: 202.33 | D143: Due Date is 1 month ahead. | E143: 2013-11-11
A144: 2013-10-11 | B144: 59107 | C144: 77.84 | D144: Due Date is 1 month ahead. | E144: 2013-11-11
A145: 2013-10-11 | B145: 59108 | C145: 63 | D145: Due Date is 1 month ahead. | E145: 2013-11-11
A146: 2013-10-11 | B146: 59109 | C146: 157.48 | D146: Due Date is 1 month ahead. | E146: 2013-11-11
A147: 2013-10-11 | B147: 59110 | C147: 37.21 | D147: Due Date is 1 month ahead. | E147: 2013-11-11
A148: 2013-10-11 | B148: 59111 | C148: 259.35 | D148: Due Date is 1 month ahead. | E148: 2013-11-11
A149: 2013-10-11 | B149: 59112 | C149: 227.62 | D149: Due Date is 1 month ahead. | E149: 2013-11-11
A150: 2013-10-11 | B150: 59113 | C150: 40.02 | D150: Due Date is 1 month ahead. | E150: 2013-11-11
A151: 2013-10-11 | B151: 59114 | C151: 246.71 | D151: Due Date is 1 month ahead. | E151: 2013-11-11
A152: 2013-10-11 | B152: 59115 | C152: 120.66 | D152: Due Date is 1 month ahead. | E152: 2013-11-11
A153: 2013-10-11 | B153: 59116 | C153: 53.84 | D153: Due Date is 1 month ahead. | E153: 2013-11-11
A154: 2013-10-11 | B154: 59117 | C154: 90.75 | D154: Due Date is 1 month ahead. | E154: 2013-11-11
A155: 2013-10-11 | B155: 59118 | C155: 66.25 | D155: Due Date is 1 month ahead. | E155: 2013-11-11
A156: 2013-10-11 | B156: 59119 | C156: 329.61 | D156: Due Date is 1 month ahead. | E156: 2013-11-11
A157: 2013-10-11 | B157: 59120 | C157: 322.38 | D157: Due Date is 1 month ahead. | E157: 2013-11-11
A158: 2013-10-12 | B158: 59121 | C158: 325.39 | D158: Due Date is 1 month ahead. | E158: 2013-11-12
A159: 2013-10-12 | B159: 59122 | C159: 329.75 | D159: Due Date is 1 month ahead. | E159: 2013-11-12
A160: 2013-10-12 | B160: 59123 | C160: 47.73 | D160: Due Date is 1 month ahead. | E160: 2013-11-12
A161: 2013-10-12 | B161: 59124 | C161: 75.07 | D161: Due Date is 1 month ahead. | E161: 2013-11-12
A162: 2013-10-12 | B162: 59125 | C162: 152.39 | D162: Due Date is 1 month ahead. | E162: 2013-11-12
A163: 2013-10-12 | B163: 59126 | C163: 285.69 | D163: Due Date is 1 month ahead. | E163: 2013-11-12
A164: 2013-10-12 | B164: 59127 | C164: 284.08 | D164: Due Date is 1 month ahead. | E164: 2013-11-12
A165: 2013-10-12 | B165: 59128 | C165: 111.94 | D165: Due Date is 1 month ahead. | E165: 2013-11-12
A166: 2013-10-12 | B166: 59129 | C166: 58.69 | D166: Due Date is 1 month ahead. | E166: 2013-11-12
